Workbook

Sheet Base (hidden)
A1: LLAVE (TIPO ID - DOCUMENTO) | B1: CIUDAD - DIVIPOLA - R | C1: Ciudad | D1: TOTAL COTIZANTES CON CONCEPTO DE CONFORMIDAD TOTAL A GIRAR | E1: TOTAL COTIZANTES CON CONCEPTO DE NO CONFORMIDAD | F1: TIPO DE PERSONA | G1: Departamento DIVIPOLA (P) | H1: NOMBRE DEPTO DIVIOLA | I1: ESTADO_TOTAL A GIRAR | J1: Numero total empleados | K1: Tamaño del Empleador | L1: STRCODPAR_CIIU_EMPRESA | M1: ACTIVIDAD ECONOMICA | N1: SEXO_F_ | O1: SEXO_M_ | P1: SEXO_ND_ | Q1: Jovenes | R1: Mujeres 28 años | S1: Hombres 28 años | X1: LLAVE (TIPO ID - DOCUMENTO) | Y1: CIUDAD - DIVIPOLA - R | Z1: Ciudad | AA1: TOTAL COTIZANTES CON CONCEPTO DE CONFORMIDAD TOTAL A GIRAR | AB1: TOTAL COTIZANTES CON CONCEPTO DE NO CONFORMIDAD | AC1: TIPO DE PERSONA | AD1: Departamento DIVIPOLA (P) | AE1: NOMBRE DEPTO DIVIOLA | AF1: ESTADO_TOTAL A GIRAR | AG1: Numero total empleados | AH1: Tamaño del Empleador | AI1: STRCODPAR_CIIU_EMPRESA | AJ1: ACTIVIDAD ECONOMICA | AK1: SEXO_F_ | AL1: SEXO_M_ | AM1: SEXO_ND_ | AN1: Jovenes | AO1: Mujeres 28 años | AP1: Hombres 28 años | AU1: Empleadores | AV1: % | AW1: Empleados | AX1: % | AY1: Recursos | AZ1: Mpio | BF1: Jóvenes | BG1: Mujeres > 28 años | BH1: Hombres > 28 años | BK1: Jóvenes | BL1: Mujeres > 28 años | BM1: Hombres > 28 años
B2: 17380 | C2: LA DORADA | D2: 0 | E2: 0 | F2: Natural | G2: 17 | H2: CALDAS | I2: 0 | J2: 0 | K2: MICRO | L2: 141 | M2: AGRICULTURA, GANADERÍA, CAZA, SILVICULTURA Y PESCA | N2: 0 | O2: 0 | P2: 0 | Q2: 0 | R2: 0 | S2: 0 | U2: =+_xlfn.UNIQUE(M2:M399999) -> AGRICULTURA, GANADERÍA, CAZA, SILVICULTURA Y PESCA | X2: =+_xlfn._xlws.FILTER($A$2:$S$399999,$H$2:$H$399999=Visor!$M$7,"") -> 0 | Y2: 5001 | Z2: MEDELLÍN | AA2: 2 | AB2: 1 | AC2: Natural | AD2: 5 | AE2: ANTIOQUIA | AF2: Aprobado con subsidio | AG2: 3 | AH2: MICRO | AI2: 141 | AJ2: AGRICULTURA, GANADERÍA, CAZA, SILVICULTURA Y PESCA | AK2: 0 | AL2: 2 | AM2: 0 | AN2: 2 | AO2: 0 | AP2: 0 | AT2: =CONCATENATE(AU2,COUNTIF($AU$2:AU2,AU2)) -> 29341 | AU2: =+COUNTIFS($Z$2:$Z$399999,AZ2,$AF$2:$AF$399999,"Aprobado con subsidio")*1 -> 2934 | AV2: =+AU2/SUM($AU$2:$AU$129) -> 0.6246540345 | AW2: =+SUMIFS($AA$2:$AA$399999,$Z$2:$Z$399999,AZ2,$AF$2:$AF$399999,"Aprobado con subsidio") -> 117429 | AX2: =+AW2/SUM($AW$2:$AW$129) -> 0.7414429943 | AY2: =+(SUMIFS(Montos!$Y$2:$Y$396864,Montos!$R$2:$R$396864,Base!AZ2)/1000000) -> 101306.0985 | AZ2: =_xlfn.UNIQUE('$Base'!$AB$2:$AB$400000) -> MEDELLÍN | BE2: Micro | BF2: =SUMIFS($Q$2:$Q$400000,$K$2:$K$400000,"MICRO",$I$2:$I$400000,"Aprobado con subsidio") -> 40479 | BG2: =SUMIFS($R$2:$R$400000,$K$2:$K$400000,"MICRO",$I$2:$I$400000,"Aprobado con subsidio") -> 17861 | BH2: =SUMIFS($S$2:$S$400000,$K$2:$K$400000,"MICRO",$I$2:$I$400000,"Aprobado con subsidio") -> 25388 | BJ2: Micro | BK2: =BF2/SUM(BF2:BH2) -> 0.4834583413 | BL2: =BG2/SUM(BF2:BH2) -> 0.2133217084 | BM2: =BH2/SUM(BF2:BH2) -> 0.3032199503
B3: 68001 | C3: BUCARAMANGA | D3: 0 | E3: 0 | F3: Natural | G3: 68 | H3: SANTANDER | I3: 0 | J3: 0 | K3: 0 | L3: 4771 | M3: COMERCIO AL POR MAYOR Y AL POR MENOR; REPARACIÓN DE VEHÍCULOS AUTOMOTORES Y MOTOCICLETAS | N3: 0 | O3: 0 | P3: 0 | Q3: 0 | R3: 0 | S3: 0 | U3: COMERCIO AL POR MAYOR Y AL POR MENOR; REPARACIÓN DE VEHÍCULOS AUTOMOTORES Y MOTOCICLETAS | X3: 0 | Y3: 5001 | Z3: MEDELLÍN | AA3: 0 | AB3: 1 | AC3: Natural | AD3: 5 | AE3: ANTIOQUIA | AF3: 0 | AG3: 1 | AH3: MICRO | AI3: 3315 | AJ3: INDUSTRIAS MANUFACTURERAS | AK3: 0 | AL3: 0 | AM3: 0 | AN3: 0 | AO3: 0 | AP3: 0 | AT3: =CONCATENATE(AU3,COUNTIF($AU$2:AU3,AU3)) -> 1771 | AU3: 177 | AV3: 0.03768362785 | AW3: 5510 | AX3: =+AW3/SUM($AW$2:$AW$129) -> 0.03478996584 | AY3: =+(SUMIFS(Montos!$Y$2:$Y$396864,Montos!$R$2:$R$396864,Base!AZ3)/1000000) -> 4837.107864 | AZ3: RIONEGRO | BE3: Pequeña | BF3: =SUMIFS($Q$2:$Q$400000,$K$2:$K$400000,"PEQUEÑA",$I$2:$I$400000,"Aprobado con subsidio") -> 68385 | BG3: =SUMIFS($R$2:$R$400000,$K$2:$K$400000,"PEQUEÑA",$I$2:$I$400000,"Aprobado con subsidio") -> 24054 | BH3: =SUMIFS($S$2:$S$400000,$K$2:$K$400000,"PEQUEÑA",$I$2:$I$400000,"Aprobado con subsidio") -> 27214 | BJ3: Pequeña | BK3: =BF3/SUM(BF3:BH3) -> 0.5715276675 | BL3: =BG3/SUM(BF3:BH3) -> 0.2010313156 | BM3: =BH3/SUM(BF3:BH3) -> 0.2274410169
B4: 68001 | C4: BUCARAMANGA | D4: 0 | E4: 0 | F4: Natural | G4: 68 | H4: SANTANDER | I4: 0 | J4: 0 | K4: 0 | L4: 1089 | M4: INDUSTRIAS MANUFACTURERAS | N4: 0 | O4: 0 | P4: 0 | Q4: 0 | R4: 0 | S4: 0 | U4: INDUSTRIAS MANUFACTURERAS | X4: 0 | Y4: 5001 | Z4: MEDELLÍN | AA4: 0 | AB4: 0 | AC4: Natural | AD4: 5 | AE4: ANTIOQUIA | AF4: 0 | AG4: 0 | AH4: PEQUEÑA | AI4: 5611 | AJ4: ALOJAMIENTO Y SERVICIOS DE COMIDA | AK4: 0 | AL4: 0 | AM4: 0 | AN4: 0 | AO4: 0 | AP4: 0 | AT4: =CONCATENATE(AU4,COUNTIF($AU$2:AU4,AU4)) -> 3081 | AU4: 308 | AV4: 0.06557377049 | AW4: 7543 | AX4: 0.04762626358 | AY4: =+(SUMIFS(Montos!$Y$2:$Y$396864,Montos!$R$2:$R$396864,Base!AZ4)/1000000) -> 6843.697712 | AZ4: ITAGUI | BE4: Mediana | BF4: =SUMIFS($Q$2:$Q$400000,$K$2:$K$400000,"MEDIANA",$I$2:$I$400000,"Aprobado con subsidio") -> 87480 | BG4: =SUMIFS($R$2:$R$400000,$K$2:$K$400000,"MEDIANA",$I$2:$I$400000,"Aprobado con subsidio") -> 25316 | BH4: =SUMIFS($S$2:$S$400000,$K$2:$K$400000,"MEDIANA",$I$2:$I$400000,"Aprobado con subsidio") -> 25762 | BJ4: Mediana | BK4: 0.6313601524 | BL4: 0.1827104895 | BM4: 0.1859293581
B5: 44430 | C5: MAICAO | D5: 0 | E5: 0 | F5: Natural | G5: 44 | H5: LA GUAJIRA | I5: 0 | J5: 0 | K5: 0 | L5: 4530 | M5: COMERCIO AL POR MAYOR Y AL POR MENOR; REPARACIÓN DE VEHÍCULOS AUTOMOTORES Y MOTOCICLETAS | N5: 0 | O5: 0 | P5: 0 | Q5: 0 | R5: 0 | S5: 0 | U5: ALOJAMIENTO Y SERVICIOS DE COMIDA | X5: 0 | Y5: 5001 | Z5: MEDELLÍN | AA5: 4 | AB5: 0 | AC5: Natural | AD5: 5 | AE5: ANTIOQUIA | AF5: Aprobado con subsidio | AG5: 4 | AH5: MICRO | AI5: 5611 | AJ5: ALOJAMIENTO Y SERVICIOS DE COMIDA | AK5: 1 | AL5: 3 | AM5: 0 | AN5: 3 | AO5: 0 | AP5: 1 | AT5: =CONCATENATE(AU5,COUNTIF($AU$2:AU5,AU5)) -> 51 | AU5: 5 | AV5: 0.001064509261 | AW5: 24 | AX5: 0.0001515352414 | AY5: =+(SUMIFS(Montos!$Y$2:$Y$396864,Montos!$R$2:$R$396864,Base!AZ5)/1000000) -> 20.474011 | AZ5: PUERTO TRIUNFO | BE5: Grande | BF5: =SUMIFS($Q$2:$Q$400000,$K$2:$K$400000,"GRANDE",$I$2:$I$400000,"Aprobado con subsidio") -> 74199 | BG5: =SUMIFS($R$2:$R$400000,$K$2:$K$400000,"GRANDE",$I$2:$I$400000,"Aprobado con subsidio") -> 14273 | BH5: =SUMIFS($S$2:$S$400000,$K$2:$K$400000,"GRANDE",$I$2:$I$400000,"Aprobado con subsidio") -> 9514 | BJ5: Grande | BK5: 0.7572408303 | BL5: 0.1456636662 | BM5: 0.09709550344
B6: 5001 | C6: MEDELLÍN | D6: 2 | E6: 1 | F6: Natural | G6: 5 | H6: ANTIOQUIA | I6: Aprobado con subsidio | J6: 3 | K6: MICRO | L6: 141 | M6: AGRICULTURA, GANADERÍA, CAZA, SILVICULTURA Y PESCA | N6: 0 | O6: 2 | P6: 0 | Q6: 2 | R6: 0 | S6: 0 | U6: TRANSPORTE Y ALMACENAMIENTO | X6: 0 | Y6: 5615 | Z6: RIONEGRO | AA6: 0 | AB6: 0 | AC6: Natural | AD6: 5 | AE6: ANTIOQUIA | AF6: 0 | AG6: 0 | AH6: PEQUEÑA | AI6: 2012 | AJ6: INDUSTRIAS MANUFACTURERAS | AK6: 0 | AL6: 0 | AM6: 0 | AN6: 0 | AO6: 0 | AP6: 0 | AT6: =CONCATENATE(AU6,COUNTIF($AU$2:AU6,AU6)) -> 91 | AU6: 9 | AV6: 0.00191611667 | AW6: 102 | AX6: 0.000644024776 | AY6: =+(SUMIFS(Montos!$Y$2:$Y$396864,Montos!$R$2:$R$396864,Base!AZ6)/1000000) -> 60.023905 | AZ6: ENTRERRIOS | BE6: Muy Grande | BF6: =SUMIFS($Q$2:$Q$400000,$K$2:$K$400000,"MUY GRANDE",$I$2:$I$400000,"Aprobado con subsidio") -> 313819 | BG6: =SUMIFS($R$2:$R$400000,$K$2:$K$400000,"MUY GRANDE",$I$2:$I$400000,"Aprobado con subsidio") -> 40268 | BH6: =SUMIFS($S$2:$S$400000,$K$2:$K$400000,"MUY GRANDE",$I$2:$I$400000,"Aprobado con subsidio") -> 17674 | BJ6: Muy Grande | BK6: 0.8441418008 | BL6: 0.1083169025 | BM6: 0.04754129669
B7: 41001 | C7: NEIVA | D7: 0 | E7: 0 | F7: Natural | G7: 41 | H7: HUILA | I7: 0 | J7: 0 | K7: 0 | L7: 4773 | M7: COMERCIO AL POR MAYOR Y AL POR MENOR; REPARACIÓN DE VEHÍCULOS AUTOMOTORES Y MOTOCICLETAS | N7: 0 | O7: 0 | P7: 0 | Q7: 0 | R7: 0 | S7: 0 | U7: OTRAS | X7: 0 | Y7: 5360 | Z7: ITAGUI | AA7: 0 | AB7: 0 | AC7: Natural | AD7: 5 | AE7: ANTIOQUIA | AF7: 0 | AG7: 0 | AH7: MICRO | AI7: 1921 | AJ7: INDUSTRIAS MANUFACTURERAS | AK7: 0 | AL7: 0 | AM7: 0 | AN7: 0 | AO7: 0 | AP7: 0 | AT7: =CONCATENATE(AU7,COUNTIF($AU$2:AU7,AU7)) -> 11 | AU7: 1 | AV7: 0.0002129018522 | AW7: 2 | AX7: 1.262793678e-05 | AY7: =+(SUMIFS(Montos!$Y$2:$Y$396864,Montos!$R$2:$R$396864,Base!AZ7)/1000000) -> 1.227131 | AZ7: CONCORDIA | BE7: Total | BF7: =SUM(BF2:BF6) -> 584362 | BG7: =SUM(BG2:BG6) -> 121772 | BH7: =SUM(BH2:BH6) -> 105552 | BJ7: Total | BK7: =BF7/SUM(BF7:BH7) -> 0.7199360344 | BL7: =BG7/SUM(BF7:BH7) -> 0.1500235313 | BM7: =BH7/SUM(BF7:BH7) -> 0.1300404344
B8: 25307 | C8: GIRARDOT | D8: 1 | E8: 3 | F8: Natural | G8: 25 | H8: CUNDINAMARCA | I8: Aprobado con subsidio | J8: 4 | K8: MICRO | L8: 4530 | M8: COMERCIO AL POR MAYOR Y AL POR MENOR; REPARACIÓN DE VEHÍCULOS AUTOMOTORES Y MOTOCICLETAS | N8: 1 | O8: 0 | P8: 0 | Q8: 1 | R8: 0 | S8: 0 | U8: EDUCACIÓN | X8: 0 | Y8: 5001 | Z8: MEDELLÍN | AA8: 1 | AB8: 1 | AC8: Natural | AD8: 5 | AE8: ANTIOQUIA | AF8: Aprobado con subsidio | AG8: 2 | AH8: MICRO | AI8: 90 | AJ8: OTRAS | AK8: 0 | AL8: 1 | AM8: 0 | AN8: 0 | AO8: 0 | AP8: 1 | AT8: =CONCATENATE(AU8,COUNTIF($AU$2:AU8,AU8)) -> 191 | AU8: 19 | AV8: 0.004045135193 | AW8: 202 | AX8: 0.001275421615 | AY8: =+(SUMIFS(Montos!$Y$2:$Y$396864,Montos!$R$2:$R$396864,Base!AZ8)/1000000) -> 179.570722 | AZ8: EL SANTUARIO
B9: 5001 | C9: MEDELLÍN | D9: 0 | E9: 1 | F9: Natural | G9: 5 | H9: ANTIOQUIA | I9: 0 | J9: 1 | K9: MICRO | L9: 3315 | M9: INDUSTRIAS MANUFACTURERAS | N9: 0 | O9: 0 | P9: 0 | Q9: 0 | R9: 0 | S9: 0 | U9: CONSTRUCCIÓN | X9: 0 | Y9: 5001 | Z9: MEDELLÍN | AA9: 0 | AB9: 0 | AC9: Natural | AD9: 5 | AE9: ANTIOQUIA | AF9: 0 | AG9: 0 | AH9: MICRO | AI9: 141 | AJ9: AGRICULTURA, GANADERÍA, CAZA, SILVICULTURA Y PESCA | AK9: 0 | AL9: 0 | AM9: 0 | AN9: 0 | AO9: 0 | AP9: 0 | AT9: =CONCATENATE(AU9,COUNTIF($AU$2:AU9,AU9)) -> 2891 | AU9: 289 | AV9: 0.0615286353 | AW9: 10146 | AX9: 0.06406152331 | AY9: =+(SUMIFS(Montos!$Y$2:$Y$396864,Montos!$R$2:$R$396864,Base!AZ9)/1000000) -> 7532.062637 | AZ9: ENVIGADO | BE9: Micro | BF9: =SUMIFS($AN$2:$AN$400000,$AF$2:$AF$400000,"Aprobado con subsidio",$AH$2:$AH$400000,"MICRO") -> 7061 | BG9: =SUMIFS($AO$2:$AO$400000,$AF$2:$AF$400000,"Aprobado con subsidio",$AH$2:$AH$400000,"MICRO") -> 3417 | BH9: =SUMIFS($AP$2:$AP$400000,$AF$2:$AF$400000,"Aprobado con subsidio",$AH$2:$AH$400000,"MICRO") -> 3693 | BJ9: Micro | BK9: =BF9/SUM(BF9:BH9) -> 0.4982711171 | BL9: =BG9/SUM(BF9:BH9) -> 0.2411262437 | BM9: =BH9/SUM(BF9:BH9) -> 0.2606026392
B10: 5001 | C10: MEDELLÍN | D10: 0 | E10: 0 | F10: Natural | G10: 5 | H10: ANTIOQUIA | I10: 0 | J10: 0 | K10: PEQUEÑA | L10: 5611 | M10: ALOJAMIENTO Y SERVICIOS DE COMIDA | N10: 0 | O10: 0 | P10: 0 | Q10: 0 | R10: 0 | S10: 0 | U10: ACTIVIDADES PROFESIONALES, CIENTÍFICAS Y TÉCNICAS | X10: 0 | Y10: 5001 | Z10: MEDELLÍN | AA10: 1 | AB10: 2 | AC10: Natural | AD10: 5 | AE10: ANTIOQUIA | AF10: Aprobado con subsidio | AG10: 3 | AH10: MICRO | AI10: 5611 | AJ10: ALOJAMIENTO Y SERVICIOS DE COMIDA | AK10: 0 | AL10: 1 | AM10: 0 | AN10: 0 | AO10: 0 | AP10: 1 | AT10: =CONCATENATE(AU10,COUNTIF($AU$2:AU10,AU10)) -> 1211 | AU10: 121 | AV10: 0.02576112412 | AW10: 2690 | AX10: 0.01698457498 | AY10: =+(SUMIFS(Montos!$Y$2:$Y$396864,Montos!$R$2:$R$396864,Base!AZ10)/1000000) -> 1831.196625 | AZ10: BELLO | BE10: Pequeña | BF10: =SUMIFS($AN$2:$AN$400000,$AF$2:$AF$400000,"Aprobado con subsidio",$AH$2:$AH$400000,"PEQUEÑA") -> 15791 | BG10: =SUMIFS($AO$2:$AO$400000,$AF$2:$AF$400000,"Aprobado con subsidio",$AH$2:$AH$400000,"PEQUEÑA") -> 5868 | BH10: =SUMIFS($AP$2:$AP$400000,$AF$2:$AF$400000,"Aprobado con subsidio",$AH$2:$AH$400000,"PEQUEÑA") -> 5890 | BJ10: Pequeña | BK10: =BF10/SUM(BF10:BH10) -> 0.5731968493 | BL10: =BG10/SUM(BF10:BH10) -> 0.2130022868 | BM10: =BH10/SUM(BF10:BH10) -> 0.2138008639
B11: 5001 | C11: MEDELLÍN | D11: 4 | E11: 0 | F11: Natural | G11: 5 | H11: ANTIOQUIA | I11: Aprobado con subsidio | J11: 4 | K11: MICRO | L11: 5611 | M11: ALOJAMIENTO Y SERVICIOS DE COMIDA | N11: 1 | O11: 3 | P11: 0 | Q11: 3 | R11: 0 | S11: 1 | U11: ACTIVIDADES DE SERVICIOS ADMINISTRATIVOS Y DE APOYO | X11: 0 | Y11: 5001 | Z11: MEDELLÍN | AA11: 4 | AB11: 0 | AC11: Natural | AD11: 5 | AE11: ANTIOQUIA | AF11: Aprobado con subsidio | AG11: 4 | AH11: MICRO | AI11: 4722 | AJ11: COMERCIO AL POR MAYOR Y AL POR MENOR; REPARACIÓN DE VEHÍCULOS AUTOMOTORES Y MOTOCICLETAS | AK11: 1 | AL11: 3 | AM11: 0 | AN11: 2 | AO11: 1 | AP11: 1 | AT11: =CONCATENATE(AU11,COUNTIF($AU$2:AU11,AU11)) -> 1711 | AU11: 171 | AV11: 0.03640621673 | AW11: 4384 | AX11: 0.02768043743 | AY11: =+(SUMIFS(Montos!$Y$2:$Y$396864,Montos!$R$2:$R$396864,Base!AZ11)/1000000) -> 4023.745267 | AZ11: SABANETA | BE11: Mediana | BF11: =SUMIFS($AN$2:$AN$400000,$AF$2:$AF$400000,"Aprobado con subsidio",$AH$2:$AH$400000,"MEDIANA") -> 19007 | BG11: =SUMIFS($AO$2:$AO$400000,$AF$2:$AF$400000,"Aprobado con subsidio",$AH$2:$AH$400000,"MEDIANA") -> 4567 | BH11: =SUMIFS($AP$2:$AP$400000,$AF$2:$AF$400000,"Aprobado con subsidio",$AH$2:$AH$400000,"MEDIANA") -> 5140 | BJ11: Mediana | BK11: 0.6619419099 | BL11: 0.1590513338 | BM11: 0.1790067563
B12: 11001 | C12: BOGOTÁ, D.C. | D12: 5 | E12: 3 | F12: Natural | G12: 11 | H12: BOGOTÁ, D.C. | I12: Aprobado con subsidio | J12: 8 | K12: MICRO | L12: 4663 | M12: COMERCIO AL POR MAYOR Y AL POR MENOR; REPARACIÓN DE VEHÍCULOS AUTOMOTORES Y MOTOCICLETAS | N12: 1 | O12: 4 | P12: 0 | Q12: 5 | R12: 0 | S12: 0 | U12: ACTIVIDADES ARTÍSTICAS, DE ENTRETENIMIENTO Y RECREACIÓN | X12: 0 | Y12: 5001 | Z12: MEDELLÍN | AA12: 2 | AB12: 0 | AC12: Natural | AD12: 5 | AE12: ANTIOQUIA | AF12: Aprobado con subsidio | AG12: 2 | AH12: MICRO | AI12: 3240 | AJ12: INDUSTRIAS MANUFACTURERAS | AK12: 1 | AL12: 1 | AM12: 0 | AN12: 1 | AO12: 0 | AP12: 1 | AT12: =CONCATENATE(AU12,COUNTIF($AU$2:AU12,AU12)) -> 311 | AU12: 31 | AV12: 0.00659995742 | AW12: 780 | AX12: 0.004924895346 | AY12: =+(SUMIFS(Montos!$Y$2:$Y$396864,Montos!$R$2:$R$396864,Base!AZ12)/1000000) -> 570.315881 | AZ12: GUARNE | BE12: Grande | BF12: =SUMIFS($AN$2:$AN$400000,$AF$2:$AF$400000,"Aprobado con subsidio",$AH$2:$AH$400000,"GRANDE") -> 16984 | BG12: =SUMIFS($AO$2:$AO$400000,$AF$2:$AF$400000,"Aprobado con subsidio",$AH$2:$AH$400000,"GRANDE") -> 2851 | BH12: =SUMIFS($AP$2:$AP$400000,$AF$2:$AF$400000,"Aprobado con subsidio",$AH$2:$AH$400000,"GRANDE") -> 2106 | BJ12: Grande | BK12: 0.7740759309 | BL12: 0.1299393829 | BM12: 0.0959846862
B13: 15176 | C13: CHIQUINQUIRÁ | D13: 4 | E13: 1 | F13: Natural | G13: 15 | H13: BOYACÁ | I13: Aprobado con subsidio | J13: 5 | K13: MICRO | L13: 4752 | M13: COMERCIO AL POR MAYOR Y AL POR MENOR; REPARACIÓN DE VEHÍCULOS AUTOMOTORES Y MOTOCICLETAS | N13: 2 | O13: 2 | P13: 0 | Q13: 2 | R13: 1 | S13: 1 | U13: ACTIVIDADES INMOBILIARIAS | X13: 0 | Y13: 5001 | Z13: MEDELLÍN | AA13: 1 | AB13: 0 | AC13: Natural | AD13: 5 | AE13: ANTIOQUIA | AF13: Aprobado con subsidio | AG13: 1 | AH13: MICRO | AI13: 4771 | AJ13: COMERCIO AL POR MAYOR Y AL POR MENOR; REPARACIÓN DE VEHÍCULOS AUTOMOTORES Y MOTOCICLETAS | AK13: 1 | AL13: 0 | AM13: 0 | AN13: 1 | AO13: 0 | AP13: 0 | AT13: =CONCATENATE(AU13,COUNTIF($AU$2:AU13,AU13)) -> 241 | AU13: 24 | AV13: 0.005109644454 | AW13: 328 | AX13: 0.002070981633 | AY13: =+(SUMIFS(Montos!$Y$2:$Y$396864,Montos!$R$2:$R$396864,Base!AZ13)/1000000) -> 263.214059 | AZ13: CALDAS | BE13: Muy Grande | BF13: =SUMIFS($AN$2:$AN$400000,$AF$2:$AF$400000,"Aprobado con subsidio",$AH$2:$AH$400000,"MUY GRANDE") -> 56775 | BG13: =SUMIFS($AO$2:$AO$400000,$AF$2:$AF$400000,"Aprobado con subsidio",$AH$2:$AH$400000,"MUY GRANDE") -> 4755 | BH13: =SUMIFS($AP$2:$AP$400000,$AF$2:$AF$400000,"Aprobado con subsidio",$AH$2:$AH$400000,"MUY GRANDE") -> 4474 | BJ13: Muy Grande | BK13: 0.8601751409 | BL13: 0.07204108842 | BM13: 0.06778377068
B14: 76001 | C14: CALI | D14: 1 | E14: 0 | F14: Natural | G14: 76 | H14: VALLE DEL CAUCA | I14: Aprobado con subsidio | J14: 1 | K14: MICRO | L14: 4774 | M14: COMERCIO AL POR MAYOR Y AL POR MENOR; REPARACIÓN DE VEHÍCULOS AUTOMOTORES Y MOTOCICLETAS | N14: 0 | O14: 1 | P14: 0 | Q14: 1 | R14: 0 | S14: 0 | U14: EXPLOTACIÓN DE MINAS Y CANTERAS | X14: 0 | Y14: 5591 | Z14: PUERTO TRIUNFO | AA14: 0 | AB14: 0 | AC14: Natural | AD14: 5 | AE14: ANTIOQUIA | AF14: 0 | AG14: 0 | AH14: MICRO | AI14: 4711 | AJ14: COMERCIO AL POR MAYOR Y AL POR MENOR; REPARACIÓN DE VEHÍCULOS AUTOMOTORES Y MOTOCICLETAS | AK14: 0 | AL14: 0 | AM14: 0 | AN14: 0 | AO14: 0 | AP14: 0 | AT14: =CONCATENATE(AU14,COUNTIF($AU$2:AU14,AU14)) -> 151 | AU14: 15 | AV14: 0.003193527784 | AW14: 319 | AX14: 0.002014155917 | AY14: =+(SUMIFS(Montos!$Y$2:$Y$396864,Montos!$R$2:$R$396864,Base!AZ14)/1000000) -> 231.686007 | AZ14: SANTA ROSA DE OSOS | BE14: Total | BF14: =SUM(BF9:BF13) -> 115618 | BG14: =SUM(BG9:BG13) -> 21458 | BH14: =SUM(BH9:BH13) -> 21303 | BJ14: Total | BK14: 0.7300083976 | BL14: 0.1354851338 | BM14: 0.1345064687
B15: 76001 | C15: CALI | D15: 2 | E15: 1 | F15: Natural | G15: 76 | H15: VALLE DEL CAUCA | I15: Aprobado con subsidio | J15: 3 | K15: MICRO | L15: 5511 | M15: ALOJAMIENTO Y SERVICIOS DE COMIDA | N15: 2 | O15: 0 | P15: 0 | Q15: 2 | R15: 0 | S15: 0 | U15: OTRAS ACTIVIDADES DE SERVICIOS | X15: 0 | Y15: 5001 | Z15: MEDELLÍN | AA15: 0 | AB15: 0 | AC15: Natural | AD15: 5 | AE15: ANTIOQUIA | AF15: 0 | AG15: 0 | AH15: PEQUEÑA | AI15: 121 | AJ15: AGRICULTURA, GANADERÍA, CAZA, SILVICULTURA Y PESCA | AK15: 0 | AL15: 0 | AM15: 0 | AN15: 0 | AO15: 0 | AP15: 0 | AT15: =CONCATENATE(AU15,COUNTIF($AU$2:AU15,AU15)) -> 291 | AU15: 29 | AV15: 0.006174153715 | AW15: 270 | AX15: 0.001704771466 | AY15: =+(SUMIFS(Montos!$Y$2:$Y$396864,Montos!$R$2:$R$396864,Base!AZ15)/1000000) -> 287.181053 | AZ15: JERICÓ
B16: 41001 | C16: NEIVA | D16: 4 | E16: 0 | F16: Natural | G16: 41 | H16: HUILA | I16: Aprobado con subsidio | J16: 4 | K16: MICRO | L16: 4729 | M16: COMERCIO AL POR MAYOR Y AL POR MENOR; REPARACIÓN DE VEHÍCULOS AUTOMOTORES Y MOTOCICLETAS | N16: 4 | O16: 0 | P16: 0 | Q16: 1 | R16: 3 | S16: 0 | U16: ACTIVIDADES FINANCIERAS Y DE SEGUROS | X16: 0 | Y16: 5264 | Z16: ENTRERRIOS | AA16: 0 | AB16: 0 | AC16: Natural | AD16: 5 | AE16: ANTIOQUIA | AF16: 0 | AG16: 0 | AH16: MEDIANA | AI16: 121 | AJ16: AGRICULTURA, GANADERÍA, CAZA, SILVICULTURA Y PESCA | AK16: 0 | AL16: 0 | AM16: 0 | AN16: 0 | AO16: 0 | AP16: 0 | AT16: =CONCATENATE(AU16,COUNTIF($AU$2:AU16,AU16)) -> 41 | AU16: 4 | AV16: 0.000851607409 | AW16: 91 | AX16: 0.0005745711237 | AY16: =+(SUMIFS(Montos!$Y$2:$Y$396864,Montos!$R$2:$R$396864,Base!AZ16)/1000000) -> 49.191259 | AZ16: REMEDIOS | BE16: Micro | BF16: =SUMIFS($AN$2:$AN$400000,$AF$2:$AF$400000,"Aprobado con subsidio",$AH$2:$AH$400000,"MICRO",$Z$2:$Z$400000,Visor!$M$8) -> 4809 | BG16: =SUMIFS($AO$2:$AO$400000,$AF$2:$AF$400000,"Aprobado con subsidio",$AH$2:$AH$400000,"MICRO",$Z$2:$Z$400000,Visor!$M$8) -> 2319 | BH16: =SUMIFS($AP$2:$AP$400000,$AF$2:$AF$400000,"Aprobado con subsidio",$AH$2:$AH$400000,"MICRO",$Z$2:$Z$400000,Visor!$M$8) -> 2450 | BJ16: Micro | BK16: =BF16/SUM(BF16:BH16) -> 0.5020881186 | BL16: =BG16/SUM(BF16:BH16) -> 0.2421173523 | BM16: =BH16/SUM(BF16:BH16) -> 0.2557945291
B17: 52356 | C17: IPIALES | D17: 2 | E17: 0 | F17: Natural | G17: 52 | H17: NARIÑO | I17: Aprobado con subsidio | J17: 2 | K17: MICRO | L17: 4923 | M17: TRANSPORTE Y ALMACENAMIENTO | N17: 0 | O17: 2 | P17: 0 | Q17: 0 | R17: 0 | S17: 2 | U17: DISTRIBUCIÓN DE AGUA; EVACUACIÓN Y TRATAMIENTO DE AGUAS RESIDUALES, GESTIÓN DE DESECHOS Y ACTIVIDADES DE SANEAMIENTO AMBIENTAL | X17: 0 | Y17: 5264 | Z17: ENTRERRIOS | AA17: 0 | AB17: 0 | AC17: Natural | AD17: 5 | AE17: ANTIOQUIA | AF17: 0 | AG17: 0 | AH17: MICRO | AI17: 4724 | AJ17: COMERCIO AL POR MAYOR Y AL POR MENOR; REPARACIÓN DE VEHÍCULOS AUTOMOTORES Y MOTOCICLETAS | AK17: 0 | AL17: 0 | AM17: 0 | AN17: 0 | AO17: 0 | AP17: 0 | AT17: =CONCATENATE(AU17,COUNTIF($AU$2:AU17,AU17)) -> 42 | AU17: 4 | AV17: 0.000851607409 | AW17: 384 | AX17: 0.002424563863 | AY17: =+(SUMIFS(Montos!$Y$2:$Y$396864,Montos!$R$2:$R$396864,Base!AZ17)/1000000) -> 299.381572 | AZ17: SEGOVIA | BE17: Pequeña | BF17: =SUMIFS($AN$2:$AN$400000,$AF$2:$AF$400000,"Aprobado con subsidio",$AH$2:$AH$400000,"PEQUEÑA",$Z$2:$Z$400000,Visor!$M$8) -> 9801 | BG17: =SUMIFS($AO$2:$AO$400000,$AF$2:$AF$400000,"Aprobado con subsidio",$AH$2:$AH$400000,"PEQUEÑA",$Z$2:$Z$400000,Visor!$M$8) -> 3766 | BH17: =SUMIFS($AP$2:$AP$400000,$AF$2:$AF$400000,"Aprobado con subsidio",$AH$2:$AH$400000,"PEQUEÑA",$Z$2:$Z$400000,Visor!$M$8) -> 3581 | BJ17: Pequeña | BK17: =BF17/SUM(BF17:BH17) -> 0.5715535339 | BL17: =BG17/SUM(BF17:BH17) -> 0.2196174481 | BM17: =BH17/SUM(BF17:BH17) -> 0.208829018
B18: 54001 | C18: CÚCUTA | D18: 12 | E18: 13 | F18: Natural | G18: 54 | H18: NORTE DE SANTANDER | I18: Aprobado con subsidio | J18: 25 | K18: PEQUEÑA | L18: 90 | M18: OTRAS | N18: 3 | O18: 9 | P18: 0 | Q18: 2 | R18: 2 | S18: 8 | U18: ACTIVIDADES DE ATENCIÓN DE LA SALUD HUMANA Y DE ASISTENCIA SOCIAL | X18: 0 | Y18: 5264 | Z18: ENTRERRIOS | AA18: 0 | AB18: 0 | AC18: Natural | AD18: 5 | AE18: ANTIOQUIA | AF18: 0 | AG18: 0 | AH18: MICRO | AI18: 121 | AJ18: AGRICULTURA, GANADERÍA, CAZA, SILVICULTURA Y PESCA | AK18: 0 | AL18: 0 | AM18: 0 | AN18: 0 | AO18: 0 | AP18: 0 | AT18: =CONCATENATE(AU18,COUNTIF($AU$2:AU18,AU18)) -> 111 | AU18: 11 | AV18: 0.002341920375 | AW18: 82 | AX18: 0.0005177454082 | AY18: =+(SUMIFS(Montos!$Y$2:$Y$396864,Montos!$R$2:$R$396864,Base!AZ18)/1000000) -> 85.730594 | AZ18: TURBO | BE18: Mediana | BF18: =SUMIFS($AN$2:$AN$400000,$AF$2:$AF$400000,"Aprobado con subsidio",$AH$2:$AH$400000,"MEDIANA",$Z$2:$Z$400000,Visor!$M$8) -> 12239 | BG18: =SUMIFS($AO$2:$AO$400000,$AF$2:$AF$400000,"Aprobado con subsidio",$AH$2:$AH$400000,"MEDIANA",$Z$2:$Z$400000,Visor!$M$8) -> 3016 | BH18: =SUMIFS($AP$2:$AP$400000,$AF$2:$AF$400000,"Aprobado con subsidio",$AH$2:$AH$400000,"MEDIANA",$Z$2:$Z$400000,Visor!$M$8) -> 3561 | BJ18: Mediana | BK18: 0.6504570578 | BL18: 0.1602891156 | BM18: 0.1892538265
B19: 54405 | C19: LOS PATIOS | D19: 2 | E19: 0 | F19: Natural | G19: 54 | H19: NORTE DE SANTANDER | I19: Aprobado con subsidio | J19: 2 | K19: MICRO | L19: 4923 | M19: TRANSPORTE Y ALMACENAMIENTO | N19: 1 | O19: 1 | P19: 0 | Q19: 1 | R19: 0 | S19: 1 | U19: INFORMACIÓN Y COMUNICACIONES | X19: 0 | Y19: 5001 | Z19: MEDELLÍN | AA19: 0 | AB19: 0 | AC19: Natural | AD19: 5 | AE19: ANTIOQUIA | AF19: 0 | AG19: 0 | AH19: PEQUEÑA | AI19: 4711 | AJ19: COMERCIO AL POR MAYOR Y AL POR MENOR; REPARACIÓN DE VEHÍCULOS AUTOMOTORES Y MOTOCICLETAS | AK19: 0 | AL19: 0 | AM19: 0 | AN19: 0 | AO19: 0 | AP19: 0 | AT19: =CONCATENATE(AU19,COUNTIF($AU$2:AU19,AU19)) -> 501 | AU19: 50 | AV19: 0.01064509261 | AW19: 620 | AX19: 0.003914660403 | AY19: =+(SUMIFS(Montos!$Y$2:$Y$396864,Montos!$R$2:$R$396864,Base!AZ19)/1000000) -> 497.176028 | AZ19: LA CEJA | BE19: Grande | BF19: =SUMIFS($AN$2:$AN$400000,$AF$2:$AF$400000,"Aprobado con subsidio",$AH$2:$AH$400000,"GRANDE",$Z$2:$Z$400000,Visor!$M$8) -> 12068 | BG19: =SUMIFS($AO$2:$AO$400000,$AF$2:$AF$400000,"Aprobado con subsidio",$AH$2:$AH$400000,"GRANDE",$Z$2:$Z$400000,Visor!$M$8) -> 2016 | BH19: =SUMIFS($AP$2:$AP$400000,$AF$2:$AF$400000,"Aprobado con subsidio",$AH$2:$AH$400000,"GRANDE",$Z$2:$Z$400000,Visor!$M$8) -> 1646 | BJ19: Grande | BK19: 0.7671964399 | BL19: 0.1281627463 | BM19: 0.1046408137
B20: 76400 | C20: LA UNIÓN | D20: 0 | E20: 0 | F20: Natural | G20: 76 | H20: VALLE DEL CAUCA | I20: 0 | J20: 0 | K20: MICRO | L20: 4620 | M20: COMERCIO AL POR MAYOR Y AL POR MENOR; REPARACIÓN DE VEHÍCULOS AUTOMOTORES Y MOTOCICLETAS | N20: 0 | O20: 0 | P20: 0 | Q20: 0 | R20: 0 | S20: 0 | U20: ACTIVIDADES DE LOS HOGARES INDIVIDUALES EN CALIDAD DE EMPLEADORES; ACTIVIDADES NO DIFERENCIADAS DE LOS HOGARES INDIVIDUALES COMO PRODUCTORES DE BIENES Y SERVICIOS PARA USO PROPIO | X20: 0 | Y20: 5001 | Z20: MEDELLÍN | AA20: 0 | AB20: 0 | AC20: Natural | AD20: 5 | AE20: ANTIOQUIA | AF20: 0 | AG20: 0 | AH20: MICRO | AI20: 4520 | AJ20: COMERCIO AL POR MAYOR Y AL POR MENOR; REPARACIÓN DE VEHÍCULOS AUTOMOTORES Y MOTOCICLETAS | AK20: 0 | AL20: 0 | AM20: 0 | AN20: 0 | AO20: 0 | AP20: 0 | AT20: =CONCATENATE(AU20,COUNTIF($AU$2:AU20,AU20)) -> 71 | AU20: 7 | AV20: 0.001490312966 | AW20: 41 | AX20: 0.0002588727041 | AY20: =+(SUMIFS(Montos!$Y$2:$Y$396864,Montos!$R$2:$R$396864,Base!AZ20)/1000000) -> 16.971585 | AZ20: BARBOSA | BE20: Muy Grande | BF20: =SUMIFS($AN$2:$AN$400000,$AF$2:$AF$400000,"Aprobado con subsidio",$AH$2:$AH$400000,"MUY GRANDE",$Z$2:$Z$400000,Visor!$M$8) -> 48407 | BG20: =SUMIFS($AO$2:$AO$400000,$AF$2:$AF$400000,"Aprobado con subsidio",$AH$2:$AH$400000,"MUY GRANDE",$Z$2:$Z$400000,Visor!$M$8) -> 3766 | BH20: =SUMIFS($AP$2:$AP$400000,$AF$2:$AF$400000,"Aprobado con subsidio",$AH$2:$AH$400000,"MUY GRANDE",$Z$2:$Z$400000,Visor!$M$8) -> 3984 | BJ20: Muy Grande | BK20: 0.8619940524 | BL20: 0.06706198693 | BM20: 0.07094396068
B21: 63001 | C21: ARMENIA | D21: 0 | E21: 0 | F21: Natural | G21: 63 | H21: QUINDÍO | I21: 0 | J21: 0 | K21: PEQUEÑA | L21: 4771 | M21: COMERCIO AL POR MAYOR Y AL POR MENOR; REPARACIÓN DE VEHÍCULOS AUTOMOTORES Y MOTOCICLETAS | N21: 0 | O21: 0 | P21: 0 | Q21: 0 | R21: 0 | S21: 0 | U21: SUMINISTRO DE ELECTRICIDAD, GAS, VAPOR Y AIRE ACONDICIONADO | X21: 0 | Y21: 5209 | Z21: CONCORDIA | AA21: 0 | AB21: 0 | AC21: Natural | AD21: 5 | AE21: ANTIOQUIA | AF21: 0 | AG21: 0 | AH21: MICRO | AI21: 123 | AJ21: AGRICULTURA, GANADERÍA, CAZA, SILVICULTURA Y PESCA | AK21: 0 | AL21: 0 | AM21: 0 | AN21: 0 | AO21: 0 | AP21: 0 | AT21: =CONCATENATE(AU21,COUNTIF($AU$2:AU21,AU21)) -> 31 | AU21: 3 | AV21: 0.0006387055567 | AW21: 15 | AX21: 9.470952588e-05 | AY21: =+(SUMIFS(Montos!$Y$2:$Y$396864,Montos!$R$2:$R$396864,Base!AZ21)/1000000) -> 10.735026 | AZ21: ANDES | BE21: Total | BF21: =SUM(BF16:BF20) -> 87324 | BG21: =SUM(BG16:BG20) -> 14883 | BH21: =SUM(BH16:BH20) -> 15222 | BJ21: Total | BK21: 0.7436323225 | BL21: 0.1267404134 | BM21: 0.1296272641
B22: 52001 | C22: PASTO | D22: 0 | E22: 0 | F22: Natural | G22: 52 | H22: NARIÑO | I22: 0 | J22: 0 | K22: MICRO | L22: 5611 | M22: ALOJAMIENTO Y SERVICIOS DE COMIDA | N22: 0 | O22: 0 | P22: 0 | Q22: 0 | R22: 0 | S22: 0 | U22: ADMINISTRACIÓN PÚBLICA Y DEFENSA; PLANES DE SEGURIDAD SOCIAL DE AFILIACIÓN OBLIGATORIA | X22: 0 | Y22: 5697 | Z22: EL SANTUARIO | AA22: 1 | AB22: 1 | AC22: Natural | AD22: 5 | AE22: ANTIOQUIA | AF22: Aprobado con subsidio | AG22: 2 | AH22: MICRO | AI22: 4773 | AJ22: COMERCIO AL POR MAYOR Y AL POR MENOR; REPARACIÓN DE VEHÍCULOS AUTOMOTORES Y MOTOCICLETAS | AK22: 1 | AL22: 0 | AM22: 0 | AN22: 1 | AO22: 0 | AP22: 0 | AT22: =CONCATENATE(AU22,COUNTIF($AU$2:AU22,AU22)) -> 521 | AU22: 52 | AV22: 0.01107089632 | AW22: 541 | AX22: 0.0034158569 | AY22: =+(SUMIFS(Montos!$Y$2:$Y$396864,Montos!$R$2:$R$396864,Base!AZ22)/1000000) -> 426.495609 | AZ22: APARTADÓ
B23: 76828 | C23: TRUJILLO | D23: 6 | E23: 1 | F23: Natural | G23: 76 | H23: VALLE DEL CAUCA | I23: Aprobado con subsidio | J23: 7 | K23: MICRO | L23: 4752 | M23: COMERCIO AL POR MAYOR Y AL POR MENOR; REPARACIÓN DE VEHÍCULOS AUTOMOTORES Y MOTOCICLETAS | N23: 3 | O23: 3 | P23: 0 | Q23: 3 | R23: 0 | S23: 3 | U23: 0 | X23: 0 | Y23: 5001 | Z23: MEDELLÍN | AA23: 0 | AB23: 0 | AC23: Natural | AD23: 5 | AE23: ANTIOQUIA | AF23: 0 | AG23: 0 | AH23: PEQUEÑA | AI23: 141 | AJ23: AGRICULTURA, GANADERÍA, CAZA, SILVICULTURA Y PESCA | AK23: 0 | AL23: 0 | AM23: 0 | AN23: 0 | AO23: 0 | AP23: 0 | AT23: =CONCATENATE(AU23,COUNTIF($AU$2:AU23,AU23)) -> 1121 | AU23: 112 | AV23: 0.02384500745 | AW23: 1673 | AX23: 0.01056326912 | AY23: =+(SUMIFS(Montos!$Y$2:$Y$396864,Montos!$R$2:$R$396864,Base!AZ23)/1000000) -> 1370.439183 | AZ23: LA ESTRELLA
B24: 76001 | C24: CALI | D24: 0 | E24: 0 | F24: Natural | G24: 76 | H24: VALLE DEL CAUCA | I24: 0 | J24: 0 | K24: MICRO | L24: 121 | M24: AGRICULTURA, GANADERÍA, CAZA, SILVICULTURA Y PESCA | N24: 0 | O24: 0 | P24: 0 | Q24: 0 | R24: 0 | S24: 0 | X24: 0 | Y24: 5001 | Z24: MEDELLÍN | AA24: 1 | AB24: 2 | AC24: Natural | AD24: 5 | AE24: ANTIOQUIA | AF24: Aprobado con subsidio | AG24: 3 | AH24: MICRO | AI24: 6810 | AJ24: ACTIVIDADES INMOBILIARIAS | AK24: 0 | AL24: 1 | AM24: 0 | AN24: 0 | AO24: 0 | AP24: 1 | AT24: =CONCATENATE(AU24,COUNTIF($AU$2:AU24,AU24)) -> 12 | AU24: 1 | AV24: 0.0002129018522 | AW24: 2 | AX24: 1.262793678e-05 | AY24: =+(SUMIFS(Montos!$Y$2:$Y$396864,Montos!$R$2:$R$396864,Base!AZ24)/1000000) -> 0.577131 | AZ24: EBÉJICO
B25: 5615 | C25: RIONEGRO | D25: 0 | E25: 0 | F25: Natural | G25: 5 | H25: ANTIOQUIA | I25: 0 | J25: 0 | K25: PEQUEÑA | L25: 2012 | M25: INDUSTRIAS MANUFACTURERAS | N25: 0 | O25: 0 | P25: 0 | Q25: 0 | R25: 0 | S25: 0 | X25: 0 | Y25: 5266 | Z25: ENVIGADO | AA25: 0 | AB25: 0 | AC25: Natural | AD25: 5 | AE25: ANTIOQUIA | AF25: Aprobado con subsidio | AG25: 0 | AH25: MICRO | AI25: 4541 | AJ25: COMERCIO AL POR MAYOR Y AL POR MENOR; REPARACIÓN DE VEHÍCULOS AUTOMOTORES Y MOTOCICLETAS | AK25: 0 | AL25: 0 | AM25: 0 | AN25: 0 | AO25: 0 | AP25: 0 | AT25: =CONCATENATE(AU25,COUNTIF($AU$2:AU25,AU25)) -> 101 | AU25: 10 | AV25: 0.002129018522 | AW25: 85 | AX25: 0.0005366873133 | AY25: =+(SUMIFS(Montos!$Y$2:$Y$396864,Montos!$R$2:$R$396864,Base!AZ25)/1000000) -> 94.178965 | AZ25: YARUMAL
B26: 11001 | C26: BOGOTÁ, D.C. | D26: 2 | E26: 1 | F26: Natural | G26: 11 | H26: BOGOTÁ, D.C. | I26: Aprobado con subsidio | J26: 3 | K26: MICRO | L26: 1313 | M26: INDUSTRIAS MANUFACTURERAS | N26: 2 | O26: 0 | P26: 0 | Q26: 1 | R26: 1 | S26: 0 | X26: 0 | Y26: 5001 | Z26: MEDELLÍN | AA26: 0 | AB26: 0 | AC26: Natural | AD26: 5 | AE26: ANTIOQUIA | AF26: 0 | AG26: 0 | AH26: PEQUEÑA | AI26: 4390 | AJ26: CONSTRUCCIÓN | AK26: 0 | AL26: 0 | AM26: 0 | AN26: 0 | AO26: 0 | AP26: 0 | AT26: =CONCATENATE(AU26,COUNTIF($AU$2:AU26,AU26)) -> 32 | AU26: 3 | AV26: 0.0006387055567 | AW26: 77 | AX26: 0.0004861755662 | AY26: =+(SUMIFS(Montos!$Y$2:$Y$396864,Montos!$R$2:$R$396864,Base!AZ26)/1000000) -> 88.013643 | AZ26: SANTA BÁRBARA
B27: 25214 | C27: COTA | D27: 0 | E27: 0 | F27: Natural | G27: 25 | H27: CUNDINAMARCA | I27: 0 | J27: 0 | K27: PEQUEÑA | L27: 8530 | M27: EDUCACIÓN | N27: 0 | O27: 0 | P27: 0 | Q27: 0 | R27: 0 | S27: 0 | X27: 0 | Y27: 5001 | Z27: MEDELLÍN | AA27: 0 | AB27: 0 | AC27: Natural | AD27: 5 | AE27: ANTIOQUIA | AF27: 0 | AG27: 0 | AH27: MICRO | AI27: 4719 | AJ27: COMERCIO AL POR MAYOR Y AL POR MENOR; REPARACIÓN DE VEHÍCULOS AUTOMOTORES Y MOTOCICLETAS | AK27: 0 | AL27: 0 | AM27: 0 | AN27: 0 | AO27: 0 | AP27: 0 | AT27: =CONCATENATE(AU27,COUNTIF($AU$2:AU27,AU27)) -> 152 | AU27: 15 | AV27: 0.003193527784 | AW27: 384 | AX27: 0.002424563863 | AY27: =+(SUMIFS(Montos!$Y$2:$Y$396864,Montos!$R$2:$R$396864,Base!AZ27)/1000000) -> 292.885946 | AZ27: EL CARMEN DE VIBORAL
B28: 25386 | C28: LA MESA | D28: 0 | E28: 0 | F28: Natural | G28: 25 | H28: CUNDINAMARCA | I28: 0 | J28: 0 | K28: MICRO | L28: 4721 | M28: COMERCIO AL POR MAYOR Y AL POR MENOR; REPARACIÓN DE VEHÍCULOS AUTOMOTORES Y MOTOCICLETAS | N28: 0 | O28: 0 | P28: 0 | Q28: 0 | R28: 0 | S28: 0 | X28: 0 | Y28: 5001 | Z28: MEDELLÍN | AA28: 0 | AB28: 0 | AC28: Natural | AD28: 5 | AE28: ANTIOQUIA | AF28: 0 | AG28: 0 | AH28: PEQUEÑA | AI28: 1410 | AJ28: INDUSTRIAS MANUFACTURERAS | AK28: 0 | AL28: 0 | AM28: 0 | AN28: 0 | AO28: 0 | AP28: 0 | AT28: =CONCATENATE(AU28,COUNTIF($AU$2:AU28,AU28)) -> 01 | AU28: 0 | AV28: 0 | AW28: 0 | AX28: 0 | AY28: =+(SUMIFS(Montos!$Y$2:$Y$396864,Montos!$R$2:$R$396864,Base!AZ28)/1000000) -> 0 | AZ28: SOPETRÁN
B29: 50001 | C29: VILLAVICENCIO | D29: 0 | E29: 0 | F29: Natural | G29: 50 | H29: META | I29: 0 | J29: 0 | K29: MICRO | L29: 4530 | M29: COMERCIO AL POR MAYOR Y AL POR MENOR; REPARACIÓN DE VEHÍCULOS AUTOMOTORES Y MOTOCICLETAS | N29: 0 | O29: 0 | P29: 0 | Q29: 0 | R29: 0 | S29: 0 | X29: 0 | Y29: 5088 | Z29: BELLO | AA29: 2 | AB29: 1 | AC29: Natural | AD29: 5 | AE29: ANTIOQUIA | AF29: Aprobado con subsidio | AG29: 3 | AH29: MICRO | AI29: 4752 | AJ29: COMERCIO AL POR MAYOR Y AL POR MENOR; REPARACIÓN DE VEHÍCULOS AUTOMOTORES Y MOTOCICLETAS | AK29: 0 | AL29: 2 | AM29: 0 | AN29: 2 | AO29: 0 | AP29: 0 | AT29: =CONCATENATE(AU29,COUNTIF($AU$2:AU29,AU29)) -> 331 | AU29: 33 | AV29: 0.007025761124 | AW29: 406 | AX29: 0.002563471167 | AY29: =+(SUMIFS(Montos!$Y$2:$Y$396864,Montos!$R$2:$R$396864,Base!AZ29)/1000000) -> 421.141278 | AZ29: MARINILLA
B30: 11001 | C30: BOGOTÁ, D.C. | D30: 1 | E30: 1 | F30: Natural | G30: 11 | H30: BOGOTÁ, D.C. | I30: Aprobado con subsidio | J30: 2 | K30: MICRO | L30: 4754 | M30: COMERCIO AL POR MAYOR Y AL POR MENOR; REPARACIÓN DE VEHÍCULOS AUTOMOTORES Y MOTOCICLETAS | N30: 0 | O30: 1 | P30: 0 | Q30: 1 | R30: 0 | S30: 0 | X30: 0 | Y30: 5631 | Z30: SABANETA | AA30: 2 | AB30: 6 | AC30: Natural | AD30: 5 | AE30: ANTIOQUIA | AF30: Aprobado con subsidio | AG30: 8 | AH30: MICRO | AI30: 4771 | AJ30: COMERCIO AL POR MAYOR Y AL POR MENOR; REPARACIÓN DE VEHÍCULOS AUTOMOTORES Y MOTOCICLETAS | AK30: 2 | AL30: 0 | AM30: 0 | AN30: 2 | AO30: 0 | AP30: 0 | AT30: =CONCATENATE(AU30,COUNTIF($AU$2:AU30,AU30)) -> 292 | AU30: 29 | AV30: 0.006174153715 | AW30: 1062 | AX30: 0.006705434433 | AY30: =+(SUMIFS(Montos!$Y$2:$Y$396864,Montos!$R$2:$R$396864,Base!AZ30)/1000000) -> 1414.970177 | AZ30: COPACABANA
B31: 11001 | C31: BOGOTÁ, D.C. | D31: 2 | E31: 2 | F31: Natural | G31: 11 | H31: BOGOTÁ, D.C. | I31: Aprobado con subsidio | J31: 4 | K31: MICRO | L31: 8512 | M31: EDUCACIÓN | N31: 2 | O31: 0 | P31: 0 | Q31: 0 | R31: 2 | S31: 0 | X31: 0 | Y31: 5266 | Z31: ENVIGADO | AA31: 4 | AB31: 4 | AC31: Natural | AD31: 5 | AE31: ANTIOQUIA | AF31: Aprobado con subsidio | AG31: 8 | AH31: MICRO | AI31: 7111 | AJ31: ACTIVIDADES PROFESIONALES, CIENTÍFICAS Y TÉCNICAS | AK31: 2 | AL31: 2 | AM31: 0 | AN31: 3 | AO31: 1 | AP31: 0 | AT31: =CONCATENATE(AU31,COUNTIF($AU$2:AU31,AU31)) -> 92 | AU31: 9 | AV31: 0.00191611667 | AW31: 76 | AX31: 0.0004798615978 | AY31: =+(SUMIFS(Montos!$Y$2:$Y$396864,Montos!$R$2:$R$396864,Base!AZ31)/1000000) -> 32.876528 | AZ31: CAUCASIA
B32: 25181 | C32: CHOACHÍ | D32: 1 | E32: 0 | F32: Natural | G32: 25 | H32: CUNDINAMARCA | I32: Aprobado con subsidio | J32: 1 | K32: MICRO | L32: 145 | M32: AGRICULTURA, GANADERÍA, CAZA, SILVICULTURA Y PESCA | N32: 0 | O32: 1 | P32: 0 | Q32: 0 | R32: 0 | S32: 1 | X32: 0 | Y32: 5318 | Z32: GUARNE | AA32: 6 | AB32: 12 | AC32: Natural | AD32: 5 | AE32: ANTIOQUIA | AF32: Aprobado con subsidio | AG32: 18 | AH32: PEQUEÑA | AI32: 2221 | AJ32: INDUSTRIAS MANUFACTURERAS | AK32: 4 | AL32: 2 | AM32: 0 | AN32: 2 | AO32: 4 | AP32: 0 | AT32: =CONCATENATE(AU32,COUNTIF($AU$2:AU32,AU32)) -> 02 | AU32: 0 | AV32: 0 | AW32: 0 | AX32: 0 | AY32: =+(SUMIFS(Montos!$Y$2:$Y$396864,Montos!$R$2:$R$396864,Base!AZ32)/1000000) -> 0 | AZ32: ARMENIA
B33: 25181 | C33: CHOACHÍ | D33: 1 | E33: 1 | F33: Natural | G33: 25 | H33: CUNDINAMARCA | I33: Aprobado con subsidio | J33: 2 | K33: PEQUEÑA | L33: 4663 | M33: COMERCIO AL POR MAYOR Y AL POR MENOR; REPARACIÓN DE VEHÍCULOS AUTOMOTORES Y MOTOCICLETAS | N33: 0 | O33: 1 | P33: 0 | Q33: 0 | R33: 0 | S33: 1 | X33: 0 | Y33: 5001 | Z33: MEDELLÍN | AA33: 6 | AB33: 1 | AC33: Natural | AD33: 5 | AE33: ANTIOQUIA | AF33: Aprobado con subsidio | AG33: 7 | AH33: MICRO | AI33: 8299 | AJ33: ACTIVIDADES DE SERVICIOS ADMINISTRATIVOS Y DE APOYO | AK33: 4 | AL33: 2 | AM33: 0 | AN33: 3 | AO33: 1 | AP33: 2 | AT33: =CONCATENATE(AU33,COUNTIF($AU$2:AU33,AU33)) -> 112 | AU33: 11 | AV33: 0.002341920375 | AW33: 125 | AX33: 0.000789246049 | AY33: =+(SUMIFS(Montos!$Y$2:$Y$396864,Montos!$R$2:$R$396864,Base!AZ33)/1000000) -> 98.90308 | AZ33: AMAGÁ
B34: 11001 | C34: BOGOTÁ, D.C. | D34: 0 | E34: 0 | F34: Natural | G34: 11 | H34: BOGOTÁ, D.C. | I34: 0 | J34: 0 | K34: PEQUEÑA | L34: 4520 | M34: COMERCIO AL POR MAYOR Y AL POR MENOR; REPARACIÓN DE VEHÍCULOS AUTOMOTORES Y MOTOCICLETAS | N34: 0 | O34: 0 | P34: 0 | Q34: 0 | R34: 0 | S34: 0 | X34: 0 | Y34: 5001 | Z34: MEDELLÍN | AA34: 1 | AB34: 2 | AC34: Natural | AD34: 5 | AE34: ANTIOQUIA | AF34: Aprobado con subsidio | AG34: 3 | AH34: MICRO | AI34: 2511 | AJ34: INDUSTRIAS MANUFACTURERAS | AK34: 0 | AL34: 1 | AM34: 0 | AN34: 1 | AO34: 0 | AP34: 0 | AT34: =CONCATENATE(AU34,COUNTIF($AU$2:AU34,AU34)) -> 33 | AU34: =+COUNTIFS($Z$2:$Z$399999,AZ34,$AF$2:$AF$399999,"Aprobado con subsidio")*1 -> 3 | AV34: =+AU34/SUM($AU$2:$AU$129) -> 0.0006387055567 | AW34: =+SUMIFS($AA$2:$AA$399999,$Z$2:$Z$399999,AZ34,$AF$2:$AF$399999,"Aprobado con subsidio") -> 17 | AX34: 0.0001073374627 | AY34: =+(SUMIFS(Montos!$Y$2:$Y$396864,Montos!$R$2:$R$396864,Base!AZ34)/1000000) -> 21.461655 | AZ34: SAN JERÓNIMO
B35: 25279 | C35: FOMEQUE | D35: 1 | E35: 5 | F35: Natural | G35: 25 | H35: CUNDINAMARCA | I35: Aprobado con subsidio | J35: 6 | K35: PEQUEÑA | L35: 145 | M35: AGRICULTURA, GANADERÍA, CAZA, SILVICULTURA Y PESCA | N35: 0 | O35: 1 | P35: 0 | Q35: 1 | R35: 0 | S35: 0 | X35: 0 | Y35: 5360 | Z35: ITAGUI | AA35: 0 | AB35: 0 | AC35: Natural | AD35: 5 | AE35: ANTIOQUIA | AF35: 0 | AG35: 0 | AH35: MICRO | AI35: 4759 | AJ35: COMERCIO AL POR MAYOR Y AL POR MENOR; REPARACIÓN DE VEHÍCULOS AUTOMOTORES Y MOTOCICLETAS | AK35: 0 | AL35: 0 | AM35: 0 | AN35: 0 | AO35: 0 | AP35: 0 | AT35: =CONCATENATE(AU35,COUNTIF($AU$2:AU35,AU35)) -> 13 | AU35: 1 | AV35: 0.0002129018522 | AW35: 4 | AX35: 2.525587357e-05 | AY35: =+(SUMIFS(Montos!$Y$2:$Y$396864,Montos!$R$2:$R$396864,Base!AZ35)/1000000) -> 5.222243 | AZ35: SABANALARGA
B36: 25214 | C36: COTA | D36: 1 | E36: 6 | F36: Natural | G36: 25 | H36: CUNDINAMARCA | I36: Aprobado con subsidio | J36: 7 | K36: MICRO | L36: 4290 | M36: CONSTRUCCIÓN | N36: 0 | O36: 1 | P36: 0 | Q36: 0 | R36: 0 | S36: 1 | X36: 0 | Y36: 5615 | Z36: RIONEGRO | AA36: 0 | AB36: 0 | AC36: Natural | AD36: 5 | AE36: ANTIOQUIA | AF36: 0 | AG36: 0 | AH36: MICRO | AI36: 6920 | AJ36: ACTIVIDADES PROFESIONALES, CIENTÍFICAS Y TÉCNICAS | AK36: 0 | AL36: 0 | AM36: 0 | AN36: 0 | AO36: 0 | AP36: 0 | AT36: =CONCATENATE(AU36,COUNTIF($AU$2:AU36,AU36)) -> 14 | AU36: 1 | AV36: 0.0002129018522 | AW36: 3 | AX36: 1.894190518e-05 | AY36: =+(SUMIFS(Montos!$Y$2:$Y$396864,Montos!$R$2:$R$396864,Base!AZ36)/1000000) -> 4.658524 | AZ36: MUTATÁ
B37: 25758 | C37: SOPÓ | D37: 2 | E37: 3 | F37: Natural | G37: 25 | H37: CUNDINAMARCA | I37: Aprobado con subsidio | J37: 5 | K37: MICRO | L37: 141 | M37: AGRICULTURA, GANADERÍA, CAZA, SILVICULTURA Y PESCA | N37: 1 | O37: 1 | P37: 0 | Q37: 1 | R37: 1 | S37: 0 | X37: 0 | Y37: 5631 | Z37: SABANETA | AA37: 3 | AB37: 0 | AC37: Natural | AD37: 5 | AE37: ANTIOQUIA | AF37: Aprobado con subsidio | AG37: 3 | AH37: MICRO | AI37: 5630 | AJ37: ALOJAMIENTO Y SERVICIOS DE COMIDA | AK37: 2 | AL37: 1 | AM37: 0 | AN37: 1 | AO37: 2 | AP37: 0 | AT37: =CONCATENATE(AU37,COUNTIF($AU$2:AU37,AU37)) -> 43 | AU37: 4 | AV37: 0.000851607409 | AW37: 27 | AX37: 0.0001704771466 | AY37: =+(SUMIFS(Montos!$Y$2:$Y$396864,Montos!$R$2:$R$396864,Base!AZ37)/1000000) -> 14.130769 | AZ37: SAN PEDRO DE LOS MILAGROS
B38: 15176 | C38: CHIQUINQUIRÁ | D38: 0 | E38: 0 | F38: Natural | G38: 15 | H38: BOYACÁ | I38: 0 | J38: 0 | K38: MICRO | L38: 4520 | M38: COMERCIO AL POR MAYOR Y AL POR MENOR; REPARACIÓN DE VEHÍCULOS AUTOMOTORES Y MOTOCICLETAS | N38: 0 | O38: 0 | P38: 0 | Q38: 0 | R38: 0 | S38: 0 | X38: 0 | Y38: 5001 | Z38: MEDELLÍN | AA38: 4 | AB38: 2 | AC38: Natural | AD38: 5 | AE38: ANTIOQUIA | AF38: Aprobado con subsidio | AG38: 6 | AH38: MICRO | AI38: 1089 | AJ38: INDUSTRIAS MANUFACTURERAS | AK38: 3 | AL38: 1 | AM38: 0 | AN38: 2 | AO38: 2 | AP38: 0 | AT38: =CONCATENATE(AU38,COUNTIF($AU$2:AU38,AU38)) -> 34 | AU38: 3 | AV38: 0.0006387055567 | AW38: 57 | AX38: 0.0003598961984 | AY38: =+(SUMIFS(Montos!$Y$2:$Y$396864,Montos!$R$2:$R$396864,Base!AZ38)/1000000) -> 67.24 | AZ38: FREDONIA
B39: 25297 | C39: GACHETÁ | D39: 1 | E39: 3 | F39: Natural | G39: 25 | H39: CUNDINAMARCA | I39: Aprobado con subsidio | J39: 4 | K39: MICRO | L39: 4663 | M39: COMERCIO AL POR MAYOR Y AL POR MENOR; REPARACIÓN DE VEHÍCULOS AUTOMOTORES Y MOTOCICLETAS | N39: 1 | O39: 0 | P39: 0 | Q39: 1 | R39: 0 | S39: 0 | X39: 0 | Y39: 5001 | Z39: MEDELLÍN | AA39: 2 | AB39: 5 | AC39: Natural | AD39: 5 | AE39: ANTIOQUIA | AF39: Aprobado con subsidio | AG39: 7 | AH39: MICRO | AI39: 7420 | AJ39: ACTIVIDADES PROFESIONALES, CIENTÍFICAS Y TÉCNICAS | AK39: 2 | AL39: 0 | AM39: 0 | AN39: 2 | AO39: 0 | AP39: 0 | AT39: =CONCATENATE(AU39,COUNTIF($AU$2:AU39,AU39)) -> 35 | AU39: 3 | AV39: 0.0006387055567 | AW39: 10 | AX39: 6.313968392e-05 | AY39: =+(SUMIFS(Montos!$Y$2:$Y$396864,Montos!$R$2:$R$396864,Base!AZ39)/1000000) -> 9.794262 | AZ39: SAN PEDRO DE URABA
B40: 11001 | C40: BOGOTÁ, D.C. | D40: 0 | E40: 0 | F40: Natural | G40: 11 | H40: BOGOTÁ, D.C. | I40: 0 | J40: 0 | K40: MICRO | L40: 2711 | M40: INDUSTRIAS MANUFACTURERAS | N40: 0 | O40: 0 | P40: 0 | Q40: 0 | R40: 0 | S40: 0 | X40: 0 | Y40: 5129 | Z40: CALDAS | AA40: 0 | AB40: 0 | AC40: Natural | AD40: 5 | AE40: ANTIOQUIA | AF40: 0 | AG40: 0 | AH40: MICRO | AI40: 8622 | AJ40: ACTIVIDADES DE ATENCIÓN DE LA SALUD HUMANA Y DE ASISTENCIA SOCIAL | AK40: 0 | AL40: 0 | AM40: 0 | AN40: 0 | AO40: 0 | AP40: 0 | AT40: =CONCATENATE(AU40,COUNTIF($AU$2:AU40,AU40)) -> 15 | AU40: 1 | AV40: 0.0002129018522 | AW40: 1 | AX40: 6.313968392e-06 | AY40: =+(SUMIFS(Montos!$Y$2:$Y$396864,Montos!$R$2:$R$396864,Base!AZ40)/1000000) -> 0.25 | AZ40: LA PINTADA
B41: 11001 | C41: BOGOTÁ, D.C. | D41: 0 | E41: 0 | F41: Natural | G41: 11 | H41: BOGOTÁ, D.C. | I41: 0 | J41: 0 | K41: PEQUEÑA | L41: 8521 | M41: EDUCACIÓN | N41: 0 | O41: 0 | P41: 0 | Q41: 0 | R41: 0 | S41: 0 | X41: 0 | Y41: 5001 | Z41: MEDELLÍN | AA41: 4 | AB41: 1 | AC41: Natural | AD41: 5 | AE41: ANTIOQUIA | AF41: Aprobado con subsidio | AG41: 5 | AH41: MICRO | AI41: 5612 | AJ41: ALOJAMIENTO Y SERVICIOS DE COMIDA | AK41: 2 | AL41: 2 | AM41: 0 | AN41: 1 | AO41: 2 | AP41: 1 | AT41: =CONCATENATE(AU41,COUNTIF($AU$2:AU41,AU41)) -> 52 | AU41: 5 | AV41: 0.001064509261 | AW41: 40 | AX41: 0.0002525587357 | AY41: =+(SUMIFS(Montos!$Y$2:$Y$396864,Montos!$R$2:$R$396864,Base!AZ41)/1000000) -> 47.968179 | AZ41: CAREPA
B42: 11001 | C42: BOGOTÁ, D.C. | D42: 0 | E42: 0 | F42: Natural | G42: 11 | H42: BOGOTÁ, D.C. | I42: 0 | J42: 0 | K42: PEQUEÑA | L42: 1513 | M42: INDUSTRIAS MANUFACTURERAS | N42: 0 | O42: 0 | P42: 0 | Q42: 0 | R42: 0 | S42: 0 | X42: 0 | Y42: 5001 | Z42: MEDELLÍN | AA42: 0 | AB42: 0 | AC42: Natural | AD42: 5 | AE42: ANTIOQUIA | AF42: 0 | AG42: 0 | AH42: MICRO | AI42: 4711 | AJ42: COMERCIO AL POR MAYOR Y AL POR MENOR; REPARACIÓN DE VEHÍCULOS AUTOMOTORES Y MOTOCICLETAS | AK42: 0 | AL42: 0 | AM42: 0 | AN42: 0 | AO42: 0 | AP42: 0 | AT42: =CONCATENATE(AU42,COUNTIF($AU$2:AU42,AU42)) -> 36 | AU42: 3 | AV42: 0.0006387055567 | AW42: 91 | AX42: 0.0005745711237 | AY42: =+(SUMIFS(Montos!$Y$2:$Y$396864,Montos!$R$2:$R$396864,Base!AZ42)/1000000) -> 24.904262 | AZ42: JARDÍN
B43: 11001 | C43: BOGOTÁ, D.C. | D43: 1 | E43: 3 | F43: Natural | G43: 11 | H43: BOGOTÁ, D.C. | I43: Aprobado con subsidio | J43: 4 | K43: MICRO | L43: 7310 | M43: ACTIVIDADES PROFESIONALES, CIENTÍFICAS Y TÉCNICAS | N43: 0 | O43: 1 | P43: 0 | Q43: 1 | R43: 0 | S43: 0 | X43: 0 | Y43: 5686 | Z43: SANTA ROSA DE OSOS | AA43: 1 | AB43: 1 | AC43: Natural | AD43: 5 | AE43: ANTIOQUIA | AF43: Aprobado con subsidio | AG43: 2 | AH43: MICRO | AI43: 141 | AJ43: AGRICULTURA, GANADERÍA, CAZA, SILVICULTURA Y PESCA | AK43: 0 | AL43: 1 | AM43: 0 | AN43: 0 | AO43: 0 | AP43: 1 | AT43: =CONCATENATE(AU43,COUNTIF($AU$2:AU43,AU43)) -> 281 | AU43: 28 | AV43: 0.005961251863 | AW43: 210 | AX43: 0.001325933362 | AY43: =+(SUMIFS(Montos!$Y$2:$Y$396864,Montos!$R$2:$R$396864,Base!AZ43)/1000000) -> 244.674 | AZ43: PEÑOL
B44: 15407 | C44: VILLA DE LEYVA | D44: 0 | E44: 0 | F44: Natural | G44: 15 | H44: BOYACÁ | I44: 0 | J44: 0 | K44: MICRO | L44: 5511 | M44: ALOJAMIENTO Y SERVICIOS DE COMIDA | N44: 0 | O44: 0 | P44: 0 | Q44: 0 | R44: 0 | S44: 0 | X44: 0 | Y44: 5686 | Z44: SANTA ROSA DE OSOS | AA44: 6 | AB44: 7 | AC44: Natural | AD44: 5 | AE44: ANTIOQUIA | AF44: Aprobado con subsidio | AG44: 13 | AH44: MICRO | AI44: 1610 | AJ44: INDUSTRIAS MANUFACTURERAS | AK44: 0 | AL44: 6 | AM44: 0 | AN44: 1 | AO44: 0 | AP44: 5 | AT44: =CONCATENATE(AU44,COUNTIF($AU$2:AU44,AU44)) -> 161 | AU44: 16 | AV44: 0.003406429636 | AW44: 112 | AX44: 0.0007071644599 | AY44: =+(SUMIFS(Montos!$Y$2:$Y$396864,Montos!$R$2:$R$396864,Base!AZ44)/1000000) -> 74.568551 | AZ44: DON MATÍAS
B45: 25430 | C45: MADRID | D45: 1 | E45: 4 | F45: Natural | G45: 25 | H45: CUNDINAMARCA | I45: Aprobado con subsidio | J45: 5 | K45: MICRO | L45: 145 | M45: AGRICULTURA, GANADERÍA, CAZA, SILVICULTURA Y PESCA | N45: 1 | O45: 0 | P45: 0 | Q45: 1 | R45: 0 | S45: 0 | X45: 0 | Y45: 5001 | Z45: MEDELLÍN | AA45: 3 | AB45: 8 | AC45: Natural | AD45: 5 | AE45: ANTIOQUIA | AF45: Aprobado con subsidio | AG45: 11 | AH45: MICRO | AI45: 4741 | AJ45: COMERCIO AL POR MAYOR Y AL POR MENOR; REPARACIÓN DE VEHÍCULOS AUTOMOTORES Y MOTOCICLETAS | AK45: 1 | AL45: 2 | AM45: 0 | AN45: 2 | AO45: 0 | AP45: 1 | AT45: =CONCATENATE(AU45,COUNTIF($AU$2:AU45,AU45)) -> 37 | AU45: 3 | AV45: 0.0006387055567 | AW45: 136 | AX45: 0.0008586997013 | AY45: =+(SUMIFS(Montos!$Y$2:$Y$396864,Montos!$R$2:$R$396864,Base!AZ45)/1000000) -> 193.311131 | AZ45: PUERTO BERRÍO
B46: 25599 | C46: APULO | D46: 0 | E46: 0 | F46: Natural | G46: 25 | H46: CUNDINAMARCA | I46: 0 | J46: 0 | K46: MICRO | L46: 4322 | M46: CONSTRUCCIÓN | N46: 0 | O46: 0 | P46: 0 | Q46: 0 | R46: 0 | S46: 0 | X46: 0 | Y46: 5001 | Z46: MEDELLÍN | AA46: 0 | AB46: 0 | AC46: Natural | AD46: 5 | AE46: ANTIOQUIA | AF46: 0 | AG46: 0 | AH46: MICRO | AI46: 9609 | AJ46: OTRAS ACTIVIDADES DE SERVICIOS | AK46: 0 | AL46: 0 | AM46: 0 | AN46: 0 | AO46: 0 | AP46: 0 | AT46: =CONCATENATE(AU46,COUNTIF($AU$2:AU46,AU46)) -> 53 | AU46: 5 | AV46: 0.001064509261 | AW46: 70 | AX46: 0.0004419777875 | AY46: =+(SUMIFS(Montos!$Y$2:$Y$396864,Montos!$R$2:$R$396864,Base!AZ46)/1000000) -> 42.19562 | AZ46: SALGAR
B47: 25754 | C47: SOACHA | D47: 2 | E47: 0 | F47: Natural | G47: 25 | H47: CUNDINAMARCA | I47: Aprobado con subsidio | J47: 2 | K47: MICRO | L47: 8219 | M47: ACTIVIDADES DE SERVICIOS ADMINISTRATIVOS Y DE APOYO | N47: 2 | O47: 0 | P47: 0 | Q47: 1 | R47: 1 | S47: 0 | X47: 0 | Y47: 5001 | Z47: MEDELLÍN | AA47: 1 | AB47: 4 | AC47: Natural | AD47: 5 | AE47: ANTIOQUIA | AF47: Aprobado con subsidio | AG47: 5 | AH47: PEQUEÑA | AI47: 1081 | AJ47: INDUSTRIAS MANUFACTURERAS | AK47: 0 | AL47: 1 | AM47: 0 | AN47: 1 | AO47: 0 | AP47: 0 | AT47: =CONCATENATE(AU47,COUNTIF($AU$2:AU47,AU47)) -> 16 | AU47: 1 | AV47: 0.0002129018522 | AW47: 2 | AX47: 1.262793678e-05 | AY47: =+(SUMIFS(Montos!$Y$2:$Y$396864,Montos!$R$2:$R$396864,Base!AZ47)/1000000) -> 2.74 | AZ47: NECHÍ
B48: 11001 | C48: BOGOTÁ, D.C. | D48: 11 | E48: 11 | F48: Natural | G48: 11 | H48: BOGOTÁ, D.C. | I48: Aprobado con subsidio | J48: 22 | K48: PEQUEÑA | L48: 6910 | M48: ACTIVIDADES PROFESIONALES, CIENTÍFICAS Y TÉCNICAS | N48: 8 | O48: 3 | P48: 0 | Q48: 11 | R48: 0 | S48: 0 | X48: 0 | Y48: 5001 | Z48: MEDELLÍN | AA48: 0 | AB48: 0 | AC48: Natural | AD48: 5 | AE48: ANTIOQUIA | AF48: 0 | AG48: 0 | AH48: MICRO | AI48: 5611 | AJ48: ALOJAMIENTO Y SERVICIOS DE COMIDA | AK48: 0 | AL48: 0 | AM48: 0 | AN48: 0 | AO48: 0 | AP48: 0 | AT48: =CONCATENATE(AU48,COUNTIF($AU$2:AU48,AU48)) -> 72 | AU48: 7 | AV48: 0.001490312966 | AW48: 45 | AX48: 0.0002841285777 | AY48: =+(SUMIFS(Montos!$Y$2:$Y$396864,Montos!$R$2:$R$396864,Base!AZ48)/1000000) -> 41.712007 | AZ48: CHIGORODÓ
B49: 11001 | C49: BOGOTÁ, D.C. | D49: 0 | E49: 2 | F49: Natural | G49: 11 | H49: BOGOTÁ, D.C. | I49: Aprobado con subsidio | J49: 2 | K49: MICRO | L49: 4751 | M49: COMERCIO AL POR MAYOR Y AL POR MENOR; REPARACIÓN DE VEHÍCULOS AUTOMOTORES Y MOTOCICLETAS | N49: 0 | O49: 0 | P49: 0 | Q49: 0 | R49: 0 | S49: 0 | X49: 0 | Y49: 5001 | Z49: MEDELLÍN | AA49: 1 | AB49: 5 | AC49: Natural | AD49: 5 | AE49: ANTIOQUIA | AF49: Aprobado con subsidio | AG49: 6 | AH49: PEQUEÑA | AI49: 1410 | AJ49: INDUSTRIAS MANUFACTURERAS | AK49: 1 | AL49: 0 | AM49: 0 | AN49: 1 | AO49: 0 | AP49: 0 | AT49: =CONCATENATE(AU49,COUNTIF($AU$2:AU49,AU49)) -> 44 | AU49: 4 | AV49: 0.000851607409 | AW49: 33 | AX49: 0.0002083609569 | AY49: =+(SUMIFS(Montos!$Y$2:$Y$396864,Montos!$R$2:$R$396864,Base!AZ49)/1000000) -> 37.288406 | AZ49: CIUDAD BOLÍVAR
B50: 25785 | C50: TABIO | D50: 1 | E50: 2 | F50: Natural | G50: 25 | H50: CUNDINAMARCA | I50: Aprobado con subsidio | J50: 3 | K50: MICRO | L50: 9004 | M50: ACTIVIDADES ARTÍSTICAS, DE ENTRETENIMIENTO Y RECREACIÓN | N50: 1 | O50: 0 | P50: 0 | Q50: 1 | R50: 0 | S50: 0 | X50: 0 | Y50: 5001 | Z50: MEDELLÍN | AA50: 1 | AB50: 1 | AC50: Natural | AD50: 5 | AE50: ANTIOQUIA | AF50: Aprobado con subsidio | AG50: 2 | AH50: MICRO | AI50: 6495 | AJ50: ACTIVIDADES FINANCIERAS Y DE SEGUROS | AK50: 1 | AL50: 0 | AM50: 0 | AN50: 1 | AO50: 0 | AP50: 0 | AT50: =CONCATENATE(AU50,COUNTIF($AU$2:AU50,AU50)) -> 38 | AU50: 3 | AV50: 0.0006387055567 | AW50: 20 | AX50: 0.0001262793678 | AY50: =+(SUMIFS(Montos!$Y$2:$Y$396864,Montos!$R$2:$R$396864,Base!AZ50)/1000000) -> 13.488 | AZ50: SONSON
B51: 25799 | C51: TENJO | D51: 0 | E51: 0 | F51: Natural | G51: 25 | H51: CUNDINAMARCA | I51: 0 | J51: 0 | K51: PEQUEÑA | L51: 4711 | M51: COMERCIO AL POR MAYOR Y AL POR MENOR; REPARACIÓN DE VEHÍCULOS AUTOMOTORES Y MOTOCICLETAS | N51: 0 | O51: 0 | P51: 0 | Q51: 0 | R51: 0 | S51: 0 | X51: 0 | Y51: 5266 | Z51: ENVIGADO | AA51: 3 | AB51: 1 | AC51: Natural | AD51: 5 | AE51: ANTIOQUIA | AF51: Aprobado con subsidio | AG51: 4 | AH51: MICRO | AI51: 4620 | AJ51: COMERCIO AL POR MAYOR Y AL POR MENOR; REPARACIÓN DE VEHÍCULOS AUTOMOTORES Y MOTOCICLETAS | AK51: 1 | AL51: 2 | AM51: 0 | AN51: 0 | AO51: 1 | AP51: 2 | AT51: =CONCATENATE(AU51,COUNTIF($AU$2:AU51,AU51)) -> 54 | AU51: 5 | AV51: 0.001064509261 | AW51: 21 | AX51: 0.0001325933362 | AY51: =+(SUMIFS(Montos!$Y$2:$Y$396864,Montos!$R$2:$R$396864,Base!AZ51)/1000000) -> 12.627638 | AZ51: ABEJORRAL
B52: 50001 | C52: VILLAVICENCIO | D52: 5 | E52: 12 | F52: Natural | G52: 50 | H52: META | I52: Aprobado con subsidio | J52: 17 | K52: MICRO | L52: 4729 | M52: COMERCIO AL POR MAYOR Y AL POR MENOR; REPARACIÓN DE VEHÍCULOS AUTOMOTORES Y MOTOCICLETAS | N52: 0 | O52: 5 | P52: 0 | Q52: 5 | R52: 0 | S52: 0 | X52: 0 | Y52: 5001 | Z52: MEDELLÍN | AA52: 0 | AB52: 10 | AC52: Natural | AD52: 5 | AE52: ANTIOQUIA | AF52: Aprobado con subsidio | AG52: 10 | AH52: MICRO | AI52: 5611 | AJ52: ALOJAMIENTO Y SERVICIOS DE COMIDA | AK52: 0 | AL52: 0 | AM52: 0 | AN52: 0 | AO52: 0 | AP52: 0 | AT52: =CONCATENATE(AU52,COUNTIF($AU$2:AU52,AU52)) -> 21 | AU52: 2 | AV52: 0.0004258037045 | AW52: 5 | AX52: 3.156984196e-05 | AY52: =+(SUMIFS(Montos!$Y$2:$Y$396864,Montos!$R$2:$R$396864,Base!AZ52)/1000000) -> 1.204262 | AZ52: FRONTINO
B53: 11001 | C53: BOGOTÁ, D.C. | D53: 0 | E53: 0 | F53: Natural | G53: 11 | H53: BOGOTÁ, D.C. | I53: 0 | J53: 0 | K53: MICRO | L53: 6810 | M53: ACTIVIDADES INMOBILIARIAS | N53: 0 | O53: 0 | P53: 0 | Q53: 0 | R53: 0 | S53: 0 | X53: 0 | Y53: 5631 | Z53: SABANETA | AA53: 5 | AB53: 17 | AC53: Natural | AD53: 5 | AE53: ANTIOQUIA | AF53: Aprobado con subsidio | AG53: 22 | AH53: PEQUEÑA | AI53: 3110 | AJ53: INDUSTRIAS MANUFACTURERAS | AK53: 3 | AL53: 2 | AM53: 0 | AN53: 1 | AO53: 3 | AP53: 1 | AT53: =CONCATENATE(AU53,COUNTIF($AU$2:AU53,AU53)) -> 17 | AU53: 1 | AV53: 0.0002129018522 | AW53: 4 | AX53: 2.525587357e-05 | AY53: =+(SUMIFS(Montos!$Y$2:$Y$396864,Montos!$R$2:$R$396864,Base!AZ53)/1000000) -> 1.45 | AZ53: VALDIVIA
B54: 25875 | C54: VILLETA | D54: 1 | E54: 0 | F54: Natural | G54: 25 | H54: CUNDINAMARCA | I54: Aprobado con subsidio | J54: 1 | K54: PEQUEÑA | L54: 1081 | M54: INDUSTRIAS MANUFACTURERAS | N54: 1 | O54: 0 | P54: 0 | Q54: 1 | R54: 0 | S54: 0 | X54: 0 | Y54: 5001 | Z54: MEDELLÍN | AA54: 1 | AB54: 2 | AC54: Natural | AD54: 5 | AE54: ANTIOQUIA | AF54: Aprobado con subsidio | AG54: 3 | AH54: MICRO | AI54: 4530 | AJ54: COMERCIO AL POR MAYOR Y AL POR MENOR; REPARACIÓN DE VEHÍCULOS AUTOMOTORES Y MOTOCICLETAS | AK54: 0 | AL54: 1 | AM54: 0 | AN54: 1 | AO54: 0 | AP54: 0 | AT54: =CONCATENATE(AU54,COUNTIF($AU$2:AU54,AU54)) -> 251 | AU54: 25 | AV54: 0.005322546306 | AW54: 752 | AX54: 0.004748104231 | AY54: =+(SUMIFS(Montos!$Y$2:$Y$396864,Montos!$R$2:$R$396864,Base!AZ54)/1000000) -> 725.462811 | AZ54: GIRARDOTA
B55: 25269 | C55: FACATATIVÁ | D55: 6 | E55: 2 | F55: Natural | G55: 25 | H55: CUNDINAMARCA | I55: Aprobado con subsidio | J55: 8 | K55: MICRO | L55: 8560 | M55: EDUCACIÓN | N55: 3 | O55: 3 | P55: 0 | Q55: 2 | R55: 1 | S55: 3 | X55: 0 | Y55: 5001 | Z55: MEDELLÍN | AA55: 1 | AB55: 15 | AC55: Natural | AD55: 5 | AE55: ANTIOQUIA | AF55: Aprobado con subsidio | AG55: 16 | AH55: PEQUEÑA | AI55: 4711 | AJ55: COMERCIO AL POR MAYOR Y AL POR MENOR; REPARACIÓN DE VEHÍCULOS AUTOMOTORES Y MOTOCICLETAS | AK55: 1 | AL55: 0 | AM55: 0 | AN55: 1 | AO55: 0 | AP55: 0 | AT55: =CONCATENATE(AU55,COUNTIF($AU$2:AU55,AU55)) -> 18 | AU55: 1 | AV55: 0.0002129018522 | AW55: 4 | AX55: 2.525587357e-05 | AY55: =+(SUMIFS(Montos!$Y$2:$Y$396864,Montos!$R$2:$R$396864,Base!AZ55)/1000000) -> 2.435966 | AZ55: LIBORINA
B56: 85001 | C56: YOPAL | D56: 3 | E56: 0 | F56: Natural | G56: 85 | H56: CASANARE | I56: Aprobado con subsidio | J56: 3 | K56: MICRO | L56: 4769 | M56: COMERCIO AL POR MAYOR Y AL POR MENOR; REPARACIÓN DE VEHÍCULOS AUTOMOTORES Y MOTOCICLETAS | N56: 2 | O56: 1 | P56: 0 | Q56: 2 | R56: 1 | S56: 0 | X56: 0 | Y56: 5368 | Z56: JERICÓ | AA56: 14 | AB56: 8 | AC56: Natural | AD56: 5 | AE56: ANTIOQUIA | AF56: Aprobado con subsidio | AG56: 22 | AH56: PEQUEÑA | AI56: 1084 | AJ56: INDUSTRIAS MANUFACTURERAS | AK56: 10 | AL56: 4 | AM56: 0 | AN56: 7 | AO56: 6 | AP56: 1 | AT56: =CONCATENATE(AU56,COUNTIF($AU$2:AU56,AU56)) -> 81 | AU56: 8 | AV56: 0.001703214818 | AW56: 118 | AX56: 0.0007450482703 | AY56: =+(SUMIFS(Montos!$Y$2:$Y$396864,Montos!$R$2:$R$396864,Base!AZ56)/1000000) -> 109.728237 | AZ56: LA UNIÓN
B57: 50001 | C57: VILLAVICENCIO | D57: 0 | E57: 0 | F57: Natural | G57: 50 | H57: META | I57: 0 | J57: 0 | K57: MICRO | L57: 6810 | M57: ACTIVIDADES INMOBILIARIAS | N57: 0 | O57: 0 | P57: 0 | Q57: 0 | R57: 0 | S57: 0 | X57: 0 | Y57: 5631 | Z57: SABANETA | AA57: 3 | AB57: 3 | AC57: Natural | AD57: 5 | AE57: ANTIOQUIA | AF57: Aprobado con subsidio | AG57: 6 | AH57: MICRO | AI57: 4541 | AJ57: COMERCIO AL POR MAYOR Y AL POR MENOR; REPARACIÓN DE VEHÍCULOS AUTOMOTORES Y MOTOCICLETAS | AK57: 0 | AL57: 3 | AM57: 0 | AN57: 2 | AO57: 0 | AP57: 1 | AT57: =CONCATENATE(AU57,COUNTIF($AU$2:AU57,AU57)) -> 22 | AU57: 2 | AV57: 0.0004258037045 | AW57: 16 | AX57: 0.0001010234943 | AY57: =+(SUMIFS(Montos!$Y$2:$Y$396864,Montos!$R$2:$R$396864,Base!AZ57)/1000000) -> 10.378 | AZ57: ZARAGOZA
B58: 5360 | C58: ITAGUI | D58: 0 | E58: 0 | F58: Natural | G58: 5 | H58: ANTIOQUIA | I58: 0 | J58: 0 | K58: MICRO | L58: 1921 | M58: INDUSTRIAS MANUFACTURERAS | N58: 0 | O58: 0 | P58: 0 | Q58: 0 | R58: 0 | S58: 0 | X58: 0 | Y58: 5001 | Z58: MEDELLÍN | AA58: 1 | AB58: 1 | AC58: Natural | AD58: 5 | AE58: ANTIOQUIA | AF58: Aprobado con subsidio | AG58: 2 | AH58: MICRO | AI58: 4723 | AJ58: COMERCIO AL POR MAYOR Y AL POR MENOR; REPARACIÓN DE VEHÍCULOS AUTOMOTORES Y MOTOCICLETAS | AK58: 0 | AL58: 1 | AM58: 0 | AN58: 0 | AO58: 0 | AP58: 1 | AT58: =CONCATENATE(AU58,COUNTIF($AU$2:AU58,AU58)) -> 45 | AU58: 4 | AV58: 0.000851607409 | AW58: 23 | AX58: 0.000145221273 | AY58: =+(SUMIFS(Montos!$Y$2:$Y$396864,Montos!$R$2:$R$396864,Base!AZ58)/1000000) -> 13.781598 | AZ58: SANTAFÉ DE ANTIOQUIA
B59: 5001 | C59: MEDELLÍN | D59: 1 | E59: 1 | F59: Natural | G59: 5 | H59: ANTIOQUIA | I59: Aprobado con subsidio | J59: 2 | K59: MICRO | L59: 90 | M59: OTRAS | N59: 0 | O59: 1 | P59: 0 | Q59: 0 | R59: 0 | S59: 1 | X59: 0 | Y59: 5604 | Z59: REMEDIOS | AA59: 0 | AB59: 0 | AC59: Natural | AD59: 5 | AE59: ANTIOQUIA | AF59: 0 | AG59: 0 | AH59: PEQUEÑA | AI59: 4711 | AJ59: COMERCIO AL POR MAYOR Y AL POR MENOR; REPARACIÓN DE VEHÍCULOS AUTOMOTORES Y MOTOCICLETAS | AK59: 0 | AL59: 0 | AM59: 0 | AN59: 0 | AO59: 0 | AP59: 0 | AT59: =CONCATENATE(AU59,COUNTIF($AU$2:AU59,AU59)) -> 131 | AU59: 13 | AV59: 0.002767724079 | AW59: 129 | AX59: 0.0008145019226 | AY59: =+(SUMIFS(Montos!$Y$2:$Y$396864,Montos!$R$2:$R$396864,Base!AZ59)/1000000) -> 134.709893 | AZ59: RETIRO
B60: 15759 | C60: SOGAMOSO | D60: 2 | E60: 2 | F60: Natural | G60: 15 | H60: BOYACÁ | I60: Aprobado con subsidio | J60: 4 | K60: MICRO | L60: 4799 | M60: COMERCIO AL POR MAYOR Y AL POR MENOR; REPARACIÓN DE VEHÍCULOS AUTOMOTORES Y MOTOCICLETAS | N60: 1 | O60: 1 | P60: 0 | Q60: 1 | R60: 0 | S60: 1 | X60: 0 | Y60: 5736 | Z60: SEGOVIA | AA60: 6 | AB60: 1 | AC60: Natural | AD60: 5 | AE60: ANTIOQUIA | AF60: Aprobado con subsidio | AG60: 7 | AH60: MICRO | AI60: 4723 | AJ60: COMERCIO AL POR MAYOR Y AL POR MENOR; REPARACIÓN DE VEHÍCULOS AUTOMOTORES Y MOTOCICLETAS | AK60: 3 | AL60: 3 | AM60: 0 | AN60: 3 | AO60: 2 | AP60: 1 | AT60: =CONCATENATE(AU60,COUNTIF($AU$2:AU60,AU60)) -> 03 | AU60: 0 | AV60: 0 | AW60: 0 | AX60: 0 | AY60: =+(SUMIFS(Montos!$Y$2:$Y$396864,Montos!$R$2:$R$396864,Base!AZ60)/1000000) -> 0 | AZ60: AMALFI
B61: 5001 | C61: MEDELLÍN | D61: 0 | E61: 0 | F61: Natural | G61: 5 | H61: ANTIOQUIA | I61: 0 | J61: 0 | K61: MICRO | L61: 141 | M61: AGRICULTURA, GANADERÍA, CAZA, SILVICULTURA Y PESCA | N61: 0 | O61: 0 | P61: 0 | Q61: 0 | R61: 0 | S61: 0 | X61: 0 | Y61: 5837 | Z61: TURBO | AA61: 8 | AB61: 6 | AC61: Natural | AD61: 5 | AE61: ANTIOQUIA | AF61: Aprobado con subsidio | AG61: 14 | AH61: PEQUEÑA | AI61: 4761 | AJ61: COMERCIO AL POR MAYOR Y AL POR MENOR; REPARACIÓN DE VEHÍCULOS AUTOMOTORES Y MOTOCICLETAS | AK61: 6 | AL61: 2 | AM61: 0 | AN61: 5 | AO61: 2 | AP61: 1 | AT61: =CONCATENATE(AU61,COUNTIF($AU$2:AU61,AU61)) -> 39 | AU61: 3 | AV61: 0.0006387055567 | AW61: 18 | AX61: 0.0001136514311 | AY61: =+(SUMIFS(Montos!$Y$2:$Y$396864,Montos!$R$2:$R$396864,Base!AZ61)/1000000) -> 14.726195 | AZ61: COCORNÁ
B62: 5001 | C62: MEDELLÍN | D62: 1 | E62: 2 | F62: Natural | G62: 5 | H62: ANTIOQUIA | I62: Aprobado con subsidio | J62: 3 | K62: MICRO | L62: 5611 | M62: ALOJAMIENTO Y SERVICIOS DE COMIDA | N62: 0 | O62: 1 | P62: 0 | Q62: 0 | R62: 0 | S62: 1 | X62: 0 | Y62: 5376 | Z62: LA CEJA | AA62: 0 | AB62: 0 | AC62: Natural | AD62: 5 | AE62: ANTIOQUIA | AF62: 0 | AG62: 0 | AH62: PEQUEÑA | AI62: 125 | AJ62: AGRICULTURA, GANADERÍA, CAZA, SILVICULTURA Y PESCA | AK62: 0 | AL62: 0 | AM62: 0 | AN62: 0 | AO62: 0 | AP62: 0 | AT62: =CONCATENATE(AU62,COUNTIF($AU$2:AU62,AU62)) -> 19 | AU62: 1 | AV62: 0.0002129018522 | AW62: 25 | AX62: 0.0001578492098 | AY62: =+(SUMIFS(Montos!$Y$2:$Y$396864,Montos!$R$2:$R$396864,Base!AZ62)/1000000) -> 20.47131 | AZ62: GÓMEZ PLATA
B63: 5001 | C63: MEDELLÍN | D63: 4 | E63: 0 | F63: Natural | G63: 5 | H63: ANTIOQUIA | I63: Aprobado con subsidio | J63: 4 | K63: MICRO | L63: 4722 | M63: COMERCIO AL POR MAYOR Y AL POR MENOR; REPARACIÓN DE VEHÍCULOS AUTOMOTORES Y MOTOCICLETAS | N63: 1 | O63: 3 | P63: 0 | Q63: 2 | R63: 1 | S63: 1 | X63: 0 | Y63: 5001 | Z63: MEDELLÍN | AA63: 2 | AB63: 0 | AC63: Natural | AD63: 5 | AE63: ANTIOQUIA | AF63: Aprobado con subsidio | AG63: 2 | AH63: MICRO | AI63: 6920 | AJ63: ACTIVIDADES PROFESIONALES, CIENTÍFICAS Y TÉCNICAS | AK63: 1 | AL63: 1 | AM63: 0 | AN63: 1 | AO63: 1 | AP63: 0 | AT63: =CONCATENATE(AU63,COUNTIF($AU$2:AU63,AU63)) -> 23 | AU63: 2 | AV63: 0.0004258037045 | AW63: 41 | AX63: 0.0002588727041 | AY63: =+(SUMIFS(Montos!$Y$2:$Y$396864,Montos!$R$2:$R$396864,Base!AZ63)/1000000) -> 34.656965 | AZ63: SAN LUIS
B64: 5001 | C64: MEDELLÍN | D64: 2 | E64: 0 | F64: Natural | G64: 5 | H64: ANTIOQUIA | I64: Aprobado con subsidio | J64: 2 | K64: MICRO | L64: 3240 | M64: INDUSTRIAS MANUFACTURERAS | N64: 1 | O64: 1 | P64: 0 | Q64: 1 | R64: 0 | S64: 1 | X64: 0 | Y64: 5079 | Z64: BARBOSA | AA64: 0 | AB64: 0 | AC64: Natural | AD64: 5 | AE64: ANTIOQUIA | AF64: 0 | AG64: 0 | AH64: MICRO | AI64: 4210 | AJ64: CONSTRUCCIÓN | AK64: 0 | AL64: 0 | AM64: 0 | AN64: 0 | AO64: 0 | AP64: 0 | AT64: =CONCATENATE(AU64,COUNTIF($AU$2:AU64,AU64)) -> 24 | AU64: 2 | AV64: 0.0004258037045 | AW64: 95 | AX64: 0.0005998269973 | AY64: =+(SUMIFS(Montos!$Y$2:$Y$396864,Montos!$R$2:$R$396864,Base!AZ64)/1000000) -> 114.747639 | AZ64: CAÑASGORDAS
B65: 5001 | C65: MEDELLÍN | D65: 1 | E65: 0 | F65: Natural | G65: 5 | H65: ANTIOQUIA | I65: Aprobado con subsidio | J65: 1 | K65: MICRO | L65: 4771 | M65: COMERCIO AL POR MAYOR Y AL POR MENOR; REPARACIÓN DE VEHÍCULOS AUTOMOTORES Y MOTOCICLETAS | N65: 1 | O65: 0 | P65: 0 | Q65: 1 | R65: 0 | S65: 0 | X65: 0 | Y65: 5001 | Z65: MEDELLÍN | AA65: 0 | AB65: 0 | AC65: Natural | AD65: 5 | AE65: ANTIOQUIA | AF65: 0 | AG65: 0 | AH65: MICRO | AI65: 6920 | AJ65: ACTIVIDADES PROFESIONALES, CIENTÍFICAS Y TÉCNICAS | AK65: 0 | AL65: 0 | AM65: 0 | AN65: 0 | AO65: 0 | AP65: 0 | AT65: =CONCATENATE(AU65,COUNTIF($AU$2:AU65,AU65)) -> 04 | AU65: 0 | AV65: 0 | AW65: 0 | AX65: 0 | AY65: =+(SUMIFS(Montos!$Y$2:$Y$396864,Montos!$R$2:$R$396864,Base!AZ65)/1000000) -> 0 | AZ65: TARSO
B66: 41001 | C66: NEIVA | D66: 0 | E66: 0 | F66: Natural | G66: 41 | H66: HUILA | I66: 0 | J66: 0 | K66: MICRO | L66: 4755 | M66: COMERCIO AL POR MAYOR Y AL POR MENOR; REPARACIÓN DE VEHÍCULOS AUTOMOTORES Y MOTOCICLETAS | N66: 0 | O66: 0 | P66: 0 | Q66: 0 | R66: 0 | S66: 0 | X66: 0 | Y66: 5001 | Z66: MEDELLÍN | AA66: 1 | AB66: 0 | AC66: Natural | AD66: 5 | AE66: ANTIOQUIA | AF66: Aprobado con subsidio | AG66: 1 | AH66: MICRO | AI66: 4645 | AJ66: COMERCIO AL POR MAYOR Y AL POR MENOR; REPARACIÓN DE VEHÍCULOS AUTOMOTORES Y MOTOCICLETAS | AK66: 1 | AL66: 0 | AM66: 0 | AN66: 0 | AO66: 1 | AP66: 0 | AT66: =CONCATENATE(AU66,COUNTIF($AU$2:AU66,AU66)) -> 110 | AU66: =+COUNTIFS($Z$2:$Z$399999,AZ66,$AF$2:$AF$399999,"Aprobado con subsidio")*1 -> 1 | AV66: =+AU66/SUM($AU$2:$AU$129) -> 0.0002129018522 | AW66: =+SUMIFS($AA$2:$AA$399999,$Z$2:$Z$399999,AZ66,$AF$2:$AF$399999,"Aprobado con subsidio") -> 5 | AX66: 3.156984196e-05 | AY66: =+(SUMIFS(Montos!$Y$2:$Y$396864,Montos!$R$2:$R$396864,Base!AZ66)/1000000) -> 2.496 | AZ66: HELICONIA
B67: 5591 | C67: PUERTO TRIUNFO | D67: 0 | E67: 0 | F67: Natural | G67: 5 | H67: ANTIOQUIA | I67: 0 | J67: 0 | K67: MICRO | L67: 4711 | M67: COMERCIO AL POR MAYOR Y AL POR MENOR; REPARACIÓN DE VEHÍCULOS AUTOMOTORES Y MOTOCICLETAS | N67: 0 | O67: 0 | P67: 0 | Q67: 0 | R67: 0 | S67: 0 | X67: 0 | Y67: 5034 | Z67: ANDES | AA67: 5 | AB67: 1 | AC67: Natural | AD67: 5 | AE67: ANTIOQUIA | AF67: Aprobado con subsidio | AG67: 6 | AH67: MICRO | AI67: 4632 | AJ67: COMERCIO AL POR MAYOR Y AL POR MENOR; REPARACIÓN DE VEHÍCULOS AUTOMOTORES Y MOTOCICLETAS | AK67: 2 | AL67: 3 | AM67: 0 | AN67: 2 | AO67: 2 | AP67: 1 | AT67: =CONCATENATE(AU67,COUNTIF($AU$2:AU67,AU67)) -> 111 | AU67: 1 | AV67: 0.0002129018522 | AW67: 1 | AX67: =+AW67/SUM($AW$2:$AW$129) -> 6.313968392e-06 | AY67: =+(SUMIFS(Montos!$Y$2:$Y$396864,Montos!$R$2:$R$396864,Base!AZ67)/1000000) -> 0.15 | AZ67: TÁMESIS
B68: 5001 | C68: MEDELLÍN | D68: 0 | E68: 0 | F68: Natural | G68: 5 | H68: ANTIOQUIA | I68: 0 | J68: 0 | K68: PEQUEÑA | L68: 121 | M68: AGRICULTURA, GANADERÍA, CAZA, SILVICULTURA Y PESCA | N68: 0 | O68: 0 | P68: 0 | Q68: 0 | R68: 0 | S68: 0 | X68: 0 | Y68: 5088 | Z68: BELLO | AA68: 0 | AB68: 0 | AC68: Natural | AD68: 5 | AE68: ANTIOQUIA | AF68: 0 | AG68: 0 | AH68: MICRO | AI68: 1081 | AJ68: INDUSTRIAS MANUFACTURERAS | AK68: 0 | AL68: 0 | AM68: 0 | AN68: 0 | AO68: 0 | AP68: 0 | AT68: =CONCATENATE(AU68,COUNTIF($AU$2:AU68,AU68)) -> 112 | AU68: 1 | AV68: 0.0002129018522 | AW68: 8 | AX68: 5.051174714e-05 | AY68: =+(SUMIFS(Montos!$Y$2:$Y$396864,Montos!$R$2:$R$396864,Base!AZ68)/1000000) -> 8.186 | AZ68: YONDÓ
B69: 5264 | C69: ENTRERRIOS | D69: 0 | E69: 0 | F69: Natural | G69: 5 | H69: ANTIOQUIA | I69: 0 | J69: 0 | K69: MEDIANA | L69: 121 | M69: AGRICULTURA, GANADERÍA, CAZA, SILVICULTURA Y PESCA | N69: 0 | O69: 0 | P69: 0 | Q69: 0 | R69: 0 | S69: 0 | X69: 0 | Y69: 5045 | Z69: APARTADÓ | AA69: 0 | AB69: 0 | AC69: Natural | AD69: 5 | AE69: ANTIOQUIA | AF69: 0 | AG69: 0 | AH69: MICRO | AI69: 4530 | AJ69: COMERCIO AL POR MAYOR Y AL POR MENOR; REPARACIÓN DE VEHÍCULOS AUTOMOTORES Y MOTOCICLETAS | AK69: 0 | AL69: 0 | AM69: 0 | AN69: 0 | AO69: 0 | AP69: 0 | AT69: =CONCATENATE(AU69,COUNTIF($AU$2:AU69,AU69)) -> 25 | AU69: 2 | AV69: 0.0004258037045 | AW69: 23 | AX69: 0.000145221273 | AY69: =+(SUMIFS(Montos!$Y$2:$Y$396864,Montos!$R$2:$R$396864,Base!AZ69)/1000000) -> 15.479375 | AZ69: YALÍ
B70: 5264 | C70: ENTRERRIOS | D70: 0 | E70: 0 | F70: Natural | G70: 5 | H70: ANTIOQUIA | I70: 0 | J70: 0 | K70: MICRO | L70: 4724 | M70: COMERCIO AL POR MAYOR Y AL POR MENOR; REPARACIÓN DE VEHÍCULOS AUTOMOTORES Y MOTOCICLETAS | N70: 0 | O70: 0 | P70: 0 | Q70: 0 | R70: 0 | S70: 0 | X70: 0 | Y70: 5001 | Z70: MEDELLÍN | AA70: 3 | AB70: 4 | AC70: Natural | AD70: 5 | AE70: ANTIOQUIA | AF70: Aprobado con subsidio | AG70: 7 | AH70: MICRO | AI70: 6920 | AJ70: ACTIVIDADES PROFESIONALES, CIENTÍFICAS Y TÉCNICAS | AK70: 2 | AL70: 1 | AM70: 0 | AN70: 2 | AO70: 1 | AP70: 0 | AT70: =CONCATENATE(AU70,COUNTIF($AU$2:AU70,AU70)) -> 310 | AU70: 3 | AV70: 0.0006387055567 | AW70: 195 | AX70: 0.001231223836 | AY70: =+(SUMIFS(Montos!$Y$2:$Y$396864,Montos!$R$2:$R$396864,Base!AZ70)/1000000) -> 149.264706 | AZ70: YOLOMBÓ
B71: 5264 | C71: ENTRERRIOS | D71: 0 | E71: 0 | F71: Natural | G71: 5 | H71: ANTIOQUIA | I71: 0 | J71: 0 | K71: MICRO | L71: 121 | M71: AGRICULTURA, GANADERÍA, CAZA, SILVICULTURA Y PESCA | N71: 0 | O71: 0 | P71: 0 | Q71: 0 | R71: 0 | S71: 0 | X71: 0 | Y71: 5001 | Z71: MEDELLÍN | AA71: 1 | AB71: 0 | AC71: Natural | AD71: 5 | AE71: ANTIOQUIA | AF71: Aprobado con subsidio | AG71: 1 | AH71: MICRO | AI71: 4520 | AJ71: COMERCIO AL POR MAYOR Y AL POR MENOR; REPARACIÓN DE VEHÍCULOS AUTOMOTORES Y MOTOCICLETAS | AK71: 1 | AL71: 0 | AM71: 0 | AN71: 1 | AO71: 0 | AP71: 0 | AT71: =CONCATENATE(AU71,COUNTIF($AU$2:AU71,AU71)) -> 102 | AU71: 10 | AV71: 0.002129018522 | AW71: 108 | AX71: 0.0006819085864 | AY71: =+(SUMIFS(Montos!$Y$2:$Y$396864,Montos!$R$2:$R$396864,Base!AZ71)/1000000) -> 53.080538 | AZ71: SAN ROQUE
B72: 23001 | C72: MONTERÍA | D72: 0 | E72: 0 | F72: Natural | G72: 23 | H72: CÓRDOBA | I72: 0 | J72: 0 | K72: MEDIANA | L72: 4711 | M72: COMERCIO AL POR MAYOR Y AL POR MENOR; REPARACIÓN DE VEHÍCULOS AUTOMOTORES Y MOTOCICLETAS | N72: 0 | O72: 0 | P72: 0 | Q72: 0 | R72: 0 | S72: 0 | X72: 0 | Y72: 5697 | Z72: EL SANTUARIO | AA72: 0 | AB72: 0 | AC72: Natural | AD72: 5 | AE72: ANTIOQUIA | AF72: 0 | AG72: 0 | AH72: PEQUEÑA | AI72: 1392 | AJ72: INDUSTRIAS MANUFACTURERAS | AK72: 0 | AL72: 0 | AM72: 0 | AN72: 0 | AO72: 0 | AP72: 0 | AT72: =CONCATENATE(AU72,COUNTIF($AU$2:AU72,AU72)) -> 26 | AU72: 2 | AV72: 0.0004258037045 | AW72: 82 | AX72: 0.0005177454082 | AY72: =+(SUMIFS(Montos!$Y$2:$Y$396864,Montos!$R$2:$R$396864,Base!AZ72)/1000000) -> 53.867983 | AZ72: VALPARAÍSO
B73: 5001 | C73: MEDELLÍN | D73: 0 | E73: 0 | F73: Natural | G73: 5 | H73: ANTIOQUIA | I73: 0 | J73: 0 | K73: PEQUEÑA | L73: 4711 | M73: COMERCIO AL POR MAYOR Y AL POR MENOR; REPARACIÓN DE VEHÍCULOS AUTOMOTORES Y MOTOCICLETAS | N73: 0 | O73: 0 | P73: 0 | Q73: 0 | R73: 0 | S73: 0 | X73: 0 | Y73: 5686 | Z73: SANTA ROSA DE OSOS | AA73: 4 | AB73: 0 | AC73: Natural | AD73: 5 | AE73: ANTIOQUIA | AF73: Aprobado con subsidio | AG73: 4 | AH73: MICRO | AI73: 4771 | AJ73: COMERCIO AL POR MAYOR Y AL POR MENOR; REPARACIÓN DE VEHÍCULOS AUTOMOTORES Y MOTOCICLETAS | AK73: 4 | AL73: 0 | AM73: 0 | AN73: 2 | AO73: 2 | AP73: 0 | AT73: =CONCATENATE(AU73,COUNTIF($AU$2:AU73,AU73)) -> 113 | AU73: 1 | AV73: 0.0002129018522 | AW73: 7 | AX73: 4.419777875e-05 | AY73: =+(SUMIFS(Montos!$Y$2:$Y$396864,Montos!$R$2:$R$396864,Base!AZ73)/1000000) -> 2 | AZ73: CARACOLÍ
B74: 11001 | C74: BOGOTÁ, D.C. | D74: 0 | E74: 0 | F74: Natural | G74: 11 | H74: BOGOTÁ, D.C. | I74: 0 | J74: 0 | K74: MICRO | L74: 1410 | M74: INDUSTRIAS MANUFACTURERAS | N74: 0 | O74: 0 | P74: 0 | Q74: 0 | R74: 0 | S74: 0 | X74: 0 | Y74: 5631 | Z74: SABANETA | AA74: 8 | AB74: 5 | AC74: Natural | AD74: 5 | AE74: ANTIOQUIA | AF74: Aprobado con subsidio | AG74: 13 | AH74: MICRO | AI74: 7990 | AJ74: ACTIVIDADES DE SERVICIOS ADMINISTRATIVOS Y DE APOYO | AK74: 5 | AL74: 3 | AM74: 0 | AN74: 0 | AO74: 5 | AP74: 3 | AT74: =CONCATENATE(AU74,COUNTIF($AU$2:AU74,AU74)) -> 05 | AU74: 0 | AV74: 0 | AW74: 0 | AX74: 0 | AY74: =+(SUMIFS(Montos!$Y$2:$Y$396864,Montos!$R$2:$R$396864,Base!AZ74)/1000000) -> 0 | AZ74: ALEJANDRÍA
B75: 11001 | C75: BOGOTÁ, D.C. | D75: 1 | E75: 7 | F75: Natural | G75: 11 | H75: BOGOTÁ, D.C. | I75: Aprobado con subsidio | J75: 8 | K75: PEQUEÑA | L75: 4771 | M75: COMERCIO AL POR MAYOR Y AL POR MENOR; REPARACIÓN DE VEHÍCULOS AUTOMOTORES Y MOTOCICLETAS | N75: 1 | O75: 0 | P75: 0 | Q75: 1 | R75: 0 | S75: 0 | X75: 0 | Y75: 5615 | Z75: RIONEGRO | AA75: 7 | AB75: 1 | AC75: Natural | AD75: 5 | AE75: ANTIOQUIA | AF75: Aprobado con subsidio | AG75: 8 | AH75: MICRO | AI75: 4390 | AJ75: CONSTRUCCIÓN | AK75: 0 | AL75: 7 | AM75: 0 | AN75: 1 | AO75: 0 | AP75: 6 | AT75: =CONCATENATE(AU75,COUNTIF($AU$2:AU75,AU75)) -> 114 | AU75: 1 | AV75: 0.0002129018522 | AW75: 53 | AX75: 0.0003346403248 | AY75: =+(SUMIFS(Montos!$Y$2:$Y$396864,Montos!$R$2:$R$396864,Base!AZ75)/1000000) -> 25.484065 | AZ75: ARBOLETES
B76: 76001 | C76: CALI | D76: 0 | E76: 0 | F76: Natural | G76: 76 | H76: VALLE DEL CAUCA | I76: 0 | J76: 0 | K76: PEQUEÑA | L76: 1081 | M76: INDUSTRIAS MANUFACTURERAS | N76: 0 | O76: 0 | P76: 0 | Q76: 0 | R76: 0 | S76: 0 | X76: 0 | Y76: 5001 | Z76: MEDELLÍN | AA76: 17 | AB76: 55 | AC76: Natural | AD76: 5 | AE76: ANTIOQUIA | AF76: Aprobado con subsidio | AG76: 72 | AH76: MICRO | AI76: 1410 | AJ76: INDUSTRIAS MANUFACTURERAS | AK76: 8 | AL76: 9 | AM76: 0 | AN76: 1 | AO76: 8 | AP76: 8 | AT76: =CONCATENATE(AU76,COUNTIF($AU$2:AU76,AU76)) -> 06 | AU76: 0 | AV76: 0 | AW76: 0 | AX76: 0 | AY76: =+(SUMIFS(Montos!$Y$2:$Y$396864,Montos!$R$2:$R$396864,Base!AZ76)/1000000) -> 0 | AZ76: SAN JUAN DE URABÁ
B77: 5001 | C77: MEDELLÍN | D77: 0 | E77: 0 | F77: Natural | G77: 5 | H77: ANTIOQUIA | I77: 0 | J77: 0 | K77: MICRO | L77: 4520 | M77: COMERCIO AL POR MAYOR Y AL POR MENOR; REPARACIÓN DE VEHÍCULOS AUTOMOTORES Y MOTOCICLETAS | N77: 0 | O77: 0 | P77: 0 | Q77: 0 | R77: 0 | S77: 0 | X77: 0 | Y77: 5129 | Z77: CALDAS | AA77: 0 | AB77: 0 | AC77: Natural | AD77: 5 | AE77: ANTIOQUIA | AF77: 0 | AG77: 0 | AH77: MICRO | AI77: 4620 | AJ77: COMERCIO AL POR MAYOR Y AL POR MENOR; REPARACIÓN DE VEHÍCULOS AUTOMOTORES Y MOTOCICLETAS | AK77: 0 | AL77: 0 | AM77: 0 | AN77: 0 | AO77: 0 | AP77: 0 | AT77: =CONCATENATE(AU77,COUNTIF($AU$2:AU77,AU77)) -> 115 | AU77: 1 | AV77: 0.0002129018522 | AW77: 13 | AX77: 8.20815891e-05 | AY77: =+(SUMIFS(Montos!$Y$2:$Y$396864,Montos!$R$2:$R$396864,Base!AZ77)/1000000) -> 11.846 | AZ77: PEQUE
B78: 5209 | C78: CONCORDIA | D78: 0 | E78: 0 | F78: Natural | G78: 5 | H78: ANTIOQUIA | I78: 0 | J78: 0 | K78: MICRO | L78: 123 | M78: AGRICULTURA, GANADERÍA, CAZA, SILVICULTURA Y PESCA | N78: 0 | O78: 0 | P78: 0 | Q78: 0 | R78: 0 | S78: 0 | X78: 0 | Y78: 5631 | Z78: SABANETA | AA78: 0 | AB78: 0 | AC78: Natural | AD78: 5 | AE78: ANTIOQUIA | AF78: 0 | AG78: 0 | AH78: MICRO | AI78: 4923 | AJ78: TRANSPORTE Y ALMACENAMIENTO | AK78: 0 | AL78: 0 | AM78: 0 | AN78: 0 | AO78: 0 | AP78: 0 | AT78: =CONCATENATE(AU78,COUNTIF($AU$2:AU78,AU78)) -> 07 | AU78: 0 | AV78: 0 | AW78: 0 | AX78: 0 | AY78: =+(SUMIFS(Montos!$Y$2:$Y$396864,Montos!$R$2:$R$396864,Base!AZ78)/1000000) -> 0 | AZ78: MACEO
B79: 5697 | C79: EL SANTUARIO | D79: 1 | E79: 1 | F79: Natural | G79: 5 | H79: ANTIOQUIA | I79: Aprobado con subsidio | J79: 2 | K79: MICRO | L79: 4773 | M79: COMERCIO AL POR MAYOR Y AL POR MENOR; REPARACIÓN DE VEHÍCULOS AUTOMOTORES Y MOTOCICLETAS | N79: 1 | O79: 0 | P79: 0 | Q79: 1 | R79: 0 | S79: 0 | X79: 0 | Y79: 5380 | Z79: LA ESTRELLA | AA79: 3 | AB79: 1 | AC79: Natural | AD79: 5 | AE79: ANTIOQUIA | AF79: Aprobado con subsidio | AG79: 4 | AH79: MICRO | AI79: 4752 | AJ79: COMERCIO AL POR MAYOR Y AL POR MENOR; REPARACIÓN DE VEHÍCULOS AUTOMOTORES Y MOTOCICLETAS | AK79: 2 | AL79: 1 | AM79: 0 | AN79: 0 | AO79: 2 | AP79: 1 | AT79: =CONCATENATE(AU79,COUNTIF($AU$2:AU79,AU79)) -> 311 | AU79: 3 | AV79: 0.0006387055567 | AW79: 11 | AX79: 6.945365232e-05 | AY79: =+(SUMIFS(Montos!$Y$2:$Y$396864,Montos!$R$2:$R$396864,Base!AZ79)/1000000) -> 13.161325 | AZ79: SAN RAFAEL
B80: 5001 | C80: MEDELLÍN | D80: 0 | E80: 0 | F80: Natural | G80: 5 | H80: ANTIOQUIA | I80: 0 | J80: 0 | K80: PEQUEÑA | L80: 141 | M80: AGRICULTURA, GANADERÍA, CAZA, SILVICULTURA Y PESCA | N80: 0 | O80: 0 | P80: 0 | Q80: 0 | R80: 0 | S80: 0 | X80: 0 | Y80: 5240 | Z80: EBÉJICO | AA80: 2 | AB80: 2 | AC80: Natural | AD80: 5 | AE80: ANTIOQUIA | AF80: Aprobado con subsidio | AG80: 4 | AH80: MICRO | AI80: 4752 | AJ80: COMERCIO AL POR MAYOR Y AL POR MENOR; REPARACIÓN DE VEHÍCULOS AUTOMOTORES Y MOTOCICLETAS | AK80: 0 | AL80: 2 | AM80: 0 | AN80: 1 | AO80: 0 | AP80: 1 | AT80: =CONCATENATE(AU80,COUNTIF($AU$2:AU80,AU80)) -> 08 | AU80: 0 | AV80: 0 | AW80: 0 | AX80: 0 | AY80: =+(SUMIFS(Montos!$Y$2:$Y$396864,Montos!$R$2:$R$396864,Base!AZ80)/1000000) -> 0 | AZ80: MURINDÓ
B81: 11001 | C81: BOGOTÁ, D.C. | D81: 1 | E81: 1 | F81: Natural | G81: 11 | H81: BOGOTÁ, D.C. | I81: Aprobado con subsidio | J81: 2 | K81: MICRO | L81: 4652 | M81: COMERCIO AL POR MAYOR Y AL POR MENOR; REPARACIÓN DE VEHÍCULOS AUTOMOTORES Y MOTOCICLETAS | N81: 0 | O81: 1 | P81: 0 | Q81: 1 | R81: 0 | S81: 0 | X81: 0 | Y81: 5887 | Z81: YARUMAL | AA81: 15 | AB81: 18 | AC81: Natural | AD81: 5 | AE81: ANTIOQUIA | AF81: Aprobado con subsidio | AG81: 33 | AH81: PEQUEÑA | AI81: 4631 | AJ81: COMERCIO AL POR MAYOR Y AL POR MENOR; REPARACIÓN DE VEHÍCULOS AUTOMOTORES Y MOTOCICLETAS | AK81: 3 | AL81: 12 | AM81: 0 | AN81: 15 | AO81: 0 | AP81: 0 | AT81: =CONCATENATE(AU81,COUNTIF($AU$2:AU81,AU81)) -> 27 | AU81: 2 | AV81: 0.0004258037045 | AW81: 10 | AX81: 6.313968392e-05 | AY81: =+(SUMIFS(Montos!$Y$2:$Y$396864,Montos!$R$2:$R$396864,Base!AZ81)/1000000) -> 6.285342 | AZ81: NECOCLÍ
B82: 54001 | C82: CÚCUTA | D82: 2 | E82: 0 | F82: Natural | G82: 54 | H82: NORTE DE SANTANDER | I82: Aprobado con subsidio | J82: 2 | K82: PEQUEÑA | L82: 4631 | M82: COMERCIO AL POR MAYOR Y AL POR MENOR; REPARACIÓN DE VEHÍCULOS AUTOMOTORES Y MOTOCICLETAS | N82: 0 | O82: 2 | P82: 0 | Q82: 2 | R82: 0 | S82: 0 | X82: 0 | Y82: 5001 | Z82: MEDELLÍN | AA82: 4 | AB82: 7 | AC82: Natural | AD82: 5 | AE82: ANTIOQUIA | AF82: Aprobado con subsidio | AG82: 11 | AH82: PEQUEÑA | AI82: 4210 | AJ82: CONSTRUCCIÓN | AK82: 0 | AL82: 4 | AM82: 0 | AN82: 1 | AO82: 0 | AP82: 3 | AT82: =CONCATENATE(AU82,COUNTIF($AU$2:AU82,AU82)) -> 28 | AU82: 2 | AV82: 0.0004258037045 | AW82: 55 | AX82: 0.0003472682616 | AY82: =+(SUMIFS(Montos!$Y$2:$Y$396864,Montos!$R$2:$R$396864,Base!AZ82)/1000000) -> 50.150179 | AZ82: ANGELÓPOLIS
B83: 11001 | C83: BOGOTÁ, D.C. | D83: 0 | E83: 0 | F83: Natural | G83: 11 | H83: BOGOTÁ, D.C. | I83: 0 | J83: 0 | K83: MICRO | L83: 4530 | M83: COMERCIO AL POR MAYOR Y AL POR MENOR; REPARACIÓN DE VEHÍCULOS AUTOMOTORES Y MOTOCICLETAS | N83: 0 | O83: 0 | P83: 0 | Q83: 0 | R83: 0 | S83: 0 | X83: 0 | Y83: 5001 | Z83: MEDELLÍN | AA83: 0 | AB83: 0 | AC83: Natural | AD83: 5 | AE83: ANTIOQUIA | AF83: 0 | AG83: 0 | AH83: PEQUEÑA | AI83: 1709 | AJ83: INDUSTRIAS MANUFACTURERAS | AK83: 0 | AL83: 0 | AM83: 0 | AN83: 0 | AO83: 0 | AP83: 0 | AT83: =CONCATENATE(AU83,COUNTIF($AU$2:AU83,AU83)) -> 55 | AU83: 5 | AV83: 0.001064509261 | AW83: 27 | AX83: 0.0001704771466 | AY83: =+(SUMIFS(Montos!$Y$2:$Y$396864,Montos!$R$2:$R$396864,Base!AZ83)/1000000) -> 19.469906 | AZ83: SAN VICENTE
B84: 5001 | C84: MEDELLÍN | D84: 1 | E84: 2 | F84: Natural | G84: 5 | H84: ANTIOQUIA | I84: Aprobado con subsidio | J84: 3 | K84: MICRO | L84: 6810 | M84: ACTIVIDADES INMOBILIARIAS | N84: 0 | O84: 1 | P84: 0 | Q84: 0 | R84: 0 | S84: 1 | X84: 0 | Y84: 5360 | Z84: ITAGUI | AA84: 7 | AB84: 27 | AC84: Natural | AD84: 5 | AE84: ANTIOQUIA | AF84: Aprobado con subsidio | AG84: 34 | AH84: MEDIANA | AI84: 1011 | AJ84: INDUSTRIAS MANUFACTURERAS | AK84: 3 | AL84: 4 | AM84: 0 | AN84: 7 | AO84: 0 | AP84: 0 | AT84: =CONCATENATE(AU84,COUNTIF($AU$2:AU84,AU84)) -> 09 | AU84: 0 | AV84: 0 | AW84: 0 | AX84: 0 | AY84: =+(SUMIFS(Montos!$Y$2:$Y$396864,Montos!$R$2:$R$396864,Base!AZ84)/1000000) -> 0 | AZ84: SAN CARLOS
B85: 15667 | C85: SAN LUIS DE GACENO | D85: 0 | E85: 0 | F85: Natural | G85: 15 | H85: BOYACÁ | I85: 0 | J85: 0 | K85: MICRO | L85: 4711 | M85: COMERCIO AL POR MAYOR Y AL POR MENOR; REPARACIÓN DE VEHÍCULOS AUTOMOTORES Y MOTOCICLETAS | N85: 0 | O85: 0 | P85: 0 | Q85: 0 | R85: 0 | S85: 0 | X85: 0 | Y85: 5887 | Z85: YARUMAL | AA85: 0 | AB85: 0 | AC85: Natural | AD85: 5 | AE85: ANTIOQUIA | AF85: 0 | AG85: 0 | AH85: MICRO | AI85: 4799 | AJ85: COMERCIO AL POR MAYOR Y AL POR MENOR; REPARACIÓN DE VEHÍCULOS AUTOMOTORES Y MOTOCICLETAS | AK85: 0 | AL85: 0 | AM85: 0 | AN85: 0 | AO85: 0 | AP85: 0 | AT85: =CONCATENATE(AU85,COUNTIF($AU$2:AU85,AU85)) -> 116 | AU85: 1 | AV85: 0.0002129018522 | AW85: 1 | AX85: 6.313968392e-06 | AY85: =+(SUMIFS(Montos!$Y$2:$Y$396864,Montos!$R$2:$R$396864,Base!AZ85)/1000000) -> 0.25 | AZ85: ANORÍ
B86: 15759 | C86: SOGAMOSO | D86: 6 | E86: 2 | F86: Natural | G86: 15 | H86: BOYACÁ | I86: Aprobado con subsidio | J86: 8 | K86: MICRO | L86: 8512 | M86: EDUCACIÓN | N86: 6 | O86: 0 | P86: 0 | Q86: 1 | R86: 5 | S86: 0 | X86: 0 | Y86: 5887 | Z86: YARUMAL | AA86: 3 | AB86: 2 | AC86: Natural | AD86: 5 | AE86: ANTIOQUIA | AF86: Aprobado con subsidio | AG86: 5 | AH86: PEQUEÑA | AI86: 4711 | AJ86: COMERCIO AL POR MAYOR Y AL POR MENOR; REPARACIÓN DE VEHÍCULOS AUTOMOTORES Y MOTOCICLETAS | AK86: 3 | AL86: 0 | AM86: 0 | AN86: 3 | AO86: 0 | AP86: 0 | AT86: =CONCATENATE(AU86,COUNTIF($AU$2:AU86,AU86)) -> 312 | AU86: 3 | AV86: 0.0006387055567 | AW86: 34 | AX86: 0.0002146749253 | AY86: =+(SUMIFS(Montos!$Y$2:$Y$396864,Montos!$R$2:$R$396864,Base!AZ86)/1000000) -> 43.697027 | AZ86: GUATAPE
B87: 15176 | C87: CHIQUINQUIRÁ | D87: 6 | E87: 8 | F87: Natural | G87: 15 | H87: BOYACÁ | I87: Aprobado con subsidio | J87: 14 | K87: MICRO | L87: 1081 | M87: INDUSTRIAS MANUFACTURERAS | N87: 4 | O87: 2 | P87: 0 | Q87: 5 | R87: 1 | S87: 0 | X87: 0 | Y87: 5887 | Z87: YARUMAL | AA87: 19 | AB87: 46 | AC87: Natural | AD87: 5 | AE87: ANTIOQUIA | AF87: Aprobado con subsidio | AG87: 65 | AH87: PEQUEÑA | AI87: 4690 | AJ87: COMERCIO AL POR MAYOR Y AL POR MENOR; REPARACIÓN DE VEHÍCULOS AUTOMOTORES Y MOTOCICLETAS | AK87: 10 | AL87: 9 | AM87: 0 | AN87: 19 | AO87: 0 | AP87: 0 | AT87: =CONCATENATE(AU87,COUNTIF($AU$2:AU87,AU87)) -> 29 | AU87: 2 | AV87: 0.0004258037045 | AW87: 75 | AX87: 0.0004735476294 | AY87: =+(SUMIFS(Montos!$Y$2:$Y$396864,Montos!$R$2:$R$396864,Base!AZ87)/1000000) -> 48.15 | AZ87: EL BAGRE
B88: 11001 | C88: BOGOTÁ, D.C. | D88: 2 | E88: 0 | F88: Natural | G88: 11 | H88: BOGOTÁ, D.C. | I88: Aprobado con subsidio | J88: 2 | K88: MICRO | L88: 2920 | M88: INDUSTRIAS MANUFACTURERAS | N88: 2 | O88: 0 | P88: 0 | Q88: 0 | R88: 2 | S88: 0 | X88: 0 | Y88: 5679 | Z88: SANTA BÁRBARA | AA88: 5 | AB88: 9 | AC88: Natural | AD88: 5 | AE88: ANTIOQUIA | AF88: Aprobado con subsidio | AG88: 14 | AH88: MICRO | AI88: 4663 | AJ88: COMERCIO AL POR MAYOR Y AL POR MENOR; REPARACIÓN DE VEHÍCULOS AUTOMOTORES Y MOTOCICLETAS | AK88: 1 | AL88: 4 | AM88: 0 | AN88: 3 | AO88: 1 | AP88: 1 | AT88: =CONCATENATE(AU88,COUNTIF($AU$2:AU88,AU88)) -> 117 | AU88: 1 | AV88: 0.0002129018522 | AW88: 4 | AX88: 2.525587357e-05 | AY88: =+(SUMIFS(Montos!$Y$2:$Y$396864,Montos!$R$2:$R$396864,Base!AZ88)/1000000) -> 3.63 | AZ88: ITUANGO
B89: 11001 | C89: BOGOTÁ, D.C. | D89: 0 | E89: 0 | F89: Natural | G89: 11 | H89: BOGOTÁ, D.C. | I89: 0 | J89: 0 | K89: MICRO | L89: 1392 | M89: INDUSTRIAS MANUFACTURERAS | N89: 0 | O89: 0 | P89: 0 | Q89: 0 | R89: 0 | S89: 0 | X89: 0 | Y89: 5088 | Z89: BELLO | AA89: 0 | AB89: 0 | AC89: Natural | AD89: 5 | AE89: ANTIOQUIA | AF89: 0 | AG89: 0 | AH89: MICRO | AI89: 4923 | AJ89: TRANSPORTE Y ALMACENAMIENTO | AK89: 0 | AL89: 0 | AM89: 0 | AN89: 0 | AO89: 0 | AP89: 0 | AT89: =CONCATENATE(AU89,COUNTIF($AU$2:AU89,AU89)) -> 010 | AU89: 0 | AV89: 0 | AW89: 0 | AX89: 0 | AY89: =+(SUMIFS(Montos!$Y$2:$Y$396864,Montos!$R$2:$R$396864,Base!AZ89)/1000000) -> 0 | AZ89: BETULIA
B90: 15238 | C90: DUITAMA | D90: 1 | E90: 1 | F90: Natural | G90: 15 | H90: BOYACÁ | I90: Aprobado con subsidio | J90: 2 | K90: MICRO | L90: 4923 | M90: TRANSPORTE Y ALMACENAMIENTO | N90: 0 | O90: 1 | P90: 0 | Q90: 1 | R90: 0 | S90: 0 | X90: 0 | Y90: 5631 | Z90: SABANETA | AA90: 0 | AB90: 0 | AC90: Natural | AD90: 5 | AE90: ANTIOQUIA | AF90: Aprobado con subsidio | AG90: 0 | AH90: MICRO | AI90: 5630 | AJ90: ALOJAMIENTO Y SERVICIOS DE COMIDA | AK90: 0 | AL90: 0 | AM90: 0 | AN90: 0 | AO90: 0 | AP90: 0 | AT90: =CONCATENATE(AU90,COUNTIF($AU$2:AU90,AU90)) -> 011 | AU90: 0 | AV90: 0 | AW90: 0 | AX90: 0 | AY90: =+(SUMIFS(Montos!$Y$2:$Y$396864,Montos!$R$2:$R$396864,Base!AZ90)/1000000) -> 0 | AZ90: URRAO
B91: 85001 | C91: YOPAL | D91: 2 | E91: 1 | F91: Natural | G91: 85 | H91: CASANARE | I91: Aprobado con subsidio | J91: 3 | K91: MICRO | L91: 4542 | M91: COMERCIO AL POR MAYOR Y AL POR MENOR; REPARACIÓN DE VEHÍCULOS AUTOMOTORES Y MOTOCICLETAS | N91: 1 | O91: 1 | P91: 0 | Q91: 2 | R91: 0 | S91: 0 | X91: 0 | Y91: 5001 | Z91: MEDELLÍN | AA91: 2 | AB91: 7 | AC91: Natural | AD91: 5 | AE91: ANTIOQUIA | AF91: Aprobado con subsidio | AG91: 9 | AH91: PEQUEÑA | AI91: 4751 | AJ91: COMERCIO AL POR MAYOR Y AL POR MENOR; REPARACIÓN DE VEHÍCULOS AUTOMOTORES Y MOTOCICLETAS | AK91: 2 | AL91: 0 | AM91: 0 | AN91: 2 | AO91: 0 | AP91: 0 | AT91: =CONCATENATE(AU91,COUNTIF($AU$2:AU91,AU91)) -> 012 | AU91: 0 | AV91: 0 | AW91: 0 | AX91: 0 | AY91: =+(SUMIFS(Montos!$Y$2:$Y$396864,Montos!$R$2:$R$396864,Base!AZ91)/1000000) -> 0 | AZ91: TARAZÁ
B92: 15759 | C92: SOGAMOSO | D92: 1 | E92: 2 | F92: Natural | G92: 15 | H92: BOYACÁ | I92: Aprobado con subsidio | J92: 3 | K92: PEQUEÑA | L92: 2395 | M92: INDUSTRIAS MANUFACTURERAS | N92: 0 | O92: 1 | P92: 0 | Q92: 0 | R92: 0 | S92: 1 | X92: 0 | Y92: 5001 | Z92: MEDELLÍN | AA92: 1 | AB92: 0 | AC92: Natural | AD92: 5 | AE92: ANTIOQUIA | AF92: Aprobado con subsidio | AG92: 1 | AH92: MICRO | AI92: 5511 | AJ92: ALOJAMIENTO Y SERVICIOS DE COMIDA | AK92: 1 | AL92: 0 | AM92: 0 | AN92: 0 | AO92: 1 | AP92: 0 | AT92: =CONCATENATE(AU92,COUNTIF($AU$2:AU92,AU92)) -> 210 | AU92: 2 | AV92: 0.0004258037045 | AW92: 11 | AX92: 6.945365232e-05 | AY92: =+(SUMIFS(Montos!$Y$2:$Y$396864,Montos!$R$2:$R$396864,Base!AZ92)/1000000) -> 10.04 | AZ92: TITIRIBÍ
B93: 11001 | C93: BOGOTÁ, D.C. | D93: 0 | E93: 0 | F93: Natural | G93: 11 | H93: BOGOTÁ, D.C. | I93: 0 | J93: 0 | K93: MICRO | L93: 4752 | M93: COMERCIO AL POR MAYOR Y AL POR MENOR; REPARACIÓN DE VEHÍCULOS AUTOMOTORES Y MOTOCICLETAS | N93: 0 | O93: 0 | P93: 0 | Q93: 0 | R93: 0 | S93: 0 | X93: 0 | Y93: 5266 | Z93: ENVIGADO | AA93: 0 | AB93: 0 | AC93: Natural | AD93: 5 | AE93: ANTIOQUIA | AF93: 0 | AG93: 0 | AH93: MICRO | AI93: 141 | AJ93: AGRICULTURA, GANADERÍA, CAZA, SILVICULTURA Y PESCA | AK93: 0 | AL93: 0 | AM93: 0 | AN93: 0 | AO93: 0 | AP93: 0 | AT93: =CONCATENATE(AU93,COUNTIF($AU$2:AU93,AU93)) -> 118 | AU93: 1 | AV93: 0.0002129018522 | AW93: 5 | AX93: 3.156984196e-05 | AY93: =+(SUMIFS(Montos!$Y$2:$Y$396864,Montos!$R$2:$R$396864,Base!AZ93)/1000000) -> 1.83 | AZ93: VENECIA
B94: 11001 | C94: BOGOTÁ, D.C. | D94: 1 | E94: 1 | F94: Natural | G94: 11 | H94: BOGOTÁ, D.C. | I94: Aprobado con subsidio | J94: 2 | K94: MICRO | L94: 4663 | M94: COMERCIO AL POR MAYOR Y AL POR MENOR; REPARACIÓN DE VEHÍCULOS AUTOMOTORES Y MOTOCICLETAS | N94: 0 | O94: 1 | P94: 0 | Q94: 1 | R94: 0 | S94: 0 | X94: 0 | Y94: 5615 | Z94: RIONEGRO | AA94: 46 | AB94: 33 | AC94: Natural | AD94: 5 | AE94: ANTIOQUIA | AF94: Aprobado con subsidio | AG94: 79 | AH94: PEQUEÑA | AI94: 5611 | AJ94: ALOJAMIENTO Y SERVICIOS DE COMIDA | AK94: 26 | AL94: 20 | AM94: 0 | AN94: 12 | AO94: 24 | AP94: 10 | AT94: =CONCATENATE(AU94,COUNTIF($AU$2:AU94,AU94)) -> 211 | AU94: 2 | AV94: 0.0004258037045 | AW94: 71 | AX94: 0.0004482917559 | AY94: =+(SUMIFS(Montos!$Y$2:$Y$396864,Montos!$R$2:$R$396864,Base!AZ94)/1000000) -> 86.618 | AZ94: GRANADA
B95: 11001 | C95: BOGOTÁ, D.C. | D95: 0 | E95: 0 | F95: Natural | G95: 11 | H95: BOGOTÁ, D.C. | I95: 0 | J95: 0 | K95: PEQUEÑA | L95: 4771 | M95: COMERCIO AL POR MAYOR Y AL POR MENOR; REPARACIÓN DE VEHÍCULOS AUTOMOTORES Y MOTOCICLETAS | N95: 0 | O95: 0 | P95: 0 | Q95: 0 | R95: 0 | S95: 0 | X95: 0 | Y95: 5376 | Z95: LA CEJA | AA95: 5 | AB95: 0 | AC95: Natural | AD95: 5 | AE95: ANTIOQUIA | AF95: Aprobado con subsidio | AG95: 5 | AH95: MICRO | AI95: 9522 | AJ95: OTRAS ACTIVIDADES DE SERVICIOS | AK95: 3 | AL95: 2 | AM95: 0 | AN95: 1 | AO95: 3 | AP95: 1 | AT95: =CONCATENATE(AU95,COUNTIF($AU$2:AU95,AU95)) -> 119 | AU95: 1 | AV95: 0.0002129018522 | AW95: 39 | AX95: 0.0002462447673 | AY95: =+(SUMIFS(Montos!$Y$2:$Y$396864,Montos!$R$2:$R$396864,Base!AZ95)/1000000) -> 34.134 | AZ95: CISNEROS
B96: 15753 | C96: SOATÁ | D96: 2 | E96: 1 | F96: Natural | G96: 15 | H96: BOYACÁ | I96: Aprobado con subsidio | J96: 3 | K96: MICRO | L96: 4631 | M96: COMERCIO AL POR MAYOR Y AL POR MENOR; REPARACIÓN DE VEHÍCULOS AUTOMOTORES Y MOTOCICLETAS | N96: 0 | O96: 2 | P96: 0 | Q96: 0 | R96: 0 | S96: 2 | X96: 0 | Y96: 5148 | Z96: EL CARMEN DE VIBORAL | AA96: 7 | AB96: 10 | AC96: Natural | AD96: 5 | AE96: ANTIOQUIA | AF96: Aprobado con subsidio | AG96: 17 | AH96: MICRO | AI96: 8130 | AJ96: ACTIVIDADES DE SERVICIOS ADMINISTRATIVOS Y DE APOYO | AK96: 0 | AL96: 7 | AM96: 0 | AN96: 2 | AO96: 0 | AP96: 5 | AT96: =CONCATENATE(AU96,COUNTIF($AU$2:AU96,AU96)) -> 120 | AU96: 1 | AV96: 0.0002129018522 | AW96: 4 | AX96: 2.525587357e-05 | AY96: =+(SUMIFS(Montos!$Y$2:$Y$396864,Montos!$R$2:$R$396864,Base!AZ96)/1000000) -> 2.802 | AZ96: SAN ANDRÉS DE CUERQUÍA
B97: 54874 | C97: VILLA DEL ROSARIO | D97: 0 | E97: 0 | F97: Natural | G97: 54 | H97: NORTE DE SANTANDER | I97: 0 | J97: 0 | K97: MICRO | L97: 5630 | M97: ALOJAMIENTO Y SERVICIOS DE COMIDA | N97: 0 | O97: 0 | P97: 0 | Q97: 0 | R97: 0 | S97: 0 | X97: 0 | Y97: 5761 | Z97: SOPETRÁN | AA97: 0 | AB97: 0 | AC97: Natural | AD97: 5 | AE97: ANTIOQUIA | AF97: 0 | AG97: 0 | AH97: MICRO | AI97: 1081 | AJ97: INDUSTRIAS MANUFACTURERAS | AK97: 0 | AL97: 0 | AM97: 0 | AN97: 0 | AO97: 0 | AP97: 0 | AT97: =CONCATENATE(AU97,COUNTIF($AU$2:AU97,AU97)) -> 121 | AU97: 1 | AV97: 0.0002129018522 | AW97: 15 | AX97: 9.470952588e-05 | AY97: =+(SUMIFS(Montos!$Y$2:$Y$396864,Montos!$R$2:$R$396864,Base!AZ97)/1000000) -> 8.95 | AZ97: CÁCERES
B98: 11001 | C98: BOGOTÁ, D.C. | D98: 6 | E98: 12 | F98: Natural | G98: 11 | H98: BOGOTÁ, D.C. | I98: Aprobado con subsidio | J98: 18 | K98: MICRO | L98: 1081 | M98: INDUSTRIAS MANUFACTURERAS | N98: 3 | O98: 3 | P98: 0 | Q98: 6 | R98: 0 | S98: 0 | X98: 0 | Y98: 5615 | Z98: RIONEGRO | AA98: 3 | AB98: 2 | AC98: Natural | AD98: 5 | AE98: ANTIOQUIA | AF98: Aprobado con subsidio | AG98: 5 | AH98: MICRO | AI98: 4732 | AJ98: COMERCIO AL POR MAYOR Y AL POR MENOR; REPARACIÓN DE VEHÍCULOS AUTOMOTORES Y MOTOCICLETAS | AK98: 1 | AL98: 2 | AM98: 0 | AN98: 3 | AO98: 0 | AP98: 0 | AT98: =CONCATENATE(AU98,COUNTIF($AU$2:AU98,AU98)) -> 013 | AU98: =+COUNTIFS($Z$2:$Z$399999,AZ98,$AF$2:$AF$399999,"Aprobado con subsidio")*1 -> 0 | AV98: =+AU98/SUM($AU$2:$AU$129) -> 0 | AW98: =+SUMIFS($AA$2:$AA$399999,$Z$2:$Z$399999,AZ98,$AF$2:$AF$399999,"Aprobado con subsidio") -> 0 | AX98: 0 | AY98: =+(SUMIFS(Montos!$Y$2:$Y$396864,Montos!$R$2:$R$396864,Base!AZ98)/1000000) -> 0 | AZ98: 0
B99: 15759 | C99: SOGAMOSO | D99: 3 | E99: 2 | F99: Natural | G99: 15 | H99: BOYACÁ | I99: Aprobado con subsidio | J99: 5 | K99: MICRO | L99: 4923 | M99: TRANSPORTE Y ALMACENAMIENTO | N99: 0 | O99: 3 | P99: 0 | Q99: 2 | R99: 0 | S99: 1 | X99: 0 | Y99: 5615 | Z99: RIONEGRO | AA99: 1 | AB99: 1 | AC99: Natural | AD99: 5 | AE99: ANTIOQUIA | AF99: Aprobado con subsidio | AG99: 2 | AH99: MICRO | AI99: 4631 | AJ99: COMERCIO AL POR MAYOR Y AL POR MENOR; REPARACIÓN DE VEHÍCULOS AUTOMOTORES Y MOTOCICLETAS | AK99: 1 | AL99: 0 | AM99: 0 | AN99: 1 | AO99: 0 | AP99: 0 | AT99: =CONCATENATE(AU99,COUNTIF($AU$2:AU99,AU99)) -> 014 | AU99: 0 | AV99: 0 | AW99: 0 | AX99: 0 | AY99: =+(SUMIFS(Montos!$Y$2:$Y$396864,Montos!$R$2:$R$396864,Base!AZ99)/1000000) -> 0
B100: 11001 | C100: BOGOTÁ, D.C. | D100: 5 | E100: 2 | F100: Natural | G100: 11 | H100: BOGOTÁ, D.C. | I100: Aprobado con subsidio | J100: 7 | K100: MICRO | L100: 4923 | M100: TRANSPORTE Y ALMACENAMIENTO | N100: 1 | O100: 4 | P100: 0 | Q100: 2 | R100: 1 | S100: 2 | X100: 0 | Y100: 5001 | Z100: MEDELLÍN | AA100: 4 | AB100: 1 | AC100: Natural | AD100: 5 | AE100: ANTIOQUIA | AF100: Aprobado con subsidio | AG100: 5 | AH100: MICRO | AI100: 4711 | AJ100: COMERCIO AL POR MAYOR Y AL POR MENOR; REPARACIÓN DE VEHÍCULOS AUTOMOTORES Y MOTOCICLETAS | AK100: 2 | AL100: 2 | AM100: 0 | AN100: 3 | AO100: 0 | AP100: 1 | AT100: =CONCATENATE(AU100,COUNTIF($AU$2:AU100,AU100)) -> 015 | AU100: 0 | AV100: 0 | AW100: 0 | AX100: 0 | AY100: =+(SUMIFS(Montos!$Y$2:$Y$396864,Montos!$R$2:$R$396864,Base!AZ100)/1000000) -> 0
B101: 85001 | C101: YOPAL | D101: 0 | E101: 0 | F101: Natural | G101: 85 | H101: CASANARE | I101: 0 | J101: 0 | K101: MICRO | L101: 811 | M101: EXPLOTACIÓN DE MINAS Y CANTERAS | N101: 0 | O101: 0 | P101: 0 | Q101: 0 | R101: 0 | S101: 0 | X101: 0 | Y101: 5376 | Z101: LA CEJA | AA101: 3 | AB101: 7 | AC101: Natural | AD101: 5 | AE101: ANTIOQUIA | AF101: Aprobado con subsidio | AG101: 10 | AH101: PEQUEÑA | AI101: 4771 | AJ101: COMERCIO AL POR MAYOR Y AL POR MENOR; REPARACIÓN DE VEHÍCULOS AUTOMOTORES Y MOTOCICLETAS | AK101: 3 | AL101: 0 | AM101: 0 | AN101: 3 | AO101: 0 | AP101: 0 | AT101: =CONCATENATE(AU101,COUNTIF($AU$2:AU101,AU101)) -> 016 | AU101: 0 | AV101: 0 | AW101: 0 | AX101: 0 | AY101: =+(SUMIFS(Montos!$Y$2:$Y$396864,Montos!$R$2:$R$396864,Base!AZ101)/1000000) -> 0
B102: 15808 | C102: TINJACÁ | D102: 0 | E102: 0 | F102: Natural | G102: 15 | H102: BOYACÁ | I102: 0 | J102: 0 | K102: MICRO | L102: 4752 | M102: COMERCIO AL POR MAYOR Y AL POR MENOR; REPARACIÓN DE VEHÍCULOS AUTOMOTORES Y MOTOCICLETAS | N102: 0 | O102: 0 | P102: 0 | Q102: 0 | R102: 0 | S102: 0 | X102: 0 | Y102: 5615 | Z102: RIONEGRO | AA102: 0 | AB102: 0 | AC102: Natural | AD102: 5 | AE102: ANTIOQUIA | AF102: 0 | AG102: 0 | AH102: MICRO | AI102: 6920 | AJ102: ACTIVIDADES PROFESIONALES, CIENTÍFICAS Y TÉCNICAS | AK102: 0 | AL102: 0 | AM102: 0 | AN102: 0 | AO102: 0 | AP102: 0 | AT102: =CONCATENATE(AU102,COUNTIF($AU$2:AU102,AU102)) -> 017 | AU102: 0 | AV102: 0 | AW102: 0 | AX102: 0 | AY102: =+(SUMIFS(Montos!$Y$2:$Y$396864,Montos!$R$2:$R$396864,Base!AZ102)/1000000) -> 0
B103: 11001 | C103: BOGOTÁ, D.C. | D103: 0 | E103: 0 | F103: Natural | G103: 11 | H103: BOGOTÁ, D.C. | I103: 0 | J103: 0 | K103: MICRO | L103: 2592 | M103: INDUSTRIAS MANUFACTURERAS | N103: 0 | O103: 0 | P103: 0 | Q103: 0 | R103: 0 | S103: 0 | X103: 0 | Y103: 5440 | Z103: MARINILLA | AA103: 0 | AB103: 2 | AC103: Natural | AD103: 5 | AE103: ANTIOQUIA | AF103: Aprobado con subsidio | AG103: 2 | AH103: MICRO | AI103: 6920 | AJ103: ACTIVIDADES PROFESIONALES, CIENTÍFICAS Y TÉCNICAS | AK103: 0 | AL103: 0 | AM103: 0 | AN103: 0 | AO103: 0 | AP103: 0 | AT103: =CONCATENATE(AU103,COUNTIF($AU$2:AU103,AU103)) -> 018 | AU103: 0 | AV103: 0 | AW103: 0 | AX103: 0 | AY103: =+(SUMIFS(Montos!$Y$2:$Y$396864,Montos!$R$2:$R$396864,Base!AZ103)/1000000) -> 0
B104: 11001 | C104: BOGOTÁ, D.C. | D104: 5 | E104: 0 | F104: Natural | G104: 11 | H104: BOGOTÁ, D.C. | I104: Aprobado con subsidio | J104: 5 | K104: MICRO | L104: 5611 | M104: ALOJAMIENTO Y SERVICIOS DE COMIDA | N104: 2 | O104: 3 | P104: 0 | Q104: 0 | R104: 2 | S104: 3 | X104: 0 | Y104: 5148 | Z104: EL CARMEN DE VIBORAL | AA104: 0 | AB104: 0 | AC104: Natural | AD104: 5 | AE104: ANTIOQUIA | AF104: 0 | AG104: 0 | AH104: MICRO | AI104: 1630 | AJ104: INDUSTRIAS MANUFACTURERAS | AK104: 0 | AL104: 0 | AM104: 0 | AN104: 0 | AO104: 0 | AP104: 0 | AT104: =CONCATENATE(AU104,COUNTIF($AU$2:AU104,AU104)) -> 019 | AU104: 0 | AV104: 0 | AW104: 0 | AX104: 0 | AY104: =+(SUMIFS(Montos!$Y$2:$Y$396864,Montos!$R$2:$R$396864,Base!AZ104)/1000000) -> 0
B105: 18001 | C105: FLORENCIA | D105: 0 | E105: 0 | F105: Natural | G105: 18 | H105: CAQUETÁ | I105: 0 | J105: 0 | K105: MICRO | L105: 4651 | M105: COMERCIO AL POR MAYOR Y AL POR MENOR; REPARACIÓN DE VEHÍCULOS AUTOMOTORES Y MOTOCICLETAS | N105: 0 | O105: 0 | P105: 0 | Q105: 0 | R105: 0 | S105: 0 | X105: 0 | Y105: 5376 | Z105: LA CEJA | AA105: 1 | AB105: 1 | AC105: Natural | AD105: 5 | AE105: ANTIOQUIA | AF105: Aprobado con subsidio | AG105: 2 | AH105: MICRO | AI105: 1610 | AJ105: INDUSTRIAS MANUFACTURERAS | AK105: 0 | AL105: 1 | AM105: 0 | AN105: 1 | AO105: 0 | AP105: 0 | AT105: =CONCATENATE(AU105,COUNTIF($AU$2:AU105,AU105)) -> 020 | AU105: 0 | AV105: 0 | AW105: 0 | AX105: 0 | AY105: =+(SUMIFS(Montos!$Y$2:$Y$396864,Montos!$R$2:$R$396864,Base!AZ105)/1000000) -> 0
B106: 5266 | C106: ENVIGADO | D106: 0 | E106: 0 | F106: Natural | G106: 5 | H106: ANTIOQUIA | I106: Aprobado con subsidio | J106: 0 | K106: MICRO | L106: 4541 | M106: COMERCIO AL POR MAYOR Y AL POR MENOR; REPARACIÓN DE VEHÍCULOS AUTOMOTORES Y MOTOCICLETAS | N106: 0 | O106: 0 | P106: 0 | Q106: 0 | R106: 0 | S106: 0 | X106: 0 | Y106: 5615 | Z106: RIONEGRO | AA106: 37 | AB106: 33 | AC106: Natural | AD106: 5 | AE106: ANTIOQUIA | AF106: Aprobado con subsidio | AG106: 70 | AH106: MICRO | AI106: 7112 | AJ106: ACTIVIDADES PROFESIONALES, CIENTÍFICAS Y TÉCNICAS | AK106: 8 | AL106: 29 | AM106: 0 | AN106: 13 | AO106: 6 | AP106: 18 | AT106: =CONCATENATE(AU106,COUNTIF($AU$2:AU106,AU106)) -> 021 | AU106: 0 | AV106: 0 | AW106: 0 | AX106: 0 | AY106: =+(SUMIFS(Montos!$Y$2:$Y$396864,Montos!$R$2:$R$396864,Base!AZ106)/1000000) -> 0
B107: 76001 | C107: CALI | D107: 0 | E107: 0 | F107: Natural | G107: 76 | H107: VALLE DEL CAUCA | I107: 0 | J107: 0 | K107: MICRO | L107: 4530 | M107: COMERCIO AL POR MAYOR Y AL POR MENOR; REPARACIÓN DE VEHÍCULOS AUTOMOTORES Y MOTOCICLETAS | N107: 0 | O107: 0 | P107: 0 | Q107: 0 | R107: 0 | S107: 0 | X107: 0 | Y107: 5615 | Z107: RIONEGRO | AA107: 1 | AB107: 1 | AC107: Natural | AD107: 5 | AE107: ANTIOQUIA | AF107: Aprobado con subsidio | AG107: 2 | AH107: MICRO | AI107: 9700 | AJ107: ACTIVIDADES DE LOS HOGARES INDIVIDUALES EN CALIDAD DE EMPLEADORES; ACTIVIDADES NO DIFERENCIADAS DE LOS HOGARES INDIVIDUALES COMO PRODUCTORES DE BIENES Y SERVICIOS PARA USO PROPIO | AK107: 1 | AL107: 0 | AM107: 0 | AN107: 1 | AO107: 0 | AP107: 0 | AT107: =CONCATENATE(AU107,COUNTIF($AU$2:AU107,AU107)) -> 022 | AU107: 0 | AV107: 0 | AW107: 0 | AX107: 0 | AY107: =+(SUMIFS(Montos!$Y$2:$Y$396864,Montos!$R$2:$R$396864,Base!AZ107)/1000000) -> 0
B108: 17442 | C108: MARMATO | D108: 32 | E108: 15 | F108: Natural | G108: 17 | H108: CALDAS | I108: Aprobado con subsidio | J108: 47 | K108: PEQUEÑA | L108: 722 | M108: EXPLOTACIÓN DE MINAS Y CANTERAS | N108: 0 | O108: 32 | P108: 0 | Q108: 11 | R108: 0 | S108: 21 | X108: 0 | Y108: 5615 | Z108: RIONEGRO | AA108: 2 | AB108: 5 | AC108: Natural | AD108: 5 | AE108: ANTIOQUIA | AF108: Aprobado con subsidio | AG108: 7 | AH108: MICRO | AI108: 4111 | AJ108: CONSTRUCCIÓN | AK108: 0 | AL108: 2 | AM108: 0 | AN108: 1 | AO108: 0 | AP108: 1 | AT108: =CONCATENATE(AU108,COUNTIF($AU$2:AU108,AU108)) -> 023 | AU108: 0 | AV108: 0 | AW108: 0 | AX108: 0 | AY108: =+(SUMIFS(Montos!$Y$2:$Y$396864,Montos!$R$2:$R$396864,Base!AZ108)/1000000) -> 0
B109: 17442 | C109: MARMATO | D109: 36 | E109: 23 | F109: Natural | G109: 17 | H109: CALDAS | I109: Aprobado con subsidio | J109: 59 | K109: PEQUEÑA | L109: 722 | M109: EXPLOTACIÓN DE MINAS Y CANTERAS | N109: 0 | O109: 36 | P109: 0 | Q109: 18 | R109: 0 | S109: 18 | X109: 0 | Y109: 5615 | Z109: RIONEGRO | AA109: 1 | AB109: 0 | AC109: Natural | AD109: 5 | AE109: ANTIOQUIA | AF109: Aprobado con subsidio | AG109: 1 | AH109: MICRO | AI109: 4762 | AJ109: COMERCIO AL POR MAYOR Y AL POR MENOR; REPARACIÓN DE VEHÍCULOS AUTOMOTORES Y MOTOCICLETAS | AK109: 0 | AL109: 1 | AM109: 0 | AN109: 1 | AO109: 0 | AP109: 0 | AT109: =CONCATENATE(AU109,COUNTIF($AU$2:AU109,AU109)) -> 024 | AU109: 0 | AV109: 0 | AW109: 0 | AX109: 0 | AY109: =+(SUMIFS(Montos!$Y$2:$Y$396864,Montos!$R$2:$R$396864,Base!AZ109)/1000000) -> 0
B110: 50001 | C110: VILLAVICENCIO | D110: 4 | E110: 2 | F110: Natural | G110: 50 | H110: META | I110: Aprobado con subsidio | J110: 6 | K110: MICRO | L110: 4321 | M110: CONSTRUCCIÓN | N110: 2 | O110: 2 | P110: 0 | Q110: 2 | R110: 1 | S110: 1 | X110: 0 | Y110: 5615 | Z110: RIONEGRO | AA110: 1 | AB110: 0 | AC110: Natural | AD110: 5 | AE110: ANTIOQUIA | AF110: Aprobado con subsidio | AG110: 1 | AH110: MICRO | AI110: 4530 | AJ110: COMERCIO AL POR MAYOR Y AL POR MENOR; REPARACIÓN DE VEHÍCULOS AUTOMOTORES Y MOTOCICLETAS | AK110: 0 | AL110: 1 | AM110: 0 | AN110: 1 | AO110: 0 | AP110: 0 | AT110: =CONCATENATE(AU110,COUNTIF($AU$2:AU110,AU110)) -> 025 | AU110: 0 | AV110: 0 | AW110: 0 | AX110: 0 | AY110: =+(SUMIFS(Montos!$Y$2:$Y$396864,Montos!$R$2:$R$396864,Base!AZ110)/1000000) -> 0
B111: 66001 | C111: PEREIRA | D111: 9 | E111: 0 | F111: Natural | G111: 66 | H111: RISARALDA | I111: Aprobado con subsidio | J111: 9 | K111: MICRO | L111: 9609 | M111: OTRAS ACTIVIDADES DE SERVICIOS | N111: 1 | O111: 8 | P111: 0 | Q111: 3 | R111: 1 | S111: 5 | X111: 0 | Y111: 5615 | Z111: RIONEGRO | AA111: 3 | AB111: 0 | AC111: Natural | AD111: 5 | AE111: ANTIOQUIA | AF111: Aprobado con subsidio | AG111: 3 | AH111: MICRO | AI111: 6201 | AJ111: INFORMACIÓN Y COMUNICACIONES | AK111: 3 | AL111: 0 | AM111: 0 | AN111: 2 | AO111: 1 | AP111: 0 | AT111: =CONCATENATE(AU111,COUNTIF($AU$2:AU111,AU111)) -> 026 | AU111: 0 | AV111: 0 | AW111: 0 | AX111: 0 | AY111: =+(SUMIFS(Montos!$Y$2:$Y$396864,Montos!$R$2:$R$396864,Base!AZ111)/1000000) -> 0
B112: 66001 | C112: PEREIRA | D112: 0 | E112: 0 | F112: Natural | G112: 66 | H112: RISARALDA | I112: 0 | J112: 0 | K112: MICRO | L112: 4711 | M112: COMERCIO AL POR MAYOR Y AL POR MENOR; REPARACIÓN DE VEHÍCULOS AUTOMOTORES Y MOTOCICLETAS | N112: 0 | O112: 0 | P112: 0 | Q112: 0 | R112: 0 | S112: 0 | X112: 0 | Y112: 5615 | Z112: RIONEGRO | AA112: 4 | AB112: 9 | AC112: Natural | AD112: 5 | AE112: ANTIOQUIA | AF112: Aprobado con subsidio | AG112: 13 | AH112: MICRO | AI112: 4923 | AJ112: TRANSPORTE Y ALMACENAMIENTO | AK112: 0 | AL112: 4 | AM112: 0 | AN112: 4 | AO112: 0 | AP112: 0 | AT112: =CONCATENATE(AU112,COUNTIF($AU$2:AU112,AU112)) -> 027 | AU112: 0 | AV112: 0 | AW112: 0 | AX112: 0 | AY112: =+(SUMIFS(Montos!$Y$2:$Y$396864,Montos!$R$2:$R$396864,Base!AZ112)/1000000) -> 0
B113: 66594 | C113: QUINCHÍA | D113: 5 | E113: 2 | F113: Natural | G113: 66 | H113: RISARALDA | I113: Aprobado con subsidio | J113: 7 | K113: MICRO | L113: 4711 | M113: COMERCIO AL POR MAYOR Y AL POR MENOR; REPARACIÓN DE VEHÍCULOS AUTOMOTORES Y MOTOCICLETAS | N113: 0 | O113: 5 | P113: 0 | Q113: 5 | R113: 0 | S113: 0 | X113: 0 | Y113: 5001 | Z113: MEDELLÍN | AA113: 0 | AB113: 0 | AC113: Natural | AD113: 5 | AE113: ANTIOQUIA | AF113: 0 | AG113: 0 | AH113: PEQUEÑA | AI113: 4752 | AJ113: COMERCIO AL POR MAYOR Y AL POR MENOR; REPARACIÓN DE VEHÍCULOS AUTOMOTORES Y MOTOCICLETAS | AK113: 0 | AL113: 0 | AM113: 0 | AN113: 0 | AO113: 0 | AP113: 0 | AT113: =CONCATENATE(AU113,COUNTIF($AU$2:AU113,AU113)) -> 028 | AU113: 0 | AV113: 0 | AW113: 0 | AX113: 0 | AY113: =+(SUMIFS(Montos!$Y$2:$Y$396864,Montos!$R$2:$R$396864,Base!AZ113)/1000000) -> 0
B114: 63001 | C114: ARMENIA | D114: 0 | E114: 0 | F114: Natural | G114: 63 | H114: QUINDÍO | I114: 0 | J114: 0 | K114: MICRO | L114: 5611 | M114: ALOJAMIENTO Y SERVICIOS DE COMIDA | N114: 0 | O114: 0 | P114: 0 | Q114: 0 | R114: 0 | S114: 0 | X114: 0 | Y114: 5001 | Z114: MEDELLÍN | AA114: 0 | AB114: 0 | AC114: Natural | AD114: 5 | AE114: ANTIOQUIA | AF114: 0 | AG114: 0 | AH114: MICRO | AI114: 8130 | AJ114: ACTIVIDADES DE SERVICIOS ADMINISTRATIVOS Y DE APOYO | AK114: 0 | AL114: 0 | AM114: 0 | AN114: 0 | AO114: 0 | AP114: 0 | AT114: =CONCATENATE(AU114,COUNTIF($AU$2:AU114,AU114)) -> 029 | AU114: 0 | AV114: 0 | AW114: 0 | AX114: 0 | AY114: =+(SUMIFS(Montos!$Y$2:$Y$396864,Montos!$R$2:$R$396864,Base!AZ114)/1000000) -> 0
B115: 63001 | C115: ARMENIA | D115: 0 | E115: 0 | F115: Natural | G115: 63 | H115: QUINDÍO | I115: 0 | J115: 0 | K115: MICRO | L115: 8530 | M115: EDUCACIÓN | N115: 0 | O115: 0 | P115: 0 | Q115: 0 | R115: 0 | S115: 0 | X115: 0 | Y115: 5129 | Z115: CALDAS | AA115: 0 | AB115: 0 | AC115: Natural | AD115: 5 | AE115: ANTIOQUIA | AF115: 0 | AG115: 0 | AH115: MICRO | AI115: 5611 | AJ115: ALOJAMIENTO Y SERVICIOS DE COMIDA | AK115: 0 | AL115: 0 | AM115: 0 | AN115: 0 | AO115: 0 | AP115: 0 | AT115: =CONCATENATE(AU115,COUNTIF($AU$2:AU115,AU115)) -> 030 | AU115: 0 | AV115: 0 | AW115: 0 | AX115: 0 | AY115: =+(SUMIFS(Montos!$Y$2:$Y$396864,Montos!$R$2:$R$396864,Base!AZ115)/1000000) -> 0
B116: 66170 | C116: DOSQUEBRADAS | D116: 1 | E116: 0 | F116: Natural | G116: 66 | H116: RISARALDA | I116: Aprobado con subsidio | J116: 1 | K116: MICRO | L116: 4775 | M116: COMERCIO AL POR MAYOR Y AL POR MENOR; REPARACIÓN DE VEHÍCULOS AUTOMOTORES Y MOTOCICLETAS | N116: 0 | O116: 1 | P116: 0 | Q116: 1 | R116: 0 | S116: 0 | X116: 0 | Y116: 5001 | Z116: MEDELLÍN | AA116: 4 | AB116: 4 | AC116: Natural | AD116: 5 | AE116: ANTIOQUIA | AF116: Aprobado con subsidio | AG116: 8 | AH116: MICRO | AI116: 5613 | AJ116: ALOJAMIENTO Y SERVICIOS DE COMIDA | AK116: 3 | AL116: 1 | AM116: 0 | AN116: 2 | AO116: 2 | AP116: 0 | AT116: =CONCATENATE(AU116,COUNTIF($AU$2:AU116,AU116)) -> 031 | AU116: 0 | AV116: 0 | AW116: 0 | AX116: 0 | AY116: =+(SUMIFS(Montos!$Y$2:$Y$396864,Montos!$R$2:$R$396864,Base!AZ116)/1000000) -> 0
B117: 66170 | C117: DOSQUEBRADAS | D117: 7 | E117: 8 | F117: Natural | G117: 66 | H117: RISARALDA | I117: Aprobado con subsidio | J117: 15 | K117: PEQUEÑA | L117: 6910 | M117: ACTIVIDADES PROFESIONALES, CIENTÍFICAS Y TÉCNICAS | N117: 6 | O117: 1 | P117: 0 | Q117: 4 | R117: 3 | S117: 0 | X117: 0 | Y117: 5001 | Z117: MEDELLÍN | AA117: 0 | AB117: 0 | AC117: Natural | AD117: 5 | AE117: ANTIOQUIA | AF117: 0 | AG117: 0 | AH117: MICRO | AI117: 3110 | AJ117: INDUSTRIAS MANUFACTURERAS | AK117: 0 | AL117: 0 | AM117: 0 | AN117: 0 | AO117: 0 | AP117: 0 | AT117: =CONCATENATE(AU117,COUNTIF($AU$2:AU117,AU117)) -> 032 | AU117: 0 | AV117: 0 | AW117: 0 | AX117: 0 | AY117: =+(SUMIFS(Montos!$Y$2:$Y$396864,Montos!$R$2:$R$396864,Base!AZ117)/1000000) -> 0
B118: 66001 | C118: PEREIRA | D118: 9 | E118: 16 | F118: Natural | G118: 66 | H118: RISARALDA | I118: Aprobado con subsidio | J118: 25 | K118: PEQUEÑA | L118: 4754 | M118: COMERCIO AL POR MAYOR Y AL POR MENOR; REPARACIÓN DE VEHÍCULOS AUTOMOTORES Y MOTOCICLETAS | N118: 2 | O118: 7 | P118: 0 | Q118: 8 | R118: 1 | S118: 0 | X118: 0 | Y118: 5045 | Z118: APARTADÓ | AA118: 2 | AB118: 2 | AC118: Natural | AD118: 5 | AE118: ANTIOQUIA | AF118: Aprobado con subsidio | AG118: 4 | AH118: MICRO | AI118: 4769 | AJ118: COMERCIO AL POR MAYOR Y AL POR MENOR; REPARACIÓN DE VEHÍCULOS AUTOMOTORES Y MOTOCICLETAS | AK118: 2 | AL118: 0 | AM118: 0 | AN118: 1 | AO118: 1 | AP118: 0 | AT118: =CONCATENATE(AU118,COUNTIF($AU$2:AU118,AU118)) -> 033 | AU118: 0 | AV118: 0 | AW118: 0 | AX118: 0 | AY118: =+(SUMIFS(Montos!$Y$2:$Y$396864,Montos!$R$2:$R$396864,Base!AZ118)/1000000) -> 0
B119: 17777 | C119: SUPÍA | D119: 0 | E119: 0 | F119: Natural | G119: 17 | H119: CALDAS | I119: 0 | J119: 0 | K119: PEQUEÑA | L119: 4759 | M119: COMERCIO AL POR MAYOR Y AL POR MENOR; REPARACIÓN DE VEHÍCULOS AUTOMOTORES Y MOTOCICLETAS | N119: 0 | O119: 0 | P119: 0 | Q119: 0 | R119: 0 | S119: 0 | X119: 0 | Y119: 5212 | Z119: COPACABANA | AA119: 0 | AB119: 0 | AC119: Natural | AD119: 5 | AE119: ANTIOQUIA | AF119: 0 | AG119: 0 | AH119: MICRO | AI119: 4541 | AJ119: COMERCIO AL POR MAYOR Y AL POR MENOR; REPARACIÓN DE VEHÍCULOS AUTOMOTORES Y MOTOCICLETAS | AK119: 0 | AL119: 0 | AM119: 0 | AN119: 0 | AO119: 0 | AP119: 0 | AT119: =CONCATENATE(AU119,COUNTIF($AU$2:AU119,AU119)) -> 034 | AU119: 0 | AV119: 0 | AW119: 0 | AX119: 0 | AY119: =+(SUMIFS(Montos!$Y$2:$Y$396864,Montos!$R$2:$R$396864,Base!AZ119)/1000000) -> 0
B120: 19001 | C120: POPAYÁN | D120: 0 | E120: 0 | F120: Natural | G120: 19 | H120: CAUCA | I120: 0 | J120: 0 | K120: PEQUEÑA | L120: 4111 | M120: CONSTRUCCIÓN | N120: 0 | O120: 0 | P120: 0 | Q120: 0 | R120: 0 | S120: 0 | X120: 0 | Y120: 5631 | Z120: SABANETA | AA120: 0 | AB120: 0 | AC120: Natural | AD120: 5 | AE120: ANTIOQUIA | AF120: 0 | AG120: 0 | AH120: MICRO | AI120: 4752 | AJ120: COMERCIO AL POR MAYOR Y AL POR MENOR; REPARACIÓN DE VEHÍCULOS AUTOMOTORES Y MOTOCICLETAS | AK120: 0 | AL120: 0 | AM120: 0 | AN120: 0 | AO120: 0 | AP120: 0 | AT120: =CONCATENATE(AU120,COUNTIF($AU$2:AU120,AU120)) -> 035 | AU120: 0 | AV120: 0 | AW120: 0 | AX120: 0 | AY120: =+(SUMIFS(Montos!$Y$2:$Y$396864,Montos!$R$2:$R$396864,Base!AZ120)/1000000) -> 0
B121: 18205 | C121: CURILLO | D121: 19 | E121: 15 | F121: Natural | G121: 18 | H121: CAQUETÁ | I121: Aprobado con subsidio | J121: 34 | K121: PEQUEÑA | L121: 1040 | M121: INDUSTRIAS MANUFACTURERAS | N121: 6 | O121: 13 | P121: 0 | Q121: 11 | R121: 3 | S121: 5 | X121: 0 | Y121: 5001 | Z121: MEDELLÍN | AA121: 2 | AB121: 4 | AC121: Natural | AD121: 5 | AE121: ANTIOQUIA | AF121: Aprobado con subsidio | AG121: 6 | AH121: MICRO | AI121: 8110 | AJ121: ACTIVIDADES DE SERVICIOS ADMINISTRATIVOS Y DE APOYO | AK121: 0 | AL121: 2 | AM121: 0 | AN121: 0 | AO121: 0 | AP121: 2 | AT121: =CONCATENATE(AU121,COUNTIF($AU$2:AU121,AU121)) -> 036 | AU121: 0 | AV121: 0 | AW121: 0 | AX121: 0 | AY121: =+(SUMIFS(Montos!$Y$2:$Y$396864,Montos!$R$2:$R$396864,Base!AZ121)/1000000) -> 0
B122: 19001 | C122: POPAYÁN | D122: 3 | E122: 0 | F122: Natural | G122: 19 | H122: CAUCA | I122: Aprobado con subsidio | J122: 3 | K122: MICRO | L122: 8559 | M122: EDUCACIÓN | N122: 1 | O122: 2 | P122: 0 | Q122: 0 | R122: 1 | S122: 2 | X122: 0 | Y122: 5154 | Z122: CAUCASIA | AA122: 3 | AB122: 1 | AC122: Natural | AD122: 5 | AE122: ANTIOQUIA | AF122: Aprobado con subsidio | AG122: 4 | AH122: MICRO | AI122: 141 | AJ122: AGRICULTURA, GANADERÍA, CAZA, SILVICULTURA Y PESCA | AK122: 0 | AL122: 3 | AM122: 0 | AN122: 1 | AO122: 0 | AP122: 2 | AT122: =CONCATENATE(AU122,COUNTIF($AU$2:AU122,AU122)) -> 037 | AU122: 0 | AV122: 0 | AW122: 0 | AX122: 0 | AY122: =+(SUMIFS(Montos!$Y$2:$Y$396864,Montos!$R$2:$R$396864,Base!AZ122)/1000000) -> 0
B123: 19698 | C123: SANTANDER DE QUILICHAO | D123: 0 | E123: 0 | F123: Natural | G123: 19 | H123: CAUCA | I123: 0 | J123: 0 | K123: MICRO | L123: 4719 | M123: COMERCIO AL POR MAYOR Y AL POR MENOR; REPARACIÓN DE VEHÍCULOS AUTOMOTORES Y MOTOCICLETAS | N123: 0 | O123: 0 | P123: 0 | Q123: 0 | R123: 0 | S123: 0 | X123: 0 | Y123: 5318 | Z123: GUARNE | AA123: 1 | AB123: 3 | AC123: Natural | AD123: 5 | AE123: ANTIOQUIA | AF123: Aprobado con subsidio | AG123: 4 | AH123: MICRO | AI123: 4620 | AJ123: COMERCIO AL POR MAYOR Y AL POR MENOR; REPARACIÓN DE VEHÍCULOS AUTOMOTORES Y MOTOCICLETAS | AK123: 1 | AL123: 0 | AM123: 0 | AN123: 1 | AO123: 0 | AP123: 0 | AT123: =CONCATENATE(AU123,COUNTIF($AU$2:AU123,AU123)) -> 038 | AU123: 0 | AV123: 0 | AW123: 0 | AX123: 0 | AY123: =+(SUMIFS(Montos!$Y$2:$Y$396864,Montos!$R$2:$R$396864,Base!AZ123)/1000000) -> 0
B124: 76001 | C124: CALI | D124: 5 | E124: 0 | F124: Natural | G124: 76 | H124: VALLE DEL CAUCA | I124: Aprobado con subsidio | J124: 5 | K124: MICRO | L124: 4752 | M124: COMERCIO AL POR MAYOR Y AL POR MENOR; REPARACIÓN DE VEHÍCULOS AUTOMOTORES Y MOTOCICLETAS | N124: 5 | O124: 0 | P124: 0 | Q124: 5 | R124: 0 | S124: 0 | X124: 0 | Y124: 5001 | Z124: MEDELLÍN | AA124: 0 | AB124: 0 | AC124: Natural | AD124: 5 | AE124: ANTIOQUIA | AF124: 0 | AG124: 0 | AH124: MICRO | AI124: 4530 | AJ124: COMERCIO AL POR MAYOR Y AL POR MENOR; REPARACIÓN DE VEHÍCULOS AUTOMOTORES Y MOTOCICLETAS | AK124: 0 | AL124: 0 | AM124: 0 | AN124: 0 | AO124: 0 | AP124: 0 | AT124: =CONCATENATE(AU124,COUNTIF($AU$2:AU124,AU124)) -> 039 | AU124: 0 | AV124: 0 | AW124: 0 | AX124: 0 | AY124: =+(SUMIFS(Montos!$Y$2:$Y$396864,Montos!$R$2:$R$396864,Base!AZ124)/1000000) -> 0
B125: 76001 | C125: CALI | D125: 0 | E125: 0 | F125: Natural | G125: 76 | H125: VALLE DEL CAUCA | I125: 0 | J125: 0 | K125: MICRO | L125: 7730 | M125: ACTIVIDADES DE SERVICIOS ADMINISTRATIVOS Y DE APOYO | N125: 0 | O125: 0 | P125: 0 | Q125: 0 | R125: 0 | S125: 0 | X125: 0 | Y125: 5001 | Z125: MEDELLÍN | AA125: 1 | AB125: 2 | AC125: Natural | AD125: 5 | AE125: ANTIOQUIA | AF125: Aprobado con subsidio | AG125: 3 | AH125: PEQUEÑA | AI125: 4774 | AJ125: COMERCIO AL POR MAYOR Y AL POR MENOR; REPARACIÓN DE VEHÍCULOS AUTOMOTORES Y MOTOCICLETAS | AK125: 1 | AL125: 0 | AM125: 0 | AN125: 1 | AO125: 0 | AP125: 0 | AT125: =CONCATENATE(AU125,COUNTIF($AU$2:AU125,AU125)) -> 040 | AU125: 0 | AV125: 0 | AW125: 0 | AX125: 0 | AY125: =+(SUMIFS(Montos!$Y$2:$Y$396864,Montos!$R$2:$R$396864,Base!AZ125)/1000000) -> 0
B126: 41807 | C126: TIMANÁ | D126: 0 | E126: 0 | F126: Natural | G126: 41 | H126: HUILA | I126: 0 | J126: 0 | K126: PEQUEÑA | L126: 4711 | M126: COMERCIO AL POR MAYOR Y AL POR MENOR; REPARACIÓN DE VEHÍCULOS AUTOMOTORES Y MOTOCICLETAS | N126: 0 | O126: 0 | P126: 0 | Q126: 0 | R126: 0 | S126: 0 | X126: 0 | Y126: 5001 | Z126: MEDELLÍN | AA126: 0 | AB126: 0 | AC126: Natural | AD126: 5 | AE126: ANTIOQUIA | AF126: 0 | AG126: 0 | AH126: MICRO | AI126: 1313 | AJ126: INDUSTRIAS MANUFACTURERAS | AK126: 0 | AL126: 0 | AM126: 0 | AN126: 0 | AO126: 0 | AP126: 0 | AT126: =CONCATENATE(AU126,COUNTIF($AU$2:AU126,AU126)) -> 041 | AU126: 0 | AV126: 0 | AW126: 0 | AX126: 0 | AY126: =+(SUMIFS(Montos!$Y$2:$Y$396864,Montos!$R$2:$R$396864,Base!AZ126)/1000000) -> 0
B127: 41001 | C127: NEIVA | D127: 46 | E127: 106 | F127: Natural | G127: 41 | H127: HUILA | I127: Aprobado con subsidio | J127: 152 | K127: PEQUEÑA | L127: 4752 | M127: COMERCIO AL POR MAYOR Y AL POR MENOR; REPARACIÓN DE VEHÍCULOS AUTOMOTORES Y MOTOCICLETAS | N127: 1 | O127: 45 | P127: 0 | Q127: 18 | R127: 1 | S127: 27 | X127: 0 | Y127: 5001 | Z127: MEDELLÍN | AA127: 3 | AB127: 1 | AC127: Natural | AD127: 5 | AE127: ANTIOQUIA | AF127: Aprobado con subsidio | AG127: 4 | AH127: MICRO | AI127: 1081 | AJ127: INDUSTRIAS MANUFACTURERAS | AK127: 0 | AL127: 3 | AM127: 0 | AN127: 2 | AO127: 0 | AP127: 1 | AT127: =CONCATENATE(AU127,COUNTIF($AU$2:AU127,AU127)) -> 042 | AU127: 0 | AV127: 0 | AW127: 0 | AX127: 0 | AY127: =+(SUMIFS(Montos!$Y$2:$Y$396864,Montos!$R$2:$R$396864,Base!AZ127)/1000000) -> 0
B128: 41001 | C128: NEIVA | D128: 1 | E128: 8 | F128: Natural | G128: 41 | H128: HUILA | I128: Aprobado con subsidio | J128: 9 | K128: PEQUEÑA | L128: 4711 | M128: COMERCIO AL POR MAYOR Y AL POR MENOR; REPARACIÓN DE VEHÍCULOS AUTOMOTORES Y MOTOCICLETAS | N128: 1 | O128: 0 | P128: 0 | Q128: 1 | R128: 0 | S128: 0 | X128: 0 | Y128: 5001 | Z128: MEDELLÍN | AA128: 0 | AB128: 0 | AC128: Natural | AD128: 5 | AE128: ANTIOQUIA | AF128: 0 | AG128: 0 | AH128: MICRO | AI128: 1051 | AJ128: INDUSTRIAS MANUFACTURERAS | AK128: 0 | AL128: 0 | AM128: 0 | AN128: 0 | AO128: 0 | AP128: 0 | AT128: =CONCATENATE(AU128,COUNTIF($AU$2:AU128,AU128)) -> 043 | AU128: 0 | AV128: 0 | AW128: 0 | AX128: 0 | AY128: =+(SUMIFS(Montos!$Y$2:$Y$396864,Montos!$R$2:$R$396864,Base!AZ128)/1000000) -> 0
B129: 41551 | C129: PITALITO | D129: 2 | E129: 3 | F129: Natural | G129: 41 | H129: HUILA | I129: Aprobado con subsidio | J129: 5 | K129: MICRO | L129: 4754 | M129: COMERCIO AL POR MAYOR Y AL POR MENOR; REPARACIÓN DE VEHÍCULOS AUTOMOTORES Y MOTOCICLETAS | N129: 1 | O129: 1 | P129: 0 | Q129: 1 | R129: 1 | S129: 0 | X129: 0 | Y129: 5059 | Z129: ARMENIA | AA129: 0 | AB129: 0 | AC129: Natural | AD129: 5 | AE129: ANTIOQUIA | AF129: 0 | AG129: 0 | AH129: MICRO | AI129: 4721 | AJ129: COMERCIO AL POR MAYOR Y AL POR MENOR; REPARACIÓN DE VEHÍCULOS AUTOMOTORES Y MOTOCICLETAS | AK129: 0 | AL129: 0 | AM129: 0 | AN129: 0 | AO129: 0 | AP129: 0 | AT129: =CONCATENATE(AU129,COUNTIF($AU$2:AU129,AU129)) -> 044 | AU129: 0 | AV129: 0 | AW129: =+SUMIFS($AA$2:$AA$399999,$Z$2:$Z$399999,AZ129,$AF$2:$AF$399999,"Aprobado con subsidio") -> 0 | AX129: 0 | AY129: =+(SUMIFS(Montos!$Y$2:$Y$396864,Montos!$R$2:$R$396864,Base!AZ129)/1000000) -> 0
B130: 41551 | C130: PITALITO | D130: 2 | E130: 0 | F130: Natural | G130: 41 | H130: HUILA | I130: Aprobado con subsidio | J130: 2 | K130: MICRO | L130: 4620 | M130: COMERCIO AL POR MAYOR Y AL POR MENOR; REPARACIÓN DE VEHÍCULOS AUTOMOTORES Y MOTOCICLETAS | N130: 1 | O130: 1 | P130: 0 | Q130: 2 | R130: 0 | S130: 0 | X130: 0 | Y130: 5045 | Z130: APARTADÓ | AA130: 32 | AB130: 43 | AC130: Natural | AD130: 5 | AE130: ANTIOQUIA | AF130: Aprobado con subsidio | AG130: 75 | AH130: PEQUEÑA | AI130: 1089 | AJ130: INDUSTRIAS MANUFACTURERAS | AK130: 28 | AL130: 4 | AM130: 0 | AN130: 32 | AO130: 0 | AP130: 0 | AT130: =CONCATENATE(AU130,COUNTIF($AU$2:AU130,AU130)) -> 045 | AU130: 0 | AV130: 0 | AW130: =+SUMIFS($AA$2:$AA$399999,$Z$2:$Z$399999,AZ130,$AF$2:$AF$399999,"Aprobado con subsidio") -> 0 | AX130: 0 | AY130: =+(SUMIFS(Montos!$Y$2:$Y$396864,Montos!$R$2:$R$396864,Base!AZ130)/1000000) -> 0
B131: 54498 | C131: OCAÑA | D131: 2 | E131: 6 | F131: Natural | G131: 54 | H131: NORTE DE SANTANDER | I131: Aprobado con subsidio | J131: 8 | K131: MICRO | L131: 4541 | M131: COMERCIO AL POR MAYOR Y AL POR MENOR; REPARACIÓN DE VEHÍCULOS AUTOMOTORES Y MOTOCICLETAS | N131: 1 | O131: 1 | P131: 0 | Q131: 2 | R131: 0 | S131: 0 | X131: 0 | Y131: 5001 | Z131: MEDELLÍN | AA131: 0 | AB131: 0 | AC131: Natural | AD131: 5 | AE131: ANTIOQUIA | AF131: Aprobado con subsidio | AG131: 0 | AH131: MICRO | AI131: 1081 | AJ131: INDUSTRIAS MANUFACTURERAS | AK131: 0 | AL131: 0 | AM131: 0 | AN131: 0 | AO131: 0 | AP131: 0
B132: 20011 | C132: AGUACHICA | D132: 0 | E132: 0 | F132: Natural | G132: 20 | H132: CESAR | I132: 0 | J132: 0 | K132: MICRO | L132: 4759 | M132: COMERCIO AL POR MAYOR Y AL POR MENOR; REPARACIÓN DE VEHÍCULOS AUTOMOTORES Y MOTOCICLETAS | N132: 0 | O132: 0 | P132: 0 | Q132: 0 | R132: 0 | S132: 0 | X132: 0 | Y132: 5001 | Z132: MEDELLÍN | AA132: 1 | AB132: 4 | AC132: Natural | AD132: 5 | AE132: ANTIOQUIA | AF132: Aprobado con subsidio | AG132: 5 | AH132: MICRO | AI132: 5611 | AJ132: ALOJAMIENTO Y SERVICIOS DE COMIDA | AK132: 1 | AL132: 0 | AM132: 0 | AN132: 1 | AO132: 0 | AP132: 0
B133: 52001 | C133: PASTO | D133: 0 | E133: 0 | F133: Natural | G133: 52 | H133: NARIÑO | I133: 0 | J133: 0 | K133: MICRO | L133: 4530 | M133: COMERCIO AL POR MAYOR Y AL POR MENOR; REPARACIÓN DE VEHÍCULOS AUTOMOTORES Y MOTOCICLETAS | N133: 0 | O133: 0 | P133: 0 | Q133: 0 | R133: 0 | S133: 0 | X133: 0 | Y133: 5030 | Z133: AMAGÁ | AA133: 0 | AB133: 0 | AC133: Natural | AD133: 5 | AE133: ANTIOQUIA | AF133: 0 | AG133: 0 | AH133: PEQUEÑA | AI133: 4661 | AJ133: COMERCIO AL POR MAYOR Y AL POR MENOR; REPARACIÓN DE VEHÍCULOS AUTOMOTORES Y MOTOCICLETAS | AK133: 0 | AL133: 0 | AM133: 0 | AN133: 0 | AO133: 0 | AP133: 0
B134: 52001 | C134: PASTO | D134: 0 | E134: 0 | F134: Natural | G134: 52 | H134: NARIÑO | I134: 0 | J134: 0 | K134: MICRO | L134: 4752 | M134: COMERCIO AL POR MAYOR Y AL POR MENOR; REPARACIÓN DE VEHÍCULOS AUTOMOTORES Y MOTOCICLETAS | N134: 0 | O134: 0 | P134: 0 | Q134: 0 | R134: 0 | S134: 0 | X134: 0 | Y134: 5001 | Z134: MEDELLÍN | AA134: 0 | AB134: 0 | AC134: Natural | AD134: 5 | AE134: ANTIOQUIA | AF134: 0 | AG134: 0 | AH134: PEQUEÑA | AI134: 5611 | AJ134: ALOJAMIENTO Y SERVICIOS DE COMIDA | AK134: 0 | AL134: 0 | AM134: 0 | AN134: 0 | AO134: 0 | AP134: 0
B135: 52001 | C135: PASTO | D135: 0 | E135: 0 | F135: Natural | G135: 52 | H135: NARIÑO | I135: 0 | J135: 0 | K135: MICRO | L135: 5512 | M135: ALOJAMIENTO Y SERVICIOS DE COMIDA | N135: 0 | O135: 0 | P135: 0 | Q135: 0 | R135: 0 | S135: 0 | X135: 0 | Y135: 5001 | Z135: MEDELLÍN | AA135: 0 | AB135: 0 | AC135: Natural | AD135: 5 | AE135: ANTIOQUIA | AF135: 0 | AG135: 0 | AH135: PEQUEÑA | AI135: 4290 | AJ135: CONSTRUCCIÓN | AK135: 0 | AL135: 0 | AM135: 0 | AN135: 0 | AO135: 0 | AP135: 0
B136: 52317 | C136: GUACHUCAL | D136: 2 | E136: 0 | F136: Natural | G136: 52 | H136: NARIÑO | I136: Aprobado con subsidio | J136: 2 | K136: PEQUEÑA | L136: 4731 | M136: COMERCIO AL POR MAYOR Y AL POR MENOR; REPARACIÓN DE VEHÍCULOS AUTOMOTORES Y MOTOCICLETAS | N136: 0 | O136: 2 | P136: 0 | Q136: 2 | R136: 0 | S136: 0 | X136: 0 | Y136: 5001 | Z136: MEDELLÍN | AA136: 17 | AB136: 2 | AC136: Natural | AD136: 5 | AE136: ANTIOQUIA | AF136: Aprobado con subsidio | AG136: 19 | AH136: MICRO | AI136: 1410 | AJ136: INDUSTRIAS MANUFACTURERAS | AK136: 15 | AL136: 2 | AM136: 0 | AN136: 4 | AO136: 13 | AP136: 0
B137: 52001 | C137: PASTO | D137: 0 | E137: 0 | F137: Natural | G137: 52 | H137: NARIÑO | I137: 0 | J137: 0 | K137: MICRO | L137: 4731 | M137: COMERCIO AL POR MAYOR Y AL POR MENOR; REPARACIÓN DE VEHÍCULOS AUTOMOTORES Y MOTOCICLETAS | N137: 0 | O137: 0 | P137: 0 | Q137: 0 | R137: 0 | S137: 0 | X137: 0 | Y137: 5264 | Z137: ENTRERRIOS | AA137: 1 | AB137: 3 | AC137: Natural | AD137: 5 | AE137: ANTIOQUIA | AF137: Aprobado con subsidio | AG137: 4 | AH137: MICRO | AI137: 6920 | AJ137: ACTIVIDADES PROFESIONALES, CIENTÍFICAS Y TÉCNICAS | AK137: 1 | AL137: 0 | AM137: 0 | AN137: 1 | AO137: 0 | AP137: 0
B138: 52001 | C138: PASTO | D138: 0 | E138: 0 | F138: Natural | G138: 52 | H138: NARIÑO | I138: 0 | J138: 0 | K138: MICRO | L138: 7500 | M138: ACTIVIDADES PROFESIONALES, CIENTÍFICAS Y TÉCNICAS | N138: 0 | O138: 0 | P138: 0 | Q138: 0 | R138: 0 | S138: 0 | X138: 0 | Y138: 5001 | Z138: MEDELLÍN | AA138: 9 | AB138: 7 | AC138: Natural | AD138: 5 | AE138: ANTIOQUIA | AF138: Aprobado con subsidio | AG138: 16 | AH138: MICRO | AI138: 5612 | AJ138: ALOJAMIENTO Y SERVICIOS DE COMIDA | AK138: 9 | AL138: 0 | AM138: 0 | AN138: 4 | AO138: 5 | AP138: 0
B139: 52560 | C139: POTOSÍ | D139: 7 | E139: 4 | F139: Natural | G139: 52 | H139: NARIÑO | I139: Aprobado con subsidio | J139: 11 | K139: MICRO | L139: 1040 | M139: INDUSTRIAS MANUFACTURERAS | N139: 2 | O139: 5 | P139: 0 | Q139: 6 | R139: 1 | S139: 0 | X139: 0 | Y139: 5266 | Z139: ENVIGADO | AA139: 0 | AB139: 0 | AC139: Natural | AD139: 5 | AE139: ANTIOQUIA | AF139: 0 | AG139: 0 | AH139: MICRO | AI139: 1081 | AJ139: INDUSTRIAS MANUFACTURERAS | AK139: 0 | AL139: 0 | AM139: 0 | AN139: 0 | AO139: 0 | AP139: 0
B140: 52683 | C140: SANDONÁ | D140: 2 | E140: 2 | F140: Natural | G140: 52 | H140: NARIÑO | I140: Aprobado con subsidio | J140: 4 | K140: MICRO | L140: 4711 | M140: COMERCIO AL POR MAYOR Y AL POR MENOR; REPARACIÓN DE VEHÍCULOS AUTOMOTORES Y MOTOCICLETAS | N140: 1 | O140: 1 | P140: 0 | Q140: 0 | R140: 1 | S140: 1 | X140: 0 | Y140: 5360 | Z140: ITAGUI | AA140: 6 | AB140: 6 | AC140: Natural | AD140: 5 | AE140: ANTIOQUIA | AF140: Aprobado con subsidio | AG140: 12 | AH140: PEQUEÑA | AI140: 8121 | AJ140: ACTIVIDADES DE SERVICIOS ADMINISTRATIVOS Y DE APOYO | AK140: 5 | AL140: 1 | AM140: 0 | AN140: 1 | AO140: 5 | AP140: 0
B141: 54001 | C141: CÚCUTA | D141: 1 | E141: 8 | F141: Natural | G141: 54 | H141: NORTE DE SANTANDER | I141: Aprobado con subsidio | J141: 9 | K141: MICRO | L141: 2599 | M141: INDUSTRIAS MANUFACTURERAS | N141: 0 | O141: 1 | P141: 0 | Q141: 1 | R141: 0 | S141: 0 | X141: 0 | Y141: 5615 | Z141: RIONEGRO | AA141: 5 | AB141: 3 | AC141: Natural | AD141: 5 | AE141: ANTIOQUIA | AF141: Aprobado con subsidio | AG141: 8 | AH141: MICRO | AI141: 5511 | AJ141: ALOJAMIENTO Y SERVICIOS DE COMIDA | AK141: 3 | AL141: 2 | AM141: 0 | AN141: 1 | AO141: 3 | AP141: 1
B142: 54001 | C142: CÚCUTA | D142: 1 | E142: 5 | F142: Natural | G142: 54 | H142: NORTE DE SANTANDER | I142: Aprobado con subsidio | J142: 6 | K142: MICRO | L142: 4923 | M142: TRANSPORTE Y ALMACENAMIENTO | N142: 0 | O142: 1 | P142: 0 | Q142: 1 | R142: 0 | S142: 0 | X142: 0 | Y142: 5264 | Z142: ENTRERRIOS | AA142: 3 | AB142: 5 | AC142: Natural | AD142: 5 | AE142: ANTIOQUIA | AF142: Aprobado con subsidio | AG142: 8 | AH142: MICRO | AI142: 141 | AJ142: AGRICULTURA, GANADERÍA, CAZA, SILVICULTURA Y PESCA | AK142: 1 | AL142: 2 | AM142: 0 | AN142: 3 | AO142: 0 | AP142: 0
B143: 54498 | C143: OCAÑA | D143: 0 | E143: 0 | F143: Natural | G143: 54 | H143: NORTE DE SANTANDER | I143: 0 | J143: 0 | K143: MICRO | L143: 4923 | M143: TRANSPORTE Y ALMACENAMIENTO | N143: 0 | O143: 0 | P143: 0 | Q143: 0 | R143: 0 | S143: 0 | X143: 0 | Y143: 5001 | Z143: MEDELLÍN | AA143: 5 | AB143: 0 | AC143: Natural | AD143: 5 | AE143: ANTIOQUIA | AF143: Aprobado con subsidio | AG143: 5 | AH143: MICRO | AI143: 4541 | AJ143: COMERCIO AL POR MAYOR Y AL POR MENOR; REPARACIÓN DE VEHÍCULOS AUTOMOTORES Y MOTOCICLETAS | AK143: 1 | AL143: 4 | AM143: 0 | AN143: 2 | AO143: 1 | AP143: 2
B144: 54518 | C144: PAMPLONA | D144: 16 | E144: 16 | F144: Natural | G144: 54 | H144: NORTE DE SANTANDER | I144: Aprobado con subsidio | J144: 32 | K144: PEQUEÑA | L144: 5611 | M144: ALOJAMIENTO Y SERVICIOS DE COMIDA | N144: 10 | O144: 6 | P144: 0 | Q144: 16 | R144: 0 | S144: 0 | X144: 0 | Y144: 5001 | Z144: MEDELLÍN | AA144: 0 | AB144: 0 | AC144: Natural | AD144: 5 | AE144: ANTIOQUIA | AF144: 0 | AG144: 0 | AH144: MICRO | AI144: 4771 | AJ144: COMERCIO AL POR MAYOR Y AL POR MENOR; REPARACIÓN DE VEHÍCULOS AUTOMOTORES Y MOTOCICLETAS | AK144: 0 | AL144: 0 | AM144: 0 | AN144: 0 | AO144: 0 | AP144: 0
B145: 54001 | C145: CÚCUTA | D145: 1 | E145: 1 | F145: Natural | G145: 54 | H145: NORTE DE SANTANDER | I145: Aprobado con subsidio | J145: 2 | K145: MICRO | L145: 4752 | M145: COMERCIO AL POR MAYOR Y AL POR MENOR; REPARACIÓN DE VEHÍCULOS AUTOMOTORES Y MOTOCICLETAS | N145: 0 | O145: 1 | P145: 0 | Q145: 0 | R145: 0 | S145: 1 | X145: 0 | Y145: 5001 | Z145: MEDELLÍN | AA145: 1 | AB145: 0 | AC145: Natural | AD145: 5 | AE145: ANTIOQUIA | AF145: Aprobado con subsidio | AG145: 1 | AH145: MICRO | AI145: 4752 | AJ145: COMERCIO AL POR MAYOR Y AL POR MENOR; REPARACIÓN DE VEHÍCULOS AUTOMOTORES Y MOTOCICLETAS | AK145: 0 | AL145: 1 | AM145: 0 | AN145: 0 | AO145: 0 | AP145: 1
B146: 68001 | C146: BUCARAMANGA | D146: 1 | E146: 1 | F146: Natural | G146: 68 | H146: SANTANDER | I146: Aprobado con subsidio | J146: 2 | K146: PEQUEÑA | L146: 1610 | M146: INDUSTRIAS MANUFACTURERAS | N146: 0 | O146: 1 | P146: 0 | Q146: 1 | R146: 0 | S146: 0 | X146: 0 | Y146: 5376 | Z146: LA CEJA | AA146: 4 | AB146: 2 | AC146: Natural | AD146: 5 | AE146: ANTIOQUIA | AF146: Aprobado con subsidio | AG146: 6 | AH146: PEQUEÑA | AI146: 5611 | AJ146: ALOJAMIENTO Y SERVICIOS DE COMIDA | AK146: 2 | AL146: 2 | AM146: 0 | AN146: 3 | AO146: 1 | AP146: 0
B147: 11001 | C147: BOGOTÁ, D.C. | D147: 0 | E147: 0 | F147: Natural | G147: 11 | H147: BOGOTÁ, D.C. | I147: 0 | J147: 0 | K147: MICRO | L147: 1410 | M147: INDUSTRIAS MANUFACTURERAS | N147: 0 | O147: 0 | P147: 0 | Q147: 0 | R147: 0 | S147: 0 | X147: 0 | Y147: 5656 | Z147: SAN JERÓNIMO | AA147: 2 | AB147: 0 | AC147: Natural | AD147: 5 | AE147: ANTIOQUIA | AF147: Aprobado con subsidio | AG147: 2 | AH147: MICRO | AI147: 4759 | AJ147: COMERCIO AL POR MAYOR Y AL POR MENOR; REPARACIÓN DE VEHÍCULOS AUTOMOTORES Y MOTOCICLETAS | AK147: 1 | AL147: 1 | AM147: 0 | AN147: 1 | AO147: 1 | AP147: 0
B148: 11001 | C148: BOGOTÁ, D.C. | D148: 0 | E148: 0 | F148: Natural | G148: 11 | H148: BOGOTÁ, D.C. | I148: 0 | J148: 0 | K148: MICRO | L148: 4773 | M148: COMERCIO AL POR MAYOR Y AL POR MENOR; REPARACIÓN DE VEHÍCULOS AUTOMOTORES Y MOTOCICLETAS | N148: 0 | O148: 0 | P148: 0 | Q148: 0 | R148: 0 | S148: 0 | X148: 0 | Y148: 5628 | Z148: SABANALARGA | AA148: 4 | AB148: 0 | AC148: Natural | AD148: 5 | AE148: ANTIOQUIA | AF148: Aprobado con subsidio | AG148: 4 | AH148: MICRO | AI148: 4719 | AJ148: COMERCIO AL POR MAYOR Y AL POR MENOR; REPARACIÓN DE VEHÍCULOS AUTOMOTORES Y MOTOCICLETAS | AK148: 4 | AL148: 0 | AM148: 0 | AN148: 1 | AO148: 3 | AP148: 0
B149: 68001 | C149: BUCARAMANGA | D149: 3 | E149: 2 | F149: Natural | G149: 68 | H149: SANTANDER | I149: Aprobado con subsidio | J149: 5 | K149: MICRO | L149: 4774 | M149: COMERCIO AL POR MAYOR Y AL POR MENOR; REPARACIÓN DE VEHÍCULOS AUTOMOTORES Y MOTOCICLETAS | N149: 3 | O149: 0 | P149: 0 | Q149: 3 | R149: 0 | S149: 0 | X149: 0 | Y149: 5088 | Z149: BELLO | AA149: 0 | AB149: 0 | AC149: Natural | AD149: 5 | AE149: ANTIOQUIA | AF149: 0 | AG149: 0 | AH149: PEQUEÑA | AI149: 8530 | AJ149: EDUCACIÓN | AK149: 0 | AL149: 0 | AM149: 0 | AN149: 0 | AO149: 0 | AP149: 0
B150: 68001 | C150: BUCARAMANGA | D150: 0 | E150: 0 | F150: Natural | G150: 68 | H150: SANTANDER | I150: 0 | J150: 0 | K150: MICRO | L150: 4729 | M150: COMERCIO AL POR MAYOR Y AL POR MENOR; REPARACIÓN DE VEHÍCULOS AUTOMOTORES Y MOTOCICLETAS | N150: 0 | O150: 0 | P150: 0 | Q150: 0 | R150: 0 | S150: 0 | X150: 0 | Y150: 5360 | Z150: ITAGUI | AA150: 2 | AB150: 6 | AC150: Natural | AD150: 5 | AE150: ANTIOQUIA | AF150: Aprobado con subsidio | AG150: 8 | AH150: PEQUEÑA | AI150: 4771 | AJ150: COMERCIO AL POR MAYOR Y AL POR MENOR; REPARACIÓN DE VEHÍCULOS AUTOMOTORES Y MOTOCICLETAS | AK150: 2 | AL150: 0 | AM150: 0 | AN150: 2 | AO150: 0 | AP150: 0
B151: 68307 | C151: GIRÓN | D151: 0 | E151: 0 | F151: Natural | G151: 68 | H151: SANTANDER | I151: 0 | J151: 0 | K151: PEQUEÑA | L151: 8513 | M151: EDUCACIÓN | N151: 0 | O151: 0 | P151: 0 | Q151: 0 | R151: 0 | S151: 0 | X151: 0 | Y151: 5360 | Z151: ITAGUI | AA151: 0 | AB151: 0 | AC151: Natural | AD151: 5 | AE151: ANTIOQUIA | AF151: 0 | AG151: 0 | AH151: PEQUEÑA | AI151: 1020 | AJ151: INDUSTRIAS MANUFACTURERAS | AK151: 0 | AL151: 0 | AM151: 0 | AN151: 0 | AO151: 0 | AP151: 0
B152: 11001 | C152: BOGOTÁ, D.C. | D152: 15 | E152: 19 | F152: Natural | G152: 11 | H152: BOGOTÁ, D.C. | I152: Aprobado con subsidio | J152: 34 | K152: MICRO | L152: 4732 | M152: COMERCIO AL POR MAYOR Y AL POR MENOR; REPARACIÓN DE VEHÍCULOS AUTOMOTORES Y MOTOCICLETAS | N152: 7 | O152: 8 | P152: 0 | Q152: 4 | R152: 5 | S152: 6 | X152: 0 | Y152: 5480 | Z152: MUTATÁ | AA152: 0 | AB152: 0 | AC152: Natural | AD152: 5 | AE152: ANTIOQUIA | AF152: 0 | AG152: 0 | AH152: MICRO | AI152: 4752 | AJ152: COMERCIO AL POR MAYOR Y AL POR MENOR; REPARACIÓN DE VEHÍCULOS AUTOMOTORES Y MOTOCICLETAS | AK152: 0 | AL152: 0 | AM152: 0 | AN152: 0 | AO152: 0 | AP152: 0
B153: 54001 | C153: CÚCUTA | D153: 2 | E153: 2 | F153: Natural | G153: 54 | H153: NORTE DE SANTANDER | I153: Aprobado con subsidio | J153: 4 | K153: MICRO | L153: 1410 | M153: INDUSTRIAS MANUFACTURERAS | N153: 1 | O153: 1 | P153: 0 | Q153: 2 | R153: 0 | S153: 0 | X153: 0 | Y153: 5001 | Z153: MEDELLÍN | AA153: 0 | AB153: 0 | AC153: Natural | AD153: 5 | AE153: ANTIOQUIA | AF153: 0 | AG153: 0 | AH153: MICRO | AI153: 4754 | AJ153: COMERCIO AL POR MAYOR Y AL POR MENOR; REPARACIÓN DE VEHÍCULOS AUTOMOTORES Y MOTOCICLETAS | AK153: 0 | AL153: 0 | AM153: 0 | AN153: 0 | AO153: 0 | AP153: 0
B154: 68001 | C154: BUCARAMANGA | D154: 2 | E154: 0 | F154: Natural | G154: 68 | H154: SANTANDER | I154: Aprobado con subsidio | J154: 2 | K154: MICRO | L154: 7420 | M154: ACTIVIDADES PROFESIONALES, CIENTÍFICAS Y TÉCNICAS | N154: 0 | O154: 2 | P154: 0 | Q154: 1 | R154: 0 | S154: 1 | X154: 0 | Y154: 5001 | Z154: MEDELLÍN | AA154: 4 | AB154: 0 | AC154: Natural | AD154: 5 | AE154: ANTIOQUIA | AF154: Aprobado con subsidio | AG154: 4 | AH154: MICRO | AI154: 4761 | AJ154: COMERCIO AL POR MAYOR Y AL POR MENOR; REPARACIÓN DE VEHÍCULOS AUTOMOTORES Y MOTOCICLETAS | AK154: 3 | AL154: 1 | AM154: 0 | AN154: 0 | AO154: 3 | AP154: 1
B155: 68547 | C155: PIEDECUESTA | D155: 0 | E155: 0 | F155: Natural | G155: 68 | H155: SANTANDER | I155: 0 | J155: 0 | K155: MICRO | L155: 1410 | M155: INDUSTRIAS MANUFACTURERAS | N155: 0 | O155: 0 | P155: 0 | Q155: 0 | R155: 0 | S155: 0 | X155: 0 | Y155: 5001 | Z155: MEDELLÍN | AA155: 1 | AB155: 5 | AC155: Natural | AD155: 5 | AE155: ANTIOQUIA | AF155: Aprobado con subsidio | AG155: 6 | AH155: MICRO | AI155: 5613 | AJ155: ALOJAMIENTO Y SERVICIOS DE COMIDA | AK155: 1 | AL155: 0 | AM155: 0 | AN155: 1 | AO155: 0 | AP155: 0
B156: 68081 | C156: BARRANCABERMEJA | D156: 0 | E156: 0 | F156: Natural | G156: 68 | H156: SANTANDER | I156: 0 | J156: 0 | K156: MICRO | L156: 4731 | M156: COMERCIO AL POR MAYOR Y AL POR MENOR; REPARACIÓN DE VEHÍCULOS AUTOMOTORES Y MOTOCICLETAS | N156: 0 | O156: 0 | P156: 0 | Q156: 0 | R156: 0 | S156: 0 | X156: 0 | Y156: 5059 | Z156: ARMENIA | AA156: 0 | AB156: 0 | AC156: Natural | AD156: 5 | AE156: ANTIOQUIA | AF156: 0 | AG156: 0 | AH156: PEQUEÑA | AI156: 4520 | AJ156: COMERCIO AL POR MAYOR Y AL POR MENOR; REPARACIÓN DE VEHÍCULOS AUTOMOTORES Y MOTOCICLETAS | AK156: 0 | AL156: 0 | AM156: 0 | AN156: 0 | AO156: 0 | AP156: 0
B157: 68679 | C157: SAN GIL | D157: 17 | E157: 12 | F157: Natural | G157: 68 | H157: SANTANDER | I157: Aprobado con subsidio | J157: 29 | K157: PEQUEÑA | L157: 4711 | M157: COMERCIO AL POR MAYOR Y AL POR MENOR; REPARACIÓN DE VEHÍCULOS AUTOMOTORES Y MOTOCICLETAS | N157: 7 | O157: 10 | P157: 0 | Q157: 15 | R157: 1 | S157: 1 | X157: 0 | Y157: 5360 | Z157: ITAGUI | AA157: 20 | AB157: 10 | AC157: Natural | AD157: 5 | AE157: ANTIOQUIA | AF157: Aprobado con subsidio | AG157: 30 | AH157: PEQUEÑA | AI157: 8121 | AJ157: ACTIVIDADES DE SERVICIOS ADMINISTRATIVOS Y DE APOYO | AK157: 20 | AL157: 0 | AM157: 0 | AN157: 1 | AO157: 19 | AP157: 0
B158: 11001 | C158: BOGOTÁ, D.C. | D158: 0 | E158: 0 | F158: Natural | G158: 11 | H158: BOGOTÁ, D.C. | I158: 0 | J158: 0 | K158: MICRO | L158: 4723 | M158: COMERCIO AL POR MAYOR Y AL POR MENOR; REPARACIÓN DE VEHÍCULOS AUTOMOTORES Y MOTOCICLETAS | N158: 0 | O158: 0 | P158: 0 | Q158: 0 | R158: 0 | S158: 0 | X158: 0 | Y158: 5360 | Z158: ITAGUI | AA158: 1 | AB158: 4 | AC158: Natural | AD158: 5 | AE158: ANTIOQUIA | AF158: Aprobado con subsidio | AG158: 5 | AH158: MICRO | AI158: 3240 | AJ158: INDUSTRIAS MANUFACTURERAS | AK158: 0 | AL158: 1 | AM158: 0 | AN158: 1 | AO158: 0 | AP158: 0
B159: 5001 | C159: MEDELLÍN | D159: 0 | E159: 0 | F159: Natural | G159: 5 | H159: ANTIOQUIA | I159: 0 | J159: 0 | K159: PEQUEÑA | L159: 4390 | M159: CONSTRUCCIÓN | N159: 0 | O159: 0 | P159: 0 | Q159: 0 | R159: 0 | S159: 0 | X159: 0 | Y159: 5001 | Z159: MEDELLÍN | AA159: 2 | AB159: 5 | AC159: Natural | AD159: 5 | AE159: ANTIOQUIA | AF159: Aprobado con subsidio | AG159: 7 | AH159: MICRO | AI159: 4762 | AJ159: COMERCIO AL POR MAYOR Y AL POR MENOR; REPARACIÓN DE VEHÍCULOS AUTOMOTORES Y MOTOCICLETAS | AK159: 1 | AL159: 1 | AM159: 0 | AN159: 2 | AO159: 0 | AP159: 0
B160: 68861 | C160: VÉLEZ | D160: 1 | E160: 0 | F160: Natural | G160: 68 | H160: SANTANDER | I160: Aprobado con subsidio | J160: 1 | K160: MICRO | L160: 1089 | M160: INDUSTRIAS MANUFACTURERAS | N160: 1 | O160: 0 | P160: 0 | Q160: 1 | R160: 0 | S160: 0 | X160: 0 | Y160: 5001 | Z160: MEDELLÍN | AA160: 3 | AB160: 2 | AC160: Natural | AD160: 5 | AE160: ANTIOQUIA | AF160: Aprobado con subsidio | AG160: 5 | AH160: MICRO | AI160: 8622 | AJ160: ACTIVIDADES DE ATENCIÓN DE LA SALUD HUMANA Y DE ASISTENCIA SOCIAL | AK160: 3 | AL160: 0 | AM160: 0 | AN160: 3 | AO160: 0 | AP160: 0
B161: 68001 | C161: BUCARAMANGA | D161: 0 | E161: 0 | F161: Natural | G161: 68 | H161: SANTANDER | I161: 0 | J161: 0 | K161: MICRO | L161: 6621 | M161: ACTIVIDADES FINANCIERAS Y DE SEGUROS | N161: 0 | O161: 0 | P161: 0 | Q161: 0 | R161: 0 | S161: 0 | X161: 0 | Y161: 5686 | Z161: SANTA ROSA DE OSOS | AA161: 2 | AB161: 0 | AC161: Natural | AD161: 5 | AE161: ANTIOQUIA | AF161: Aprobado con subsidio | AG161: 2 | AH161: MICRO | AI161: 4771 | AJ161: COMERCIO AL POR MAYOR Y AL POR MENOR; REPARACIÓN DE VEHÍCULOS AUTOMOTORES Y MOTOCICLETAS | AK161: 2 | AL161: 0 | AM161: 0 | AN161: 2 | AO161: 0 | AP161: 0
B162: 68001 | C162: BUCARAMANGA | D162: 3 | E162: 118 | F162: Natural | G162: 68 | H162: SANTANDER | I162: Aprobado con subsidio | J162: 121 | K162: MEDIANA | L162: 4711 | M162: COMERCIO AL POR MAYOR Y AL POR MENOR; REPARACIÓN DE VEHÍCULOS AUTOMOTORES Y MOTOCICLETAS | N162: 3 | O162: 0 | P162: 0 | Q162: 3 | R162: 0 | S162: 0 | X162: 0 | Y162: 5088 | Z162: BELLO | AA162: 1 | AB162: 0 | AC162: Natural | AD162: 5 | AE162: ANTIOQUIA | AF162: Aprobado con subsidio | AG162: 1 | AH162: MICRO | AI162: 4759 | AJ162: COMERCIO AL POR MAYOR Y AL POR MENOR; REPARACIÓN DE VEHÍCULOS AUTOMOTORES Y MOTOCICLETAS | AK162: 0 | AL162: 1 | AM162: 0 | AN162: 0 | AO162: 0 | AP162: 1
B163: 68079 | C163: BARICHARA | D163: 0 | E163: 0 | F163: Natural | G163: 68 | H163: SANTANDER | I163: 0 | J163: 0 | K163: PEQUEÑA | L163: 5511 | M163: ALOJAMIENTO Y SERVICIOS DE COMIDA | N163: 0 | O163: 0 | P163: 0 | Q163: 0 | R163: 0 | S163: 0 | X163: 0 | Y163: 5001 | Z163: MEDELLÍN | AA163: 1 | AB163: 24 | AC163: Natural | AD163: 5 | AE163: ANTIOQUIA | AF163: Aprobado con subsidio | AG163: 25 | AH163: MICRO | AI163: 5613 | AJ163: ALOJAMIENTO Y SERVICIOS DE COMIDA | AK163: 1 | AL163: 0 | AM163: 0 | AN163: 1 | AO163: 0 | AP163: 0
B164: 11001 | C164: BOGOTÁ, D.C. | D164: 2 | E164: 0 | F164: Natural | G164: 11 | H164: BOGOTÁ, D.C. | I164: Aprobado con subsidio | J164: 2 | K164: MICRO | L164: 8121 | M164: ACTIVIDADES DE SERVICIOS ADMINISTRATIVOS Y DE APOYO | N164: 1 | O164: 1 | P164: 0 | Q164: 0 | R164: 1 | S164: 1 | X164: 0 | Y164: 5001 | Z164: MEDELLÍN | AA164: 0 | AB164: 0 | AC164: Natural | AD164: 5 | AE164: ANTIOQUIA | AF164: 0 | AG164: 0 | AH164: PEQUEÑA | AI164: 8430 | AJ164: ADMINISTRACIÓN PÚBLICA Y DEFENSA; PLANES DE SEGURIDAD SOCIAL DE AFILIACIÓN OBLIGATORIA | AK164: 0 | AL164: 0 | AM164: 0 | AN164: 0 | AO164: 0 | AP164: 0
B165: 73001 | C165: IBAGUÉ | D165: 0 | E165: 0 | F165: Natural | G165: 73 | H165: TOLIMA | I165: 0 | J165: 0 | K165: MICRO | L165: 4751 | M165: COMERCIO AL POR MAYOR Y AL POR MENOR; REPARACIÓN DE VEHÍCULOS AUTOMOTORES Y MOTOCICLETAS | N165: 0 | O165: 0 | P165: 0 | Q165: 0 | R165: 0 | S165: 0 | X165: 0 | Y165: 5001 | Z165: MEDELLÍN | AA165: 1 | AB165: 0 | AC165: Natural | AD165: 5 | AE165: ANTIOQUIA | AF165: Aprobado con subsidio | AG165: 1 | AH165: MICRO | AI165: 6920 | AJ165: ACTIVIDADES PROFESIONALES, CIENTÍFICAS Y TÉCNICAS | AK165: 1 | AL165: 0 | AM165: 0 | AN165: 0 | AO165: 1 | AP165: 0
B166: 41001 | C166: NEIVA | D166: 3 | E166: 9 | F166: Natural | G166: 41 | H166: HUILA | I166: Aprobado con subsidio | J166: 12 | K166: MICRO | L166: 5511 | M166: ALOJAMIENTO Y SERVICIOS DE COMIDA | N166: 1 | O166: 2 | P166: 0 | Q166: 3 | R166: 0 | S166: 0 | X166: 0 | Y166: 5664 | Z166: SAN PEDRO DE LOS MILAGROS | AA166: 0 | AB166: 0 | AC166: Natural | AD166: 5 | AE166: ANTIOQUIA | AF166: 0 | AG166: 0 | AH166: MICRO | AI166: 8291 | AJ166: ACTIVIDADES DE SERVICIOS ADMINISTRATIVOS Y DE APOYO | AK166: 0 | AL166: 0 | AM166: 0 | AN166: 0 | AO166: 0 | AP166: 0
B167: 11001 | C167: BOGOTÁ, D.C. | D167: 0 | E167: 0 | F167: Natural | G167: 11 | H167: BOGOTÁ, D.C. | I167: 0 | J167: 0 | K167: MICRO | L167: 6910 | M167: ACTIVIDADES PROFESIONALES, CIENTÍFICAS Y TÉCNICAS | N167: 0 | O167: 0 | P167: 0 | Q167: 0 | R167: 0 | S167: 0 | X167: 0 | Y167: 5282 | Z167: FREDONIA | AA167: 0 | AB167: 0 | AC167: Natural | AD167: 5 | AE167: ANTIOQUIA | AF167: 0 | AG167: 0 | AH167: MICRO | AI167: 4711 | AJ167: COMERCIO AL POR MAYOR Y AL POR MENOR; REPARACIÓN DE VEHÍCULOS AUTOMOTORES Y MOTOCICLETAS | AK167: 0 | AL167: 0 | AM167: 0 | AN167: 0 | AO167: 0 | AP167: 0
B168: 73001 | C168: IBAGUÉ | D168: 4 | E168: 0 | F168: Natural | G168: 73 | H168: TOLIMA | I168: Aprobado con subsidio | J168: 4 | K168: MICRO | L168: 4773 | M168: COMERCIO AL POR MAYOR Y AL POR MENOR; REPARACIÓN DE VEHÍCULOS AUTOMOTORES Y MOTOCICLETAS | N168: 3 | O168: 1 | P168: 0 | Q168: 0 | R168: 3 | S168: 1 | X168: 0 | Y168: 5001 | Z168: MEDELLÍN | AA168: 0 | AB168: 0 | AC168: Natural | AD168: 5 | AE168: ANTIOQUIA | AF168: 0 | AG168: 0 | AH168: MICRO | AI168: 4711 | AJ168: COMERCIO AL POR MAYOR Y AL POR MENOR; REPARACIÓN DE VEHÍCULOS AUTOMOTORES Y MOTOCICLETAS | AK168: 0 | AL168: 0 | AM168: 0 | AN168: 0 | AO168: 0 | AP168: 0
B169: 76001 | C169: CALI | D169: 2 | E169: 9 | F169: Natural | G169: 76 | H169: VALLE DEL CAUCA | I169: Aprobado con subsidio | J169: 11 | K169: MICRO | L169: 1811 | M169: INDUSTRIAS MANUFACTURERAS | N169: 2 | O169: 0 | P169: 0 | Q169: 2 | R169: 0 | S169: 0 | X169: 0 | Y169: 5001 | Z169: MEDELLÍN | AA169: 1 | AB169: 0 | AC169: Natural | AD169: 5 | AE169: ANTIOQUIA | AF169: Aprobado con subsidio | AG169: 1 | AH169: MICRO | AI169: 4724 | AJ169: COMERCIO AL POR MAYOR Y AL POR MENOR; REPARACIÓN DE VEHÍCULOS AUTOMOTORES Y MOTOCICLETAS | AK169: 1 | AL169: 0 | AM169: 0 | AN169: 0 | AO169: 1 | AP169: 0
B170: 73001 | C170: IBAGUÉ | D170: 1 | E170: 0 | F170: Natural | G170: 73 | H170: TOLIMA | I170: Aprobado con subsidio | J170: 1 | K170: MICRO | L170: 4752 | M170: COMERCIO AL POR MAYOR Y AL POR MENOR; REPARACIÓN DE VEHÍCULOS AUTOMOTORES Y MOTOCICLETAS | N170: 0 | O170: 1 | P170: 0 | Q170: 1 | R170: 0 | S170: 0 | X170: 0 | Y170: 5697 | Z170: EL SANTUARIO | AA170: 0 | AB170: 0 | AC170: Natural | AD170: 5 | AE170: ANTIOQUIA | AF170: 0 | AG170: 0 | AH170: MICRO | AI170: 4774 | AJ170: COMERCIO AL POR MAYOR Y AL POR MENOR; REPARACIÓN DE VEHÍCULOS AUTOMOTORES Y MOTOCICLETAS | AK170: 0 | AL170: 0 | AM170: 0 | AN170: 0 | AO170: 0 | AP170: 0
B171: 73268 | C171: ESPINAL | D171: 0 | E171: 0 | F171: Natural | G171: 73 | H171: TOLIMA | I171: 0 | J171: 0 | K171: PEQUEÑA | L171: 4290 | M171: CONSTRUCCIÓN | N171: 0 | O171: 0 | P171: 0 | Q171: 0 | R171: 0 | S171: 0 | X171: 0 | Y171: 5001 | Z171: MEDELLÍN | AA171: 0 | AB171: 0 | AC171: Natural | AD171: 5 | AE171: ANTIOQUIA | AF171: 0 | AG171: 0 | AH171: MICRO | AI171: 9609 | AJ171: OTRAS ACTIVIDADES DE SERVICIOS | AK171: 0 | AL171: 0 | AM171: 0 | AN171: 0 | AO171: 0 | AP171: 0
B172: 5001 | C172: MEDELLÍN | D172: 0 | E172: 0 | F172: Natural | G172: 5 | H172: ANTIOQUIA | I172: 0 | J172: 0 | K172: MICRO | L172: 4719 | M172: COMERCIO AL POR MAYOR Y AL POR MENOR; REPARACIÓN DE VEHÍCULOS AUTOMOTORES Y MOTOCICLETAS | N172: 0 | O172: 0 | P172: 0 | Q172: 0 | R172: 0 | S172: 0 | X172: 0 | Y172: 5686 | Z172: SANTA ROSA DE OSOS | AA172: 0 | AB172: 0 | AC172: Natural | AD172: 5 | AE172: ANTIOQUIA | AF172: 0 | AG172: 0 | AH172: PEQUEÑA | AI172: 1410 | AJ172: INDUSTRIAS MANUFACTURERAS | AK172: 0 | AL172: 0 | AM172: 0 | AN172: 0 | AO172: 0 | AP172: 0
B173: 66170 | C173: DOSQUEBRADAS | D173: 0 | E173: 0 | F173: Natural | G173: 66 | H173: RISARALDA | I173: 0 | J173: 0 | K173: MICRO | L173: 4923 | M173: TRANSPORTE Y ALMACENAMIENTO | N173: 0 | O173: 0 | P173: 0 | Q173: 0 | R173: 0 | S173: 0 | X173: 0 | Y173: 5368 | Z173: JERICÓ | AA173: 13 | AB173: 0 | AC173: Natural | AD173: 5 | AE173: ANTIOQUIA | AF173: Aprobado con subsidio | AG173: 13 | AH173: MICRO | AI173: 5611 | AJ173: ALOJAMIENTO Y SERVICIOS DE COMIDA | AK173: 7 | AL173: 6 | AM173: 0 | AN173: 4 | AO173: 5 | AP173: 4
B174: 50001 | C174: VILLAVICENCIO | D174: 10 | E174: 13 | F174: Natural | G174: 50 | H174: META | I174: Aprobado con subsidio | J174: 23 | K174: PEQUEÑA | L174: 5511 | M174: ALOJAMIENTO Y SERVICIOS DE COMIDA | N174: 4 | O174: 6 | P174: 0 | Q174: 7 | R174: 3 | S174: 0 | X174: 0 | Y174: 5001 | Z174: MEDELLÍN | AA174: 0 | AB174: 0 | AC174: Natural | AD174: 5 | AE174: ANTIOQUIA | AF174: 0 | AG174: 0 | AH174: MICRO | AI174: 4771 | AJ174: COMERCIO AL POR MAYOR Y AL POR MENOR; REPARACIÓN DE VEHÍCULOS AUTOMOTORES Y MOTOCICLETAS | AK174: 0 | AL174: 0 | AM174: 0 | AN174: 0 | AO174: 0 | AP174: 0
B175: 76834 | C175: TULUÁ | D175: 4 | E175: 8 | F175: Natural | G175: 76 | H175: VALLE DEL CAUCA | I175: Aprobado con subsidio | J175: 12 | K175: PEQUEÑA | L175: 4751 | M175: COMERCIO AL POR MAYOR Y AL POR MENOR; REPARACIÓN DE VEHÍCULOS AUTOMOTORES Y MOTOCICLETAS | N175: 4 | O175: 0 | P175: 0 | Q175: 2 | R175: 2 | S175: 0 | X175: 0 | Y175: 5001 | Z175: MEDELLÍN | AA175: 6 | AB175: 14 | AC175: Natural | AD175: 5 | AE175: ANTIOQUIA | AF175: Aprobado con subsidio | AG175: 20 | AH175: PEQUEÑA | AI175: 1051 | AJ175: INDUSTRIAS MANUFACTURERAS | AK175: 2 | AL175: 4 | AM175: 0 | AN175: 6 | AO175: 0 | AP175: 0
B176: 76020 | C176: ALCALÁ | D176: 6 | E176: 1 | F176: Natural | G176: 76 | H176: VALLE DEL CAUCA | I176: Aprobado con subsidio | J176: 7 | K176: MICRO | L176: 4752 | M176: COMERCIO AL POR MAYOR Y AL POR MENOR; REPARACIÓN DE VEHÍCULOS AUTOMOTORES Y MOTOCICLETAS | N176: 2 | O176: 4 | P176: 0 | Q176: 2 | R176: 2 | S176: 2 | X176: 0 | Y176: 5665 | Z176: SAN PEDRO DE URABA | AA176: 7 | AB176: 4 | AC176: Natural | AD176: 5 | AE176: ANTIOQUIA | AF176: Aprobado con subsidio | AG176: 11 | AH176: MICRO | AI176: 4773 | AJ176: COMERCIO AL POR MAYOR Y AL POR MENOR; REPARACIÓN DE VEHÍCULOS AUTOMOTORES Y MOTOCICLETAS | AK176: 0 | AL176: 7 | AM176: 0 | AN176: 2 | AO176: 0 | AP176: 5
B177: 76001 | C177: CALI | D177: 0 | E177: 0 | F177: Natural | G177: 76 | H177: VALLE DEL CAUCA | I177: 0 | J177: 0 | K177: PEQUEÑA | L177: 4762 | M177: COMERCIO AL POR MAYOR Y AL POR MENOR; REPARACIÓN DE VEHÍCULOS AUTOMOTORES Y MOTOCICLETAS | N177: 0 | O177: 0 | P177: 0 | Q177: 0 | R177: 0 | S177: 0 | X177: 0 | Y177: 5390 | Z177: LA PINTADA | AA177: 0 | AB177: 0 | AC177: Natural | AD177: 5 | AE177: ANTIOQUIA | AF177: 0 | AG177: 0 | AH177: MICRO | AI177: 4723 | AJ177: COMERCIO AL POR MAYOR Y AL POR MENOR; REPARACIÓN DE VEHÍCULOS AUTOMOTORES Y MOTOCICLETAS | AK177: 0 | AL177: 0 | AM177: 0 | AN177: 0 | AO177: 0 | AP177: 0
B178: 76001 | C178: CALI | D178: 0 | E178: 0 | F178: Natural | G178: 76 | H178: VALLE DEL CAUCA | I178: 0 | J178: 0 | K178: PEQUEÑA | L178: 150 | M178: AGRICULTURA, GANADERÍA, CAZA, SILVICULTURA Y PESCA | N178: 0 | O178: 0 | P178: 0 | Q178: 0 | R178: 0 | S178: 0 | X178: 0 | Y178: 5147 | Z178: CAREPA | AA178: 0 | AB178: 0 | AC178: Natural | AD178: 5 | AE178: ANTIOQUIA | AF178: 0 | AG178: 0 | AH178: MICRO | AI178: 4773 | AJ178: COMERCIO AL POR MAYOR Y AL POR MENOR; REPARACIÓN DE VEHÍCULOS AUTOMOTORES Y MOTOCICLETAS | AK178: 0 | AL178: 0 | AM178: 0 | AN178: 0 | AO178: 0 | AP178: 0
B179: 11001 | C179: BOGOTÁ, D.C. | D179: 0 | E179: 0 | F179: Natural | G179: 11 | H179: BOGOTÁ, D.C. | I179: 0 | J179: 0 | K179: MICRO | L179: 2599 | M179: INDUSTRIAS MANUFACTURERAS | N179: 0 | O179: 0 | P179: 0 | Q179: 0 | R179: 0 | S179: 0 | X179: 0 | Y179: 5380 | Z179: LA ESTRELLA | AA179: 0 | AB179: 0 | AC179: Natural | AD179: 5 | AE179: ANTIOQUIA | AF179: 0 | AG179: 0 | AH179: MICRO | AI179: 5611 | AJ179: ALOJAMIENTO Y SERVICIOS DE COMIDA | AK179: 0 | AL179: 0 | AM179: 0 | AN179: 0 | AO179: 0 | AP179: 0
B180: 76001 | C180: CALI | D180: 7 | E180: 3 | F180: Natural | G180: 76 | H180: VALLE DEL CAUCA | I180: Aprobado con subsidio | J180: 10 | K180: MICRO | L180: 5611 | M180: ALOJAMIENTO Y SERVICIOS DE COMIDA | N180: 4 | O180: 3 | P180: 0 | Q180: 2 | R180: 3 | S180: 2 | X180: 0 | Y180: 5266 | Z180: ENVIGADO | AA180: 1 | AB180: 4 | AC180: Natural | AD180: 5 | AE180: ANTIOQUIA | AF180: Aprobado con subsidio | AG180: 5 | AH180: MICRO | AI180: 6820 | AJ180: ACTIVIDADES INMOBILIARIAS | AK180: 1 | AL180: 0 | AM180: 0 | AN180: 1 | AO180: 0 | AP180: 0
B181: 5001 | C181: MEDELLÍN | D181: 0 | E181: 0 | F181: Natural | G181: 5 | H181: ANTIOQUIA | I181: 0 | J181: 0 | K181: PEQUEÑA | L181: 1410 | M181: INDUSTRIAS MANUFACTURERAS | N181: 0 | O181: 0 | P181: 0 | Q181: 0 | R181: 0 | S181: 0 | X181: 0 | Y181: 5266 | Z181: ENVIGADO | AA181: 0 | AB181: 0 | AC181: Natural | AD181: 5 | AE181: ANTIOQUIA | AF181: 0 | AG181: 0 | AH181: MICRO | AI181: 8511 | AJ181: EDUCACIÓN | AK181: 0 | AL181: 0 | AM181: 0 | AN181: 0 | AO181: 0 | AP181: 0
B182: 76122 | C182: CAICEDONIA | D182: 1 | E182: 1 | F182: Natural | G182: 76 | H182: VALLE DEL CAUCA | I182: Aprobado con subsidio | J182: 2 | K182: MICRO | L182: 6920 | M182: ACTIVIDADES PROFESIONALES, CIENTÍFICAS Y TÉCNICAS | N182: 1 | O182: 0 | P182: 0 | Q182: 1 | R182: 0 | S182: 0 | X182: 0 | Y182: 5088 | Z182: BELLO | AA182: 20 | AB182: 1 | AC182: Natural | AD182: 5 | AE182: ANTIOQUIA | AF182: Aprobado con subsidio | AG182: 21 | AH182: PEQUEÑA | AI182: 5613 | AJ182: ALOJAMIENTO Y SERVICIOS DE COMIDA | AK182: 8 | AL182: 12 | AM182: 0 | AN182: 5 | AO182: 7 | AP182: 8
B183: 76248 | C183: EL CERRITO | D183: 0 | E183: 0 | F183: Natural | G183: 76 | H183: VALLE DEL CAUCA | I183: 0 | J183: 0 | K183: MICRO | L183: 3110 | M183: INDUSTRIAS MANUFACTURERAS | N183: 0 | O183: 0 | P183: 0 | Q183: 0 | R183: 0 | S183: 0 | X183: 0 | Y183: 5129 | Z183: CALDAS | AA183: 1 | AB183: 2 | AC183: Natural | AD183: 5 | AE183: ANTIOQUIA | AF183: Aprobado con subsidio | AG183: 3 | AH183: PEQUEÑA | AI183: 4752 | AJ183: COMERCIO AL POR MAYOR Y AL POR MENOR; REPARACIÓN DE VEHÍCULOS AUTOMOTORES Y MOTOCICLETAS | AK183: 1 | AL183: 0 | AM183: 0 | AN183: 1 | AO183: 0 | AP183: 0
B184: 50001 | C184: VILLAVICENCIO | D184: 0 | E184: 0 | F184: Natural | G184: 50 | H184: META | I184: 0 | J184: 0 | K184: MICRO | L184: 4719 | M184: COMERCIO AL POR MAYOR Y AL POR MENOR; REPARACIÓN DE VEHÍCULOS AUTOMOTORES Y MOTOCICLETAS | N184: 0 | O184: 0 | P184: 0 | Q184: 0 | R184: 0 | S184: 0 | X184: 0 | Y184: 5266 | Z184: ENVIGADO | AA184: 0 | AB184: 0 | AC184: Natural | AD184: 5 | AE184: ANTIOQUIA | AF184: 0 | AG184: 0 | AH184: MICRO | AI184: 8230 | AJ184: ACTIVIDADES DE SERVICIOS ADMINISTRATIVOS Y DE APOYO | AK184: 0 | AL184: 0 | AM184: 0 | AN184: 0 | AO184: 0 | AP184: 0
B185: 76892 | C185: YUMBO | D185: 0 | E185: 0 | F185: Natural | G185: 76 | H185: VALLE DEL CAUCA | I185: 0 | J185: 0 | K185: MICRO | L185: 1690 | M185: INDUSTRIAS MANUFACTURERAS | N185: 0 | O185: 0 | P185: 0 | Q185: 0 | R185: 0 | S185: 0 | X185: 0 | Y185: 5001 | Z185: MEDELLÍN | AA185: 0 | AB185: 0 | AC185: Natural | AD185: 5 | AE185: ANTIOQUIA | AF185: 0 | AG185: 0 | AH185: MICRO | AI185: 4741 | AJ185: COMERCIO AL POR MAYOR Y AL POR MENOR; REPARACIÓN DE VEHÍCULOS AUTOMOTORES Y MOTOCICLETAS | AK185: 0 | AL185: 0 | AM185: 0 | AN185: 0 | AO185: 0 | AP185: 0
B186: 76400 | C186: LA UNIÓN | D186: 7 | E186: 12 | F186: Natural | G186: 76 | H186: VALLE DEL CAUCA | I186: Aprobado con subsidio | J186: 19 | K186: PEQUEÑA | L186: 130 | M186: AGRICULTURA, GANADERÍA, CAZA, SILVICULTURA Y PESCA | N186: 0 | O186: 7 | P186: 0 | Q186: 6 | R186: 0 | S186: 1 | X186: 0 | Y186: 5001 | Z186: MEDELLÍN | AA186: 0 | AB186: 0 | AC186: Natural | AD186: 5 | AE186: ANTIOQUIA | AF186: 0 | AG186: 0 | AH186: PEQUEÑA | AI186: 1410 | AJ186: INDUSTRIAS MANUFACTURERAS | AK186: 0 | AL186: 0 | AM186: 0 | AN186: 0 | AO186: 0 | AP186: 0
B187: 76001 | C187: CALI | D187: 1 | E187: 0 | F187: Natural | G187: 76 | H187: VALLE DEL CAUCA | I187: Aprobado con subsidio | J187: 1 | K187: MICRO | L187: 4741 | M187: COMERCIO AL POR MAYOR Y AL POR MENOR; REPARACIÓN DE VEHÍCULOS AUTOMOTORES Y MOTOCICLETAS | N187: 0 | O187: 1 | P187: 0 | Q187: 0 | R187: 0 | S187: 1 | X187: 0 | Y187: 5360 | Z187: ITAGUI | AA187: 2 | AB187: 3 | AC187: Natural | AD187: 5 | AE187: ANTIOQUIA | AF187: Aprobado con subsidio | AG187: 5 | AH187: MICRO | AI187: 4724 | AJ187: COMERCIO AL POR MAYOR Y AL POR MENOR; REPARACIÓN DE VEHÍCULOS AUTOMOTORES Y MOTOCICLETAS | AK187: 0 | AL187: 2 | AM187: 0 | AN187: 2 | AO187: 0 | AP187: 0
B188: 76001 | C188: CALI | D188: 2 | E188: 1 | F188: Natural | G188: 76 | H188: VALLE DEL CAUCA | I188: Aprobado con subsidio | J188: 3 | K188: MICRO | L188: 1081 | M188: INDUSTRIAS MANUFACTURERAS | N188: 1 | O188: 1 | P188: 0 | Q188: 0 | R188: 1 | S188: 1 | X188: 0 | Y188: 5001 | Z188: MEDELLÍN | AA188: 0 | AB188: 0 | AC188: Natural | AD188: 5 | AE188: ANTIOQUIA | AF188: 0 | AG188: 0 | AH188: MICRO | AI188: 4761 | AJ188: COMERCIO AL POR MAYOR Y AL POR MENOR; REPARACIÓN DE VEHÍCULOS AUTOMOTORES Y MOTOCICLETAS | AK188: 0 | AL188: 0 | AM188: 0 | AN188: 0 | AO188: 0 | AP188: 0
B189: 17442 | C189: MARMATO | D189: 0 | E189: 0 | F189: Natural | G189: 17 | H189: CALDAS | I189: 0 | J189: 0 | K189: MICRO | L189: 722 | M189: EXPLOTACIÓN DE MINAS Y CANTERAS | N189: 0 | O189: 0 | P189: 0 | Q189: 0 | R189: 0 | S189: 0 | X189: 0 | Y189: 5001 | Z189: MEDELLÍN | AA189: 2 | AB189: 0 | AC189: Natural | AD189: 5 | AE189: ANTIOQUIA | AF189: Aprobado con subsidio | AG189: 2 | AH189: MICRO | AI189: 1410 | AJ189: INDUSTRIAS MANUFACTURERAS | AK189: 2 | AL189: 0 | AM189: 0 | AN189: 0 | AO189: 2 | AP189: 0
B190: 76122 | C190: CAICEDONIA | D190: 0 | E190: 0 | F190: Natural | G190: 76 | H190: VALLE DEL CAUCA | I190: 0 | J190: 0 | K190: MEDIANA | L190: 4669 | M190: COMERCIO AL POR MAYOR Y AL POR MENOR; REPARACIÓN DE VEHÍCULOS AUTOMOTORES Y MOTOCICLETAS | N190: 0 | O190: 0 | P190: 0 | Q190: 0 | R190: 0 | S190: 0 | X190: 0 | Y190: 5001 | Z190: MEDELLÍN | AA190: 1 | AB190: 0 | AC190: Natural | AD190: 5 | AE190: ANTIOQUIA | AF190: Aprobado con subsidio | AG190: 1 | AH190: MICRO | AI190: 4773 | AJ190: COMERCIO AL POR MAYOR Y AL POR MENOR; REPARACIÓN DE VEHÍCULOS AUTOMOTORES Y MOTOCICLETAS | AK190: 0 | AL190: 1 | AM190: 0 | AN190: 1 | AO190: 0 | AP190: 0
B191: 76001 | C191: CALI | D191: 1 | E191: 11 | F191: Natural | G191: 76 | H191: VALLE DEL CAUCA | I191: Aprobado con subsidio | J191: 12 | K191: PEQUEÑA | L191: 1410 | M191: INDUSTRIAS MANUFACTURERAS | N191: 1 | O191: 0 | P191: 0 | Q191: 1 | R191: 0 | S191: 0 | X191: 0 | Y191: 5001 | Z191: MEDELLÍN | AA191: 0 | AB191: 0 | AC191: Natural | AD191: 5 | AE191: ANTIOQUIA | AF191: 0 | AG191: 0 | AH191: PEQUEÑA | AI191: 4775 | AJ191: COMERCIO AL POR MAYOR Y AL POR MENOR; REPARACIÓN DE VEHÍCULOS AUTOMOTORES Y MOTOCICLETAS | AK191: 0 | AL191: 0 | AM191: 0 | AN191: 0 | AO191: 0 | AP191: 0
B192: 11001 | C192: BOGOTÁ, D.C. | D192: 0 | E192: 0 | F192: Natural | G192: 11 | H192: BOGOTÁ, D.C. | I192: 0 | J192: 0 | K192: PEQUEÑA | L192: 8530 | M192: EDUCACIÓN | N192: 0 | O192: 0 | P192: 0 | Q192: 0 | R192: 0 | S192: 0 | X192: 0 | Y192: 5001 | Z192: MEDELLÍN | AA192: 0 | AB192: 0 | AC192: Natural | AD192: 5 | AE192: ANTIOQUIA | AF192: 0 | AG192: 0 | AH192: MICRO | AI192: 9601 | AJ192: OTRAS ACTIVIDADES DE SERVICIOS | AK192: 0 | AL192: 0 | AM192: 0 | AN192: 0 | AO192: 0 | AP192: 0
B193: 76834 | C193: TULUÁ | D193: 6 | E193: 0 | F193: Natural | G193: 76 | H193: VALLE DEL CAUCA | I193: Aprobado con subsidio | J193: 6 | K193: MICRO | L193: 4774 | M193: COMERCIO AL POR MAYOR Y AL POR MENOR; REPARACIÓN DE VEHÍCULOS AUTOMOTORES Y MOTOCICLETAS | N193: 3 | O193: 3 | P193: 0 | Q193: 4 | R193: 2 | S193: 0 | X193: 0 | Y193: 5266 | Z193: ENVIGADO | AA193: 2 | AB193: 0 | AC193: Natural | AD193: 5 | AE193: ANTIOQUIA | AF193: Aprobado con subsidio | AG193: 2 | AH193: MICRO | AI193: 7490 | AJ193: ACTIVIDADES PROFESIONALES, CIENTÍFICAS Y TÉCNICAS | AK193: 1 | AL193: 1 | AM193: 0 | AN193: 2 | AO193: 0 | AP193: 0
B194: 76111 | C194: GUADALAJARA DE BUGA | D194: 1 | E194: 1 | F194: Natural | G194: 76 | H194: VALLE DEL CAUCA | I194: Aprobado con subsidio | J194: 2 | K194: MICRO | L194: 4923 | M194: TRANSPORTE Y ALMACENAMIENTO | N194: 0 | O194: 1 | P194: 0 | Q194: 0 | R194: 0 | S194: 1 | X194: 0 | Y194: 5615 | Z194: RIONEGRO | AA194: 2 | AB194: 1 | AC194: Natural | AD194: 5 | AE194: ANTIOQUIA | AF194: Aprobado con subsidio | AG194: 3 | AH194: MICRO | AI194: 1081 | AJ194: INDUSTRIAS MANUFACTURERAS | AK194: 1 | AL194: 1 | AM194: 0 | AN194: 2 | AO194: 0 | AP194: 0
B195: 76001 | C195: CALI | D195: 0 | E195: 0 | F195: Natural | G195: 76 | H195: VALLE DEL CAUCA | I195: 0 | J195: 0 | K195: PEQUEÑA | L195: 4773 | M195: COMERCIO AL POR MAYOR Y AL POR MENOR; REPARACIÓN DE VEHÍCULOS AUTOMOTORES Y MOTOCICLETAS | N195: 0 | O195: 0 | P195: 0 | Q195: 0 | R195: 0 | S195: 0 | X195: 0 | Y195: 5615 | Z195: RIONEGRO | AA195: 1 | AB195: 0 | AC195: Natural | AD195: 5 | AE195: ANTIOQUIA | AF195: Aprobado con subsidio | AG195: 1 | AH195: MICRO | AI195: 4923 | AJ195: TRANSPORTE Y ALMACENAMIENTO | AK195: 0 | AL195: 1 | AM195: 0 | AN195: 0 | AO195: 0 | AP195: 1
B196: 5088 | C196: BELLO | D196: 2 | E196: 1 | F196: Natural | G196: 5 | H196: ANTIOQUIA | I196: Aprobado con subsidio | J196: 3 | K196: MICRO | L196: 4752 | M196: COMERCIO AL POR MAYOR Y AL POR MENOR; REPARACIÓN DE VEHÍCULOS AUTOMOTORES Y MOTOCICLETAS | N196: 0 | O196: 2 | P196: 0 | Q196: 2 | R196: 0 | S196: 0 | X196: 0 | Y196: 5129 | Z196: CALDAS | AA196: 2 | AB196: 0 | AC196: Natural | AD196: 5 | AE196: ANTIOQUIA | AF196: Aprobado con subsidio | AG196: 2 | AH196: MICRO | AI196: 8129 | AJ196: ACTIVIDADES DE SERVICIOS ADMINISTRATIVOS Y DE APOYO | AK196: 2 | AL196: 0 | AM196: 0 | AN196: 1 | AO196: 1 | AP196: 0
B197: 41551 | C197: PITALITO | D197: 1 | E197: 44 | F197: Natural | G197: 41 | H197: HUILA | I197: Aprobado con subsidio | J197: 45 | K197: MEDIANA | L197: 4711 | M197: COMERCIO AL POR MAYOR Y AL POR MENOR; REPARACIÓN DE VEHÍCULOS AUTOMOTORES Y MOTOCICLETAS | N197: 1 | O197: 0 | P197: 0 | Q197: 1 | R197: 0 | S197: 0 | X197: 0 | Y197: 5001 | Z197: MEDELLÍN | AA197: 5 | AB197: 3 | AC197: Natural | AD197: 5 | AE197: ANTIOQUIA | AF197: Aprobado con subsidio | AG197: 8 | AH197: MICRO | AI197: 2221 | AJ197: INDUSTRIAS MANUFACTURERAS | AK197: 1 | AL197: 4 | AM197: 0 | AN197: 5 | AO197: 0 | AP197: 0
B198: 15001 | C198: TUNJA | D198: 0 | E198: 0 | F198: Natural | G198: 15 | H198: BOYACÁ | I198: 0 | J198: 0 | K198: MICRO | L198: 7420 | M198: ACTIVIDADES PROFESIONALES, CIENTÍFICAS Y TÉCNICAS | N198: 0 | O198: 0 | P198: 0 | Q198: 0 | R198: 0 | S198: 0 | X198: 0 | Y198: 5079 | Z198: BARBOSA | AA198: 2 | AB198: 0 | AC198: Natural | AD198: 5 | AE198: ANTIOQUIA | AF198: Aprobado con subsidio | AG198: 2 | AH198: MICRO | AI198: 8530 | AJ198: EDUCACIÓN | AK198: 2 | AL198: 0 | AM198: 0 | AN198: 0 | AO198: 2 | AP198: 0
B199: 15001 | C199: TUNJA | D199: 0 | E199: 0 | F199: Natural | G199: 15 | H199: BOYACÁ | I199: 0 | J199: 0 | K199: MICRO | L199: 8512 | M199: EDUCACIÓN | N199: 0 | O199: 0 | P199: 0 | Q199: 0 | R199: 0 | S199: 0 | X199: 0 | Y199: 5154 | Z199: CAUCASIA | AA199: 1 | AB199: 5 | AC199: Natural | AD199: 5 | AE199: ANTIOQUIA | AF199: Aprobado con subsidio | AG199: 6 | AH199: MICRO | AI199: 8899 | AJ199: ACTIVIDADES DE ATENCIÓN DE LA SALUD HUMANA Y DE ASISTENCIA SOCIAL | AK199: 1 | AL199: 0 | AM199: 0 | AN199: 0 | AO199: 1 | AP199: 0
B200: 11001 | C200: BOGOTÁ, D.C. | D200: 2 | E200: 6 | F200: Natural | G200: 11 | H200: BOGOTÁ, D.C. | I200: Aprobado con subsidio | J200: 8 | K200: PEQUEÑA | L200: 8521 | M200: EDUCACIÓN | N200: 1 | O200: 1 | P200: 0 | Q200: 2 | R200: 0 | S200: 0 | X200: 0 | Y200: 5154 | Z200: CAUCASIA | AA200: 0 | AB200: 0 | AC200: Natural | AD200: 5 | AE200: ANTIOQUIA | AF200: 0 | AG200: 0 | AH200: MICRO | AI200: 7730 | AJ200: ACTIVIDADES DE SERVICIOS ADMINISTRATIVOS Y DE APOYO | AK200: 0 | AL200: 0 | AM200: 0 | AN200: 0 | AO200: 0 | AP200: 0
... 2050 more rows

Sheet $Base (hidden)
A1: Ciclo de postulación - Nomina | B1: ID-secuencia | C1: Tipo de Persona | D1: Código Departamento - Divipola | E1: Departamento del empleador | F1: Código Ciudad Divipola | G1: Ciudad del empleador | H1: Código CIIU por rama | I1: Sector según ramas de actividad CIIU 4 A.C | J1: Sector según división CIIU 4 A.C. | K1: Estado empleador | L1: Causal de rechazo a nivel aportante | M1: Número de empleados con concepto de conformidad 40 % | N1: Número de empleados con concepto de conformidad 50 % | O1: Número de empleados beneficiados con concepto de no conformidad | P1: Recursos Asociados | Q1: Cantidad de empleados | R1: Tamaño empleador | V1: Ciclo de postulación - Nomina | W1: ID-secuencia | X1: Tipo de Persona | Y1: Código Departamento - Divipola | Z1: Departamento del empleador | AA1: Código Ciudad Divipola | AB1: Ciudad del empleador | AC1: Código CIIU por rama | AD1: Sector según ramas de actividad CIIU 4 A.C | AE1: Sector según división CIIU 4 A.C. | AF1: Estado empleador | AG1: Causal de rechazo a nivel aportante | AH1: Número de empleados con concepto de conformidad 40 % | AI1: Número de empleados con concepto de conformidad 50 % | AJ1: Número de empleados beneficiados con concepto de no conformidad | AK1: Recursos Asociados | AL1: Cantidad de empleados | AM1: Tamaño empleador | AQ1: Orden | AR1: Sector económico | AT1: RecursosDpto | AU1: RecursosMpio | AY1: RecursosDpto | AZ1: RecursosMpio
C2: Natural | D2: 17 | E2: CALDAS | F2: 17380 | G2: LA DORADA | H2: 141 | I2: AGRICULTURA, GANADERÍA, CAZA, SILVICULTURA Y PESCA | P2: 0 | V2: =+_xlfn._xlws.FILTER($A$2:$R$400000,$E$2:$E$400000=Visor!M7,"") -> 0 | W2: 0 | X2: Natural | Y2: 5 | Z2: ANTIOQUIA | AA2: 5001 | AB2: MEDELLÍN | AC2: 141 | AD2: AGRICULTURA, GANADERÍA, CAZA, SILVICULTURA Y PESCA | AE2: 0 | AF2: 0 | AG2: 0 | AH2: 0 | AI2: 0 | AJ2: 0 | AK2: 454262 | AL2: 0 | AM2: 0 | AQ2: =+_xlfn.RANK.EQ(AT2,$AT$2:$AT$23,1) -> 6 | AR2: =+_xlfn.UNIQUE(Montos!$U$2:$U$396864) -> 141 | AS2: =+VLOOKUP(AR2,$BB$2:$BC$23,2,FALSE) ->  | AT2: =+SUMIF(Montos!$U$2:$U$396864,'$Base'!AR2,Montos!$Y$2:$Y$396864)/1000000 -> 111.323516 | AU2: =+SUMIFS(Montos!$Y$2:$Y$396864,Montos!$U$2:$U$396864,'$Base'!AR2,Montos!$R$2:$R$396864,Visor!$M$8)/1000000 -> 32.354031 | AW2: 1 | AX2: =+IF(AY2<>0,IFERROR(VLOOKUP(AW2,$AQ$2:$AU$23,3,0),""),"") ->  | AY2: =+IFERROR(VLOOKUP(AW2,$AQ$2:$AU$23,4,0),"") -> 1.15 | AZ2: =+IFERROR(VLOOKUP(AW2,$AQ$2:$AU$23,5,0),"") -> 1.15 | BB2: ACTIVIDADES ARTÍSTICAS, DE ENTRETENIMIENTO Y RECREACIÓN | BC2: Act artísticas y de entretenimiento | BG2: NACIONAL | BH2: =Visor!$M$8 -> MEDELLÍN | BI2: =Visor!$M$7 -> ANTIOQUIA
C3: Natural | D3: 68 | E3: SANTANDER | F3: 68001 | G3: BUCARAMANGA | H3: 4771 | I3: COMERCIO AL POR MAYOR Y AL POR MENOR; REPARACIÓN DE VEHÍCULOS AUTOMOTORES Y MOTOCICLETAS | P3: 0 | V3: 0 | W3: 0 | X3: Natural | Y3: 5 | Z3: ANTIOQUIA | AA3: 5001 | AB3: MEDELLÍN | AC3: 3315 | AD3: INDUSTRIAS MANUFACTURERAS | AE3: 0 | AF3: 0 | AG3: 0 | AH3: 0 | AI3: 0 | AJ3: 0 | AK3: 0 | AL3: 0 | AM3: 0 | AQ3: =+_xlfn.RANK.EQ(AT3,$AT$2:$AT$23,1) -> 21 | AR3: 5611 | AT3: =+SUMIF(Montos!$U$2:$U$396864,'$Base'!AR3,Montos!$Y$2:$Y$396864)/1000000 -> 3225.115128 | AU3: =+SUMIFS(Montos!$Y$2:$Y$396864,Montos!$U$2:$U$396864,'$Base'!AR3,Montos!$R$2:$R$396864,Visor!$M$8)/1000000 -> 2793.395182 | AW3: 2 | AX3: =+IF(AY3<>0,IFERROR(VLOOKUP(AW3,$AQ$2:$AU$23,3,0),""),"") ->  | AY3: 8.496192 | AZ3: 5.916192 | BB3: ACTIVIDADES DE ORGANIZACIONES Y ENTIDADES EXTRATERRITORIALES | BC3: Act de organizaciones y entidades extraterritoriales | BH3: =Visor!$H$129/Visor!$H$128 -> 0.6671214188 | BI3: =Visor!$F$129/Visor!$F$128 -> 0.6638869258
C4: Natural | D4: 68 | E4: SANTANDER | F4: 68001 | G4: BUCARAMANGA | H4: 1089 | I4: INDUSTRIAS MANUFACTURERAS | P4: 0 | V4: 0 | W4: 0 | X4: Natural | Y4: 5 | Z4: ANTIOQUIA | AA4: 5001 | AB4: MEDELLÍN | AC4: 5611 | AD4: ALOJAMIENTO Y SERVICIOS DE COMIDA | AE4: 0 | AF4: 0 | AG4: 0 | AH4: 0 | AI4: 0 | AJ4: 0 | AK4: 0 | AL4: 0 | AM4: 0 | AQ4: 1 | AR4: 90 | AT4: =+SUMIF(Montos!$U$2:$U$396864,'$Base'!AR4,Montos!$Y$2:$Y$396864)/1000000 -> 1.15 | AU4: =+SUMIFS(Montos!$Y$2:$Y$396864,Montos!$U$2:$U$396864,'$Base'!AR4,Montos!$R$2:$R$396864,Visor!$M$8)/1000000 -> 1.15 | AW4: 3 | AY4: 15.444177 | AZ4: 0 | BB4: ACTIVIDADES DE ATENCIÓN DE LA SALUD HUMANA Y DE ASISTENCIA SOCIAL | BC4: Act. de atención de la salud humana | BH4: =Visor!$H$130/Visor!$H$128 -> 0.3328785812 | BI4: =Visor!$F$130/Visor!$F$128 -> 0.3361130742
C5: Natural | D5: 44 | E5: LA GUAJIRA | F5: 44430 | G5: MAICAO | H5: 4530 | I5: COMERCIO AL POR MAYOR Y AL POR MENOR; REPARACIÓN DE VEHÍCULOS AUTOMOTORES Y MOTOCICLETAS | P5: 0 | V5: 0 | W5: 0 | X5: Natural | Y5: 5 | Z5: ANTIOQUIA | AA5: 5001 | AB5: MEDELLÍN | AC5: 5611 | AD5: ALOJAMIENTO Y SERVICIOS DE COMIDA | AE5: 0 | AF5: 0 | AG5: 0 | AH5: 0 | AI5: 0 | AJ5: 0 | AK5: 4400000 | AL5: 0 | AM5: 0 | AQ5: 5 | AR5: 4722 | AT5: =+SUMIF(Montos!$U$2:$U$396864,'$Base'!AR5,Montos!$Y$2:$Y$396864)/1000000 -> 22.3585 | AU5: =+SUMIFS(Montos!$Y$2:$Y$396864,Montos!$U$2:$U$396864,'$Base'!AR5,Montos!$R$2:$R$396864,Visor!$M$8)/1000000 -> 21.7585 | AW5: 4 | AY5: 21.838524 | AZ5: 21.338524 | BB5: ACTIVIDADES PROFESIONALES, CIENTÍFICAS Y TÉCNICAS | BC5: Act. profecionales cientificas y tecnicas | BH5: =SUM(BH3:BH4) -> 1 | BI5: =SUM(BI3:BI4) -> 1
C6: Natural | D6: 5 | E6: ANTIOQUIA | F6: 5001 | G6: MEDELLÍN | H6: 141 | I6: AGRICULTURA, GANADERÍA, CAZA, SILVICULTURA Y PESCA | P6: 454262 | V6: 0 | W6: 0 | X6: Natural | Y6: 5 | Z6: ANTIOQUIA | AA6: 5615 | AB6: RIONEGRO | AC6: 2012 | AD6: INDUSTRIAS MANUFACTURERAS | AE6: 0 | AF6: 0 | AG6: 0 | AH6: 0 | AI6: 0 | AJ6: 0 | AK6: 0 | AL6: 0 | AM6: 0 | AQ6: 2 | AR6: 3240 | AT6: =+SUMIF(Montos!$U$2:$U$396864,'$Base'!AR6,Montos!$Y$2:$Y$396864)/1000000 -> 8.496192 | AU6: =+SUMIFS(Montos!$Y$2:$Y$396864,Montos!$U$2:$U$396864,'$Base'!AR6,Montos!$R$2:$R$396864,Visor!$M$8)/1000000 -> 5.916192 | AW6: 5 | AY6: 22.3585 | AZ6: 21.7585 | BB6: ACTIVIDADES DE LOS HOGARES INDIVIDUALES EN CALIDAD DE EMPLEADORES; ACTIVIDADES NO DIFERENCIADAS DE LOS HOGARES INDIVIDUALES COMO PRODUCTORES DE BIENES Y SERVICIOS PARA USO PROPIO | BC6: Actividades de los hogares individuales
C7: Natural | D7: 41 | E7: HUILA | F7: 41001 | G7: NEIVA | H7: 4773 | I7: COMERCIO AL POR MAYOR Y AL POR MENOR; REPARACIÓN DE VEHÍCULOS AUTOMOTORES Y MOTOCICLETAS | P7: 0 | V7: 0 | W7: 0 | X7: Natural | Y7: 5 | Z7: ANTIOQUIA | AA7: 5360 | AB7: ITAGUI | AC7: 1921 | AD7: INDUSTRIAS MANUFACTURERAS | AE7: 0 | AF7: 0 | AG7: 0 | AH7: 0 | AI7: 0 | AJ7: 0 | AK7: 0 | AL7: 0 | AM7: 0 | AQ7: 20 | AR7: 4771 | AT7: =+SUMIF(Montos!$U$2:$U$396864,'$Base'!AR7,Montos!$Y$2:$Y$396864)/1000000 -> 1601.806185 | AU7: =+SUMIFS(Montos!$Y$2:$Y$396864,Montos!$U$2:$U$396864,'$Base'!AR7,Montos!$R$2:$R$396864,Visor!$M$8)/1000000 -> 1411.849599 | AW7: 6 | AY7: 111.323516 | AZ7: 32.354031 | BB7: ACTIVIDADES DE SERVICIOS ADMINISTRATIVOS Y DE APOYO | BC7: Actividades de servicios administrativos
C8: Natural | D8: 25 | E8: CUNDINAMARCA | F8: 25307 | G8: GIRARDOT | H8: 4530 | I8: COMERCIO AL POR MAYOR Y AL POR MENOR; REPARACIÓN DE VEHÍCULOS AUTOMOTORES Y MOTOCICLETAS | P8: 250000 | V8: 0 | W8: 0 | X8: Natural | Y8: 5 | Z8: ANTIOQUIA | AA8: 5001 | AB8: MEDELLÍN | AC8: 90 | AD8: OTRAS | AE8: 0 | AF8: 0 | AG8: 0 | AH8: 0 | AI8: 0 | AJ8: 0 | AK8: 400000 | AL8: 0 | AM8: 0 | AQ8: 13 | AR8: 4773 | AT8: =+SUMIF(Montos!$U$2:$U$396864,'$Base'!AR8,Montos!$Y$2:$Y$396864)/1000000 -> 809.449581 | AU8: =+SUMIFS(Montos!$Y$2:$Y$396864,Montos!$U$2:$U$396864,'$Base'!AR8,Montos!$R$2:$R$396864,Visor!$M$8)/1000000 -> 678.668339 | AW8: 7 | AY8: 178.929341 | AZ8: 74.47324 | BB8: ACTIVIDADES FINANCIERAS Y DE SEGUROS | BC8: Actividades financieras y de seguros
C9: Natural | D9: 5 | E9: ANTIOQUIA | F9: 5001 | G9: MEDELLÍN | H9: 3315 | I9: INDUSTRIAS MANUFACTURERAS | P9: 0 | V9: 0 | W9: 0 | X9: Natural | Y9: 5 | Z9: ANTIOQUIA | AA9: 5001 | AB9: MEDELLÍN | AC9: 141 | AD9: AGRICULTURA, GANADERÍA, CAZA, SILVICULTURA Y PESCA | AE9: 0 | AF9: 0 | AG9: 0 | AH9: 0 | AI9: 0 | AJ9: 0 | AK9: 0 | AL9: 0 | AM9: 0 | AQ9: 11 | AR9: 6810 | AT9: =+SUMIF(Montos!$U$2:$U$396864,'$Base'!AR9,Montos!$Y$2:$Y$396864)/1000000 -> 347.328271 | AU9: =+SUMIFS(Montos!$Y$2:$Y$396864,Montos!$U$2:$U$396864,'$Base'!AR9,Montos!$R$2:$R$396864,Visor!$M$8)/1000000 -> 255.205534 | AW9: 8 | AY9: 242.212231 | AZ9: 123.483032 | BB9: ACTIVIDADES INMOBILIARIAS | BC9: Actividades inmobiliarias
C10: Natural | D10: 5 | E10: ANTIOQUIA | F10: 5001 | G10: MEDELLÍN | H10: 5611 | I10: ALOJAMIENTO Y SERVICIOS DE COMIDA | P10: 0 | V10: 0 | W10: 0 | X10: Natural | Y10: 5 | Z10: ANTIOQUIA | AA10: 5001 | AB10: MEDELLÍN | AC10: 5611 | AD10: ALOJAMIENTO Y SERVICIOS DE COMIDA | AE10: 0 | AF10: 0 | AG10: 0 | AH10: 0 | AI10: 0 | AJ10: 0 | AK10: 100000 | AL10: 0 | AM10: 0 | AQ10: 19 | AR10: 4541 | AT10: =+SUMIF(Montos!$U$2:$U$396864,'$Base'!AR10,Montos!$Y$2:$Y$396864)/1000000 -> 1513.259621 | AU10: =+SUMIFS(Montos!$Y$2:$Y$396864,Montos!$U$2:$U$396864,'$Base'!AR10,Montos!$R$2:$R$396864,Visor!$M$8)/1000000 -> 1468.940864 | AW10: 9 | AY10: 257.930945 | AZ10: 203.697849 | BB10: ADMINISTRACIÓN PÚBLICA Y DEFENSA; PLANES DE SEGURIDAD SOCIAL DE AFILIACIÓN OBLIGATORIA | BC10: Admin. pública y defensa; planes seg. social
C11: Natural | D11: 5 | E11: ANTIOQUIA | F11: 5001 | G11: MEDELLÍN | H11: 5611 | I11: ALOJAMIENTO Y SERVICIOS DE COMIDA | P11: 4400000 | V11: 0 | W11: 0 | X11: Natural | Y11: 5 | Z11: ANTIOQUIA | AA11: 5001 | AB11: MEDELLÍN | AC11: 4722 | AD11: COMERCIO AL POR MAYOR Y AL POR MENOR; REPARACIÓN DE VEHÍCULOS AUTOMOTORES Y MOTOCICLETAS | AE11: 0 | AF11: 0 | AG11: 0 | AH11: 0 | AI11: 0 | AJ11: 0 | AK11: 3740000 | AL11: 0 | AM11: 0 | AQ11: 15 | AR11: 4752 | AT11: =+SUMIF(Montos!$U$2:$U$396864,'$Base'!AR11,Montos!$Y$2:$Y$396864)/1000000 -> 861.129407 | AU11: =+SUMIFS(Montos!$Y$2:$Y$396864,Montos!$U$2:$U$396864,'$Base'!AR11,Montos!$R$2:$R$396864,Visor!$M$8)/1000000 -> 776.284707 | AW11: 10 | AY11: 267.573252 | AZ11: 144.899951 | BB11: AGRICULTURA, GANADERÍA, CAZA, SILVICULTURA Y PESCA | BC11: Agricultura, ganadería, caza
C12: Natural | D12: 11 | E12: BOGOTÁ, D.C. | F12: 11001 | G12: BOGOTÁ, D.C. | H12: 4663 | I12: COMERCIO AL POR MAYOR Y AL POR MENOR; REPARACIÓN DE VEHÍCULOS AUTOMOTORES Y MOTOCICLETAS | P12: 3977131 | V12: 0 | W12: 0 | X12: Natural | Y12: 5 | Z12: ANTIOQUIA | AA12: 5001 | AB12: MEDELLÍN | AC12: 3240 | AD12: INDUSTRIAS MANUFACTURERAS | AE12: 0 | AF12: 0 | AG12: 0 | AH12: 0 | AI12: 0 | AJ12: 0 | AK12: 1654262 | AL12: 0 | AM12: 0 | AQ12: 17 | AR12: 7111 | AT12: =+SUMIF(Montos!$U$2:$U$396864,'$Base'!AR12,Montos!$Y$2:$Y$396864)/1000000 -> 988.037652 | AU12: =+SUMIFS(Montos!$Y$2:$Y$396864,Montos!$U$2:$U$396864,'$Base'!AR12,Montos!$R$2:$R$396864,Visor!$M$8)/1000000 -> 890.4327 | AW12: 11 | AY12: 347.328271 | AZ12: 255.205534 | BB12: ALOJAMIENTO Y SERVICIOS DE COMIDA | BC12: Alojamiento y servicios de comida
C13: Natural | D13: 15 | E13: BOYACÁ | F13: 15176 | G13: CHIQUINQUIRÁ | H13: 4752 | I13: COMERCIO AL POR MAYOR Y AL POR MENOR; REPARACIÓN DE VEHÍCULOS AUTOMOTORES Y MOTOCICLETAS | P13: 2858524 | V13: 0 | W13: 0 | X13: Natural | Y13: 5 | Z13: ANTIOQUIA | AA13: 5001 | AB13: MEDELLÍN | AC13: 4771 | AD13: COMERCIO AL POR MAYOR Y AL POR MENOR; REPARACIÓN DE VEHÍCULOS AUTOMOTORES Y MOTOCICLETAS | AE13: 0 | AF13: 0 | AG13: 0 | AH13: 0 | AI13: 0 | AJ13: 0 | AK13: 908524 | AL13: 0 | AM13: 0 | AQ13: 8 | AR13: 2221 | AT13: =+SUMIF(Montos!$U$2:$U$396864,'$Base'!AR13,Montos!$Y$2:$Y$396864)/1000000 -> 242.212231 | AU13: =+SUMIFS(Montos!$Y$2:$Y$396864,Montos!$U$2:$U$396864,'$Base'!AR13,Montos!$R$2:$R$396864,Visor!$M$8)/1000000 -> 123.483032 | AW13: 12 | AY13: 440.97209 | AZ13: 96.522096 | BB13: COMERCIO AL POR MAYOR Y AL POR MENOR; REPARACIÓN DE VEHÍCULOS AUTOMOTORES Y MOTOCICLETAS | BC13: Comercio y reparacion de vehiculos
C14: Natural | D14: 76 | E14: VALLE DEL CAUCA | F14: 76001 | G14: CALI | H14: 4774 | I14: COMERCIO AL POR MAYOR Y AL POR MENOR; REPARACIÓN DE VEHÍCULOS AUTOMOTORES Y MOTOCICLETAS | P14: 454262 | V14: 0 | W14: 0 | X14: Natural | Y14: 5 | Z14: ANTIOQUIA | AA14: 5591 | AB14: PUERTO TRIUNFO | AC14: 4711 | AD14: COMERCIO AL POR MAYOR Y AL POR MENOR; REPARACIÓN DE VEHÍCULOS AUTOMOTORES Y MOTOCICLETAS | AE14: 0 | AF14: 0 | AG14: 0 | AH14: 0 | AI14: 0 | AJ14: 0 | AK14: 0 | AL14: 0 | AM14: 0 | AQ14: 18 | AR14: 8299 | AT14: =+SUMIF(Montos!$U$2:$U$396864,'$Base'!AR14,Montos!$Y$2:$Y$396864)/1000000 -> 1119.85285 | AU14: =+SUMIFS(Montos!$Y$2:$Y$396864,Montos!$U$2:$U$396864,'$Base'!AR14,Montos!$R$2:$R$396864,Visor!$M$8)/1000000 -> 327.560637 | AW14: 13 | AY14: 809.449581 | AZ14: 678.668339 | BB14: CONSTRUCCIÓN | BC14: Construcción
C15: Natural | D15: 76 | E15: VALLE DEL CAUCA | F15: 76001 | G15: CALI | H15: 5511 | I15: ALOJAMIENTO Y SERVICIOS DE COMIDA | P15: 454262 | V15: 0 | W15: 0 | X15: Natural | Y15: 5 | Z15: ANTIOQUIA | AA15: 5001 | AB15: MEDELLÍN | AC15: 121 | AD15: AGRICULTURA, GANADERÍA, CAZA, SILVICULTURA Y PESCA | AE15: 0 | AF15: 0 | AG15: 0 | AH15: 0 | AI15: 0 | AJ15: 0 | AK15: 0 | AL15: 0 | AM15: 0 | AQ15: 7 | AR15: 2511 | AT15: =+SUMIF(Montos!$U$2:$U$396864,'$Base'!AR15,Montos!$Y$2:$Y$396864)/1000000 -> 178.929341 | AU15: =+SUMIFS(Montos!$Y$2:$Y$396864,Montos!$U$2:$U$396864,'$Base'!AR15,Montos!$R$2:$R$396864,Visor!$M$8)/1000000 -> 74.47324 | AW15: 14 | AY15: 810.443506 | AZ15: 689.337033 | BB15: DISTRIBUCIÓN DE AGUA; EVACUACIÓN Y TRATAMIENTO DE AGUAS RESIDUALES, GESTIÓN DE DESECHOS Y ACTIVIDADES DE SANEAMIENTO AMBIENTAL | BC15: Distribución de agua; gestión de desechos
C16: Natural | D16: 41 | E16: HUILA | F16: 41001 | G16: NEIVA | H16: 4729 | I16: COMERCIO AL POR MAYOR Y AL POR MENOR; REPARACIÓN DE VEHÍCULOS AUTOMOTORES Y MOTOCICLETAS | P16: 1550000 | V16: 0 | W16: 0 | X16: Natural | Y16: 5 | Z16: ANTIOQUIA | AA16: 5264 | AB16: ENTRERRIOS | AC16: 121 | AD16: AGRICULTURA, GANADERÍA, CAZA, SILVICULTURA Y PESCA | AE16: 0 | AF16: 0 | AG16: 0 | AH16: 0 | AI16: 0 | AJ16: 0 | AK16: 0 | AL16: 0 | AM16: 0 | AQ16: 9 | AR16: 5630 | AT16: =+SUMIF(Montos!$U$2:$U$396864,'$Base'!AR16,Montos!$Y$2:$Y$396864)/1000000 -> 257.930945 | AU16: =+SUMIFS(Montos!$Y$2:$Y$396864,Montos!$U$2:$U$396864,'$Base'!AR16,Montos!$R$2:$R$396864,Visor!$M$8)/1000000 -> 203.697849 | AW16: 15 | AY16: 861.129407 | AZ16: 776.284707 | BB16: EDUCACIÓN | BC16: Educación
C17: Natural | D17: 52 | E17: NARIÑO | F17: 52356 | G17: IPIALES | H17: 4923 | I17: TRANSPORTE Y ALMACENAMIENTO | P17: 400000 | V17: 0 | W17: 0 | X17: Natural | Y17: 5 | Z17: ANTIOQUIA | AA17: 5264 | AB17: ENTRERRIOS | AC17: 4724 | AD17: COMERCIO AL POR MAYOR Y AL POR MENOR; REPARACIÓN DE VEHÍCULOS AUTOMOTORES Y MOTOCICLETAS | AE17: 0 | AF17: 0 | AG17: 0 | AH17: 0 | AI17: 0 | AJ17: 0 | AK17: 0 | AL17: 0 | AM17: 0 | AQ17: 12 | AR17: 1089 | AT17: =+SUMIF(Montos!$U$2:$U$396864,'$Base'!AR17,Montos!$Y$2:$Y$396864)/1000000 -> 440.97209 | AU17: =+SUMIFS(Montos!$Y$2:$Y$396864,Montos!$U$2:$U$396864,'$Base'!AR17,Montos!$R$2:$R$396864,Visor!$M$8)/1000000 -> 96.522096 | AW17: 16 | AY17: 919.909967 | AZ17: 685.127482 | BB17: EXPLOTACIÓN DE MINAS Y CANTERAS | BC17: Explotación de minas y canteras
C18: Natural | D18: 54 | E18: NORTE DE SANTANDER | F18: 54001 | G18: CÚCUTA | H18: 90 | I18: OTRAS | P18: 2700000 | V18: 0 | W18: 0 | X18: Natural | Y18: 5 | Z18: ANTIOQUIA | AA18: 5264 | AB18: ENTRERRIOS | AC18: 121 | AD18: AGRICULTURA, GANADERÍA, CAZA, SILVICULTURA Y PESCA | AE18: 0 | AF18: 0 | AG18: 0 | AH18: 0 | AI18: 0 | AJ18: 0 | AK18: 0 | AL18: 0 | AM18: 0 | AQ18: 4 | AR18: 7420 | AT18: =+SUMIF(Montos!$U$2:$U$396864,'$Base'!AR18,Montos!$Y$2:$Y$396864)/1000000 -> 21.838524 | AU18: =+SUMIFS(Montos!$Y$2:$Y$396864,Montos!$U$2:$U$396864,'$Base'!AR18,Montos!$R$2:$R$396864,Visor!$M$8)/1000000 -> 21.338524 | AW18: 17 | AY18: 988.037652 | AZ18: 890.4327 | BB18: INDUSTRIAS MANUFACTURERAS | BC18: Industrias manufactureras
C19: Natural | D19: 54 | E19: NORTE DE SANTANDER | F19: 54405 | G19: LOS PATIOS | H19: 4923 | I19: TRANSPORTE Y ALMACENAMIENTO | P19: 317983 | V19: 0 | W19: 0 | X19: Natural | Y19: 5 | Z19: ANTIOQUIA | AA19: 5001 | AB19: MEDELLÍN | AC19: 4711 | AD19: COMERCIO AL POR MAYOR Y AL POR MENOR; REPARACIÓN DE VEHÍCULOS AUTOMOTORES Y MOTOCICLETAS | AE19: 0 | AF19: 0 | AG19: 0 | AH19: 0 | AI19: 0 | AJ19: 0 | AK19: 0 | AL19: 0 | AM19: 0 | AQ19: 14 | AR19: 5612 | AT19: =+SUMIF(Montos!$U$2:$U$396864,'$Base'!AR19,Montos!$Y$2:$Y$396864)/1000000 -> 810.443506 | AU19: =+SUMIFS(Montos!$Y$2:$Y$396864,Montos!$U$2:$U$396864,'$Base'!AR19,Montos!$R$2:$R$396864,Visor!$M$8)/1000000 -> 689.337033 | AW19: 18 | AY19: 1119.85285 | AZ19: 327.560637 | BB19: INFORMACIÓN Y COMUNICACIONES | BC19: Información y comunicaciones
C20: Natural | D20: 76 | E20: VALLE DEL CAUCA | F20: 76400 | G20: LA UNIÓN | H20: 4620 | I20: COMERCIO AL POR MAYOR Y AL POR MENOR; REPARACIÓN DE VEHÍCULOS AUTOMOTORES Y MOTOCICLETAS | P20: 0 | V20: 0 | W20: 0 | X20: Natural | Y20: 5 | Z20: ANTIOQUIA | AA20: 5001 | AB20: MEDELLÍN | AC20: 4520 | AD20: COMERCIO AL POR MAYOR Y AL POR MENOR; REPARACIÓN DE VEHÍCULOS AUTOMOTORES Y MOTOCICLETAS | AE20: 0 | AF20: 0 | AG20: 0 | AH20: 0 | AI20: 0 | AJ20: 0 | AK20: 0 | AL20: 0 | AM20: 0 | AQ20: 3 | AR20: 1610 | AT20: =+SUMIF(Montos!$U$2:$U$396864,'$Base'!AR20,Montos!$Y$2:$Y$396864)/1000000 -> 15.444177 | AU20: =+SUMIFS(Montos!$Y$2:$Y$396864,Montos!$U$2:$U$396864,'$Base'!AR20,Montos!$R$2:$R$396864,Visor!$M$8)/1000000 -> 0 | AW20: 19 | AY20: 1513.259621 | AZ20: 1468.940864 | BB20: OTRAS | BC20: Otras
C21: Natural | D21: 63 | E21: QUINDÍO | F21: 63001 | G21: ARMENIA | H21: 4771 | I21: COMERCIO AL POR MAYOR Y AL POR MENOR; REPARACIÓN DE VEHÍCULOS AUTOMOTORES Y MOTOCICLETAS | P21: 0 | V21: 0 | W21: 0 | X21: Natural | Y21: 5 | Z21: ANTIOQUIA | AA21: 5209 | AB21: CONCORDIA | AC21: 123 | AD21: AGRICULTURA, GANADERÍA, CAZA, SILVICULTURA Y PESCA | AE21: 0 | AF21: 0 | AG21: 0 | AH21: 0 | AI21: 0 | AJ21: 0 | AK21: 0 | AL21: 0 | AM21: 0 | AQ21: 10 | AR21: 4741 | AT21: =+SUMIF(Montos!$U$2:$U$396864,'$Base'!AR21,Montos!$Y$2:$Y$396864)/1000000 -> 267.573252 | AU21: =+SUMIFS(Montos!$Y$2:$Y$396864,Montos!$U$2:$U$396864,'$Base'!AR21,Montos!$R$2:$R$396864,Visor!$M$8)/1000000 -> 144.899951 | AW21: 20 | AY21: 1601.806185 | AZ21: 1411.849599 | BB21: OTRAS ACTIVIDADES DE SERVICIOS | BC21: Otras actividades de servicios
C22: Natural | D22: 52 | E22: NARIÑO | F22: 52001 | G22: PASTO | H22: 5611 | I22: ALOJAMIENTO Y SERVICIOS DE COMIDA | P22: 0 | V22: 0 | W22: 0 | X22: Natural | Y22: 5 | Z22: ANTIOQUIA | AA22: 5697 | AB22: EL SANTUARIO | AC22: 4773 | AD22: COMERCIO AL POR MAYOR Y AL POR MENOR; REPARACIÓN DE VEHÍCULOS AUTOMOTORES Y MOTOCICLETAS | AE22: 0 | AF22: 0 | AG22: 0 | AH22: 0 | AI22: 0 | AJ22: 0 | AK22: 454262 | AL22: 0 | AM22: 0 | AQ22: 16 | AR22: 1081 | AT22: =+SUMIF(Montos!$U$2:$U$396864,'$Base'!AR22,Montos!$Y$2:$Y$396864)/1000000 -> 919.909967 | AU22: =+SUMIFS(Montos!$Y$2:$Y$396864,Montos!$U$2:$U$396864,'$Base'!AR22,Montos!$R$2:$R$396864,Visor!$M$8)/1000000 -> 685.127482 | AW22: 21 | AY22: 3225.115128 | AZ22: 2793.395182 | BB22: SUMINISTRO DE ELECTRICIDAD, GAS, VAPOR Y AIRE ACONDICIONADO | BC22: Suministro de electricidad, gas y vapor
C23: Natural | D23: 76 | E23: VALLE DEL CAUCA | F23: 76828 | G23: TRUJILLO | H23: 4752 | I23: COMERCIO AL POR MAYOR Y AL POR MENOR; REPARACIÓN DE VEHÍCULOS AUTOMOTORES Y MOTOCICLETAS | P23: 3631080 | V23: 0 | W23: 0 | X23: Natural | Y23: 5 | Z23: ANTIOQUIA | AA23: 5001 | AB23: MEDELLÍN | AC23: 141 | AD23: AGRICULTURA, GANADERÍA, CAZA, SILVICULTURA Y PESCA | AE23: 0 | AF23: 0 | AG23: 0 | AH23: 0 | AI23: 0 | AJ23: 0 | AK23: 0 | AL23: 0 | AM23: 0 | AQ23: 22 | AR23: 1410 | AT23: =+SUMIF(Montos!$U$2:$U$396864,'$Base'!AR23,Montos!$Y$2:$Y$396864)/1000000 -> 7728.520191 | AU23: =+SUMIFS(Montos!$Y$2:$Y$396864,Montos!$U$2:$U$396864,'$Base'!AR23,Montos!$R$2:$R$396864,Visor!$M$8)/1000000 -> 4085.95904 | AW23: 22 | AY23: 7728.520191 | AZ23: =+IFERROR(VLOOKUP(AW23,$AQ$2:$AU$23,5,0),"") -> 4085.95904 | BB23: TRANSPORTE Y ALMACENAMIENTO | BC23: Transporte y almacenamiento
C24: Natural | D24: 76 | E24: VALLE DEL CAUCA | F24: 76001 | G24: CALI | H24: 121 | I24: AGRICULTURA, GANADERÍA, CAZA, SILVICULTURA Y PESCA | P24: 0 | V24: 0 | W24: 0 | X24: Natural | Y24: 5 | Z24: ANTIOQUIA | AA24: 5001 | AB24: MEDELLÍN | AC24: 6810 | AD24: ACTIVIDADES INMOBILIARIAS | AE24: 0 | AF24: 0 | AG24: 0 | AH24: 0 | AI24: 0 | AJ24: 0 | AK24: 90852 | AL24: 0 | AM24: 0 | AR24: 6495
C25: Natural | D25: 5 | E25: ANTIOQUIA | F25: 5615 | G25: RIONEGRO | H25: 2012 | I25: INDUSTRIAS MANUFACTURERAS | P25: 0 | V25: 0 | W25: 0 | X25: Natural | Y25: 5 | Z25: ANTIOQUIA | AA25: 5266 | AB25: ENVIGADO | AC25: 4541 | AD25: COMERCIO AL POR MAYOR Y AL POR MENOR; REPARACIÓN DE VEHÍCULOS AUTOMOTORES Y MOTOCICLETAS | AE25: 0 | AF25: 0 | AG25: 0 | AH25: 0 | AI25: 0 | AJ25: 0 | AK25: 227131 | AL25: 0 | AM25: 0 | AR25: 4620
C26: Natural | D26: 11 | E26: BOGOTÁ, D.C. | F26: 11001 | G26: BOGOTÁ, D.C. | H26: 1313 | I26: INDUSTRIAS MANUFACTURERAS | P26: 726818 | V26: 0 | W26: 0 | X26: Natural | Y26: 5 | Z26: ANTIOQUIA | AA26: 5001 | AB26: MEDELLÍN | AC26: 4390 | AD26: CONSTRUCCIÓN | AE26: 0 | AF26: 0 | AG26: 0 | AH26: 0 | AI26: 0 | AJ26: 0 | AK26: 0 | AL26: 0 | AM26: 0 | AR26: 3110
C27: Natural | D27: 25 | E27: CUNDINAMARCA | F27: 25214 | G27: COTA | H27: 8530 | I27: EDUCACIÓN | P27: 0 | V27: 0 | W27: 0 | X27: Natural | Y27: 5 | Z27: ANTIOQUIA | AA27: 5001 | AB27: MEDELLÍN | AC27: 4719 | AD27: COMERCIO AL POR MAYOR Y AL POR MENOR; REPARACIÓN DE VEHÍCULOS AUTOMOTORES Y MOTOCICLETAS | AE27: 0 | AF27: 0 | AG27: 0 | AH27: 0 | AI27: 0 | AJ27: 0 | AK27: 0 | AL27: 0 | AM27: 0 | AR27: 4530
C28: Natural | D28: 25 | E28: CUNDINAMARCA | F28: 25386 | G28: LA MESA | H28: 4721 | I28: COMERCIO AL POR MAYOR Y AL POR MENOR; REPARACIÓN DE VEHÍCULOS AUTOMOTORES Y MOTOCICLETAS | P28: 0 | V28: 0 | W28: 0 | X28: Natural | Y28: 5 | Z28: ANTIOQUIA | AA28: 5001 | AB28: MEDELLÍN | AC28: 1410 | AD28: INDUSTRIAS MANUFACTURERAS | AE28: 0 | AF28: 0 | AG28: 0 | AH28: 0 | AI28: 0 | AJ28: 0 | AK28: 0 | AL28: 0 | AM28: 0 | AR28: 4711
C29: Natural | D29: 50 | E29: META | F29: 50001 | G29: VILLAVICENCIO | H29: 4530 | I29: COMERCIO AL POR MAYOR Y AL POR MENOR; REPARACIÓN DE VEHÍCULOS AUTOMOTORES Y MOTOCICLETAS | P29: 0 | V29: 0 | W29: 0 | X29: Natural | Y29: 5 | Z29: ANTIOQUIA | AA29: 5088 | AB29: BELLO | AC29: 4752 | AD29: COMERCIO AL POR MAYOR Y AL POR MENOR; REPARACIÓN DE VEHÍCULOS AUTOMOTORES Y MOTOCICLETAS | AE29: 0 | AF29: 0 | AG29: 0 | AH29: 0 | AI29: 0 | AJ29: 0 | AK29: 750000 | AL29: 0 | AM29: 0 | AR29: 1084
C30: Natural | D30: 11 | E30: BOGOTÁ, D.C. | F30: 11001 | G30: BOGOTÁ, D.C. | H30: 4754 | I30: COMERCIO AL POR MAYOR Y AL POR MENOR; REPARACIÓN DE VEHÍCULOS AUTOMOTORES Y MOTOCICLETAS | P30: 1000000 | V30: 0 | W30: 0 | X30: Natural | Y30: 5 | Z30: ANTIOQUIA | AA30: 5631 | AB30: SABANETA | AC30: 4771 | AD30: COMERCIO AL POR MAYOR Y AL POR MENOR; REPARACIÓN DE VEHÍCULOS AUTOMOTORES Y MOTOCICLETAS | AE30: 0 | AF30: 0 | AG30: 0 | AH30: 0 | AI30: 0 | AJ30: 0 | AK30: 3448524 | AL30: 0 | AM30: 0 | AR30: 4723
C31: Natural | D31: 11 | E31: BOGOTÁ, D.C. | F31: 11001 | G31: BOGOTÁ, D.C. | H31: 8512 | I31: EDUCACIÓN | P31: 750000 | V31: 0 | W31: 0 | X31: Natural | Y31: 5 | Z31: ANTIOQUIA | AA31: 5266 | AB31: ENVIGADO | AC31: 7111 | AD31: ACTIVIDADES PROFESIONALES, CIENTÍFICAS Y TÉCNICAS | AE31: 0 | AF31: 0 | AG31: 0 | AH31: 0 | AI31: 0 | AJ31: 0 | AK31: 2776195 | AL31: 0 | AM31: 0 | AR31: 4761
C32: Natural | D32: 25 | E32: CUNDINAMARCA | F32: 25181 | G32: CHOACHÍ | H32: 145 | I32: AGRICULTURA, GANADERÍA, CAZA, SILVICULTURA Y PESCA | P32: 1048000 | V32: 0 | W32: 0 | X32: Natural | Y32: 5 | Z32: ANTIOQUIA | AA32: 5318 | AB32: GUARNE | AC32: 2221 | AD32: INDUSTRIAS MANUFACTURERAS | AE32: 0 | AF32: 0 | AG32: 0 | AH32: 0 | AI32: 0 | AJ32: 0 | AK32: 1650000 | AL32: 0 | AM32: 0 | AR32: 6920
C33: Natural | D33: 25 | E33: CUNDINAMARCA | F33: 25181 | G33: CHOACHÍ | H33: 4663 | I33: COMERCIO AL POR MAYOR Y AL POR MENOR; REPARACIÓN DE VEHÍCULOS AUTOMOTORES Y MOTOCICLETAS | P33: 181704 | V33: 0 | W33: 0 | X33: Natural | Y33: 5 | Z33: ANTIOQUIA | AA33: 5001 | AB33: MEDELLÍN | AC33: 8299 | AD33: ACTIVIDADES DE SERVICIOS ADMINISTRATIVOS Y DE APOYO | AE33: 0 | AF33: 0 | AG33: 0 | AH33: 0 | AI33: 0 | AJ33: 0 | AK33: 9844000 | AL33: 0 | AM33: 0 | AR33: 4645
C34: Natural | D34: 11 | E34: BOGOTÁ, D.C. | F34: 11001 | G34: BOGOTÁ, D.C. | H34: 4520 | I34: COMERCIO AL POR MAYOR Y AL POR MENOR; REPARACIÓN DE VEHÍCULOS AUTOMOTORES Y MOTOCICLETAS | P34: 0 | V34: 0 | W34: 0 | X34: Natural | Y34: 5 | Z34: ANTIOQUIA | AA34: 5001 | AB34: MEDELLÍN | AC34: 2511 | AD34: INDUSTRIAS MANUFACTURERAS | AE34: 0 | AF34: 0 | AG34: 0 | AH34: 0 | AI34: 0 | AJ34: 0 | AK34: 1227131 | AL34: 0 | AM34: 0 | AR34: 4632
C35: Natural | D35: 25 | E35: CUNDINAMARCA | F35: 25279 | G35: FOMEQUE | H35: 145 | I35: AGRICULTURA, GANADERÍA, CAZA, SILVICULTURA Y PESCA | P35: 250000 | V35: 0 | W35: 0 | X35: Natural | Y35: 5 | Z35: ANTIOQUIA | AA35: 5360 | AB35: ITAGUI | AC35: 4759 | AD35: COMERCIO AL POR MAYOR Y AL POR MENOR; REPARACIÓN DE VEHÍCULOS AUTOMOTORES Y MOTOCICLETAS | AE35: 0 | AF35: 0 | AG35: 0 | AH35: 0 | AI35: 0 | AJ35: 0 | AK35: 0 | AL35: 0 | AM35: 0 | AR35: 4520
C36: Natural | D36: 25 | E36: CUNDINAMARCA | F36: 25214 | G36: COTA | H36: 4290 | I36: CONSTRUCCIÓN | P36: 90852 | V36: 0 | W36: 0 | X36: Natural | Y36: 5 | Z36: ANTIOQUIA | AA36: 5615 | AB36: RIONEGRO | AC36: 6920 | AD36: ACTIVIDADES PROFESIONALES, CIENTÍFICAS Y TÉCNICAS | AE36: 0 | AF36: 0 | AG36: 0 | AH36: 0 | AI36: 0 | AJ36: 0 | AK36: 0 | AL36: 0 | AM36: 0 | AR36: 7990
C37: Natural | D37: 25 | E37: CUNDINAMARCA | F37: 25758 | G37: SOPÓ | H37: 141 | I37: AGRICULTURA, GANADERÍA, CAZA, SILVICULTURA Y PESCA | P37: 2046000 | V37: 0 | W37: 0 | X37: Natural | Y37: 5 | Z37: ANTIOQUIA | AA37: 5631 | AB37: SABANETA | AC37: 5630 | AD37: ALOJAMIENTO Y SERVICIOS DE COMIDA | AE37: 0 | AF37: 0 | AG37: 0 | AH37: 0 | AI37: 0 | AJ37: 0 | AK37: 3613096 | AL37: 0 | AM37: 0 | AR37: 4390
C38: Natural | D38: 15 | E38: BOYACÁ | F38: 15176 | G38: CHIQUINQUIRÁ | H38: 4520 | I38: COMERCIO AL POR MAYOR Y AL POR MENOR; REPARACIÓN DE VEHÍCULOS AUTOMOTORES Y MOTOCICLETAS | P38: 0 | V38: 0 | W38: 0 | X38: Natural | Y38: 5 | Z38: ANTIOQUIA | AA38: 5001 | AB38: MEDELLÍN | AC38: 1089 | AD38: INDUSTRIAS MANUFACTURERAS | AE38: 0 | AF38: 0 | AG38: 0 | AH38: 0 | AI38: 0 | AJ38: 0 | AK38: 800000 | AL38: 0 | AM38: 0 | AR38: 4631
C39: Natural | D39: 25 | E39: CUNDINAMARCA | F39: 25297 | G39: GACHETÁ | H39: 4663 | I39: COMERCIO AL POR MAYOR Y AL POR MENOR; REPARACIÓN DE VEHÍCULOS AUTOMOTORES Y MOTOCICLETAS | P39: 750000 | V39: 0 | W39: 0 | X39: Natural | Y39: 5 | Z39: ANTIOQUIA | AA39: 5001 | AB39: MEDELLÍN | AC39: 7420 | AD39: ACTIVIDADES PROFESIONALES, CIENTÍFICAS Y TÉCNICAS | AE39: 0 | AF39: 0 | AG39: 0 | AH39: 0 | AI39: 0 | AJ39: 0 | AK39: 750000 | AL39: 0 | AM39: 0 | AR39: 4210
C40: Natural | D40: 11 | E40: BOGOTÁ, D.C. | F40: 11001 | G40: BOGOTÁ, D.C. | H40: 2711 | I40: INDUSTRIAS MANUFACTURERAS | P40: 0 | V40: 0 | W40: 0 | X40: Natural | Y40: 5 | Z40: ANTIOQUIA | AA40: 5129 | AB40: CALDAS | AC40: 8622 | AD40: ACTIVIDADES DE ATENCIÓN DE LA SALUD HUMANA Y DE ASISTENCIA SOCIAL | AE40: 0 | AF40: 0 | AG40: 0 | AH40: 0 | AI40: 0 | AJ40: 0 | AK40: 0 | AL40: 0 | AM40: 0 | AR40: 1011
C41: Natural | D41: 11 | E41: BOGOTÁ, D.C. | F41: 11001 | G41: BOGOTÁ, D.C. | H41: 8521 | I41: EDUCACIÓN | P41: 0 | V41: 0 | W41: 0 | X41: Natural | Y41: 5 | Z41: ANTIOQUIA | AA41: 5001 | AB41: MEDELLÍN | AC41: 5612 | AD41: ALOJAMIENTO Y SERVICIOS DE COMIDA | AE41: 0 | AF41: 0 | AG41: 0 | AH41: 0 | AI41: 0 | AJ41: 0 | AK41: 5948000 | AL41: 0 | AM41: 0 | AR41: 4690
C42: Natural | D42: 11 | E42: BOGOTÁ, D.C. | F42: 11001 | G42: BOGOTÁ, D.C. | H42: 1513 | I42: INDUSTRIAS MANUFACTURERAS | P42: 0 | V42: 0 | W42: 0 | X42: Natural | Y42: 5 | Z42: ANTIOQUIA | AA42: 5001 | AB42: MEDELLÍN | AC42: 4711 | AD42: COMERCIO AL POR MAYOR Y AL POR MENOR; REPARACIÓN DE VEHÍCULOS AUTOMOTORES Y MOTOCICLETAS | AE42: 0 | AF42: 0 | AG42: 0 | AH42: 0 | AI42: 0 | AJ42: 0 | AK42: 0 | AL42: 0 | AM42: 0 | AR42: 4663
C43: Natural | D43: 11 | E43: BOGOTÁ, D.C. | F43: 11001 | G43: BOGOTÁ, D.C. | H43: 7310 | I43: ACTIVIDADES PROFESIONALES, CIENTÍFICAS Y TÉCNICAS | P43: 227131 | V43: 0 | W43: 0 | X43: Natural | Y43: 5 | Z43: ANTIOQUIA | AA43: 5686 | AB43: SANTA ROSA DE OSOS | AC43: 141 | AD43: AGRICULTURA, GANADERÍA, CAZA, SILVICULTURA Y PESCA | AE43: 0 | AF43: 0 | AG43: 0 | AH43: 0 | AI43: 0 | AJ43: 0 | AK43: 100000 | AL43: 0 | AM43: 0 | AR43: 4751
C44: Natural | D44: 15 | E44: BOYACÁ | F44: 15407 | G44: VILLA DE LEYVA | H44: 5511 | I44: ALOJAMIENTO Y SERVICIOS DE COMIDA | P44: 0 | V44: 0 | W44: 0 | X44: Natural | Y44: 5 | Z44: ANTIOQUIA | AA44: 5686 | AB44: SANTA ROSA DE OSOS | AC44: 1610 | AD44: INDUSTRIAS MANUFACTURERAS | AE44: 0 | AF44: 0 | AG44: 0 | AH44: 0 | AI44: 0 | AJ44: 0 | AK44: 2250000 | AL44: 0 | AM44: 0 | AR44: 5511
C45: Natural | D45: 25 | E45: CUNDINAMARCA | F45: 25430 | G45: MADRID | H45: 145 | I45: AGRICULTURA, GANADERÍA, CAZA, SILVICULTURA Y PESCA | P45: 250000 | V45: 0 | W45: 0 | X45: Natural | Y45: 5 | Z45: ANTIOQUIA | AA45: 5001 | AB45: MEDELLÍN | AC45: 4741 | AD45: COMERCIO AL POR MAYOR Y AL POR MENOR; REPARACIÓN DE VEHÍCULOS AUTOMOTORES Y MOTOCICLETAS | AE45: 0 | AF45: 0 | AG45: 0 | AH45: 0 | AI45: 0 | AJ45: 0 | AK45: 1907900 | AL45: 0 | AM45: 0 | AR45: 9522
C46: Natural | D46: 25 | E46: CUNDINAMARCA | F46: 25599 | G46: APULO | H46: 4322 | I46: CONSTRUCCIÓN | P46: 0 | V46: 0 | W46: 0 | X46: Natural | Y46: 5 | Z46: ANTIOQUIA | AA46: 5001 | AB46: MEDELLÍN | AC46: 9609 | AD46: OTRAS ACTIVIDADES DE SERVICIOS | AE46: 0 | AF46: 0 | AG46: 0 | AH46: 0 | AI46: 0 | AJ46: 0 | AK46: 0 | AL46: 0 | AM46: 0 | AR46: 8130
C47: Natural | D47: 25 | E47: CUNDINAMARCA | F47: 25754 | G47: SOACHA | H47: 8219 | I47: ACTIVIDADES DE SERVICIOS ADMINISTRATIVOS Y DE APOYO | P47: 4030000 | V47: 0 | W47: 0 | X47: Natural | Y47: 5 | Z47: ANTIOQUIA | AA47: 5001 | AB47: MEDELLÍN | AC47: 1081 | AD47: INDUSTRIAS MANUFACTURERAS | AE47: 0 | AF47: 0 | AG47: 0 | AH47: 0 | AI47: 0 | AJ47: 0 | AK47: 227131 | AL47: 0 | AM47: 0 | AR47: 4732
C48: Natural | D48: 11 | E48: BOGOTÁ, D.C. | F48: 11001 | G48: BOGOTÁ, D.C. | H48: 6910 | I48: ACTIVIDADES PROFESIONALES, CIENTÍFICAS Y TÉCNICAS | P48: 8630978 | V48: 0 | W48: 0 | X48: Natural | Y48: 5 | Z48: ANTIOQUIA | AA48: 5001 | AB48: MEDELLÍN | AC48: 5611 | AD48: ALOJAMIENTO Y SERVICIOS DE COMIDA | AE48: 0 | AF48: 0 | AG48: 0 | AH48: 0 | AI48: 0 | AJ48: 0 | AK48: 0 | AL48: 0 | AM48: 0 | AR48: 7112
C49: Natural | D49: 11 | E49: BOGOTÁ, D.C. | F49: 11001 | G49: BOGOTÁ, D.C. | H49: 4751 | I49: COMERCIO AL POR MAYOR Y AL POR MENOR; REPARACIÓN DE VEHÍCULOS AUTOMOTORES Y MOTOCICLETAS | P49: 681393 | V49: 0 | W49: 0 | X49: Natural | Y49: 5 | Z49: ANTIOQUIA | AA49: 5001 | AB49: MEDELLÍN | AC49: 1410 | AD49: INDUSTRIAS MANUFACTURERAS | AE49: 0 | AF49: 0 | AG49: 0 | AH49: 0 | AI49: 0 | AJ49: 0 | AK49: 250000 | AL49: 0 | AM49: 0 | AR49: 9700
C50: Natural | D50: 25 | E50: CUNDINAMARCA | F50: 25785 | G50: TABIO | H50: 9004 | I50: ACTIVIDADES ARTÍSTICAS, DE ENTRETENIMIENTO Y RECREACIÓN | P50: 250000 | V50: 0 | W50: 0 | X50: Natural | Y50: 5 | Z50: ANTIOQUIA | AA50: 5001 | AB50: MEDELLÍN | AC50: 6495 | AD50: ACTIVIDADES FINANCIERAS Y DE SEGUROS | AE50: 0 | AF50: 0 | AG50: 0 | AH50: 0 | AI50: 0 | AJ50: 0 | AK50: 250000 | AL50: 0 | AM50: 0 | AR50: 4111
C51: Natural | D51: 25 | E51: CUNDINAMARCA | F51: 25799 | G51: TENJO | H51: 4711 | I51: COMERCIO AL POR MAYOR Y AL POR MENOR; REPARACIÓN DE VEHÍCULOS AUTOMOTORES Y MOTOCICLETAS | P51: 0 | V51: 0 | W51: 0 | X51: Natural | Y51: 5 | Z51: ANTIOQUIA | AA51: 5266 | AB51: ENVIGADO | AC51: 4620 | AD51: COMERCIO AL POR MAYOR Y AL POR MENOR; REPARACIÓN DE VEHÍCULOS AUTOMOTORES Y MOTOCICLETAS | AE51: 0 | AF51: 0 | AG51: 0 | AH51: 0 | AI51: 0 | AJ51: 0 | AK51: 350000 | AL51: 0 | AM51: 0 | AR51: 4762
C52: Natural | D52: 50 | E52: META | F52: 50001 | G52: VILLAVICENCIO | H52: 4729 | I52: COMERCIO AL POR MAYOR Y AL POR MENOR; REPARACIÓN DE VEHÍCULOS AUTOMOTORES Y MOTOCICLETAS | P52: 5797131 | V52: 0 | W52: 0 | X52: Natural | Y52: 5 | Z52: ANTIOQUIA | AA52: 5001 | AB52: MEDELLÍN | AC52: 5611 | AD52: ALOJAMIENTO Y SERVICIOS DE COMIDA | AE52: 0 | AF52: 0 | AG52: 0 | AH52: 0 | AI52: 0 | AJ52: 0 | AK52: 250000 | AL52: 0 | AM52: 0 | AR52: 6201
C53: Natural | D53: 11 | E53: BOGOTÁ, D.C. | F53: 11001 | G53: BOGOTÁ, D.C. | H53: 6810 | I53: ACTIVIDADES INMOBILIARIAS | P53: 0 | V53: 0 | W53: 0 | X53: Natural | Y53: 5 | Z53: ANTIOQUIA | AA53: 5631 | AB53: SABANETA | AC53: 3110 | AD53: INDUSTRIAS MANUFACTURERAS | AE53: 0 | AF53: 0 | AG53: 0 | AH53: 0 | AI53: 0 | AJ53: 0 | AK53: 1200000 | AL53: 0 | AM53: 0 | AR53: 4923
C54: Natural | D54: 25 | E54: CUNDINAMARCA | F54: 25875 | G54: VILLETA | H54: 1081 | I54: INDUSTRIAS MANUFACTURERAS | P54: 454262 | V54: 0 | W54: 0 | X54: Natural | Y54: 5 | Z54: ANTIOQUIA | AA54: 5001 | AB54: MEDELLÍN | AC54: 4530 | AD54: COMERCIO AL POR MAYOR Y AL POR MENOR; REPARACIÓN DE VEHÍCULOS AUTOMOTORES Y MOTOCICLETAS | AE54: 0 | AF54: 0 | AG54: 0 | AH54: 0 | AI54: 0 | AJ54: 0 | AK54: 227131 | AL54: 0 | AM54: 0 | AR54: 5613
C55: Natural | D55: 25 | E55: CUNDINAMARCA | F55: 25269 | G55: FACATATIVÁ | H55: 8560 | I55: EDUCACIÓN | P55: 2100000 | V55: 0 | W55: 0 | X55: Natural | Y55: 5 | Z55: ANTIOQUIA | AA55: 5001 | AB55: MEDELLÍN | AC55: 4711 | AD55: COMERCIO AL POR MAYOR Y AL POR MENOR; REPARACIÓN DE VEHÍCULOS AUTOMOTORES Y MOTOCICLETAS | AE55: 0 | AF55: 0 | AG55: 0 | AH55: 0 | AI55: 0 | AJ55: 0 | AK55: 750000 | AL55: 0 | AM55: 0 | AR55: 4769
C56: Natural | D56: 85 | E56: CASANARE | F56: 85001 | G56: YOPAL | H56: 4769 | I56: COMERCIO AL POR MAYOR Y AL POR MENOR; REPARACIÓN DE VEHÍCULOS AUTOMOTORES Y MOTOCICLETAS | P56: 2450000 | V56: 0 | W56: 0 | X56: Natural | Y56: 5 | Z56: ANTIOQUIA | AA56: 5368 | AB56: JERICÓ | AC56: 1084 | AD56: INDUSTRIAS MANUFACTURERAS | AE56: 0 | AF56: 0 | AG56: 0 | AH56: 0 | AI56: 0 | AJ56: 0 | AK56: 20148126 | AL56: 0 | AM56: 0 | AR56: 8110
C57: Natural | D57: 50 | E57: META | F57: 50001 | G57: VILLAVICENCIO | H57: 6810 | I57: ACTIVIDADES INMOBILIARIAS | P57: 0 | V57: 0 | W57: 0 | X57: Natural | Y57: 5 | Z57: ANTIOQUIA | AA57: 5631 | AB57: SABANETA | AC57: 4541 | AD57: COMERCIO AL POR MAYOR Y AL POR MENOR; REPARACIÓN DE VEHÍCULOS AUTOMOTORES Y MOTOCICLETAS | AE57: 0 | AF57: 0 | AG57: 0 | AH57: 0 | AI57: 0 | AJ57: 0 | AK57: 3808211 | AL57: 0 | AM57: 0 | AR57: 4774
C58: Natural | D58: 5 | E58: ANTIOQUIA | F58: 5360 | G58: ITAGUI | H58: 1921 | I58: INDUSTRIAS MANUFACTURERAS | P58: 0 | V58: 0 | W58: 0 | X58: Natural | Y58: 5 | Z58: ANTIOQUIA | AA58: 5001 | AB58: MEDELLÍN | AC58: 4723 | AD58: COMERCIO AL POR MAYOR Y AL POR MENOR; REPARACIÓN DE VEHÍCULOS AUTOMOTORES Y MOTOCICLETAS | AE58: 0 | AF58: 0 | AG58: 0 | AH58: 0 | AI58: 0 | AJ58: 0 | AK58: 200000 | AL58: 0 | AM58: 0 | AR58: 8121
C59: Natural | D59: 5 | E59: ANTIOQUIA | F59: 5001 | G59: MEDELLÍN | H59: 90 | I59: OTRAS | P59: 400000 | V59: 0 | W59: 0 | X59: Natural | Y59: 5 | Z59: ANTIOQUIA | AA59: 5604 | AB59: REMEDIOS | AC59: 4711 | AD59: COMERCIO AL POR MAYOR Y AL POR MENOR; REPARACIÓN DE VEHÍCULOS AUTOMOTORES Y MOTOCICLETAS | AE59: 0 | AF59: 0 | AG59: 0 | AH59: 0 | AI59: 0 | AJ59: 0 | AK59: 0 | AL59: 0 | AM59: 0 | AR59: 4759
C60: Natural | D60: 15 | E60: BOYACÁ | F60: 15759 | G60: SOGAMOSO | H60: 4799 | I60: COMERCIO AL POR MAYOR Y AL POR MENOR; REPARACIÓN DE VEHÍCULOS AUTOMOTORES Y MOTOCICLETAS | P60: 600000 | V60: 0 | W60: 0 | X60: Natural | Y60: 5 | Z60: ANTIOQUIA | AA60: 5736 | AB60: SEGOVIA | AC60: 4723 | AD60: COMERCIO AL POR MAYOR Y AL POR MENOR; REPARACIÓN DE VEHÍCULOS AUTOMOTORES Y MOTOCICLETAS | AE60: 0 | AF60: 0 | AG60: 0 | AH60: 0 | AI60: 0 | AJ60: 0 | AK60: 6275572 | AL60: 0 | AM60: 0 | AR60: 4719
C61: Natural | D61: 5 | E61: ANTIOQUIA | F61: 5001 | G61: MEDELLÍN | H61: 141 | I61: AGRICULTURA, GANADERÍA, CAZA, SILVICULTURA Y PESCA | P61: 0 | V61: 0 | W61: 0 | X61: Natural | Y61: 5 | Z61: ANTIOQUIA | AA61: 5837 | AB61: TURBO | AC61: 4761 | AD61: COMERCIO AL POR MAYOR Y AL POR MENOR; REPARACIÓN DE VEHÍCULOS AUTOMOTORES Y MOTOCICLETAS | AE61: 0 | AF61: 0 | AG61: 0 | AH61: 0 | AI61: 0 | AJ61: 0 | AK61: 8561847 | AL61: 0 | AM61: 0 | AR61: 8622
C62: Natural | D62: 5 | E62: ANTIOQUIA | F62: 5001 | G62: MEDELLÍN | H62: 5611 | I62: ALOJAMIENTO Y SERVICIOS DE COMIDA | P62: 100000 | V62: 0 | W62: 0 | X62: Natural | Y62: 5 | Z62: ANTIOQUIA | AA62: 5376 | AB62: LA CEJA | AC62: 125 | AD62: AGRICULTURA, GANADERÍA, CAZA, SILVICULTURA Y PESCA | AE62: 0 | AF62: 0 | AG62: 0 | AH62: 0 | AI62: 0 | AJ62: 0 | AK62: 0 | AL62: 0 | AM62: 0 | AR62: 4724
C63: Natural | D63: 5 | E63: ANTIOQUIA | F63: 5001 | G63: MEDELLÍN | H63: 4722 | I63: COMERCIO AL POR MAYOR Y AL POR MENOR; REPARACIÓN DE VEHÍCULOS AUTOMOTORES Y MOTOCICLETAS | P63: 3740000 | V63: 0 | W63: 0 | X63: Natural | Y63: 5 | Z63: ANTIOQUIA | AA63: 5001 | AB63: MEDELLÍN | AC63: 6920 | AD63: ACTIVIDADES PROFESIONALES, CIENTÍFICAS Y TÉCNICAS | AE63: 0 | AF63: 0 | AG63: 0 | AH63: 0 | AI63: 0 | AJ63: 0 | AK63: 1226818 | AL63: 0 | AM63: 0 | AR63: 1051
C64: Natural | D64: 5 | E64: ANTIOQUIA | F64: 5001 | G64: MEDELLÍN | H64: 3240 | I64: INDUSTRIAS MANUFACTURERAS | P64: 1654262 | V64: 0 | W64: 0 | X64: Natural | Y64: 5 | Z64: ANTIOQUIA | AA64: 5079 | AB64: BARBOSA | AC64: 4210 | AD64: CONSTRUCCIÓN | AE64: 0 | AF64: 0 | AG64: 0 | AH64: 0 | AI64: 0 | AJ64: 0 | AK64: 0 | AL64: 0 | AM64: 0 | AR64: 6820
C65: Natural | D65: 5 | E65: ANTIOQUIA | F65: 5001 | G65: MEDELLÍN | H65: 4771 | I65: COMERCIO AL POR MAYOR Y AL POR MENOR; REPARACIÓN DE VEHÍCULOS AUTOMOTORES Y MOTOCICLETAS | P65: 908524 | V65: 0 | W65: 0 | X65: Natural | Y65: 5 | Z65: ANTIOQUIA | AA65: 5001 | AB65: MEDELLÍN | AC65: 6920 | AD65: ACTIVIDADES PROFESIONALES, CIENTÍFICAS Y TÉCNICAS | AE65: 0 | AF65: 0 | AG65: 0 | AH65: 0 | AI65: 0 | AJ65: 0 | AK65: 0 | AL65: 0 | AM65: 0 | AR65: 7490
C66: Natural | D66: 41 | E66: HUILA | F66: 41001 | G66: NEIVA | H66: 4755 | I66: COMERCIO AL POR MAYOR Y AL POR MENOR; REPARACIÓN DE VEHÍCULOS AUTOMOTORES Y MOTOCICLETAS | P66: 0 | V66: 0 | W66: 0 | X66: Natural | Y66: 5 | Z66: ANTIOQUIA | AA66: 5001 | AB66: MEDELLÍN | AC66: 4645 | AD66: COMERCIO AL POR MAYOR Y AL POR MENOR; REPARACIÓN DE VEHÍCULOS AUTOMOTORES Y MOTOCICLETAS | AE66: 0 | AF66: 0 | AG66: 0 | AH66: 0 | AI66: 0 | AJ66: 0 | AK66: 1770000 | AL66: 0 | AM66: 0 | AR66: 8129
C67: Natural | D67: 5 | E67: ANTIOQUIA | F67: 5591 | G67: PUERTO TRIUNFO | H67: 4711 | I67: COMERCIO AL POR MAYOR Y AL POR MENOR; REPARACIÓN DE VEHÍCULOS AUTOMOTORES Y MOTOCICLETAS | P67: 0 | V67: 0 | W67: 0 | X67: Natural | Y67: 5 | Z67: ANTIOQUIA | AA67: 5034 | AB67: ANDES | AC67: 4632 | AD67: COMERCIO AL POR MAYOR Y AL POR MENOR; REPARACIÓN DE VEHÍCULOS AUTOMOTORES Y MOTOCICLETAS | AE67: 0 | AF67: 0 | AG67: 0 | AH67: 0 | AI67: 0 | AJ67: 0 | AK67: 6821617 | AL67: 0 | AM67: 0 | AR67: 8530
C68: Natural | D68: 5 | E68: ANTIOQUIA | F68: 5001 | G68: MEDELLÍN | H68: 121 | I68: AGRICULTURA, GANADERÍA, CAZA, SILVICULTURA Y PESCA | P68: 0 | V68: 0 | W68: 0 | X68: Natural | Y68: 5 | Z68: ANTIOQUIA | AA68: 5088 | AB68: BELLO | AC68: 1081 | AD68: INDUSTRIAS MANUFACTURERAS | AE68: 0 | AF68: 0 | AG68: 0 | AH68: 0 | AI68: 0 | AJ68: 0 | AK68: 0 | AL68: 0 | AM68: 0 | AR68: 8899
C69: Natural | D69: 5 | E69: ANTIOQUIA | F69: 5264 | G69: ENTRERRIOS | H69: 121 | I69: AGRICULTURA, GANADERÍA, CAZA, SILVICULTURA Y PESCA | P69: 0 | V69: 0 | W69: 0 | X69: Natural | Y69: 5 | Z69: ANTIOQUIA | AA69: 5045 | AB69: APARTADÓ | AC69: 4530 | AD69: COMERCIO AL POR MAYOR Y AL POR MENOR; REPARACIÓN DE VEHÍCULOS AUTOMOTORES Y MOTOCICLETAS | AE69: 0 | AF69: 0 | AG69: 0 | AH69: 0 | AI69: 0 | AJ69: 0 | AK69: 0 | AL69: 0 | AM69: 0 | AR69: 4721
C70: Natural | D70: 5 | E70: ANTIOQUIA | F70: 5264 | G70: ENTRERRIOS | H70: 4724 | I70: COMERCIO AL POR MAYOR Y AL POR MENOR; REPARACIÓN DE VEHÍCULOS AUTOMOTORES Y MOTOCICLETAS | P70: 0 | V70: 0 | W70: 0 | X70: Natural | Y70: 5 | Z70: ANTIOQUIA | AA70: 5001 | AB70: MEDELLÍN | AC70: 6920 | AD70: ACTIVIDADES PROFESIONALES, CIENTÍFICAS Y TÉCNICAS | AE70: 0 | AF70: 0 | AG70: 0 | AH70: 0 | AI70: 0 | AJ70: 0 | AK70: 1200000 | AL70: 0 | AM70: 0 | AR70: 4799
C71: Natural | D71: 5 | E71: ANTIOQUIA | F71: 5264 | G71: ENTRERRIOS | H71: 121 | I71: AGRICULTURA, GANADERÍA, CAZA, SILVICULTURA Y PESCA | P71: 0 | V71: 0 | W71: 0 | X71: Natural | Y71: 5 | Z71: ANTIOQUIA | AA71: 5001 | AB71: MEDELLÍN | AC71: 4520 | AD71: COMERCIO AL POR MAYOR Y AL POR MENOR; REPARACIÓN DE VEHÍCULOS AUTOMOTORES Y MOTOCICLETAS | AE71: 0 | AF71: 0 | AG71: 0 | AH71: 0 | AI71: 0 | AJ71: 0 | AK71: 1000000 | AL71: 0 | AM71: 0 | AR71: 5621
C72: Natural | D72: 23 | E72: CÓRDOBA | F72: 23001 | G72: MONTERÍA | H72: 4711 | I72: COMERCIO AL POR MAYOR Y AL POR MENOR; REPARACIÓN DE VEHÍCULOS AUTOMOTORES Y MOTOCICLETAS | P72: 0 | V72: 0 | W72: 0 | X72: Natural | Y72: 5 | Z72: ANTIOQUIA | AA72: 5697 | AB72: EL SANTUARIO | AC72: 1392 | AD72: INDUSTRIAS MANUFACTURERAS | AE72: 0 | AF72: 0 | AG72: 0 | AH72: 0 | AI72: 0 | AJ72: 0 | AK72: 0 | AL72: 0 | AM72: 0 | AR72: 4772
C73: Natural | D73: 5 | E73: ANTIOQUIA | F73: 5001 | G73: MEDELLÍN | H73: 4711 | I73: COMERCIO AL POR MAYOR Y AL POR MENOR; REPARACIÓN DE VEHÍCULOS AUTOMOTORES Y MOTOCICLETAS | P73: 0 | V73: 0 | W73: 0 | X73: Natural | Y73: 5 | Z73: ANTIOQUIA | AA73: 5686 | AB73: SANTA ROSA DE OSOS | AC73: 4771 | AD73: COMERCIO AL POR MAYOR Y AL POR MENOR; REPARACIÓN DE VEHÍCULOS AUTOMOTORES Y MOTOCICLETAS | AE73: 0 | AF73: 0 | AG73: 0 | AH73: 0 | AI73: 0 | AJ73: 0 | AK73: 4196000 | AL73: 0 | AM73: 0 | AR73: 8513
C74: Natural | D74: 11 | E74: BOGOTÁ, D.C. | F74: 11001 | G74: BOGOTÁ, D.C. | H74: 1410 | I74: INDUSTRIAS MANUFACTURERAS | P74: 0 | V74: 0 | W74: 0 | X74: Natural | Y74: 5 | Z74: ANTIOQUIA | AA74: 5631 | AB74: SABANETA | AC74: 7990 | AD74: ACTIVIDADES DE SERVICIOS ADMINISTRATIVOS Y DE APOYO | AE74: 0 | AF74: 0 | AG74: 0 | AH74: 0 | AI74: 0 | AJ74: 0 | AK74: 8338000 | AL74: 0 | AM74: 0 | AR74: 10
C75: Natural | D75: 11 | E75: BOGOTÁ, D.C. | F75: 11001 | G75: BOGOTÁ, D.C. | H75: 4771 | I75: COMERCIO AL POR MAYOR Y AL POR MENOR; REPARACIÓN DE VEHÍCULOS AUTOMOTORES Y MOTOCICLETAS | P75: 454262 | V75: 0 | W75: 0 | X75: Natural | Y75: 5 | Z75: ANTIOQUIA | AA75: 5615 | AB75: RIONEGRO | AC75: 4390 | AD75: CONSTRUCCIÓN | AE75: 0 | AF75: 0 | AG75: 0 | AH75: 0 | AI75: 0 | AJ75: 0 | AK75: 1250000 | AL75: 0 | AM75: 0 | AR75: 5619
C76: Natural | D76: 76 | E76: VALLE DEL CAUCA | F76: 76001 | G76: CALI | H76: 1081 | I76: INDUSTRIAS MANUFACTURERAS | P76: 0 | V76: 0 | W76: 0 | X76: Natural | Y76: 5 | Z76: ANTIOQUIA | AA76: 5001 | AB76: MEDELLÍN | AC76: 1410 | AD76: INDUSTRIAS MANUFACTURERAS | AE76: 0 | AF76: 0 | AG76: 0 | AH76: 0 | AI76: 0 | AJ76: 0 | AK76: 13996000 | AL76: 0 | AM76: 0 | AR76: 8512
C77: Natural | D77: 5 | E77: ANTIOQUIA | F77: 5001 | G77: MEDELLÍN | H77: 4520 | I77: COMERCIO AL POR MAYOR Y AL POR MENOR; REPARACIÓN DE VEHÍCULOS AUTOMOTORES Y MOTOCICLETAS | P77: 0 | V77: 0 | W77: 0 | X77: Natural | Y77: 5 | Z77: ANTIOQUIA | AA77: 5129 | AB77: CALDAS | AC77: 4620 | AD77: COMERCIO AL POR MAYOR Y AL POR MENOR; REPARACIÓN DE VEHÍCULOS AUTOMOTORES Y MOTOCICLETAS | AE77: 0 | AF77: 0 | AG77: 0 | AH77: 0 | AI77: 0 | AJ77: 0 | AK77: 0 | AL77: 0 | AM77: 0 | AR77: 7729
C78: Natural | D78: 5 | E78: ANTIOQUIA | F78: 5209 | G78: CONCORDIA | H78: 123 | I78: AGRICULTURA, GANADERÍA, CAZA, SILVICULTURA Y PESCA | P78: 0 | V78: 0 | W78: 0 | X78: Natural | Y78: 5 | Z78: ANTIOQUIA | AA78: 5631 | AB78: SABANETA | AC78: 4923 | AD78: TRANSPORTE Y ALMACENAMIENTO | AE78: 0 | AF78: 0 | AG78: 0 | AH78: 0 | AI78: 0 | AJ78: 0 | AK78: 0 | AL78: 0 | AM78: 0 | AR78: 5519
C79: Natural | D79: 5 | E79: ANTIOQUIA | F79: 5697 | G79: EL SANTUARIO | H79: 4773 | I79: COMERCIO AL POR MAYOR Y AL POR MENOR; REPARACIÓN DE VEHÍCULOS AUTOMOTORES Y MOTOCICLETAS | P79: 454262 | V79: 0 | W79: 0 | X79: Natural | Y79: 5 | Z79: ANTIOQUIA | AA79: 5380 | AB79: LA ESTRELLA | AC79: 4752 | AD79: COMERCIO AL POR MAYOR Y AL POR MENOR; REPARACIÓN DE VEHÍCULOS AUTOMOTORES Y MOTOCICLETAS | AE79: 0 | AF79: 0 | AG79: 0 | AH79: 0 | AI79: 0 | AJ79: 0 | AK79: 800000 | AL79: 0 | AM79: 0 | AR79: 4729
C80: Natural | D80: 5 | E80: ANTIOQUIA | F80: 5001 | G80: MEDELLÍN | H80: 141 | I80: AGRICULTURA, GANADERÍA, CAZA, SILVICULTURA Y PESCA | P80: 0 | V80: 0 | W80: 0 | X80: Natural | Y80: 5 | Z80: ANTIOQUIA | AA80: 5240 | AB80: EBÉJICO | AC80: 4752 | AD80: COMERCIO AL POR MAYOR Y AL POR MENOR; REPARACIÓN DE VEHÍCULOS AUTOMOTORES Y MOTOCICLETAS | AE80: 0 | AF80: 0 | AG80: 0 | AH80: 0 | AI80: 0 | AJ80: 0 | AK80: 577131 | AL80: 0 | AM80: 0 | AR80: 7911
C81: Natural | D81: 11 | E81: BOGOTÁ, D.C. | F81: 11001 | G81: BOGOTÁ, D.C. | H81: 4652 | I81: COMERCIO AL POR MAYOR Y AL POR MENOR; REPARACIÓN DE VEHÍCULOS AUTOMOTORES Y MOTOCICLETAS | P81: 227131 | V81: 0 | W81: 0 | X81: Natural | Y81: 5 | Z81: ANTIOQUIA | AA81: 5887 | AB81: YARUMAL | AC81: 4631 | AD81: COMERCIO AL POR MAYOR Y AL POR MENOR; REPARACIÓN DE VEHÍCULOS AUTOMOTORES Y MOTOCICLETAS | AE81: 0 | AF81: 0 | AG81: 0 | AH81: 0 | AI81: 0 | AJ81: 0 | AK81: 15227131 | AL81: 0 | AM81: 0 | AR81: 1062
C82: Natural | D82: 54 | E82: NORTE DE SANTANDER | F82: 54001 | G82: CÚCUTA | H82: 4631 | I82: COMERCIO AL POR MAYOR Y AL POR MENOR; REPARACIÓN DE VEHÍCULOS AUTOMOTORES Y MOTOCICLETAS | P82: 454262 | V82: 0 | W82: 0 | X82: Natural | Y82: 5 | Z82: ANTIOQUIA | AA82: 5001 | AB82: MEDELLÍN | AC82: 4210 | AD82: CONSTRUCCIÓN | AE82: 0 | AF82: 0 | AG82: 0 | AH82: 0 | AI82: 0 | AJ82: 0 | AK82: 590539 | AL82: 0 | AM82: 0 | AR82: 8551
C83: Natural | D83: 11 | E83: BOGOTÁ, D.C. | F83: 11001 | G83: BOGOTÁ, D.C. | H83: 4530 | I83: COMERCIO AL POR MAYOR Y AL POR MENOR; REPARACIÓN DE VEHÍCULOS AUTOMOTORES Y MOTOCICLETAS | P83: 0 | V83: 0 | W83: 0 | X83: Natural | Y83: 5 | Z83: ANTIOQUIA | AA83: 5001 | AB83: MEDELLÍN | AC83: 1709 | AD83: INDUSTRIAS MANUFACTURERAS | AE83: 0 | AF83: 0 | AG83: 0 | AH83: 0 | AI83: 0 | AJ83: 0 | AK83: 0 | AL83: 0 | AM83: 0 | AR83: 1630
C84: Natural | D84: 5 | E84: ANTIOQUIA | F84: 5001 | G84: MEDELLÍN | H84: 6810 | I84: ACTIVIDADES INMOBILIARIAS | P84: 90852 | V84: 0 | W84: 0 | X84: Natural | Y84: 5 | Z84: ANTIOQUIA | AA84: 5360 | AB84: ITAGUI | AC84: 1011 | AD84: INDUSTRIAS MANUFACTURERAS | AE84: 0 | AF84: 0 | AG84: 0 | AH84: 0 | AI84: 0 | AJ84: 0 | AK84: 3406965 | AL84: 0 | AM84: 0 | AR84: 6910
C85: Natural | D85: 15 | E85: BOYACÁ | F85: 15667 | G85: SAN LUIS DE GACENO | H85: 4711 | I85: COMERCIO AL POR MAYOR Y AL POR MENOR; REPARACIÓN DE VEHÍCULOS AUTOMOTORES Y MOTOCICLETAS | P85: 0 | V85: 0 | W85: 0 | X85: Natural | Y85: 5 | Z85: ANTIOQUIA | AA85: 5887 | AB85: YARUMAL | AC85: 4799 | AD85: COMERCIO AL POR MAYOR Y AL POR MENOR; REPARACIÓN DE VEHÍCULOS AUTOMOTORES Y MOTOCICLETAS | AE85: 0 | AF85: 0 | AG85: 0 | AH85: 0 | AI85: 0 | AJ85: 0 | AK85: 0 | AL85: 0 | AM85: 0 | AR85: 3319
C86: Natural | D86: 15 | E86: BOYACÁ | F86: 15759 | G86: SOGAMOSO | H86: 8512 | I86: EDUCACIÓN | P86: 2950000 | V86: 0 | W86: 0 | X86: Natural | Y86: 5 | Z86: ANTIOQUIA | AA86: 5887 | AB86: YARUMAL | AC86: 4711 | AD86: COMERCIO AL POR MAYOR Y AL POR MENOR; REPARACIÓN DE VEHÍCULOS AUTOMOTORES Y MOTOCICLETAS | AE86: 0 | AF86: 0 | AG86: 0 | AH86: 0 | AI86: 0 | AJ86: 0 | AK86: 750000 | AL86: 0 | AM86: 0 | AR86: 3290
C87: Natural | D87: 15 | E87: BOYACÁ | F87: 15176 | G87: CHIQUINQUIRÁ | H87: 1081 | I87: INDUSTRIAS MANUFACTURERAS | P87: 3700000 | V87: 0 | W87: 0 | X87: Natural | Y87: 5 | Z87: ANTIOQUIA | AA87: 5887 | AB87: YARUMAL | AC87: 4690 | AD87: COMERCIO AL POR MAYOR Y AL POR MENOR; REPARACIÓN DE VEHÍCULOS AUTOMOTORES Y MOTOCICLETAS | AE87: 0 | AF87: 0 | AG87: 0 | AH87: 0 | AI87: 0 | AJ87: 0 | AK87: 22498441 | AL87: 0 | AM87: 0 | AR87: 9007
C88: Natural | D88: 11 | E88: BOGOTÁ, D.C. | F88: 11001 | G88: BOGOTÁ, D.C. | H88: 2920 | I88: INDUSTRIAS MANUFACTURERAS | P88: 1800000 | V88: 0 | W88: 0 | X88: Natural | Y88: 5 | Z88: ANTIOQUIA | AA88: 5679 | AB88: SANTA BÁRBARA | AC88: 4663 | AD88: COMERCIO AL POR MAYOR Y AL POR MENOR; REPARACIÓN DE VEHÍCULOS AUTOMOTORES Y MOTOCICLETAS | AE88: 0 | AF88: 0 | AG88: 0 | AH88: 0 | AI88: 0 | AJ88: 0 | AK88: 1740852 | AL88: 0 | AM88: 0 | AR88: 1313
C89: Natural | D89: 11 | E89: BOGOTÁ, D.C. | F89: 11001 | G89: BOGOTÁ, D.C. | H89: 1392 | I89: INDUSTRIAS MANUFACTURERAS | P89: 0 | V89: 0 | W89: 0 | X89: Natural | Y89: 5 | Z89: ANTIOQUIA | AA89: 5088 | AB89: BELLO | AC89: 4923 | AD89: TRANSPORTE Y ALMACENAMIENTO | AE89: 0 | AF89: 0 | AG89: 0 | AH89: 0 | AI89: 0 | AJ89: 0 | AK89: 0 | AL89: 0 | AM89: 0 | AR89: 4669
C90: Natural | D90: 15 | E90: BOYACÁ | F90: 15238 | G90: DUITAMA | H90: 4923 | I90: TRANSPORTE Y ALMACENAMIENTO | P90: 500000 | V90: 0 | W90: 0 | X90: Natural | Y90: 5 | Z90: ANTIOQUIA | AA90: 5631 | AB90: SABANETA | AC90: 5630 | AD90: ALOJAMIENTO Y SERVICIOS DE COMIDA | AE90: 0 | AF90: 0 | AG90: 0 | AH90: 0 | AI90: 0 | AJ90: 0 | AK90: 900000 | AL90: 0 | AM90: 0 | AR90: 2395
C91: Natural | D91: 85 | E91: CASANARE | F91: 85001 | G91: YOPAL | H91: 4542 | I91: COMERCIO AL POR MAYOR Y AL POR MENOR; REPARACIÓN DE VEHÍCULOS AUTOMOTORES Y MOTOCICLETAS | P91: 4181393 | V91: 0 | W91: 0 | X91: Natural | Y91: 5 | Z91: ANTIOQUIA | AA91: 5001 | AB91: MEDELLÍN | AC91: 4751 | AD91: COMERCIO AL POR MAYOR Y AL POR MENOR; REPARACIÓN DE VEHÍCULOS AUTOMOTORES Y MOTOCICLETAS | AE91: 0 | AF91: 0 | AG91: 0 | AH91: 0 | AI91: 0 | AJ91: 0 | AK91: 681393 | AL91: 0 | AM91: 0 | AR91: 3250
C92: Natural | D92: 15 | E92: BOYACÁ | F92: 15759 | G92: SOGAMOSO | H92: 2395 | I92: INDUSTRIAS MANUFACTURERAS | P92: 100000 | V92: 0 | W92: 0 | X92: Natural | Y92: 5 | Z92: ANTIOQUIA | AA92: 5001 | AB92: MEDELLÍN | AC92: 5511 | AD92: ALOJAMIENTO Y SERVICIOS DE COMIDA | AE92: 0 | AF92: 0 | AG92: 0 | AH92: 0 | AI92: 0 | AJ92: 0 | AK92: 600000 | AL92: 0 | AM92: 0 | AR92: 8692
C93: Natural | D93: 11 | E93: BOGOTÁ, D.C. | F93: 11001 | G93: BOGOTÁ, D.C. | H93: 4752 | I93: COMERCIO AL POR MAYOR Y AL POR MENOR; REPARACIÓN DE VEHÍCULOS AUTOMOTORES Y MOTOCICLETAS | P93: 0 | V93: 0 | W93: 0 | X93: Natural | Y93: 5 | Z93: ANTIOQUIA | AA93: 5266 | AB93: ENVIGADO | AC93: 141 | AD93: AGRICULTURA, GANADERÍA, CAZA, SILVICULTURA Y PESCA | AE93: 0 | AF93: 0 | AG93: 0 | AH93: 0 | AI93: 0 | AJ93: 0 | AK93: 0 | AL93: 0 | AM93: 0 | AR93: 4742
C94: Natural | D94: 11 | E94: BOGOTÁ, D.C. | F94: 11001 | G94: BOGOTÁ, D.C. | H94: 4663 | I94: COMERCIO AL POR MAYOR Y AL POR MENOR; REPARACIÓN DE VEHÍCULOS AUTOMOTORES Y MOTOCICLETAS | P94: 500000 | V94: 0 | W94: 0 | X94: Natural | Y94: 5 | Z94: ANTIOQUIA | AA94: 5615 | AB94: RIONEGRO | AC94: 5611 | AD94: ALOJAMIENTO Y SERVICIOS DE COMIDA | AE94: 0 | AF94: 0 | AG94: 0 | AH94: 0 | AI94: 0 | AJ94: 0 | AK94: 36200000 | AL94: 0 | AM94: 0 | AR94: 3210
C95: Natural | D95: 11 | E95: BOGOTÁ, D.C. | F95: 11001 | G95: BOGOTÁ, D.C. | H95: 4771 | I95: COMERCIO AL POR MAYOR Y AL POR MENOR; REPARACIÓN DE VEHÍCULOS AUTOMOTORES Y MOTOCICLETAS | P95: 0 | V95: 0 | W95: 0 | X95: Natural | Y95: 5 | Z95: ANTIOQUIA | AA95: 5376 | AB95: LA CEJA | AC95: 9522 | AD95: OTRAS ACTIVIDADES DE SERVICIOS | AE95: 0 | AF95: 0 | AG95: 0 | AH95: 0 | AI95: 0 | AJ95: 0 | AK95: 6586818 | AL95: 0 | AM95: 0 | AR95: 510
C96: Natural | D96: 15 | E96: BOYACÁ | F96: 15753 | G96: SOATÁ | H96: 4631 | I96: COMERCIO AL POR MAYOR Y AL POR MENOR; REPARACIÓN DE VEHÍCULOS AUTOMOTORES Y MOTOCICLETAS | P96: 381704 | V96: 0 | W96: 0 | X96: Natural | Y96: 5 | Z96: ANTIOQUIA | AA96: 5148 | AB96: EL CARMEN DE VIBORAL | AC96: 8130 | AD96: ACTIVIDADES DE SERVICIOS ADMINISTRATIVOS Y DE APOYO | AE96: 0 | AF96: 0 | AG96: 0 | AH96: 0 | AI96: 0 | AJ96: 0 | AK96: 4900000 | AL96: 0 | AM96: 0 | AR96: 8621
C97: Natural | D97: 54 | E97: NORTE DE SANTANDER | F97: 54874 | G97: VILLA DEL ROSARIO | H97: 5630 | I97: ALOJAMIENTO Y SERVICIOS DE COMIDA | P97: 0 | V97: 0 | W97: 0 | X97: Natural | Y97: 5 | Z97: ANTIOQUIA | AA97: 5761 | AB97: SOPETRÁN | AC97: 1081 | AD97: INDUSTRIAS MANUFACTURERAS | AE97: 0 | AF97: 0 | AG97: 0 | AH97: 0 | AI97: 0 | AJ97: 0 | AK97: 0 | AL97: 0 | AM97: 0 | AR97: 4775
C98: Natural | D98: 11 | E98: BOGOTÁ, D.C. | F98: 11001 | G98: BOGOTÁ, D.C. | H98: 1081 | I98: INDUSTRIAS MANUFACTURERAS | P98: 5658524 | V98: 0 | W98: 0 | X98: Natural | Y98: 5 | Z98: ANTIOQUIA | AA98: 5615 | AB98: RIONEGRO | AC98: 4732 | AD98: COMERCIO AL POR MAYOR Y AL POR MENOR; REPARACIÓN DE VEHÍCULOS AUTOMOTORES Y MOTOCICLETAS | AE98: 0 | AF98: 0 | AG98: 0 | AH98: 0 | AI98: 0 | AJ98: 0 | AK98: 5160000 | AL98: 0 | AM98: 0 | AR98: 119
C99: Natural | D99: 15 | E99: BOYACÁ | F99: 15759 | G99: SOGAMOSO | H99: 4923 | I99: TRANSPORTE Y ALMACENAMIENTO | P99: 1450000 | V99: 0 | W99: 0 | X99: Natural | Y99: 5 | Z99: ANTIOQUIA | AA99: 5615 | AB99: RIONEGRO | AC99: 4631 | AD99: COMERCIO AL POR MAYOR Y AL POR MENOR; REPARACIÓN DE VEHÍCULOS AUTOMOTORES Y MOTOCICLETAS | AE99: 0 | AF99: 0 | AG99: 0 | AH99: 0 | AI99: 0 | AJ99: 0 | AK99: 250000 | AL99: 0 | AM99: 0 | AR99: 4922
C100: Natural | D100: 11 | E100: BOGOTÁ, D.C. | F100: 11001 | G100: BOGOTÁ, D.C. | H100: 4923 | I100: TRANSPORTE Y ALMACENAMIENTO | P100: 2526818 | V100: 0 | W100: 0 | X100: Natural | Y100: 5 | Z100: ANTIOQUIA | AA100: 5001 | AB100: MEDELLÍN | AC100: 4711 | AD100: COMERCIO AL POR MAYOR Y AL POR MENOR; REPARACIÓN DE VEHÍCULOS AUTOMOTORES Y MOTOCICLETAS | AE100: 0 | AF100: 0 | AG100: 0 | AH100: 0 | AI100: 0 | AJ100: 0 | AK100: 1450000 | AL100: 0 | AM100: 0 | AR100: 4290
C101: Natural | D101: 85 | E101: CASANARE | F101: 85001 | G101: YOPAL | H101: 811 | I101: EXPLOTACIÓN DE MINAS Y CANTERAS | P101: 0 | V101: 0 | W101: 0 | X101: Natural | Y101: 5 | Z101: ANTIOQUIA | AA101: 5376 | AB101: LA CEJA | AC101: 4771 | AD101: COMERCIO AL POR MAYOR Y AL POR MENOR; REPARACIÓN DE VEHÍCULOS AUTOMOTORES Y MOTOCICLETAS | AE101: 0 | AF101: 0 | AG101: 0 | AH101: 0 | AI101: 0 | AJ101: 0 | AK101: 1704262 | AL101: 0 | AM101: 0 | AR101: 4731
C102: Natural | D102: 15 | E102: BOYACÁ | F102: 15808 | G102: TINJACÁ | H102: 4752 | I102: COMERCIO AL POR MAYOR Y AL POR MENOR; REPARACIÓN DE VEHÍCULOS AUTOMOTORES Y MOTOCICLETAS | P102: 0 | V102: 0 | W102: 0 | X102: Natural | Y102: 5 | Z102: ANTIOQUIA | AA102: 5615 | AB102: RIONEGRO | AC102: 6920 | AD102: ACTIVIDADES PROFESIONALES, CIENTÍFICAS Y TÉCNICAS | AE102: 0 | AF102: 0 | AG102: 0 | AH102: 0 | AI102: 0 | AJ102: 0 | AK102: 0 | AL102: 0 | AM102: 0 | AR102: 4322
C103: Natural | D103: 11 | E103: BOGOTÁ, D.C. | F103: 11001 | G103: BOGOTÁ, D.C. | H103: 2592 | I103: INDUSTRIAS MANUFACTURERAS | P103: 0 | V103: 0 | W103: 0 | X103: Natural | Y103: 5 | Z103: ANTIOQUIA | AA103: 5440 | AB103: MARINILLA | AC103: 6920 | AD103: ACTIVIDADES PROFESIONALES, CIENTÍFICAS Y TÉCNICAS | AE103: 0 | AF103: 0 | AG103: 0 | AH103: 0 | AI103: 0 | AJ103: 0 | AK103: 250000 | AL103: 0 | AM103: 0 | AR103: 113
C104: Natural | D104: 11 | E104: BOGOTÁ, D.C. | F104: 11001 | G104: BOGOTÁ, D.C. | H104: 5611 | I104: ALOJAMIENTO Y SERVICIOS DE COMIDA | P104: 1800000 | V104: 0 | W104: 0 | X104: Natural | Y104: 5 | Z104: ANTIOQUIA | AA104: 5148 | AB104: EL CARMEN DE VIBORAL | AC104: 1630 | AD104: INDUSTRIAS MANUFACTURERAS | AE104: 0 | AF104: 0 | AG104: 0 | AH104: 0 | AI104: 0 | AJ104: 0 | AK104: 0 | AL104: 0 | AM104: 0 | AR104: 2023
C105: Natural | D105: 18 | E105: CAQUETÁ | F105: 18001 | G105: FLORENCIA | H105: 4651 | I105: COMERCIO AL POR MAYOR Y AL POR MENOR; REPARACIÓN DE VEHÍCULOS AUTOMOTORES Y MOTOCICLETAS | P105: 0 | V105: 0 | W105: 0 | X105: Natural | Y105: 5 | Z105: ANTIOQUIA | AA105: 5376 | AB105: LA CEJA | AC105: 1610 | AD105: INDUSTRIAS MANUFACTURERAS | AE105: 0 | AF105: 0 | AG105: 0 | AH105: 0 | AI105: 0 | AJ105: 0 | AK105: 227131 | AL105: 0 | AM105: 0 | AR105: 8691
C106: Natural | D106: 5 | E106: ANTIOQUIA | F106: 5266 | G106: ENVIGADO | H106: 4541 | I106: COMERCIO AL POR MAYOR Y AL POR MENOR; REPARACIÓN DE VEHÍCULOS AUTOMOTORES Y MOTOCICLETAS | P106: 227131 | V106: 0 | W106: 0 | X106: Natural | Y106: 5 | Z106: ANTIOQUIA | AA106: 5615 | AB106: RIONEGRO | AC106: 7112 | AD106: ACTIVIDADES PROFESIONALES, CIENTÍFICAS Y TÉCNICAS | AE106: 0 | AF106: 0 | AG106: 0 | AH106: 0 | AI106: 0 | AJ106: 0 | AK106: 13104000 | AL106: 0 | AM106: 0 | AR106: 9609
C107: Natural | D107: 76 | E107: VALLE DEL CAUCA | F107: 76001 | G107: CALI | H107: 4530 | I107: COMERCIO AL POR MAYOR Y AL POR MENOR; REPARACIÓN DE VEHÍCULOS AUTOMOTORES Y MOTOCICLETAS | P107: 0 | V107: 0 | W107: 0 | X107: Natural | Y107: 5 | Z107: ANTIOQUIA | AA107: 5615 | AB107: RIONEGRO | AC107: 9700 | AD107: ACTIVIDADES DE LOS HOGARES INDIVIDUALES EN CALIDAD DE EMPLEADORES; ACTIVIDADES NO DIFERENCIADAS DE LOS HOGARES INDIVIDUALES COMO PRODUCTORES DE BIENES Y SERVICIOS PARA USO PROPIO | AE107: 0 | AF107: 0 | AG107: 0 | AH107: 0 | AI107: 0 | AJ107: 0 | AK107: 250000 | AL107: 0 | AM107: 0 | AR107: 7120
C108: Natural | D108: 17 | E108: CALDAS | F108: 17442 | G108: MARMATO | H108: 722 | I108: EXPLOTACIÓN DE MINAS Y CANTERAS | P108: 29442000 | V108: 0 | W108: 0 | X108: Natural | Y108: 5 | Z108: ANTIOQUIA | AA108: 5615 | AB108: RIONEGRO | AC108: 4111 | AD108: CONSTRUCCIÓN | AE108: 0 | AF108: 0 | AG108: 0 | AH108: 0 | AI108: 0 | AJ108: 0 | AK108: 600000 | AL108: 0 | AM108: 0 | AR108: 2599
C109: Natural | D109: 17 | E109: CALDAS | F109: 17442 | G109: MARMATO | H109: 722 | I109: EXPLOTACIÓN DE MINAS Y CANTERAS | P109: 33376000 | V109: 0 | W109: 0 | X109: Natural | Y109: 5 | Z109: ANTIOQUIA | AA109: 5615 | AB109: RIONEGRO | AC109: 4762 | AD109: COMERCIO AL POR MAYOR Y AL POR MENOR; REPARACIÓN DE VEHÍCULOS AUTOMOTORES Y MOTOCICLETAS | AE109: 0 | AF109: 0 | AG109: 0 | AH109: 0 | AI109: 0 | AJ109: 0 | AK109: 250000 | AL109: 0 | AM109: 0 | AR109: 1690
C110: Natural | D110: 50 | E110: META | F110: 50001 | G110: VILLAVICENCIO | H110: 4321 | I110: CONSTRUCCIÓN | P110: 1000000 | V110: 0 | W110: 0 | X110: Natural | Y110: 5 | Z110: ANTIOQUIA | AA110: 5615 | AB110: RIONEGRO | AC110: 4530 | AD110: COMERCIO AL POR MAYOR Y AL POR MENOR; REPARACIÓN DE VEHÍCULOS AUTOMOTORES Y MOTOCICLETAS | AE110: 0 | AF110: 0 | AG110: 0 | AH110: 0 | AI110: 0 | AJ110: 0 | AK110: 250000 | AL110: 0 | AM110: 0 | AR110: 7912
C111: Natural | D111: 66 | E111: RISARALDA | F111: 66001 | G111: PEREIRA | H111: 9609 | I111: OTRAS ACTIVIDADES DE SERVICIOS | P111: 1958522 | V111: 0 | W111: 0 | X111: Natural | Y111: 5 | Z111: ANTIOQUIA | AA111: 5615 | AB111: RIONEGRO | AC111: 6201 | AD111: INFORMACIÓN Y COMUNICACIONES | AE111: 0 | AF111: 0 | AG111: 0 | AH111: 0 | AI111: 0 | AJ111: 0 | AK111: 4536278 | AL111: 0 | AM111: 0 | AR111: 1020
C112: Natural | D112: 66 | E112: RISARALDA | F112: 66001 | G112: PEREIRA | H112: 4711 | I112: COMERCIO AL POR MAYOR Y AL POR MENOR; REPARACIÓN DE VEHÍCULOS AUTOMOTORES Y MOTOCICLETAS | P112: 0 | V112: 0 | W112: 0 | X112: Natural | Y112: 5 | Z112: ANTIOQUIA | AA112: 5615 | AB112: RIONEGRO | AC112: 4923 | AD112: TRANSPORTE Y ALMACENAMIENTO | AE112: 0 | AF112: 0 | AG112: 0 | AH112: 0 | AI112: 0 | AJ112: 0 | AK112: 5221393 | AL112: 0 | AM112: 0 | AR112: 5820
C113: Natural | D113: 66 | E113: RISARALDA | F113: 66594 | G113: QUINCHÍA | H113: 4711 | I113: COMERCIO AL POR MAYOR Y AL POR MENOR; REPARACIÓN DE VEHÍCULOS AUTOMOTORES Y MOTOCICLETAS | P113: 7150000 | V113: 0 | W113: 0 | X113: Natural | Y113: 5 | Z113: ANTIOQUIA | AA113: 5001 | AB113: MEDELLÍN | AC113: 4752 | AD113: COMERCIO AL POR MAYOR Y AL POR MENOR; REPARACIÓN DE VEHÍCULOS AUTOMOTORES Y MOTOCICLETAS | AE113: 0 | AF113: 0 | AG113: 0 | AH113: 0 | AI113: 0 | AJ113: 0 | AK113: 0 | AL113: 0 | AM113: 0 | AR113: 4220
C114: Natural | D114: 63 | E114: QUINDÍO | F114: 63001 | G114: ARMENIA | H114: 5611 | I114: ALOJAMIENTO Y SERVICIOS DE COMIDA | P114: 0 | V114: 0 | W114: 0 | X114: Natural | Y114: 5 | Z114: ANTIOQUIA | AA114: 5001 | AB114: MEDELLÍN | AC114: 8130 | AD114: ACTIVIDADES DE SERVICIOS ADMINISTRATIVOS Y DE APOYO | AE114: 0 | AF114: 0 | AG114: 0 | AH114: 0 | AI114: 0 | AJ114: 0 | AK114: 0 | AL114: 0 | AM114: 0 | AR114: 1811
C115: Natural | D115: 63 | E115: QUINDÍO | F115: 63001 | G115: ARMENIA | H115: 8530 | I115: EDUCACIÓN | P115: 0 | V115: 0 | W115: 0 | X115: Natural | Y115: 5 | Z115: ANTIOQUIA | AA115: 5129 | AB115: CALDAS | AC115: 5611 | AD115: ALOJAMIENTO Y SERVICIOS DE COMIDA | AE115: 0 | AF115: 0 | AG115: 0 | AH115: 0 | AI115: 0 | AJ115: 0 | AK115: 0 | AL115: 0 | AM115: 0 | AR115: 2930
C116: Natural | D116: 66 | E116: RISARALDA | F116: 66170 | G116: DOSQUEBRADAS | H116: 4775 | I116: COMERCIO AL POR MAYOR Y AL POR MENOR; REPARACIÓN DE VEHÍCULOS AUTOMOTORES Y MOTOCICLETAS | P116: 1000000 | V116: 0 | W116: 0 | X116: Natural | Y116: 5 | Z116: ANTIOQUIA | AA116: 5001 | AB116: MEDELLÍN | AC116: 5613 | AD116: ALOJAMIENTO Y SERVICIOS DE COMIDA | AE116: 0 | AF116: 0 | AG116: 0 | AH116: 0 | AI116: 0 | AJ116: 0 | AK116: 4093409 | AL116: 0 | AM116: 0 | AR116: 162
C117: Natural | D117: 66 | E117: RISARALDA | F117: 66170 | G117: DOSQUEBRADAS | H117: 6910 | I117: ACTIVIDADES PROFESIONALES, CIENTÍFICAS Y TÉCNICAS | P117: 6400000 | V117: 0 | W117: 0 | X117: Natural | Y117: 5 | Z117: ANTIOQUIA | AA117: 5001 | AB117: MEDELLÍN | AC117: 3110 | AD117: INDUSTRIAS MANUFACTURERAS | AE117: 0 | AF117: 0 | AG117: 0 | AH117: 0 | AI117: 0 | AJ117: 0 | AK117: 0 | AL117: 0 | AM117: 0 | AR117: 4330
C118: Natural | D118: 66 | E118: RISARALDA | F118: 66001 | G118: PEREIRA | H118: 4754 | I118: COMERCIO AL POR MAYOR Y AL POR MENOR; REPARACIÓN DE VEHÍCULOS AUTOMOTORES Y MOTOCICLETAS | P118: 11808000 | V118: 0 | W118: 0 | X118: Natural | Y118: 5 | Z118: ANTIOQUIA | AA118: 5045 | AB118: APARTADÓ | AC118: 4769 | AD118: COMERCIO AL POR MAYOR Y AL POR MENOR; REPARACIÓN DE VEHÍCULOS AUTOMOTORES Y MOTOCICLETAS | AE118: 0 | AF118: 0 | AG118: 0 | AH118: 0 | AI118: 0 | AJ118: 0 | AK118: 1654262 | AL118: 0 | AM118: 0 | AR118: 4754
C119: Natural | D119: 17 | E119: CALDAS | F119: 17777 | G119: SUPÍA | H119: 4759 | I119: COMERCIO AL POR MAYOR Y AL POR MENOR; REPARACIÓN DE VEHÍCULOS AUTOMOTORES Y MOTOCICLETAS | P119: 0 | V119: 0 | W119: 0 | X119: Natural | Y119: 5 | Z119: ANTIOQUIA | AA119: 5212 | AB119: COPACABANA | AC119: 4541 | AD119: COMERCIO AL POR MAYOR Y AL POR MENOR; REPARACIÓN DE VEHÍCULOS AUTOMOTORES Y MOTOCICLETAS | AE119: 0 | AF119: 0 | AG119: 0 | AH119: 0 | AI119: 0 | AJ119: 0 | AK119: 0 | AL119: 0 | AM119: 0 | AR119: 6020
C120: Natural | D120: 19 | E120: CAUCA | F120: 19001 | G120: POPAYÁN | H120: 4111 | I120: CONSTRUCCIÓN | P120: 0 | V120: 0 | W120: 0 | X120: Natural | Y120: 5 | Z120: ANTIOQUIA | AA120: 5631 | AB120: SABANETA | AC120: 4752 | AD120: COMERCIO AL POR MAYOR Y AL POR MENOR; REPARACIÓN DE VEHÍCULOS AUTOMOTORES Y MOTOCICLETAS | AE120: 0 | AF120: 0 | AG120: 0 | AH120: 0 | AI120: 0 | AJ120: 0 | AK120: 0 | AL120: 0 | AM120: 0 | AR120: 161
C121: Natural | D121: 18 | E121: CAQUETÁ | F121: 18205 | G121: CURILLO | H121: 1040 | I121: INDUSTRIAS MANUFACTURERAS | P121: 12232000 | V121: 0 | W121: 0 | X121: Natural | Y121: 5 | Z121: ANTIOQUIA | AA121: 5001 | AB121: MEDELLÍN | AC121: 8110 | AD121: ACTIVIDADES DE SERVICIOS ADMINISTRATIVOS Y DE APOYO | AE121: 0 | AF121: 0 | AG121: 0 | AH121: 0 | AI121: 0 | AJ121: 0 | AK121: 700000 | AL121: 0 | AM121: 0 | AR121: 1082
C122: Natural | D122: 19 | E122: CAUCA | F122: 19001 | G122: POPAYÁN | H122: 8559 | I122: EDUCACIÓN | P122: 317982 | V122: 0 | W122: 0 | X122: Natural | Y122: 5 | Z122: ANTIOQUIA | AA122: 5154 | AB122: CAUCASIA | AC122: 141 | AD122: AGRICULTURA, GANADERÍA, CAZA, SILVICULTURA Y PESCA | AE122: 0 | AF122: 0 | AG122: 0 | AH122: 0 | AI122: 0 | AJ122: 0 | AK122: 2380000 | AL122: 0 | AM122: 0 | AR122: 7020
C123: Natural | D123: 19 | E123: CAUCA | F123: 19698 | G123: SANTANDER DE QUILICHAO | H123: 4719 | I123: COMERCIO AL POR MAYOR Y AL POR MENOR; REPARACIÓN DE VEHÍCULOS AUTOMOTORES Y MOTOCICLETAS | P123: 0 | V123: 0 | W123: 0 | X123: Natural | Y123: 5 | Z123: ANTIOQUIA | AA123: 5318 | AB123: GUARNE | AC123: 4620 | AD123: COMERCIO AL POR MAYOR Y AL POR MENOR; REPARACIÓN DE VEHÍCULOS AUTOMOTORES Y MOTOCICLETAS | AE123: 0 | AF123: 0 | AG123: 0 | AH123: 0 | AI123: 0 | AJ123: 0 | AK123: 454262 | AL123: 0 | AM123: 0 | AR123: 4321
C124: Natural | D124: 76 | E124: VALLE DEL CAUCA | F124: 76001 | G124: CALI | H124: 4752 | I124: COMERCIO AL POR MAYOR Y AL POR MENOR; REPARACIÓN DE VEHÍCULOS AUTOMOTORES Y MOTOCICLETAS | P124: 7748441 | V124: 0 | W124: 0 | X124: Natural | Y124: 5 | Z124: ANTIOQUIA | AA124: 5001 | AB124: MEDELLÍN | AC124: 4530 | AD124: COMERCIO AL POR MAYOR Y AL POR MENOR; REPARACIÓN DE VEHÍCULOS AUTOMOTORES Y MOTOCICLETAS | AE124: 0 | AF124: 0 | AG124: 0 | AH124: 0 | AI124: 0 | AJ124: 0 | AK124: 0 | AL124: 0 | AM124: 0 | AR124: 2219
C125: Natural | D125: 76 | E125: VALLE DEL CAUCA | F125: 76001 | G125: CALI | H125: 7730 | I125: ACTIVIDADES DE SERVICIOS ADMINISTRATIVOS Y DE APOYO | P125: 0 | V125: 0 | W125: 0 | X125: Natural | Y125: 5 | Z125: ANTIOQUIA | AA125: 5001 | AB125: MEDELLÍN | AC125: 4774 | AD125: COMERCIO AL POR MAYOR Y AL POR MENOR; REPARACIÓN DE VEHÍCULOS AUTOMOTORES Y MOTOCICLETAS | AE125: 0 | AF125: 0 | AG125: 0 | AH125: 0 | AI125: 0 | AJ125: 0 | AK125: 454262 | AL125: 0 | AM125: 0 | AR125: 8211
C126: Natural | D126: 41 | E126: HUILA | F126: 41807 | G126: TIMANÁ | H126: 4711 | I126: COMERCIO AL POR MAYOR Y AL POR MENOR; REPARACIÓN DE VEHÍCULOS AUTOMOTORES Y MOTOCICLETAS | P126: 0 | V126: 0 | W126: 0 | X126: Natural | Y126: 5 | Z126: ANTIOQUIA | AA126: 5001 | AB126: MEDELLÍN | AC126: 1313 | AD126: INDUSTRIAS MANUFACTURERAS | AE126: 0 | AF126: 0 | AG126: 0 | AH126: 0 | AI126: 0 | AJ126: 0 | AK126: 0 | AL126: 0 | AM126: 0 | AR126: 9511
C127: Natural | D127: 41 | E127: HUILA | F127: 41001 | G127: NEIVA | H127: 4752 | I127: COMERCIO AL POR MAYOR Y AL POR MENOR; REPARACIÓN DE VEHÍCULOS AUTOMOTORES Y MOTOCICLETAS | P127: 12050000 | V127: 0 | W127: 0 | X127: Natural | Y127: 5 | Z127: ANTIOQUIA | AA127: 5001 | AB127: MEDELLÍN | AC127: 1081 | AD127: INDUSTRIAS MANUFACTURERAS | AE127: 0 | AF127: 0 | AG127: 0 | AH127: 0 | AI127: 0 | AJ127: 0 | AK127: 1800000 | AL127: 0 | AM127: 0 | AR127: 4921
C128: Natural | D128: 41 | E128: HUILA | F128: 41001 | G128: NEIVA | H128: 4711 | I128: COMERCIO AL POR MAYOR Y AL POR MENOR; REPARACIÓN DE VEHÍCULOS AUTOMOTORES Y MOTOCICLETAS | P128: 227131 | V128: 0 | W128: 0 | X128: Natural | Y128: 5 | Z128: ANTIOQUIA | AA128: 5001 | AB128: MEDELLÍN | AC128: 1051 | AD128: INDUSTRIAS MANUFACTURERAS | AE128: 0 | AF128: 0 | AG128: 0 | AH128: 0 | AI128: 0 | AJ128: 0 | AK128: 0 | AL128: 0 | AM128: 0 | AR128: 8560
C129: Natural | D129: 41 | E129: HUILA | F129: 41551 | G129: PITALITO | H129: 4754 | I129: COMERCIO AL POR MAYOR Y AL POR MENOR; REPARACIÓN DE VEHÍCULOS AUTOMOTORES Y MOTOCICLETAS | P129: 363409 | V129: 0 | W129: 0 | X129: Natural | Y129: 5 | Z129: ANTIOQUIA | AA129: 5059 | AB129: ARMENIA | AC129: 4721 | AD129: COMERCIO AL POR MAYOR Y AL POR MENOR; REPARACIÓN DE VEHÍCULOS AUTOMOTORES Y MOTOCICLETAS | AE129: 0 | AF129: 0 | AG129: 0 | AH129: 0 | AI129: 0 | AJ129: 0 | AK129: 0 | AL129: 0 | AM129: 0 | AR129: 7310
C130: Natural | D130: 41 | E130: HUILA | F130: 41551 | G130: PITALITO | H130: 4620 | I130: COMERCIO AL POR MAYOR Y AL POR MENOR; REPARACIÓN DE VEHÍCULOS AUTOMOTORES Y MOTOCICLETAS | P130: 1000000 | V130: 0 | W130: 0 | X130: Natural | Y130: 5 | Z130: ANTIOQUIA | AA130: 5045 | AB130: APARTADÓ | AC130: 1089 | AD130: INDUSTRIAS MANUFACTURERAS | AE130: 0 | AF130: 0 | AG130: 0 | AH130: 0 | AI130: 0 | AJ130: 0 | AK130: 16812371 | AL130: 0 | AM130: 0 | AR130: 4755
C131: Natural | D131: 54 | E131: NORTE DE SANTANDER | F131: 54498 | G131: OCAÑA | H131: 4541 | I131: COMERCIO AL POR MAYOR Y AL POR MENOR; REPARACIÓN DE VEHÍCULOS AUTOMOTORES Y MOTOCICLETAS | P131: 1181393 | V131: 0 | W131: 0 | X131: Natural | Y131: 5 | Z131: ANTIOQUIA | AA131: 5001 | AB131: MEDELLÍN | AC131: 1081 | AD131: INDUSTRIAS MANUFACTURERAS | AE131: 0 | AF131: 0 | AG131: 0 | AH131: 0 | AI131: 0 | AJ131: 0 | AK131: 500000 | AL131: 0 | AM131: 0 | AR131: 9524
C132: Natural | D132: 20 | E132: CESAR | F132: 20011 | G132: AGUACHICA | H132: 4759 | I132: COMERCIO AL POR MAYOR Y AL POR MENOR; REPARACIÓN DE VEHÍCULOS AUTOMOTORES Y MOTOCICLETAS | P132: 0 | V132: 0 | W132: 0 | X132: Natural | Y132: 5 | Z132: ANTIOQUIA | AA132: 5001 | AB132: MEDELLÍN | AC132: 5611 | AD132: ALOJAMIENTO Y SERVICIOS DE COMIDA | AE132: 0 | AF132: 0 | AG132: 0 | AH132: 0 | AI132: 0 | AJ132: 0 | AK132: 250000 | AL132: 0 | AM132: 0 | AR132: 6202
C133: Natural | D133: 52 | E133: NARIÑO | F133: 52001 | G133: PASTO | H133: 4530 | I133: COMERCIO AL POR MAYOR Y AL POR MENOR; REPARACIÓN DE VEHÍCULOS AUTOMOTORES Y MOTOCICLETAS | P133: 0 | V133: 0 | W133: 0 | X133: Natural | Y133: 5 | Z133: ANTIOQUIA | AA133: 5030 | AB133: AMAGÁ | AC133: 4661 | AD133: COMERCIO AL POR MAYOR Y AL POR MENOR; REPARACIÓN DE VEHÍCULOS AUTOMOTORES Y MOTOCICLETAS | AE133: 0 | AF133: 0 | AG133: 0 | AH133: 0 | AI133: 0 | AJ133: 0 | AK133: 0 | AL133: 0 | AM133: 0 | AR133: 4659
C134: Natural | D134: 52 | E134: NARIÑO | F134: 52001 | G134: PASTO | H134: 4752 | I134: COMERCIO AL POR MAYOR Y AL POR MENOR; REPARACIÓN DE VEHÍCULOS AUTOMOTORES Y MOTOCICLETAS | P134: 0 | V134: 0 | W134: 0 | X134: Natural | Y134: 5 | Z134: ANTIOQUIA | AA134: 5001 | AB134: MEDELLÍN | AC134: 5611 | AD134: ALOJAMIENTO Y SERVICIOS DE COMIDA | AE134: 0 | AF134: 0 | AG134: 0 | AH134: 0 | AI134: 0 | AJ134: 0 | AK134: 0 | AL134: 0 | AM134: 0 | AR134: 1311
C135: Natural | D135: 52 | E135: NARIÑO | F135: 52001 | G135: PASTO | H135: 5512 | I135: ALOJAMIENTO Y SERVICIOS DE COMIDA | P135: 0 | V135: 0 | W135: 0 | X135: Natural | Y135: 5 | Z135: ANTIOQUIA | AA135: 5001 | AB135: MEDELLÍN | AC135: 4290 | AD135: CONSTRUCCIÓN | AE135: 0 | AF135: 0 | AG135: 0 | AH135: 0 | AI135: 0 | AJ135: 0 | AK135: 0 | AL135: 0 | AM135: 0 | AR135: 322
C136: Natural | D136: 52 | E136: NARIÑO | F136: 52317 | G136: GUACHUCAL | H136: 4731 | I136: COMERCIO AL POR MAYOR Y AL POR MENOR; REPARACIÓN DE VEHÍCULOS AUTOMOTORES Y MOTOCICLETAS | P136: 1750000 | V136: 0 | W136: 0 | X136: Natural | Y136: 5 | Z136: ANTIOQUIA | AA136: 5001 | AB136: MEDELLÍN | AC136: 1410 | AD136: INDUSTRIAS MANUFACTURERAS | AE136: 0 | AF136: 0 | AG136: 0 | AH136: 0 | AI136: 0 | AJ136: 0 | AK136: 12083338 | AL136: 0 | AM136: 0 | AR136: 8010
C137: Natural | D137: 52 | E137: NARIÑO | F137: 52001 | G137: PASTO | H137: 4731 | I137: COMERCIO AL POR MAYOR Y AL POR MENOR; REPARACIÓN DE VEHÍCULOS AUTOMOTORES Y MOTOCICLETAS | P137: 0 | V137: 0 | W137: 0 | X137: Natural | Y137: 5 | Z137: ANTIOQUIA | AA137: 5264 | AB137: ENTRERRIOS | AC137: 6920 | AD137: ACTIVIDADES PROFESIONALES, CIENTÍFICAS Y TÉCNICAS | AE137: 0 | AF137: 0 | AG137: 0 | AH137: 0 | AI137: 0 | AJ137: 0 | AK137: 227131 | AL137: 0 | AM137: 0 | AR137: 5530
C138: Natural | D138: 52 | E138: NARIÑO | F138: 52001 | G138: PASTO | H138: 7500 | I138: ACTIVIDADES PROFESIONALES, CIENTÍFICAS Y TÉCNICAS | P138: 0 | V138: 0 | W138: 0 | X138: Natural | Y138: 5 | Z138: ANTIOQUIA | AA138: 5001 | AB138: MEDELLÍN | AC138: 5612 | AD138: ALOJAMIENTO Y SERVICIOS DE COMIDA | AE138: 0 | AF138: 0 | AG138: 0 | AH138: 0 | AI138: 0 | AJ138: 0 | AK138: 4685965 | AL138: 0 | AM138: 0 | AR138: 7730
C139: Natural | D139: 52 | E139: NARIÑO | F139: 52560 | G139: POTOSÍ | H139: 1040 | I139: INDUSTRIAS MANUFACTURERAS | P139: 1650000 | V139: 0 | W139: 0 | X139: Natural | Y139: 5 | Z139: ANTIOQUIA | AA139: 5266 | AB139: ENVIGADO | AC139: 1081 | AD139: INDUSTRIAS MANUFACTURERAS | AE139: 0 | AF139: 0 | AG139: 0 | AH139: 0 | AI139: 0 | AJ139: 0 | AK139: 0 | AL139: 0 | AM139: 0 | AR139: 4112
C140: Natural | D140: 52 | E140: NARIÑO | F140: 52683 | G140: SANDONÁ | H140: 4711 | I140: COMERCIO AL POR MAYOR Y AL POR MENOR; REPARACIÓN DE VEHÍCULOS AUTOMOTORES Y MOTOCICLETAS | P140: 250000 | V140: 0 | W140: 0 | X140: Natural | Y140: 5 | Z140: ANTIOQUIA | AA140: 5360 | AB140: ITAGUI | AC140: 8121 | AD140: ACTIVIDADES DE SERVICIOS ADMINISTRATIVOS Y DE APOYO | AE140: 0 | AF140: 0 | AG140: 0 | AH140: 0 | AI140: 0 | AJ140: 0 | AK140: 1400000 | AL140: 0 | AM140: 0 | AR140: 1392
C141: Natural | D141: 54 | E141: NORTE DE SANTANDER | F141: 54001 | G141: CÚCUTA | H141: 2599 | I141: INDUSTRIAS MANUFACTURERAS | P141: 227131 | V141: 0 | W141: 0 | X141: Natural | Y141: 5 | Z141: ANTIOQUIA | AA141: 5615 | AB141: RIONEGRO | AC141: 5511 | AD141: ALOJAMIENTO Y SERVICIOS DE COMIDA | AE141: 0 | AF141: 0 | AG141: 0 | AH141: 0 | AI141: 0 | AJ141: 0 | AK141: 4550000 | AL141: 0 | AM141: 0 | AR141: 125
C142: Natural | D142: 54 | E142: NORTE DE SANTANDER | F142: 54001 | G142: CÚCUTA | H142: 4923 | I142: TRANSPORTE Y ALMACENAMIENTO | P142: 250000 | V142: 0 | W142: 0 | X142: Natural | Y142: 5 | Z142: ANTIOQUIA | AA142: 5264 | AB142: ENTRERRIOS | AC142: 141 | AD142: AGRICULTURA, GANADERÍA, CAZA, SILVICULTURA Y PESCA | AE142: 0 | AF142: 0 | AG142: 0 | AH142: 0 | AI142: 0 | AJ142: 0 | AK142: 2910000 | AL142: 0 | AM142: 0 | AR142: 4511
C143: Natural | D143: 54 | E143: NORTE DE SANTANDER | F143: 54498 | G143: OCAÑA | H143: 4923 | I143: TRANSPORTE Y ALMACENAMIENTO | P143: 0 | V143: 0 | W143: 0 | X143: Natural | Y143: 5 | Z143: ANTIOQUIA | AA143: 5001 | AB143: MEDELLÍN | AC143: 4541 | AD143: COMERCIO AL POR MAYOR Y AL POR MENOR; REPARACIÓN DE VEHÍCULOS AUTOMOTORES Y MOTOCICLETAS | AE143: 0 | AF143: 0 | AG143: 0 | AH143: 0 | AI143: 0 | AJ143: 0 | AK143: 2550000 | AL143: 0 | AM143: 0 | AR143: 8610
C144: Natural | D144: 54 | E144: NORTE DE SANTANDER | F144: 54518 | G144: PAMPLONA | H144: 5611 | I144: ALOJAMIENTO Y SERVICIOS DE COMIDA | P144: 23084262 | V144: 0 | W144: 0 | X144: Natural | Y144: 5 | Z144: ANTIOQUIA | AA144: 5001 | AB144: MEDELLÍN | AC144: 4771 | AD144: COMERCIO AL POR MAYOR Y AL POR MENOR; REPARACIÓN DE VEHÍCULOS AUTOMOTORES Y MOTOCICLETAS | AE144: 0 | AF144: 0 | AG144: 0 | AH144: 0 | AI144: 0 | AJ144: 0 | AK144: 0 | AL144: 0 | AM144: 0 | AR144: 7820
C145: Natural | D145: 54 | E145: NORTE DE SANTANDER | F145: 54001 | G145: CÚCUTA | H145: 4752 | I145: COMERCIO AL POR MAYOR Y AL POR MENOR; REPARACIÓN DE VEHÍCULOS AUTOMOTORES Y MOTOCICLETAS | P145: 100000 | V145: 0 | W145: 0 | X145: Natural | Y145: 5 | Z145: ANTIOQUIA | AA145: 5001 | AB145: MEDELLÍN | AC145: 4752 | AD145: COMERCIO AL POR MAYOR Y AL POR MENOR; REPARACIÓN DE VEHÍCULOS AUTOMOTORES Y MOTOCICLETAS | AE145: 0 | AF145: 0 | AG145: 0 | AH145: 0 | AI145: 0 | AJ145: 0 | AK145: 200000 | AL145: 0 | AM145: 0 | AR145: 1063
C146: Natural | D146: 68 | E146: SANTANDER | F146: 68001 | G146: BUCARAMANGA | H146: 1610 | I146: INDUSTRIAS MANUFACTURERAS | P146: 250000 | V146: 0 | W146: 0 | X146: Natural | Y146: 5 | Z146: ANTIOQUIA | AA146: 5376 | AB146: LA CEJA | AC146: 5611 | AD146: ALOJAMIENTO Y SERVICIOS DE COMIDA | AE146: 0 | AF146: 0 | AG146: 0 | AH146: 0 | AI146: 0 | AJ146: 0 | AK146: 817671 | AL146: 0 | AM146: 0 | AR146: 1620
C147: Natural | D147: 11 | E147: BOGOTÁ, D.C. | F147: 11001 | G147: BOGOTÁ, D.C. | H147: 1410 | I147: INDUSTRIAS MANUFACTURERAS | P147: 0 | V147: 0 | W147: 0 | X147: Natural | Y147: 5 | Z147: ANTIOQUIA | AA147: 5656 | AB147: SAN JERÓNIMO | AC147: 4759 | AD147: COMERCIO AL POR MAYOR Y AL POR MENOR; REPARACIÓN DE VEHÍCULOS AUTOMOTORES Y MOTOCICLETAS | AE147: 0 | AF147: 0 | AG147: 0 | AH147: 0 | AI147: 0 | AJ147: 0 | AK147: 5184000 | AL147: 0 | AM147: 0 | AR147: 2229
C148: Natural | D148: 11 | E148: BOGOTÁ, D.C. | F148: 11001 | G148: BOGOTÁ, D.C. | H148: 4773 | I148: COMERCIO AL POR MAYOR Y AL POR MENOR; REPARACIÓN DE VEHÍCULOS AUTOMOTORES Y MOTOCICLETAS | P148: 0 | V148: 0 | W148: 0 | X148: Natural | Y148: 5 | Z148: ANTIOQUIA | AA148: 5628 | AB148: SABANALARGA | AC148: 4719 | AD148: COMERCIO AL POR MAYOR Y AL POR MENOR; REPARACIÓN DE VEHÍCULOS AUTOMOTORES Y MOTOCICLETAS | AE148: 0 | AF148: 0 | AG148: 0 | AH148: 0 | AI148: 0 | AJ148: 0 | AK148: 5222243 | AL148: 0 | AM148: 0 | AR148: 7110
C149: Natural | D149: 68 | E149: SANTANDER | F149: 68001 | G149: BUCARAMANGA | H149: 4774 | I149: COMERCIO AL POR MAYOR Y AL POR MENOR; REPARACIÓN DE VEHÍCULOS AUTOMOTORES Y MOTOCICLETAS | P149: 6250000 | V149: 0 | W149: 0 | X149: Natural | Y149: 5 | Z149: ANTIOQUIA | AA149: 5088 | AB149: BELLO | AC149: 8530 | AD149: EDUCACIÓN | AE149: 0 | AF149: 0 | AG149: 0 | AH149: 0 | AI149: 0 | AJ149: 0 | AK149: 0 | AL149: 0 | AM149: 0 | AR149: 5229
C150: Natural | D150: 68 | E150: SANTANDER | F150: 68001 | G150: BUCARAMANGA | H150: 4729 | I150: COMERCIO AL POR MAYOR Y AL POR MENOR; REPARACIÓN DE VEHÍCULOS AUTOMOTORES Y MOTOCICLETAS | P150: 0 | V150: 0 | W150: 0 | X150: Natural | Y150: 5 | Z150: ANTIOQUIA | AA150: 5360 | AB150: ITAGUI | AC150: 4771 | AD150: COMERCIO AL POR MAYOR Y AL POR MENOR; REPARACIÓN DE VEHÍCULOS AUTOMOTORES Y MOTOCICLETAS | AE150: 0 | AF150: 0 | AG150: 0 | AH150: 0 | AI150: 0 | AJ150: 0 | AK150: 2830000 | AL150: 0 | AM150: 0 | AR150: 5629
C151: Natural | D151: 68 | E151: SANTANDER | F151: 68307 | G151: GIRÓN | H151: 8513 | I151: EDUCACIÓN | P151: 0 | V151: 0 | W151: 0 | X151: Natural | Y151: 5 | Z151: ANTIOQUIA | AA151: 5360 | AB151: ITAGUI | AC151: 1020 | AD151: INDUSTRIAS MANUFACTURERAS | AE151: 0 | AF151: 0 | AG151: 0 | AH151: 0 | AI151: 0 | AJ151: 0 | AK151: 0 | AL151: 0 | AM151: 0 | AR151: 3315
C152: Natural | D152: 11 | E152: BOGOTÁ, D.C. | F152: 11001 | G152: BOGOTÁ, D.C. | H152: 4732 | I152: COMERCIO AL POR MAYOR Y AL POR MENOR; REPARACIÓN DE VEHÍCULOS AUTOMOTORES Y MOTOCICLETAS | P152: 11866421 | V152: 0 | W152: 0 | X152: Natural | Y152: 5 | Z152: ANTIOQUIA | AA152: 5480 | AB152: MUTATÁ | AC152: 4752 | AD152: COMERCIO AL POR MAYOR Y AL POR MENOR; REPARACIÓN DE VEHÍCULOS AUTOMOTORES Y MOTOCICLETAS | AE152: 0 | AF152: 0 | AG152: 0 | AH152: 0 | AI152: 0 | AJ152: 0 | AK152: 0 | AL152: 0 | AM152: 0 | AR152: 5021
C153: Natural | D153: 54 | E153: NORTE DE SANTANDER | F153: 54001 | G153: CÚCUTA | H153: 1410 | I153: INDUSTRIAS MANUFACTURERAS | P153: 1158524 | V153: 0 | W153: 0 | X153: Natural | Y153: 5 | Z153: ANTIOQUIA | AA153: 5001 | AB153: MEDELLÍN | AC153: 4754 | AD153: COMERCIO AL POR MAYOR Y AL POR MENOR; REPARACIÓN DE VEHÍCULOS AUTOMOTORES Y MOTOCICLETAS | AE153: 0 | AF153: 0 | AG153: 0 | AH153: 0 | AI153: 0 | AJ153: 0 | AK153: 0 | AL153: 0 | AM153: 0 | AR153: 5320
C154: Natural | D154: 68 | E154: SANTANDER | F154: 68001 | G154: BUCARAMANGA | H154: 7420 | I154: ACTIVIDADES PROFESIONALES, CIENTÍFICAS Y TÉCNICAS | P154: 2870000 | V154: 0 | W154: 0 | X154: Natural | Y154: 5 | Z154: ANTIOQUIA | AA154: 5001 | AB154: MEDELLÍN | AC154: 4761 | AD154: COMERCIO AL POR MAYOR Y AL POR MENOR; REPARACIÓN DE VEHÍCULOS AUTOMOTORES Y MOTOCICLETAS | AE154: 0 | AF154: 0 | AG154: 0 | AH154: 0 | AI154: 0 | AJ154: 0 | AK154: 5016000 | AL154: 0 | AM154: 0 | AR154: 8699
C155: Natural | D155: 68 | E155: SANTANDER | F155: 68547 | G155: PIEDECUESTA | H155: 1410 | I155: INDUSTRIAS MANUFACTURERAS | P155: 0 | V155: 0 | W155: 0 | X155: Natural | Y155: 5 | Z155: ANTIOQUIA | AA155: 5001 | AB155: MEDELLÍN | AC155: 5613 | AD155: ALOJAMIENTO Y SERVICIOS DE COMIDA | AE155: 0 | AF155: 0 | AG155: 0 | AH155: 0 | AI155: 0 | AJ155: 0 | AK155: 1000000 | AL155: 0 | AM155: 0 | AR155: 3312
C156: Natural | D156: 68 | E156: SANTANDER | F156: 68081 | G156: BARRANCABERMEJA | H156: 4731 | I156: COMERCIO AL POR MAYOR Y AL POR MENOR; REPARACIÓN DE VEHÍCULOS AUTOMOTORES Y MOTOCICLETAS | P156: 0 | V156: 0 | W156: 0 | X156: Natural | Y156: 5 | Z156: ANTIOQUIA | AA156: 5059 | AB156: ARMENIA | AC156: 4520 | AD156: COMERCIO AL POR MAYOR Y AL POR MENOR; REPARACIÓN DE VEHÍCULOS AUTOMOTORES Y MOTOCICLETAS | AE156: 0 | AF156: 0 | AG156: 0 | AH156: 0 | AI156: 0 | AJ156: 0 | AK156: 0 | AL156: 0 | AM156: 0 | AR156: 2014
C157: Natural | D157: 68 | E157: SANTANDER | F157: 68679 | G157: SAN GIL | H157: 4711 | I157: COMERCIO AL POR MAYOR Y AL POR MENOR; REPARACIÓN DE VEHÍCULOS AUTOMOTORES Y MOTOCICLETAS | P157: 22200000 | V157: 0 | W157: 0 | X157: Natural | Y157: 5 | Z157: ANTIOQUIA | AA157: 5360 | AB157: ITAGUI | AC157: 8121 | AD157: ACTIVIDADES DE SERVICIOS ADMINISTRATIVOS Y DE APOYO | AE157: 0 | AF157: 0 | AG157: 0 | AH157: 0 | AI157: 0 | AJ157: 0 | AK157: 14308521 | AL157: 0 | AM157: 0 | AR157: 1521
C158: Natural | D158: 11 | E158: BOGOTÁ, D.C. | F158: 11001 | G158: BOGOTÁ, D.C. | H158: 4723 | I158: COMERCIO AL POR MAYOR Y AL POR MENOR; REPARACIÓN DE VEHÍCULOS AUTOMOTORES Y MOTOCICLETAS | P158: 0 | V158: 0 | W158: 0 | X158: Natural | Y158: 5 | Z158: ANTIOQUIA | AA158: 5360 | AB158: ITAGUI | AC158: 3240 | AD158: INDUSTRIAS MANUFACTURERAS | AE158: 0 | AF158: 0 | AG158: 0 | AH158: 0 | AI158: 0 | AJ158: 0 | AK158: 2580000 | AL158: 0 | AM158: 0 | AR158: 4651
C159: Natural | D159: 5 | E159: ANTIOQUIA | F159: 5001 | G159: MEDELLÍN | H159: 4390 | I159: CONSTRUCCIÓN | P159: 0 | V159: 0 | W159: 0 | X159: Natural | Y159: 5 | Z159: ANTIOQUIA | AA159: 5001 | AB159: MEDELLÍN | AC159: 4762 | AD159: COMERCIO AL POR MAYOR Y AL POR MENOR; REPARACIÓN DE VEHÍCULOS AUTOMOTORES Y MOTOCICLETAS | AE159: 0 | AF159: 0 | AG159: 0 | AH159: 0 | AI159: 0 | AJ159: 0 | AK159: 1250000 | AL159: 0 | AM159: 0 | AR159: 6499
C160: Natural | D160: 68 | E160: SANTANDER | F160: 68861 | G160: VÉLEZ | H160: 1089 | I160: INDUSTRIAS MANUFACTURERAS | P160: 954262 | V160: 0 | W160: 0 | X160: Natural | Y160: 5 | Z160: ANTIOQUIA | AA160: 5001 | AB160: MEDELLÍN | AC160: 8622 | AD160: ACTIVIDADES DE ATENCIÓN DE LA SALUD HUMANA Y DE ASISTENCIA SOCIAL | AE160: 0 | AF160: 0 | AG160: 0 | AH160: 0 | AI160: 0 | AJ160: 0 | AK160: 727131 | AL160: 0 | AM160: 0 | AR160: 5223
C161: Natural | D161: 68 | E161: SANTANDER | F161: 68001 | G161: BUCARAMANGA | H161: 6621 | I161: ACTIVIDADES FINANCIERAS Y DE SEGUROS | P161: 0 | V161: 0 | W161: 0 | X161: Natural | Y161: 5 | Z161: ANTIOQUIA | AA161: 5686 | AB161: SANTA ROSA DE OSOS | AC161: 4771 | AD161: COMERCIO AL POR MAYOR Y AL POR MENOR; REPARACIÓN DE VEHÍCULOS AUTOMOTORES Y MOTOCICLETAS | AE161: 0 | AF161: 0 | AG161: 0 | AH161: 0 | AI161: 0 | AJ161: 0 | AK161: 2410000 | AL161: 0 | AM161: 0 | AR161: 9499
C162: Natural | D162: 68 | E162: SANTANDER | F162: 68001 | G162: BUCARAMANGA | H162: 4711 | I162: COMERCIO AL POR MAYOR Y AL POR MENOR; REPARACIÓN DE VEHÍCULOS AUTOMOTORES Y MOTOCICLETAS | P162: 1000000 | V162: 0 | W162: 0 | X162: Natural | Y162: 5 | Z162: ANTIOQUIA | AA162: 5088 | AB162: BELLO | AC162: 4759 | AD162: COMERCIO AL POR MAYOR Y AL POR MENOR; REPARACIÓN DE VEHÍCULOS AUTOMOTORES Y MOTOCICLETAS | AE162: 0 | AF162: 0 | AG162: 0 | AH162: 0 | AI162: 0 | AJ162: 0 | AK162: 100000 | AL162: 0 | AM162: 0 | AR162: 2012
C163: Natural | D163: 68 | E163: SANTANDER | F163: 68079 | G163: BARICHARA | H163: 5511 | I163: ALOJAMIENTO Y SERVICIOS DE COMIDA | P163: 0 | V163: 0 | W163: 0 | X163: Natural | Y163: 5 | Z163: ANTIOQUIA | AA163: 5001 | AB163: MEDELLÍN | AC163: 5613 | AD163: ALOJAMIENTO Y SERVICIOS DE COMIDA | AE163: 0 | AF163: 0 | AG163: 0 | AH163: 0 | AI163: 0 | AJ163: 0 | AK163: 500000 | AL163: 0 | AM163: 0 | AR163: 2022
C164: Natural | D164: 11 | E164: BOGOTÁ, D.C. | F164: 11001 | G164: BOGOTÁ, D.C. | H164: 8121 | I164: ACTIVIDADES DE SERVICIOS ADMINISTRATIVOS Y DE APOYO | P164: 400000 | V164: 0 | W164: 0 | X164: Natural | Y164: 5 | Z164: ANTIOQUIA | AA164: 5001 | AB164: MEDELLÍN | AC164: 8430 | AD164: ADMINISTRACIÓN PÚBLICA Y DEFENSA; PLANES DE SEGURIDAD SOCIAL DE AFILIACIÓN OBLIGATORIA | AE164: 0 | AF164: 0 | AG164: 0 | AH164: 0 | AI164: 0 | AJ164: 0 | AK164: 0 | AL164: 0 | AM164: 0 | AR164: 8020
C165: Natural | D165: 73 | E165: TOLIMA | F165: 73001 | G165: IBAGUÉ | H165: 4751 | I165: COMERCIO AL POR MAYOR Y AL POR MENOR; REPARACIÓN DE VEHÍCULOS AUTOMOTORES Y MOTOCICLETAS | P165: 0 | V165: 0 | W165: 0 | X165: Natural | Y165: 5 | Z165: ANTIOQUIA | AA165: 5001 | AB165: MEDELLÍN | AC165: 6920 | AD165: ACTIVIDADES PROFESIONALES, CIENTÍFICAS Y TÉCNICAS | AE165: 0 | AF165: 0 | AG165: 0 | AH165: 0 | AI165: 0 | AJ165: 0 | AK165: 1589914 | AL165: 0 | AM165: 0 | AR165: 9321
C166: Natural | D166: 41 | E166: HUILA | F166: 41001 | G166: NEIVA | H166: 5511 | I166: ALOJAMIENTO Y SERVICIOS DE COMIDA | P166: 750000 | V166: 0 | W166: 0 | X166: Natural | Y166: 5 | Z166: ANTIOQUIA | AA166: 5664 | AB166: SAN PEDRO DE LOS MILAGROS | AC166: 8291 | AD166: ACTIVIDADES DE SERVICIOS ADMINISTRATIVOS Y DE APOYO | AE166: 0 | AF166: 0 | AG166: 0 | AH166: 0 | AI166: 0 | AJ166: 0 | AK166: 0 | AL166: 0 | AM166: 0 | AR166: 7830
C167: Natural | D167: 11 | E167: BOGOTÁ, D.C. | F167: 11001 | G167: BOGOTÁ, D.C. | H167: 6910 | I167: ACTIVIDADES PROFESIONALES, CIENTÍFICAS Y TÉCNICAS | P167: 0 | V167: 0 | W167: 0 | X167: Natural | Y167: 5 | Z167: ANTIOQUIA | AA167: 5282 | AB167: FREDONIA | AC167: 4711 | AD167: COMERCIO AL POR MAYOR Y AL POR MENOR; REPARACIÓN DE VEHÍCULOS AUTOMOTORES Y MOTOCICLETAS | AE167: 0 | AF167: 0 | AG167: 0 | AH167: 0 | AI167: 0 | AJ167: 0 | AK167: 0 | AL167: 0 | AM167: 0 | AR167: 4664
C168: Natural | D168: 73 | E168: TOLIMA | F168: 73001 | G168: IBAGUÉ | H168: 4773 | I168: COMERCIO AL POR MAYOR Y AL POR MENOR; REPARACIÓN DE VEHÍCULOS AUTOMOTORES Y MOTOCICLETAS | P168: 550000 | V168: 0 | W168: 0 | X168: Natural | Y168: 5 | Z168: ANTIOQUIA | AA168: 5001 | AB168: MEDELLÍN | AC168: 4711 | AD168: COMERCIO AL POR MAYOR Y AL POR MENOR; REPARACIÓN DE VEHÍCULOS AUTOMOTORES Y MOTOCICLETAS | AE168: 0 | AF168: 0 | AG168: 0 | AH168: 0 | AI168: 0 | AJ168: 0 | AK168: 0 | AL168: 0 | AM168: 0 | AR168: 3120
C169: Natural | D169: 76 | E169: VALLE DEL CAUCA | F169: 76001 | G169: CALI | H169: 1811 | I169: INDUSTRIAS MANUFACTURERAS | P169: 750000 | V169: 0 | W169: 0 | X169: Natural | Y169: 5 | Z169: ANTIOQUIA | AA169: 5001 | AB169: MEDELLÍN | AC169: 4724 | AD169: COMERCIO AL POR MAYOR Y AL POR MENOR; REPARACIÓN DE VEHÍCULOS AUTOMOTORES Y MOTOCICLETAS | AE169: 0 | AF169: 0 | AG169: 0 | AH169: 0 | AI169: 0 | AJ169: 0 | AK169: 150000 | AL169: 0 | AM169: 0 | AR169: 4644
C170: Natural | D170: 73 | E170: TOLIMA | F170: 73001 | G170: IBAGUÉ | H170: 4752 | I170: COMERCIO AL POR MAYOR Y AL POR MENOR; REPARACIÓN DE VEHÍCULOS AUTOMOTORES Y MOTOCICLETAS | P170: 2408524 | V170: 0 | W170: 0 | X170: Natural | Y170: 5 | Z170: ANTIOQUIA | AA170: 5697 | AB170: EL SANTUARIO | AC170: 4774 | AD170: COMERCIO AL POR MAYOR Y AL POR MENOR; REPARACIÓN DE VEHÍCULOS AUTOMOTORES Y MOTOCICLETAS | AE170: 0 | AF170: 0 | AG170: 0 | AH170: 0 | AI170: 0 | AJ170: 0 | AK170: 0 | AL170: 0 | AM170: 0 | AR170: 2826
C171: Natural | D171: 73 | E171: TOLIMA | F171: 73268 | G171: ESPINAL | H171: 4290 | I171: CONSTRUCCIÓN | P171: 0 | V171: 0 | W171: 0 | X171: Natural | Y171: 5 | Z171: ANTIOQUIA | AA171: 5001 | AB171: MEDELLÍN | AC171: 9609 | AD171: OTRAS ACTIVIDADES DE SERVICIOS | AE171: 0 | AF171: 0 | AG171: 0 | AH171: 0 | AI171: 0 | AJ171: 0 | AK171: 0 | AL171: 0 | AM171: 0 | AR171: 4641
C172: Natural | D172: 5 | E172: ANTIOQUIA | F172: 5001 | G172: MEDELLÍN | H172: 4719 | I172: COMERCIO AL POR MAYOR Y AL POR MENOR; REPARACIÓN DE VEHÍCULOS AUTOMOTORES Y MOTOCICLETAS | P172: 0 | V172: 0 | W172: 0 | X172: Natural | Y172: 5 | Z172: ANTIOQUIA | AA172: 5686 | AB172: SANTA ROSA DE OSOS | AC172: 1410 | AD172: INDUSTRIAS MANUFACTURERAS | AE172: 0 | AF172: 0 | AG172: 0 | AH172: 0 | AI172: 0 | AJ172: 0 | AK172: 0 | AL172: 0 | AM172: 0 | AR172: 2100
C173: Natural | D173: 66 | E173: RISARALDA | F173: 66170 | G173: DOSQUEBRADAS | H173: 4923 | I173: TRANSPORTE Y ALMACENAMIENTO | P173: 0 | V173: 0 | W173: 0 | X173: Natural | Y173: 5 | Z173: ANTIOQUIA | AA173: 5368 | AB173: JERICÓ | AC173: 5611 | AD173: ALOJAMIENTO Y SERVICIOS DE COMIDA | AE173: 0 | AF173: 0 | AG173: 0 | AH173: 0 | AI173: 0 | AJ173: 0 | AK173: 7834000 | AL173: 0 | AM173: 0 | AR173: 126
C174: Natural | D174: 50 | E174: META | F174: 50001 | G174: VILLAVICENCIO | H174: 5511 | I174: ALOJAMIENTO Y SERVICIOS DE COMIDA | P174: 4253949 | V174: 0 | W174: 0 | X174: Natural | Y174: 5 | Z174: ANTIOQUIA | AA174: 5001 | AB174: MEDELLÍN | AC174: 4771 | AD174: COMERCIO AL POR MAYOR Y AL POR MENOR; REPARACIÓN DE VEHÍCULOS AUTOMOTORES Y MOTOCICLETAS | AE174: 0 | AF174: 0 | AG174: 0 | AH174: 0 | AI174: 0 | AJ174: 0 | AK174: 0 | AL174: 0 | AM174: 0 | AR174: 5811
C175: Natural | D175: 76 | E175: VALLE DEL CAUCA | F175: 76834 | G175: TULUÁ | H175: 4751 | I175: COMERCIO AL POR MAYOR Y AL POR MENOR; REPARACIÓN DE VEHÍCULOS AUTOMOTORES Y MOTOCICLETAS | P175: 5590000 | V175: 0 | W175: 0 | X175: Natural | Y175: 5 | Z175: ANTIOQUIA | AA175: 5001 | AB175: MEDELLÍN | AC175: 1051 | AD175: INDUSTRIAS MANUFACTURERAS | AE175: 0 | AF175: 0 | AG175: 0 | AH175: 0 | AI175: 0 | AJ175: 0 | AK175: 2498441 | AL175: 0 | AM175: 0 | AR175: 8220
C176: Natural | D176: 76 | E176: VALLE DEL CAUCA | F176: 76020 | G176: ALCALÁ | H176: 4752 | I176: COMERCIO AL POR MAYOR Y AL POR MENOR; REPARACIÓN DE VEHÍCULOS AUTOMOTORES Y MOTOCICLETAS | P176: 2000000 | V176: 0 | W176: 0 | X176: Natural | Y176: 5 | Z176: ANTIOQUIA | AA176: 5665 | AB176: SAN PEDRO DE URABA | AC176: 4773 | AD176: COMERCIO AL POR MAYOR Y AL POR MENOR; REPARACIÓN DE VEHÍCULOS AUTOMOTORES Y MOTOCICLETAS | AE176: 0 | AF176: 0 | AG176: 0 | AH176: 0 | AI176: 0 | AJ176: 0 | AK176: 4196000 | AL176: 0 | AM176: 0 | AR176: 1312
C177: Natural | D177: 76 | E177: VALLE DEL CAUCA | F177: 76001 | G177: CALI | H177: 4762 | I177: COMERCIO AL POR MAYOR Y AL POR MENOR; REPARACIÓN DE VEHÍCULOS AUTOMOTORES Y MOTOCICLETAS | P177: 0 | V177: 0 | W177: 0 | X177: Natural | Y177: 5 | Z177: ANTIOQUIA | AA177: 5390 | AB177: LA PINTADA | AC177: 4723 | AD177: COMERCIO AL POR MAYOR Y AL POR MENOR; REPARACIÓN DE VEHÍCULOS AUTOMOTORES Y MOTOCICLETAS | AE177: 0 | AF177: 0 | AG177: 0 | AH177: 0 | AI177: 0 | AJ177: 0 | AK177: 0 | AL177: 0 | AM177: 0 | AR177: 2011
C178: Natural | D178: 76 | E178: VALLE DEL CAUCA | F178: 76001 | G178: CALI | H178: 150 | I178: AGRICULTURA, GANADERÍA, CAZA, SILVICULTURA Y PESCA | P178: 0 | V178: 0 | W178: 0 | X178: Natural | Y178: 5 | Z178: ANTIOQUIA | AA178: 5147 | AB178: CAREPA | AC178: 4773 | AD178: COMERCIO AL POR MAYOR Y AL POR MENOR; REPARACIÓN DE VEHÍCULOS AUTOMOTORES Y MOTOCICLETAS | AE178: 0 | AF178: 0 | AG178: 0 | AH178: 0 | AI178: 0 | AJ178: 0 | AK178: 0 | AL178: 0 | AM178: 0 | AR178: 1709
C179: Natural | D179: 11 | E179: BOGOTÁ, D.C. | F179: 11001 | G179: BOGOTÁ, D.C. | H179: 2599 | I179: INDUSTRIAS MANUFACTURERAS | P179: 0 | V179: 0 | W179: 0 | X179: Natural | Y179: 5 | Z179: ANTIOQUIA | AA179: 5380 | AB179: LA ESTRELLA | AC179: 5611 | AD179: ALOJAMIENTO Y SERVICIOS DE COMIDA | AE179: 0 | AF179: 0 | AG179: 0 | AH179: 0 | AI179: 0 | AJ179: 0 | AK179: 0 | AL179: 0 | AM179: 0 | AR179: 6629
C180: Natural | D180: 76 | E180: VALLE DEL CAUCA | F180: 76001 | G180: CALI | H180: 5611 | I180: ALOJAMIENTO Y SERVICIOS DE COMIDA | P180: 6370000 | V180: 0 | W180: 0 | X180: Natural | Y180: 5 | Z180: ANTIOQUIA | AA180: 5266 | AB180: ENVIGADO | AC180: 6820 | AD180: ACTIVIDADES INMOBILIARIAS | AE180: 0 | AF180: 0 | AG180: 0 | AH180: 0 | AI180: 0 | AJ180: 0 | AK180: 250000 | AL180: 0 | AM180: 0 | AR180: 7410
C181: Natural | D181: 5 | E181: ANTIOQUIA | F181: 5001 | G181: MEDELLÍN | H181: 1410 | I181: INDUSTRIAS MANUFACTURERAS | P181: 0 | V181: 0 | W181: 0 | X181: Natural | Y181: 5 | Z181: ANTIOQUIA | AA181: 5266 | AB181: ENVIGADO | AC181: 8511 | AD181: EDUCACIÓN | AE181: 0 | AF181: 0 | AG181: 0 | AH181: 0 | AI181: 0 | AJ181: 0 | AK181: 0 | AL181: 0 | AM181: 0 | AR181: 9521
C182: Natural | D182: 76 | E182: VALLE DEL CAUCA | F182: 76122 | G182: CAICEDONIA | H182: 6920 | I182: ACTIVIDADES PROFESIONALES, CIENTÍFICAS Y TÉCNICAS | P182: 250000 | V182: 0 | W182: 0 | X182: Natural | Y182: 5 | Z182: ANTIOQUIA | AA182: 5088 | AB182: BELLO | AC182: 5613 | AD182: ALOJAMIENTO Y SERVICIOS DE COMIDA | AE182: 0 | AF182: 0 | AG182: 0 | AH182: 0 | AI182: 0 | AJ182: 0 | AK182: 11976000 | AL182: 0 | AM182: 0 | AR182: 3511
C183: Natural | D183: 76 | E183: VALLE DEL CAUCA | F183: 76248 | G183: EL CERRITO | H183: 3110 | I183: INDUSTRIAS MANUFACTURERAS | P183: 0 | V183: 0 | W183: 0 | X183: Natural | Y183: 5 | Z183: ANTIOQUIA | AA183: 5129 | AB183: CALDAS | AC183: 4752 | AD183: COMERCIO AL POR MAYOR Y AL POR MENOR; REPARACIÓN DE VEHÍCULOS AUTOMOTORES Y MOTOCICLETAS | AE183: 0 | AF183: 0 | AG183: 0 | AH183: 0 | AI183: 0 | AJ183: 0 | AK183: 227131 | AL183: 0 | AM183: 0 | AR183: 5224
C184: Natural | D184: 50 | E184: META | F184: 50001 | G184: VILLAVICENCIO | H184: 4719 | I184: COMERCIO AL POR MAYOR Y AL POR MENOR; REPARACIÓN DE VEHÍCULOS AUTOMOTORES Y MOTOCICLETAS | P184: 0 | V184: 0 | W184: 0 | X184: Natural | Y184: 5 | Z184: ANTIOQUIA | AA184: 5266 | AB184: ENVIGADO | AC184: 8230 | AD184: ACTIVIDADES DE SERVICIOS ADMINISTRATIVOS Y DE APOYO | AE184: 0 | AF184: 0 | AG184: 0 | AH184: 0 | AI184: 0 | AJ184: 0 | AK184: 0 | AL184: 0 | AM184: 0 | AR184: 2029
C185: Natural | D185: 76 | E185: VALLE DEL CAUCA | F185: 76892 | G185: YUMBO | H185: 1690 | I185: INDUSTRIAS MANUFACTURERAS | P185: 0 | V185: 0 | W185: 0 | X185: Natural | Y185: 5 | Z185: ANTIOQUIA | AA185: 5001 | AB185: MEDELLÍN | AC185: 4741 | AD185: COMERCIO AL POR MAYOR Y AL POR MENOR; REPARACIÓN DE VEHÍCULOS AUTOMOTORES Y MOTOCICLETAS | AE185: 0 | AF185: 0 | AG185: 0 | AH185: 0 | AI185: 0 | AJ185: 0 | AK185: 0 | AL185: 0 | AM185: 0 | AR185: 8522
C186: Natural | D186: 76 | E186: VALLE DEL CAUCA | F186: 76400 | G186: LA UNIÓN | H186: 130 | I186: AGRICULTURA, GANADERÍA, CAZA, SILVICULTURA Y PESCA | P186: 6198441 | V186: 0 | W186: 0 | X186: Natural | Y186: 5 | Z186: ANTIOQUIA | AA186: 5001 | AB186: MEDELLÍN | AC186: 1410 | AD186: INDUSTRIAS MANUFACTURERAS | AE186: 0 | AF186: 0 | AG186: 0 | AH186: 0 | AI186: 0 | AJ186: 0 | AK186: 0 | AL186: 0 | AM186: 0 | AR186: 6492
C187: Natural | D187: 76 | E187: VALLE DEL CAUCA | F187: 76001 | G187: CALI | H187: 4741 | I187: COMERCIO AL POR MAYOR Y AL POR MENOR; REPARACIÓN DE VEHÍCULOS AUTOMOTORES Y MOTOCICLETAS | P187: 290852 | V187: 0 | W187: 0 | X187: Natural | Y187: 5 | Z187: ANTIOQUIA | AA187: 5360 | AB187: ITAGUI | AC187: 4724 | AD187: COMERCIO AL POR MAYOR Y AL POR MENOR; REPARACIÓN DE VEHÍCULOS AUTOMOTORES Y MOTOCICLETAS | AE187: 0 | AF187: 0 | AG187: 0 | AH187: 0 | AI187: 0 | AJ187: 0 | AK187: 750000 | AL187: 0 | AM187: 0 | AR187: 2711
C188: Natural | D188: 76 | E188: VALLE DEL CAUCA | F188: 76001 | G188: CALI | H188: 1081 | I188: INDUSTRIAS MANUFACTURERAS | P188: 500000 | V188: 0 | W188: 0 | X188: Natural | Y188: 5 | Z188: ANTIOQUIA | AA188: 5001 | AB188: MEDELLÍN | AC188: 4761 | AD188: COMERCIO AL POR MAYOR Y AL POR MENOR; REPARACIÓN DE VEHÍCULOS AUTOMOTORES Y MOTOCICLETAS | AE188: 0 | AF188: 0 | AG188: 0 | AH188: 0 | AI188: 0 | AJ188: 0 | AK188: 0 | AL188: 0 | AM188: 0 | AR188: 8720
C189: Natural | D189: 17 | E189: CALDAS | F189: 17442 | G189: MARMATO | H189: 722 | I189: EXPLOTACIÓN DE MINAS Y CANTERAS | P189: 0 | V189: 0 | W189: 0 | X189: Natural | Y189: 5 | Z189: ANTIOQUIA | AA189: 5001 | AB189: MEDELLÍN | AC189: 1410 | AD189: INDUSTRIAS MANUFACTURERAS | AE189: 0 | AF189: 0 | AG189: 0 | AH189: 0 | AI189: 0 | AJ189: 0 | AK189: 272556 | AL189: 0 | AM189: 0 | AR189: 7010
C190: Natural | D190: 76 | E190: VALLE DEL CAUCA | F190: 76122 | G190: CAICEDONIA | H190: 4669 | I190: COMERCIO AL POR MAYOR Y AL POR MENOR; REPARACIÓN DE VEHÍCULOS AUTOMOTORES Y MOTOCICLETAS | P190: 0 | V190: 0 | W190: 0 | X190: Natural | Y190: 5 | Z190: ANTIOQUIA | AA190: 5001 | AB190: MEDELLÍN | AC190: 4773 | AD190: COMERCIO AL POR MAYOR Y AL POR MENOR; REPARACIÓN DE VEHÍCULOS AUTOMOTORES Y MOTOCICLETAS | AE190: 0 | AF190: 0 | AG190: 0 | AH190: 0 | AI190: 0 | AJ190: 0 | AK190: 1250000 | AL190: 0 | AM190: 0 | AR190: 6621
C191: Natural | D191: 76 | E191: VALLE DEL CAUCA | F191: 76001 | G191: CALI | H191: 1410 | I191: INDUSTRIAS MANUFACTURERAS | P191: 227131 | V191: 0 | W191: 0 | X191: Natural | Y191: 5 | Z191: ANTIOQUIA | AA191: 5001 | AB191: MEDELLÍN | AC191: 4775 | AD191: COMERCIO AL POR MAYOR Y AL POR MENOR; REPARACIÓN DE VEHÍCULOS AUTOMOTORES Y MOTOCICLETAS | AE191: 0 | AF191: 0 | AG191: 0 | AH191: 0 | AI191: 0 | AJ191: 0 | AK191: 0 | AL191: 0 | AM191: 0 | AR191: 1040
C192: Natural | D192: 11 | E192: BOGOTÁ, D.C. | F192: 11001 | G192: BOGOTÁ, D.C. | H192: 8530 | I192: EDUCACIÓN | P192: 0 | V192: 0 | W192: 0 | X192: Natural | Y192: 5 | Z192: ANTIOQUIA | AA192: 5001 | AB192: MEDELLÍN | AC192: 9601 | AD192: OTRAS ACTIVIDADES DE SERVICIOS | AE192: 0 | AF192: 0 | AG192: 0 | AH192: 0 | AI192: 0 | AJ192: 0 | AK192: 0 | AL192: 0 | AM192: 0 | AR192: 144
C193: Natural | D193: 76 | E193: VALLE DEL CAUCA | F193: 76834 | G193: TULUÁ | H193: 4774 | I193: COMERCIO AL POR MAYOR Y AL POR MENOR; REPARACIÓN DE VEHÍCULOS AUTOMOTORES Y MOTOCICLETAS | P193: 12524320 | V193: 0 | W193: 0 | X193: Natural | Y193: 5 | Z193: ANTIOQUIA | AA193: 5266 | AB193: ENVIGADO | AC193: 7490 | AD193: ACTIVIDADES PROFESIONALES, CIENTÍFICAS Y TÉCNICAS | AE193: 0 | AF193: 0 | AG193: 0 | AH193: 0 | AI193: 0 | AJ193: 0 | AK193: 2908524 | AL193: 0 | AM193: 0 | AR193: 5513
C194: Natural | D194: 76 | E194: VALLE DEL CAUCA | F194: 76111 | G194: GUADALAJARA DE BUGA | H194: 4923 | I194: TRANSPORTE Y ALMACENAMIENTO | P194: 90852 | V194: 0 | W194: 0 | X194: Natural | Y194: 5 | Z194: ANTIOQUIA | AA194: 5615 | AB194: RIONEGRO | AC194: 1081 | AD194: INDUSTRIAS MANUFACTURERAS | AE194: 0 | AF194: 0 | AG194: 0 | AH194: 0 | AI194: 0 | AJ194: 0 | AK194: 5317048 | AL194: 0 | AM194: 0 | AR194: 4329
C195: Natural | D195: 76 | E195: VALLE DEL CAUCA | F195: 76001 | G195: CALI | H195: 4773 | I195: COMERCIO AL POR MAYOR Y AL POR MENOR; REPARACIÓN DE VEHÍCULOS AUTOMOTORES Y MOTOCICLETAS | P195: 0 | V195: 0 | W195: 0 | X195: Natural | Y195: 5 | Z195: ANTIOQUIA | AA195: 5615 | AB195: RIONEGRO | AC195: 4923 | AD195: TRANSPORTE Y ALMACENAMIENTO | AE195: 0 | AF195: 0 | AG195: 0 | AH195: 0 | AI195: 0 | AJ195: 0 | AK195: 763408 | AL195: 0 | AM195: 0 | AR195: 8559
C196: Natural | D196: 5 | E196: ANTIOQUIA | F196: 5088 | G196: BELLO | H196: 4752 | I196: COMERCIO AL POR MAYOR Y AL POR MENOR; REPARACIÓN DE VEHÍCULOS AUTOMOTORES Y MOTOCICLETAS | P196: 750000 | V196: 0 | W196: 0 | X196: Natural | Y196: 5 | Z196: ANTIOQUIA | AA196: 5129 | AB196: CALDAS | AC196: 8129 | AD196: ACTIVIDADES DE SERVICIOS ADMINISTRATIVOS Y DE APOYO | AE196: 0 | AF196: 0 | AG196: 0 | AH196: 0 | AI196: 0 | AJ196: 0 | AK196: 400000 | AL196: 0 | AM196: 0 | AR196: 4643
C197: Natural | D197: 41 | E197: HUILA | F197: 41551 | G197: PITALITO | H197: 4711 | I197: COMERCIO AL POR MAYOR Y AL POR MENOR; REPARACIÓN DE VEHÍCULOS AUTOMOTORES Y MOTOCICLETAS | P197: 227131 | V197: 0 | W197: 0 | X197: Natural | Y197: 5 | Z197: ANTIOQUIA | AA197: 5001 | AB197: MEDELLÍN | AC197: 2221 | AD197: INDUSTRIAS MANUFACTURERAS | AE197: 0 | AF197: 0 | AG197: 0 | AH197: 0 | AI197: 0 | AJ197: 0 | AK197: 3181393 | AL197: 0 | AM197: 0 | AR197: 7210
C198: Natural | D198: 15 | E198: BOYACÁ | F198: 15001 | G198: TUNJA | H198: 7420 | I198: ACTIVIDADES PROFESIONALES, CIENTÍFICAS Y TÉCNICAS | P198: 0 | V198: 0 | W198: 0 | X198: Natural | Y198: 5 | Z198: ANTIOQUIA | AA198: 5079 | AB198: BARBOSA | AC198: 8530 | AD198: EDUCACIÓN | AE198: 0 | AF198: 0 | AG198: 0 | AH198: 0 | AI198: 0 | AJ198: 0 | AK198: 300000 | AL198: 0 | AM198: 0 | AR198: 7710
C199: Natural | D199: 15 | E199: BOYACÁ | F199: 15001 | G199: TUNJA | H199: 8512 | I199: EDUCACIÓN | P199: 0 | V199: 0 | W199: 0 | X199: Natural | Y199: 5 | Z199: ANTIOQUIA | AA199: 5154 | AB199: CAUCASIA | AC199: 8899 | AD199: ACTIVIDADES DE ATENCIÓN DE LA SALUD HUMANA Y DE ASISTENCIA SOCIAL | AE199: 0 | AF199: 0 | AG199: 0 | AH199: 0 | AI199: 0 | AJ199: 0 | AK199: 436278 | AL199: 0 | AM199: 0 | AR199: 9491
C200: Natural | D200: 11 | E200: BOGOTÁ, D.C. | F200: 11001 | G200: BOGOTÁ, D.C. | H200: 8521 | I200: EDUCACIÓN | P200: 454262 | V200: 0 | W200: 0 | X200: Natural | Y200: 5 | Z200: ANTIOQUIA | AA200: 5154 | AB200: CAUCASIA | AC200: 7730 | AD200: ACTIVIDADES DE SERVICIOS ADMINISTRATIVOS Y DE APOYO | AE200: 0 | AF200: 0 | AG200: 0 | AH200: 0 | AI200: 0 | AJ200: 0 | AK200: 0 | AL200: 0 | AM200: 0 | AR200: 2740
... 2050 more rows

Sheet Mapas (hidden)
B1: ANTIOQUIA | C1: Antioquia | I1: Departamento | J1: Celdas | K1: =+IFERROR(VLOOKUP(Visor!$M$7,Mapas!I2:J34,2,0),"Vacío") -> ANTIOQUIA
B2: ATLÁNTICO | C2: Atlantico | I2: ANTIOQUIA | J2: ANTIOQUIA
B3: CUNDINAMARCA | C3: Cundinamarca | I3: ATLÁNTICO | J3: ATLÁNTICO
B4: VALLE DEL CAUCA | C4: Valle_del_cauca | I4: CUNDINAMARCA | J4: CUNDINAMARCA
B5: AMAZONAS | C5: Amazonas | I5: VALLE DEL CAUCA | J5: VALLE_DEL_CAUCA
B6: ARAUCA | C6: Arauca | I6: AMAZONAS | J6: AMAZONAS
B7: ARCHIPIÉLAGO DE SAN ANDRÉS, PROVIDENCIA Y SANTA CATALINA | C7: Archipielago De San Andres, Providencia Y Santa Catalina | I7: ARAUCA | J7: ARAUCA
B8: BOGOTÁ, D.C. | C8: Bogota, D.C. | I8: ARCHIPIÉLAGO DE SAN ANDRÉS, PROVIDENCIA Y SANTA CATALINA | J8: ARCHIPIÉLAGO_DE_SAN_ANDRÉS__PROVIDENCIA_Y_SANTA_CATALINA
B9: BOLÍVAR | C9: Bolivar | I9: BOGOTÁ, D.C. | J9: BOGOTÁ__D.C.
B10: BOYACÁ | C10: Boyaca | I10: BOLÍVAR | J10: BOLÍVAR
B11: CALDAS | C11: Caldas | I11: BOYACÁ | J11: BOYACÁ
B12: CAQUETÁ | C12: Caqueta | I12: CALDAS | J12: CALDAS
B13: CASANARE | C13: Casanare | I13: CAQUETÁ | J13: CAQUETÁ
B14: CAUCA | C14: Cauca | I14: CASANARE | J14: CASANARE
B15: CESAR | C15: Cesar | I15: CAUCA | J15: CAUCA
B16: CHOCÓ | C16: Choco | I16: CESAR | J16: CESAR
B17: CÓRDOBA | C17: Cordoba | I17: CHOCÓ | J17: CHOCÓ
B18: GUAINÍA | C18: Guainia | I18: CÓRDOBA | J18: CÓRDOBA
B19: GUAVIARE | C19: Guaviare | I19: GUAINÍA | J19: GUAINÍA
B20: HUILA | C20: Huila | I20: GUAVIARE | J20: GUAVIARE
B21: LA GUAJIRA | C21: La_guajira | I21: HUILA | J21: HUILA
B22: MAGDALENA | C22: Magdalena | I22: LA GUAJIRA | J22: LA_GUAJIRA
B23: META | C23: Meta | I23: MAGDALENA | J23: MAGDALENA
B24: NARIÑO | C24: Nariño | I24: META | J24: META
B25: NORTE DE SANTANDER | C25: Norte_Santander | I25: NARIÑO | J25: NARIÑO
B26: PUTUMAYO | C26: Putumayo | I26: NORTE DE SANTANDER | J26: NORTE_DE_SANTANDER
B27: QUINDÍO | C27: Quindio | I27: PUTUMAYO | J27: PUTUMAYO
B28: RISARALDA | C28: Risaralda | I28: QUINDÍO | J28: QUINDÍO
B29: SANTANDER | C29: Santander | I29: RISARALDA | J29: RISARALDA
B30: SUCRE | C30: Sucre | I30: SANTANDER | J30: SANTANDER
B31: TOLIMA | C31: Tolima | I31: SUCRE | J31: SUCRE
B32: VAUPÉS | C32: Vaupes | I32: TOLIMA | J32: TOLIMA
B33: VICHADA | C33: Vichada | I33: VAUPÉS | J33: VAUPÉS
B34: Vacío | C34: Vacío | I34: VICHADA | J34: VICHADA

Sheet Montos (hidden)
A1: Ciclo | B1: DIVIPOLA1 | C1: MpioNOM | D1: Depto | E1: DeptoNOM | F1: NOM_AECONOMICA1 | G1: SECTOR_ECONOMICO1 | H1: TIPO_PERSONA1 | I1: SIZE1 | J1: Suma de RECURSOS1 | P1: Ciclo | Q1: DIVIPOLA1 | R1: MpioNOM | S1: Depto | T1: DeptoNOM | U1: NOM_AECONOMICA1 | V1: SECTOR_ECONOMICO1 | W1: TIPO_PERSONA1 | X1: SIZE1 | Y1: Suma de RECURSOS1 | AC1: DeptoNOM | AD1: META | AG1: DeptoNOM | AH1: META
B2: 5001 | C2: MEDELLÍN | D2: 5 | E2: ANTIOQUIA | F2: 141 | G2: AGRICULTURA, GANADERÍA, CAZA, SILVICULTURA Y PESCA | H2: Natural | I2: MICRO | J2: 454262 | P2: =+_xlfn._xlws.FILTER($A$2:$J$396860,E2:$E$396860=Visor!$M$7,"") -> 0 | Q2: 5001 | R2: MEDELLÍN | S2: 5 | T2: ANTIOQUIA | U2: 141 | V2: AGRICULTURA, GANADERÍA, CAZA, SILVICULTURA Y PESCA | W2: Natural | X2: MICRO | Y2: 454262 | AG2: MpioNOM | AH2: VILLAVICENCIO
B3: 25307 | C3: GIRARDOT | D3: 25 | E3: CUNDINAMARCA | F3: 4530 | G3: COMERCIO AL POR MAYOR Y AL POR MENOR; REPARACIÓN DE VEHÍCULOS AUTOMOTORES Y MOTOCICLETAS | H3: Natural | I3: MICRO | J3: 250000 | P3: 0 | Q3: 5001 | R3: MEDELLÍN | S3: 5 | T3: ANTIOQUIA | U3: 5611 | V3: ALOJAMIENTO Y SERVICIOS DE COMIDA | W3: Natural | X3: MICRO | Y3: 4400000 | AC3: Etiquetas de fila | AD3: Suma de Suma de RECURSOS1 | AE3: Suma de Suma de RECURSOS1_2
B4: 5001 | C4: MEDELLÍN | D4: 5 | E4: ANTIOQUIA | F4: 5611 | G4: ALOJAMIENTO Y SERVICIOS DE COMIDA | H4: Natural | I4: MICRO | J4: 4400000 | P4: 0 | Q4: 5001 | R4: MEDELLÍN | S4: 5 | T4: ANTIOQUIA | U4: 90 | V4: OTRAS | W4: Natural | X4: MICRO | Y4: 400000 | AC4: ACTIVIDADES ARTÍSTICAS, DE ENTRETENIMIENTO Y RECREACIÓN | AD4: 1034907000 | AE4: 0.0183614159 | AG4: Etiquetas de fila | AH4: Suma de Suma de RECURSOS1 | AI4: Suma de Suma de RECURSOS1_2
B5: 11001 | C5: BOGOTÁ, D.C. | D5: 11 | E5: BOGOTÁ, D.C. | F5: 4663 | G5: COMERCIO AL POR MAYOR Y AL POR MENOR; REPARACIÓN DE VEHÍCULOS AUTOMOTORES Y MOTOCICLETAS | H5: Natural | I5: MICRO | J5: 3977131 | P5: 0 | Q5: 5001 | R5: MEDELLÍN | S5: 5 | T5: ANTIOQUIA | U5: 5611 | V5: ALOJAMIENTO Y SERVICIOS DE COMIDA | W5: Natural | X5: MICRO | Y5: 100000 | AC5: ACTIVIDADES DE ATENCIÓN DE LA SALUD HUMANA Y DE ASISTENCIA SOCIAL | AD5: 5530371000 | AE5: 0.0981203548 | AG5: ACTIVIDADES ARTÍSTICAS, DE ENTRETENIMIENTO Y RECREACIÓN | AH5: 993923000 | AI5: 0.02131175662
B6: 15176 | C6: CHIQUINQUIRÁ | D6: 15 | E6: BOYACÁ | F6: 4752 | G6: COMERCIO AL POR MAYOR Y AL POR MENOR; REPARACIÓN DE VEHÍCULOS AUTOMOTORES Y MOTOCICLETAS | H6: Natural | I6: MICRO | J6: 2858524 | P6: 0 | Q6: 5001 | R6: MEDELLÍN | S6: 5 | T6: ANTIOQUIA | U6: 4722 | V6: COMERCIO AL POR MAYOR Y AL POR MENOR; REPARACIÓN DE VEHÍCULOS AUTOMOTORES Y MOTOCICLETAS | W6: Natural | X6: MICRO | Y6: 3740000 | AC6: ACTIVIDADES DE SERVICIOS ADMINISTRATIVOS Y DE APOYO | AD6: 9990424000 | AE6: 0.1772510285 | AG6: ACTIVIDADES DE ATENCIÓN DE LA SALUD HUMANA Y DE ASISTENCIA SOCIAL | AH6: 5262221000 | AI6: 0.1128328585
B7: 76001 | C7: CALI | D7: 76 | E7: VALLE DEL CAUCA | F7: 4774 | G7: COMERCIO AL POR MAYOR Y AL POR MENOR; REPARACIÓN DE VEHÍCULOS AUTOMOTORES Y MOTOCICLETAS | H7: Natural | I7: MICRO | J7: 454262 | P7: 0 | Q7: 5001 | R7: MEDELLÍN | S7: 5 | T7: ANTIOQUIA | U7: 3240 | V7: INDUSTRIAS MANUFACTURERAS | W7: Natural | X7: MICRO | Y7: 1654262 | AC7: ACTIVIDADES FINANCIERAS Y DE SEGUROS | AD7: 601724000 | AE7: 0.01067584297 | AG7: ACTIVIDADES DE SERVICIOS ADMINISTRATIVOS Y DE APOYO | AH7: 9448062000 | AI7: 0.2025859124
B8: 76001 | C8: CALI | D8: 76 | E8: VALLE DEL CAUCA | F8: 5511 | G8: ALOJAMIENTO Y SERVICIOS DE COMIDA | H8: Natural | I8: MICRO | J8: 454262 | P8: 0 | Q8: 5001 | R8: MEDELLÍN | S8: 5 | T8: ANTIOQUIA | U8: 4771 | V8: COMERCIO AL POR MAYOR Y AL POR MENOR; REPARACIÓN DE VEHÍCULOS AUTOMOTORES Y MOTOCICLETAS | W8: Natural | X8: MICRO | Y8: 908524 | AC8: ACTIVIDADES INMOBILIARIAS | AD8: 282527000 | AE8: 0.005012620217 | AG8: ACTIVIDADES FINANCIERAS Y DE SEGUROS | AH8: 586462000 | AI8: 0.0125749534
B9: 41001 | C9: NEIVA | D9: 41 | E9: HUILA | F9: 4729 | G9: COMERCIO AL POR MAYOR Y AL POR MENOR; REPARACIÓN DE VEHÍCULOS AUTOMOTORES Y MOTOCICLETAS | H9: Natural | I9: MICRO | J9: 1550000 | P9: 0 | Q9: 5697 | R9: EL SANTUARIO | S9: 5 | T9: ANTIOQUIA | U9: 4773 | V9: COMERCIO AL POR MAYOR Y AL POR MENOR; REPARACIÓN DE VEHÍCULOS AUTOMOTORES Y MOTOCICLETAS | W9: Natural | X9: MICRO | Y9: 454262 | AC9: ACTIVIDADES PROFESIONALES, CIENTÍFICAS Y TÉCNICAS | AD9: 1550199000 | AE9: 0.02750377432 | AG9: ACTIVIDADES INMOBILIARIAS | AH9: 213971000 | AI9: 0.004587979024
B10: 52356 | C10: IPIALES | D10: 52 | E10: NARIÑO | F10: 4923 | G10: TRANSPORTE Y ALMACENAMIENTO | H10: Natural | I10: MICRO | J10: 400000 | P10: 0 | Q10: 5001 | R10: MEDELLÍN | S10: 5 | T10: ANTIOQUIA | U10: 6810 | V10: ACTIVIDADES INMOBILIARIAS | W10: Natural | X10: MICRO | Y10: 90852 | AC10: ADMINISTRACIÓN PÚBLICA Y DEFENSA; PLANES DE SEGURIDAD SOCIAL DE AFILIACIÓN OBLIGATORIA | AD10: 434604000 | AE10: 0.007710784444 | AG10: ACTIVIDADES PROFESIONALES, CIENTÍFICAS Y TÉCNICAS | AH10: 1393778000 | AI10: 0.02988547152
B11: 54001 | C11: CÚCUTA | D11: 54 | E11: NORTE DE SANTANDER | F11: 90 | G11: OTRAS | H11: Natural | I11: MICRO | J11: 2700000 | P11: 0 | Q11: 5266 | R11: ENVIGADO | S11: 5 | T11: ANTIOQUIA | U11: 4541 | V11: COMERCIO AL POR MAYOR Y AL POR MENOR; REPARACIÓN DE VEHÍCULOS AUTOMOTORES Y MOTOCICLETAS | W11: Natural | X11: MICRO | Y11: 227131 | AC11: AGRICULTURA, GANADERÍA, CAZA, SILVICULTURA Y PESCA | AD11: 2267926000 | AE11: 0.04023775327 | AG11: ADMINISTRACIÓN PÚBLICA Y DEFENSA; PLANES DE SEGURIDAD SOCIAL DE AFILIACIÓN OBLIGATORIA | AH11: 101437000 | AI11: 0.002175018242
B12: 54405 | C12: LOS PATIOS | D12: 54 | E12: NORTE DE SANTANDER | F12: 4923 | G12: TRANSPORTE Y ALMACENAMIENTO | H12: Natural | I12: MICRO | J12: 317983 | P12: 0 | Q12: 5088 | R12: BELLO | S12: 5 | T12: ANTIOQUIA | U12: 4752 | V12: COMERCIO AL POR MAYOR Y AL POR MENOR; REPARACIÓN DE VEHÍCULOS AUTOMOTORES Y MOTOCICLETAS | W12: Natural | X12: MICRO | Y12: 750000 | AC12: ALOJAMIENTO Y SERVICIOS DE COMIDA | AD12: 2510646000 | AE12: 0.044544114 | AG12: AGRICULTURA, GANADERÍA, CAZA, SILVICULTURA Y PESCA | AH12: 1241925000 | AI12: 0.02662943039
B13: 76828 | C13: TRUJILLO | D13: 76 | E13: VALLE DEL CAUCA | F13: 4752 | G13: COMERCIO AL POR MAYOR Y AL POR MENOR; REPARACIÓN DE VEHÍCULOS AUTOMOTORES Y MOTOCICLETAS | H13: Natural | I13: MICRO | J13: 3631080 | P13: 0 | Q13: 5631 | R13: SABANETA | S13: 5 | T13: ANTIOQUIA | U13: 4771 | V13: COMERCIO AL POR MAYOR Y AL POR MENOR; REPARACIÓN DE VEHÍCULOS AUTOMOTORES Y MOTOCICLETAS | W13: Natural | X13: MICRO | Y13: 3448524 | AC13: COMERCIO AL POR MAYOR Y AL POR MENOR; REPARACIÓN DE VEHÍCULOS AUTOMOTORES Y MOTOCICLETAS | AD13: 9763086000 | AE13: 0.1732175766 | AG13: ALOJAMIENTO Y SERVICIOS DE COMIDA | AH13: 1902988000 | AI13: 0.04080398291
B14: 11001 | C14: BOGOTÁ, D.C. | D14: 11 | E14: BOGOTÁ, D.C. | F14: 1313 | G14: INDUSTRIAS MANUFACTURERAS | H14: Natural | I14: MICRO | J14: 726818 | P14: 0 | Q14: 5266 | R14: ENVIGADO | S14: 5 | T14: ANTIOQUIA | U14: 7111 | V14: ACTIVIDADES PROFESIONALES, CIENTÍFICAS Y TÉCNICAS | W14: Natural | X14: MICRO | Y14: 2776195 | AC14: CONSTRUCCIÓN | AD14: 4627826000 | AE14: 0.08210731777 | AG14: COMERCIO AL POR MAYOR Y AL POR MENOR; REPARACIÓN DE VEHÍCULOS AUTOMOTORES Y MOTOCICLETAS | AH14: 7857303000 | AI14: 0.1684767625
B15: 11001 | C15: BOGOTÁ, D.C. | D15: 11 | E15: BOGOTÁ, D.C. | F15: 4754 | G15: COMERCIO AL POR MAYOR Y AL POR MENOR; REPARACIÓN DE VEHÍCULOS AUTOMOTORES Y MOTOCICLETAS | H15: Natural | I15: MICRO | J15: 1000000 | P15: 0 | Q15: 5318 | R15: GUARNE | S15: 5 | T15: ANTIOQUIA | U15: 2221 | V15: INDUSTRIAS MANUFACTURERAS | W15: Natural | X15: MICRO | Y15: 1650000 | AC15: DISTRIBUCIÓN DE AGUA; EVACUACIÓN Y TRATAMIENTO DE AGUAS RESIDUALES, GESTIÓN DE DESECHOS Y ACTIVIDADES DE SANEAMIENTO AMBIENTAL | AD15: 851688000 | AE15: 0.01511072742 | AG15: CONSTRUCCIÓN | AH15: 3651332000 | AI15: 0.07829207988
B16: 11001 | C16: BOGOTÁ, D.C. | D16: 11 | E16: BOGOTÁ, D.C. | F16: 8512 | G16: EDUCACIÓN | H16: Natural | I16: MICRO | J16: 750000 | P16: 0 | Q16: 5001 | R16: MEDELLÍN | S16: 5 | T16: ANTIOQUIA | U16: 8299 | V16: ACTIVIDADES DE SERVICIOS ADMINISTRATIVOS Y DE APOYO | W16: Natural | X16: MICRO | Y16: 9844000 | AC16: EDUCACIÓN | AD16: 3265265000 | AE16: 0.05793263423 | AG16: DISTRIBUCIÓN DE AGUA; EVACUACIÓN Y TRATAMIENTO DE AGUAS RESIDUALES, GESTIÓN DE DESECHOS Y ACTIVIDADES DE SANEAMIENTO AMBIENTAL | AH16: 827123000 | AI16: 0.01773522101
B17: 25181 | C17: CHOACHÍ | D17: 25 | E17: CUNDINAMARCA | F17: 145 | G17: AGRICULTURA, GANADERÍA, CAZA, SILVICULTURA Y PESCA | H17: Natural | I17: MICRO | J17: 1048000 | P17: 0 | Q17: 5001 | R17: MEDELLÍN | S17: 5 | T17: ANTIOQUIA | U17: 2511 | V17: INDUSTRIAS MANUFACTURERAS | W17: Natural | X17: MICRO | Y17: 1227131 | AC17: EXPLOTACIÓN DE MINAS Y CANTERAS | AD17: 231515000 | AE17: 0.004107560585 | AG17: EDUCACIÓN | AH17: 2771547000 | AI17: 0.05942767711
B18: 25181 | C18: CHOACHÍ | D18: 25 | E18: CUNDINAMARCA | F18: 4663 | G18: COMERCIO AL POR MAYOR Y AL POR MENOR; REPARACIÓN DE VEHÍCULOS AUTOMOTORES Y MOTOCICLETAS | H18: Natural | I18: MICRO | J18: 181704 | P18: 0 | Q18: 5631 | R18: SABANETA | S18: 5 | T18: ANTIOQUIA | U18: 5630 | V18: ALOJAMIENTO Y SERVICIOS DE COMIDA | W18: Natural | X18: MICRO | Y18: 3613096 | AC18: INDUSTRIAS MANUFACTURERAS | AD18: 3604890000 | AE18: 0.06395829246 | AG18: EXPLOTACIÓN DE MINAS Y CANTERAS | AH18: 192466000 | AI18: 0.004126867523
B19: 25279 | C19: FOMEQUE | D19: 25 | E19: CUNDINAMARCA | F19: 145 | G19: AGRICULTURA, GANADERÍA, CAZA, SILVICULTURA Y PESCA | H19: Natural | I19: MICRO | J19: 250000 | P19: 0 | Q19: 5001 | R19: MEDELLÍN | S19: 5 | T19: ANTIOQUIA | U19: 1089 | V19: INDUSTRIAS MANUFACTURERAS | W19: Natural | X19: MICRO | Y19: 800000 | AC19: INFORMACIÓN Y COMUNICACIONES | AD19: 214168000 | AE19: 0.003799788504 | AG19: INDUSTRIAS MANUFACTURERAS | AH19: 2714779000 | AI19: 0.05821045425
B20: 25214 | C20: COTA | D20: 25 | E20: CUNDINAMARCA | F20: 4290 | G20: CONSTRUCCIÓN | H20: Natural | I20: MICRO | J20: 90852 | P20: 0 | Q20: 5001 | R20: MEDELLÍN | S20: 5 | T20: ANTIOQUIA | U20: 7420 | V20: ACTIVIDADES PROFESIONALES, CIENTÍFICAS Y TÉCNICAS | W20: Natural | X20: MICRO | Y20: 750000 | AC20: OTRAS ACTIVIDADES DE SERVICIOS | AD20: 2884552000 | AE20: 0.0511779889 | AG20: INFORMACIÓN Y COMUNICACIONES | AH20: 181764000 | AI20: 0.003897394597
B21: 25758 | C21: SOPÓ | D21: 25 | E21: CUNDINAMARCA | F21: 141 | G21: AGRICULTURA, GANADERÍA, CAZA, SILVICULTURA Y PESCA | H21: Natural | I21: MICRO | J21: 2046000 | P21: 0 | Q21: 5001 | R21: MEDELLÍN | S21: 5 | T21: ANTIOQUIA | U21: 5612 | V21: ALOJAMIENTO Y SERVICIOS DE COMIDA | W21: Natural | X21: MICRO | Y21: 5948000 | AC21: SUMINISTRO DE ELECTRICIDAD, GAS, VAPOR Y AIRE ACONDICIONADO | AD21: 228692000 | AE21: 0.004057474658 | AG21: OTRAS ACTIVIDADES DE SERVICIOS | AH21: 2286499000 | AI21: 0.04902724878
B22: 25297 | C22: GACHETÁ | D22: 25 | E22: CUNDINAMARCA | F22: 4663 | G22: COMERCIO AL POR MAYOR Y AL POR MENOR; REPARACIÓN DE VEHÍCULOS AUTOMOTORES Y MOTOCICLETAS | H22: Natural | I22: MICRO | J22: 750000 | P22: 0 | Q22: 5686 | R22: SANTA ROSA DE OSOS | S22: 5 | T22: ANTIOQUIA | U22: 141 | V22: AGRICULTURA, GANADERÍA, CAZA, SILVICULTURA Y PESCA | W22: Natural | X22: MICRO | Y22: 100000 | AC22: TRANSPORTE Y ALMACENAMIENTO | AD22: 6488127000 | AE22: 0.1151129505 | AG22: SUMINISTRO DE ELECTRICIDAD, GAS, VAPOR Y AIRE ACONDICIONADO | AH22: 76194000 | AI22: 0.001633756321
B23: 11001 | C23: BOGOTÁ, D.C. | D23: 11 | E23: BOGOTÁ, D.C. | F23: 7310 | G23: ACTIVIDADES PROFESIONALES, CIENTÍFICAS Y TÉCNICAS | H23: Natural | I23: MICRO | J23: 227131 | P23: 0 | Q23: 5686 | R23: SANTA ROSA DE OSOS | S23: 5 | T23: ANTIOQUIA | U23: 1610 | V23: INDUSTRIAS MANUFACTURERAS | W23: Natural | X23: MICRO | Y23: 2250000 | AC23: Total general | AD23: 56363137000 | AE23: 1 | AG23: TRANSPORTE Y ALMACENAMIENTO | AH23: 4933536000 | AI23: 0.105785175
B24: 25430 | C24: MADRID | D24: 25 | E24: CUNDINAMARCA | F24: 145 | G24: AGRICULTURA, GANADERÍA, CAZA, SILVICULTURA Y PESCA | H24: Natural | I24: MICRO | J24: 250000 | P24: 0 | Q24: 5001 | R24: MEDELLÍN | S24: 5 | T24: ANTIOQUIA | U24: 4741 | V24: COMERCIO AL POR MAYOR Y AL POR MENOR; REPARACIÓN DE VEHÍCULOS AUTOMOTORES Y MOTOCICLETAS | W24: Natural | X24: MICRO | Y24: 1907900 | AG24: Total general | AH24: 46637310000 | AI24: 1
B25: 25754 | C25: SOACHA | D25: 25 | E25: CUNDINAMARCA | F25: 8219 | G25: ACTIVIDADES DE SERVICIOS ADMINISTRATIVOS Y DE APOYO | H25: Natural | I25: MICRO | J25: 4030000 | P25: 0 | Q25: 5001 | R25: MEDELLÍN | S25: 5 | T25: ANTIOQUIA | U25: 1081 | V25: INDUSTRIAS MANUFACTURERAS | W25: Natural | X25: MICRO | Y25: 227131
B26: 11001 | C26: BOGOTÁ, D.C. | D26: 11 | E26: BOGOTÁ, D.C. | F26: 6910 | G26: ACTIVIDADES PROFESIONALES, CIENTÍFICAS Y TÉCNICAS | H26: Natural | I26: MICRO | J26: 8630978 | P26: 0 | Q26: 5001 | R26: MEDELLÍN | S26: 5 | T26: ANTIOQUIA | U26: 1410 | V26: INDUSTRIAS MANUFACTURERAS | W26: Natural | X26: MICRO | Y26: 250000
B27: 11001 | C27: BOGOTÁ, D.C. | D27: 11 | E27: BOGOTÁ, D.C. | F27: 4751 | G27: COMERCIO AL POR MAYOR Y AL POR MENOR; REPARACIÓN DE VEHÍCULOS AUTOMOTORES Y MOTOCICLETAS | H27: Natural | I27: MICRO | J27: 681393 | P27: 0 | Q27: 5001 | R27: MEDELLÍN | S27: 5 | T27: ANTIOQUIA | U27: 6495 | V27: ACTIVIDADES FINANCIERAS Y DE SEGUROS | W27: Natural | X27: MICRO | Y27: 250000
B28: 25785 | C28: TABIO | D28: 25 | E28: CUNDINAMARCA | F28: 9004 | G28: ACTIVIDADES ARTÍSTICAS, DE ENTRETENIMIENTO Y RECREACIÓN | H28: Natural | I28: MICRO | J28: 250000 | P28: 0 | Q28: 5266 | R28: ENVIGADO | S28: 5 | T28: ANTIOQUIA | U28: 4620 | V28: COMERCIO AL POR MAYOR Y AL POR MENOR; REPARACIÓN DE VEHÍCULOS AUTOMOTORES Y MOTOCICLETAS | W28: Natural | X28: MICRO | Y28: 350000
B29: 50001 | C29: VILLAVICENCIO | D29: 50 | E29: META | F29: 4729 | G29: COMERCIO AL POR MAYOR Y AL POR MENOR; REPARACIÓN DE VEHÍCULOS AUTOMOTORES Y MOTOCICLETAS | H29: Natural | I29: MICRO | J29: 5797131 | P29: 0 | Q29: 5001 | R29: MEDELLÍN | S29: 5 | T29: ANTIOQUIA | U29: 5611 | V29: ALOJAMIENTO Y SERVICIOS DE COMIDA | W29: Natural | X29: MICRO | Y29: 250000
B30: 25875 | C30: VILLETA | D30: 25 | E30: CUNDINAMARCA | F30: 1081 | G30: INDUSTRIAS MANUFACTURERAS | H30: Natural | I30: MICRO | J30: 454262 | P30: 0 | Q30: 5631 | R30: SABANETA | S30: 5 | T30: ANTIOQUIA | U30: 3110 | V30: INDUSTRIAS MANUFACTURERAS | W30: Natural | X30: MICRO | Y30: 1200000
B31: 25269 | C31: FACATATIVÁ | D31: 25 | E31: CUNDINAMARCA | F31: 8560 | G31: EDUCACIÓN | H31: Natural | I31: MICRO | J31: 2100000 | P31: 0 | Q31: 5001 | R31: MEDELLÍN | S31: 5 | T31: ANTIOQUIA | U31: 4530 | V31: COMERCIO AL POR MAYOR Y AL POR MENOR; REPARACIÓN DE VEHÍCULOS AUTOMOTORES Y MOTOCICLETAS | W31: Natural | X31: MICRO | Y31: 227131
B32: 85001 | C32: YOPAL | D32: 85 | E32: CASANARE | F32: 4769 | G32: COMERCIO AL POR MAYOR Y AL POR MENOR; REPARACIÓN DE VEHÍCULOS AUTOMOTORES Y MOTOCICLETAS | H32: Natural | I32: MICRO | J32: 2450000 | P32: 0 | Q32: 5001 | R32: MEDELLÍN | S32: 5 | T32: ANTIOQUIA | U32: 4711 | V32: COMERCIO AL POR MAYOR Y AL POR MENOR; REPARACIÓN DE VEHÍCULOS AUTOMOTORES Y MOTOCICLETAS | W32: Natural | X32: MICRO | Y32: 750000
B33: 5001 | C33: MEDELLÍN | D33: 5 | E33: ANTIOQUIA | F33: 90 | G33: OTRAS | H33: Natural | I33: MICRO | J33: 400000 | P33: 0 | Q33: 5368 | R33: JERICÓ | S33: 5 | T33: ANTIOQUIA | U33: 1084 | V33: INDUSTRIAS MANUFACTURERAS | W33: Natural | X33: MICRO | Y33: 20148126
B34: 15759 | C34: SOGAMOSO | D34: 15 | E34: BOYACÁ | F34: 4799 | G34: COMERCIO AL POR MAYOR Y AL POR MENOR; REPARACIÓN DE VEHÍCULOS AUTOMOTORES Y MOTOCICLETAS | H34: Natural | I34: MICRO | J34: 600000 | P34: 0 | Q34: 5631 | R34: SABANETA | S34: 5 | T34: ANTIOQUIA | U34: 4541 | V34: COMERCIO AL POR MAYOR Y AL POR MENOR; REPARACIÓN DE VEHÍCULOS AUTOMOTORES Y MOTOCICLETAS | W34: Natural | X34: MICRO | Y34: 3808211
B35: 5001 | C35: MEDELLÍN | D35: 5 | E35: ANTIOQUIA | F35: 5611 | G35: ALOJAMIENTO Y SERVICIOS DE COMIDA | H35: Natural | I35: MICRO | J35: 100000 | P35: 0 | Q35: 5001 | R35: MEDELLÍN | S35: 5 | T35: ANTIOQUIA | U35: 4723 | V35: COMERCIO AL POR MAYOR Y AL POR MENOR; REPARACIÓN DE VEHÍCULOS AUTOMOTORES Y MOTOCICLETAS | W35: Natural | X35: MICRO | Y35: 200000
B36: 5001 | C36: MEDELLÍN | D36: 5 | E36: ANTIOQUIA | F36: 4722 | G36: COMERCIO AL POR MAYOR Y AL POR MENOR; REPARACIÓN DE VEHÍCULOS AUTOMOTORES Y MOTOCICLETAS | H36: Natural | I36: MICRO | J36: 3740000 | P36: 0 | Q36: 5736 | R36: SEGOVIA | S36: 5 | T36: ANTIOQUIA | U36: 4723 | V36: COMERCIO AL POR MAYOR Y AL POR MENOR; REPARACIÓN DE VEHÍCULOS AUTOMOTORES Y MOTOCICLETAS | W36: Natural | X36: MICRO | Y36: 6275572
B37: 5001 | C37: MEDELLÍN | D37: 5 | E37: ANTIOQUIA | F37: 3240 | G37: INDUSTRIAS MANUFACTURERAS | H37: Natural | I37: MICRO | J37: 1654262 | P37: 0 | Q37: 5837 | R37: TURBO | S37: 5 | T37: ANTIOQUIA | U37: 4761 | V37: COMERCIO AL POR MAYOR Y AL POR MENOR; REPARACIÓN DE VEHÍCULOS AUTOMOTORES Y MOTOCICLETAS | W37: Natural | X37: MICRO | Y37: 8561847
B38: 5001 | C38: MEDELLÍN | D38: 5 | E38: ANTIOQUIA | F38: 4771 | G38: COMERCIO AL POR MAYOR Y AL POR MENOR; REPARACIÓN DE VEHÍCULOS AUTOMOTORES Y MOTOCICLETAS | H38: Natural | I38: MICRO | J38: 908524 | P38: 0 | Q38: 5001 | R38: MEDELLÍN | S38: 5 | T38: ANTIOQUIA | U38: 6920 | V38: ACTIVIDADES PROFESIONALES, CIENTÍFICAS Y TÉCNICAS | W38: Natural | X38: MICRO | Y38: 1226818
B39: 11001 | C39: BOGOTÁ, D.C. | D39: 11 | E39: BOGOTÁ, D.C. | F39: 4771 | G39: COMERCIO AL POR MAYOR Y AL POR MENOR; REPARACIÓN DE VEHÍCULOS AUTOMOTORES Y MOTOCICLETAS | H39: Natural | I39: MICRO | J39: 454262 | P39: 0 | Q39: 5001 | R39: MEDELLÍN | S39: 5 | T39: ANTIOQUIA | U39: 4645 | V39: COMERCIO AL POR MAYOR Y AL POR MENOR; REPARACIÓN DE VEHÍCULOS AUTOMOTORES Y MOTOCICLETAS | W39: Natural | X39: MICRO | Y39: 1770000
B40: 5697 | C40: EL SANTUARIO | D40: 5 | E40: ANTIOQUIA | F40: 4773 | G40: COMERCIO AL POR MAYOR Y AL POR MENOR; REPARACIÓN DE VEHÍCULOS AUTOMOTORES Y MOTOCICLETAS | H40: Natural | I40: MICRO | J40: 454262 | P40: 0 | Q40: 5034 | R40: ANDES | S40: 5 | T40: ANTIOQUIA | U40: 4632 | V40: COMERCIO AL POR MAYOR Y AL POR MENOR; REPARACIÓN DE VEHÍCULOS AUTOMOTORES Y MOTOCICLETAS | W40: Natural | X40: MICRO | Y40: 6821617
B41: 11001 | C41: BOGOTÁ, D.C. | D41: 11 | E41: BOGOTÁ, D.C. | F41: 4652 | G41: COMERCIO AL POR MAYOR Y AL POR MENOR; REPARACIÓN DE VEHÍCULOS AUTOMOTORES Y MOTOCICLETAS | H41: Natural | I41: MICRO | J41: 227131 | P41: 0 | Q41: 5001 | R41: MEDELLÍN | S41: 5 | T41: ANTIOQUIA | U41: 6920 | V41: ACTIVIDADES PROFESIONALES, CIENTÍFICAS Y TÉCNICAS | W41: Natural | X41: MICRO | Y41: 1200000
B42: 54001 | C42: CÚCUTA | D42: 54 | E42: NORTE DE SANTANDER | F42: 4631 | G42: COMERCIO AL POR MAYOR Y AL POR MENOR; REPARACIÓN DE VEHÍCULOS AUTOMOTORES Y MOTOCICLETAS | H42: Natural | I42: MICRO | J42: 454262 | P42: 0 | Q42: 5001 | R42: MEDELLÍN | S42: 5 | T42: ANTIOQUIA | U42: 4520 | V42: COMERCIO AL POR MAYOR Y AL POR MENOR; REPARACIÓN DE VEHÍCULOS AUTOMOTORES Y MOTOCICLETAS | W42: Natural | X42: MICRO | Y42: 1000000
B43: 5001 | C43: MEDELLÍN | D43: 5 | E43: ANTIOQUIA | F43: 6810 | G43: ACTIVIDADES INMOBILIARIAS | H43: Natural | I43: MICRO | J43: 90852 | P43: 0 | Q43: 5686 | R43: SANTA ROSA DE OSOS | S43: 5 | T43: ANTIOQUIA | U43: 4771 | V43: COMERCIO AL POR MAYOR Y AL POR MENOR; REPARACIÓN DE VEHÍCULOS AUTOMOTORES Y MOTOCICLETAS | W43: Natural | X43: MICRO | Y43: 4196000
B44: 15759 | C44: SOGAMOSO | D44: 15 | E44: BOYACÁ | F44: 8512 | G44: EDUCACIÓN | H44: Natural | I44: MICRO | J44: 2950000 | P44: 0 | Q44: 5631 | R44: SABANETA | S44: 5 | T44: ANTIOQUIA | U44: 7990 | V44: ACTIVIDADES DE SERVICIOS ADMINISTRATIVOS Y DE APOYO | W44: Natural | X44: MICRO | Y44: 8338000
B45: 15176 | C45: CHIQUINQUIRÁ | D45: 15 | E45: BOYACÁ | F45: 1081 | G45: INDUSTRIAS MANUFACTURERAS | H45: Natural | I45: MICRO | J45: 3700000 | P45: 0 | Q45: 5615 | R45: RIONEGRO | S45: 5 | T45: ANTIOQUIA | U45: 4390 | V45: CONSTRUCCIÓN | W45: Natural | X45: MICRO | Y45: 1250000
B46: 11001 | C46: BOGOTÁ, D.C. | D46: 11 | E46: BOGOTÁ, D.C. | F46: 2920 | G46: INDUSTRIAS MANUFACTURERAS | H46: Natural | I46: MICRO | J46: 1800000 | P46: 0 | Q46: 5001 | R46: MEDELLÍN | S46: 5 | T46: ANTIOQUIA | U46: 1410 | V46: INDUSTRIAS MANUFACTURERAS | W46: Natural | X46: MICRO | Y46: 13996000
B47: 15238 | C47: DUITAMA | D47: 15 | E47: BOYACÁ | F47: 4923 | G47: TRANSPORTE Y ALMACENAMIENTO | H47: Natural | I47: MICRO | J47: 500000 | P47: 0 | Q47: 5380 | R47: LA ESTRELLA | S47: 5 | T47: ANTIOQUIA | U47: 4752 | V47: COMERCIO AL POR MAYOR Y AL POR MENOR; REPARACIÓN DE VEHÍCULOS AUTOMOTORES Y MOTOCICLETAS | W47: Natural | X47: MICRO | Y47: 800000
B48: 85001 | C48: YOPAL | D48: 85 | E48: CASANARE | F48: 4542 | G48: COMERCIO AL POR MAYOR Y AL POR MENOR; REPARACIÓN DE VEHÍCULOS AUTOMOTORES Y MOTOCICLETAS | H48: Natural | I48: MICRO | J48: 4181393 | P48: 0 | Q48: 5240 | R48: EBÉJICO | S48: 5 | T48: ANTIOQUIA | U48: 4752 | V48: COMERCIO AL POR MAYOR Y AL POR MENOR; REPARACIÓN DE VEHÍCULOS AUTOMOTORES Y MOTOCICLETAS | W48: Natural | X48: MICRO | Y48: 577131
B49: 15759 | C49: SOGAMOSO | D49: 15 | E49: BOYACÁ | F49: 2395 | G49: INDUSTRIAS MANUFACTURERAS | H49: Natural | I49: MICRO | J49: 100000 | P49: 0 | Q49: 5887 | R49: YARUMAL | S49: 5 | T49: ANTIOQUIA | U49: 4631 | V49: COMERCIO AL POR MAYOR Y AL POR MENOR; REPARACIÓN DE VEHÍCULOS AUTOMOTORES Y MOTOCICLETAS | W49: Natural | X49: MICRO | Y49: 15227131
B50: 11001 | C50: BOGOTÁ, D.C. | D50: 11 | E50: BOGOTÁ, D.C. | F50: 4663 | G50: COMERCIO AL POR MAYOR Y AL POR MENOR; REPARACIÓN DE VEHÍCULOS AUTOMOTORES Y MOTOCICLETAS | H50: Natural | I50: MICRO | J50: 500000 | P50: 0 | Q50: 5001 | R50: MEDELLÍN | S50: 5 | T50: ANTIOQUIA | U50: 4210 | V50: CONSTRUCCIÓN | W50: Natural | X50: MICRO | Y50: 590539
B51: 15753 | C51: SOATÁ | D51: 15 | E51: BOYACÁ | F51: 4631 | G51: COMERCIO AL POR MAYOR Y AL POR MENOR; REPARACIÓN DE VEHÍCULOS AUTOMOTORES Y MOTOCICLETAS | H51: Natural | I51: MICRO | J51: 381704 | P51: 0 | Q51: 5360 | R51: ITAGUI | S51: 5 | T51: ANTIOQUIA | U51: 1011 | V51: INDUSTRIAS MANUFACTURERAS | W51: Natural | X51: MICRO | Y51: 3406965
B52: 11001 | C52: BOGOTÁ, D.C. | D52: 11 | E52: BOGOTÁ, D.C. | F52: 1081 | G52: INDUSTRIAS MANUFACTURERAS | H52: Natural | I52: MICRO | J52: 5658524 | P52: 0 | Q52: 5887 | R52: YARUMAL | S52: 5 | T52: ANTIOQUIA | U52: 4711 | V52: COMERCIO AL POR MAYOR Y AL POR MENOR; REPARACIÓN DE VEHÍCULOS AUTOMOTORES Y MOTOCICLETAS | W52: Natural | X52: MICRO | Y52: 750000
B53: 15759 | C53: SOGAMOSO | D53: 15 | E53: BOYACÁ | F53: 4923 | G53: TRANSPORTE Y ALMACENAMIENTO | H53: Natural | I53: MICRO | J53: 1450000 | P53: 0 | Q53: 5887 | R53: YARUMAL | S53: 5 | T53: ANTIOQUIA | U53: 4690 | V53: COMERCIO AL POR MAYOR Y AL POR MENOR; REPARACIÓN DE VEHÍCULOS AUTOMOTORES Y MOTOCICLETAS | W53: Natural | X53: MICRO | Y53: 22498441
B54: 11001 | C54: BOGOTÁ, D.C. | D54: 11 | E54: BOGOTÁ, D.C. | F54: 4923 | G54: TRANSPORTE Y ALMACENAMIENTO | H54: Natural | I54: MICRO | J54: 2526818 | P54: 0 | Q54: 5679 | R54: SANTA BÁRBARA | S54: 5 | T54: ANTIOQUIA | U54: 4663 | V54: COMERCIO AL POR MAYOR Y AL POR MENOR; REPARACIÓN DE VEHÍCULOS AUTOMOTORES Y MOTOCICLETAS | W54: Natural | X54: MICRO | Y54: 1740852
B55: 11001 | C55: BOGOTÁ, D.C. | D55: 11 | E55: BOGOTÁ, D.C. | F55: 5611 | G55: ALOJAMIENTO Y SERVICIOS DE COMIDA | H55: Natural | I55: MICRO | J55: 1800000 | P55: 0 | Q55: 5631 | R55: SABANETA | S55: 5 | T55: ANTIOQUIA | U55: 5630 | V55: ALOJAMIENTO Y SERVICIOS DE COMIDA | W55: Natural | X55: MICRO | Y55: 900000
B56: 5266 | C56: ENVIGADO | D56: 5 | E56: ANTIOQUIA | F56: 4541 | G56: COMERCIO AL POR MAYOR Y AL POR MENOR; REPARACIÓN DE VEHÍCULOS AUTOMOTORES Y MOTOCICLETAS | H56: Natural | I56: MICRO | J56: 227131 | P56: 0 | Q56: 5001 | R56: MEDELLÍN | S56: 5 | T56: ANTIOQUIA | U56: 4751 | V56: COMERCIO AL POR MAYOR Y AL POR MENOR; REPARACIÓN DE VEHÍCULOS AUTOMOTORES Y MOTOCICLETAS | W56: Natural | X56: MICRO | Y56: 681393
B57: 17442 | C57: MARMATO | D57: 17 | E57: CALDAS | F57: 722 | G57: EXPLOTACIÓN DE MINAS Y CANTERAS | H57: Natural | I57: MICRO | J57: 29442000 | P57: 0 | Q57: 5001 | R57: MEDELLÍN | S57: 5 | T57: ANTIOQUIA | U57: 5511 | V57: ALOJAMIENTO Y SERVICIOS DE COMIDA | W57: Natural | X57: MICRO | Y57: 600000
B58: 17442 | C58: MARMATO | D58: 17 | E58: CALDAS | F58: 722 | G58: EXPLOTACIÓN DE MINAS Y CANTERAS | H58: Natural | I58: MICRO | J58: 33376000 | P58: 0 | Q58: 5615 | R58: RIONEGRO | S58: 5 | T58: ANTIOQUIA | U58: 5611 | V58: ALOJAMIENTO Y SERVICIOS DE COMIDA | W58: Natural | X58: MICRO | Y58: 36200000
B59: 50001 | C59: VILLAVICENCIO | D59: 50 | E59: META | F59: 4321 | G59: CONSTRUCCIÓN | H59: Natural | I59: MICRO | J59: 1000000 | P59: 0 | Q59: 5376 | R59: LA CEJA | S59: 5 | T59: ANTIOQUIA | U59: 9522 | V59: OTRAS ACTIVIDADES DE SERVICIOS | W59: Natural | X59: MICRO | Y59: 6586818
B60: 66001 | C60: PEREIRA | D60: 66 | E60: RISARALDA | F60: 9609 | G60: OTRAS ACTIVIDADES DE SERVICIOS | H60: Natural | I60: MICRO | J60: 1958522 | P60: 0 | Q60: 5148 | R60: EL CARMEN DE VIBORAL | S60: 5 | T60: ANTIOQUIA | U60: 8130 | V60: ACTIVIDADES DE SERVICIOS ADMINISTRATIVOS Y DE APOYO | W60: Natural | X60: MICRO | Y60: 4900000
B61: 66594 | C61: QUINCHÍA | D61: 66 | E61: RISARALDA | F61: 4711 | G61: COMERCIO AL POR MAYOR Y AL POR MENOR; REPARACIÓN DE VEHÍCULOS AUTOMOTORES Y MOTOCICLETAS | H61: Natural | I61: MICRO | J61: 7150000 | P61: 0 | Q61: 5615 | R61: RIONEGRO | S61: 5 | T61: ANTIOQUIA | U61: 4732 | V61: COMERCIO AL POR MAYOR Y AL POR MENOR; REPARACIÓN DE VEHÍCULOS AUTOMOTORES Y MOTOCICLETAS | W61: Natural | X61: MICRO | Y61: 5160000
B62: 66170 | C62: DOSQUEBRADAS | D62: 66 | E62: RISARALDA | F62: 4775 | G62: COMERCIO AL POR MAYOR Y AL POR MENOR; REPARACIÓN DE VEHÍCULOS AUTOMOTORES Y MOTOCICLETAS | H62: Natural | I62: MICRO | J62: 1000000 | P62: 0 | Q62: 5615 | R62: RIONEGRO | S62: 5 | T62: ANTIOQUIA | U62: 4631 | V62: COMERCIO AL POR MAYOR Y AL POR MENOR; REPARACIÓN DE VEHÍCULOS AUTOMOTORES Y MOTOCICLETAS | W62: Natural | X62: MICRO | Y62: 250000
B63: 66170 | C63: DOSQUEBRADAS | D63: 66 | E63: RISARALDA | F63: 6910 | G63: ACTIVIDADES PROFESIONALES, CIENTÍFICAS Y TÉCNICAS | H63: Natural | I63: MICRO | J63: 6400000 | P63: 0 | Q63: 5001 | R63: MEDELLÍN | S63: 5 | T63: ANTIOQUIA | U63: 4711 | V63: COMERCIO AL POR MAYOR Y AL POR MENOR; REPARACIÓN DE VEHÍCULOS AUTOMOTORES Y MOTOCICLETAS | W63: Natural | X63: MICRO | Y63: 1450000
B64: 66001 | C64: PEREIRA | D64: 66 | E64: RISARALDA | F64: 4754 | G64: COMERCIO AL POR MAYOR Y AL POR MENOR; REPARACIÓN DE VEHÍCULOS AUTOMOTORES Y MOTOCICLETAS | H64: Natural | I64: MICRO | J64: 11808000 | P64: 0 | Q64: 5376 | R64: LA CEJA | S64: 5 | T64: ANTIOQUIA | U64: 4771 | V64: COMERCIO AL POR MAYOR Y AL POR MENOR; REPARACIÓN DE VEHÍCULOS AUTOMOTORES Y MOTOCICLETAS | W64: Natural | X64: MICRO | Y64: 1704262
B65: 18205 | C65: CURILLO | D65: 18 | E65: CAQUETÁ | F65: 1040 | G65: INDUSTRIAS MANUFACTURERAS | H65: Natural | I65: MICRO | J65: 12232000 | P65: 0 | Q65: 5440 | R65: MARINILLA | S65: 5 | T65: ANTIOQUIA | U65: 6920 | V65: ACTIVIDADES PROFESIONALES, CIENTÍFICAS Y TÉCNICAS | W65: Natural | X65: MICRO | Y65: 250000
B66: 19001 | C66: POPAYÁN | D66: 19 | E66: CAUCA | F66: 8559 | G66: EDUCACIÓN | H66: Natural | I66: MICRO | J66: 317982 | P66: 0 | Q66: 5376 | R66: LA CEJA | S66: 5 | T66: ANTIOQUIA | U66: 1610 | V66: INDUSTRIAS MANUFACTURERAS | W66: Natural | X66: MICRO | Y66: 227131
B67: 76001 | C67: CALI | D67: 76 | E67: VALLE DEL CAUCA | F67: 4752 | G67: COMERCIO AL POR MAYOR Y AL POR MENOR; REPARACIÓN DE VEHÍCULOS AUTOMOTORES Y MOTOCICLETAS | H67: Natural | I67: MICRO | J67: 7748441 | P67: 0 | Q67: 5615 | R67: RIONEGRO | S67: 5 | T67: ANTIOQUIA | U67: 7112 | V67: ACTIVIDADES PROFESIONALES, CIENTÍFICAS Y TÉCNICAS | W67: Natural | X67: MICRO | Y67: 13104000
B68: 41001 | C68: NEIVA | D68: 41 | E68: HUILA | F68: 4752 | G68: COMERCIO AL POR MAYOR Y AL POR MENOR; REPARACIÓN DE VEHÍCULOS AUTOMOTORES Y MOTOCICLETAS | H68: Natural | I68: MICRO | J68: 12050000 | P68: 0 | Q68: 5615 | R68: RIONEGRO | S68: 5 | T68: ANTIOQUIA | U68: 9700 | V68: ACTIVIDADES DE LOS HOGARES INDIVIDUALES EN CALIDAD DE EMPLEADORES; ACTIVIDADES NO DIFERENCIADAS DE LOS HOGARES INDIVIDUALES COMO PRODUCTORES DE BIENES Y SERVICIOS PARA USO PROPIO | W68: Natural | X68: MICRO | Y68: 250000
B69: 41001 | C69: NEIVA | D69: 41 | E69: HUILA | F69: 4711 | G69: COMERCIO AL POR MAYOR Y AL POR MENOR; REPARACIÓN DE VEHÍCULOS AUTOMOTORES Y MOTOCICLETAS | H69: Natural | I69: MICRO | J69: 227131 | P69: 0 | Q69: 5615 | R69: RIONEGRO | S69: 5 | T69: ANTIOQUIA | U69: 4111 | V69: CONSTRUCCIÓN | W69: Natural | X69: MICRO | Y69: 600000
B70: 41551 | C70: PITALITO | D70: 41 | E70: HUILA | F70: 4754 | G70: COMERCIO AL POR MAYOR Y AL POR MENOR; REPARACIÓN DE VEHÍCULOS AUTOMOTORES Y MOTOCICLETAS | H70: Natural | I70: MICRO | J70: 363409 | P70: 0 | Q70: 5615 | R70: RIONEGRO | S70: 5 | T70: ANTIOQUIA | U70: 4762 | V70: COMERCIO AL POR MAYOR Y AL POR MENOR; REPARACIÓN DE VEHÍCULOS AUTOMOTORES Y MOTOCICLETAS | W70: Natural | X70: MICRO | Y70: 250000
B71: 41551 | C71: PITALITO | D71: 41 | E71: HUILA | F71: 4620 | G71: COMERCIO AL POR MAYOR Y AL POR MENOR; REPARACIÓN DE VEHÍCULOS AUTOMOTORES Y MOTOCICLETAS | H71: Natural | I71: MICRO | J71: 1000000 | P71: 0 | Q71: 5615 | R71: RIONEGRO | S71: 5 | T71: ANTIOQUIA | U71: 4530 | V71: COMERCIO AL POR MAYOR Y AL POR MENOR; REPARACIÓN DE VEHÍCULOS AUTOMOTORES Y MOTOCICLETAS | W71: Natural | X71: MICRO | Y71: 250000
B72: 54498 | C72: OCAÑA | D72: 54 | E72: NORTE DE SANTANDER | F72: 4541 | G72: COMERCIO AL POR MAYOR Y AL POR MENOR; REPARACIÓN DE VEHÍCULOS AUTOMOTORES Y MOTOCICLETAS | H72: Natural | I72: MICRO | J72: 1181393 | P72: 0 | Q72: 5615 | R72: RIONEGRO | S72: 5 | T72: ANTIOQUIA | U72: 6201 | V72: INFORMACIÓN Y COMUNICACIONES | W72: Natural | X72: MICRO | Y72: 4536278
B73: 52317 | C73: GUACHUCAL | D73: 52 | E73: NARIÑO | F73: 4731 | G73: COMERCIO AL POR MAYOR Y AL POR MENOR; REPARACIÓN DE VEHÍCULOS AUTOMOTORES Y MOTOCICLETAS | H73: Natural | I73: MICRO | J73: 1750000 | P73: 0 | Q73: 5615 | R73: RIONEGRO | S73: 5 | T73: ANTIOQUIA | U73: 4923 | V73: TRANSPORTE Y ALMACENAMIENTO | W73: Natural | X73: MICRO | Y73: 5221393
B74: 52560 | C74: POTOSÍ | D74: 52 | E74: NARIÑO | F74: 1040 | G74: INDUSTRIAS MANUFACTURERAS | H74: Natural | I74: MICRO | J74: 1650000 | P74: 0 | Q74: 5001 | R74: MEDELLÍN | S74: 5 | T74: ANTIOQUIA | U74: 5613 | V74: ALOJAMIENTO Y SERVICIOS DE COMIDA | W74: Natural | X74: MICRO | Y74: 4093409
B75: 52683 | C75: SANDONÁ | D75: 52 | E75: NARIÑO | F75: 4711 | G75: COMERCIO AL POR MAYOR Y AL POR MENOR; REPARACIÓN DE VEHÍCULOS AUTOMOTORES Y MOTOCICLETAS | H75: Natural | I75: MICRO | J75: 250000 | P75: 0 | Q75: 5045 | R75: APARTADÓ | S75: 5 | T75: ANTIOQUIA | U75: 4769 | V75: COMERCIO AL POR MAYOR Y AL POR MENOR; REPARACIÓN DE VEHÍCULOS AUTOMOTORES Y MOTOCICLETAS | W75: Natural | X75: MICRO | Y75: 1654262
B76: 54001 | C76: CÚCUTA | D76: 54 | E76: NORTE DE SANTANDER | F76: 2599 | G76: INDUSTRIAS MANUFACTURERAS | H76: Natural | I76: MICRO | J76: 227131 | P76: 0 | Q76: 5001 | R76: MEDELLÍN | S76: 5 | T76: ANTIOQUIA | U76: 8110 | V76: ACTIVIDADES DE SERVICIOS ADMINISTRATIVOS Y DE APOYO | W76: Natural | X76: MICRO | Y76: 700000
B77: 54001 | C77: CÚCUTA | D77: 54 | E77: NORTE DE SANTANDER | F77: 4923 | G77: TRANSPORTE Y ALMACENAMIENTO | H77: Natural | I77: MICRO | J77: 250000 | P77: 0 | Q77: 5154 | R77: CAUCASIA | S77: 5 | T77: ANTIOQUIA | U77: 141 | V77: AGRICULTURA, GANADERÍA, CAZA, SILVICULTURA Y PESCA | W77: Natural | X77: MICRO | Y77: 2380000
B78: 54518 | C78: PAMPLONA | D78: 54 | E78: NORTE DE SANTANDER | F78: 5611 | G78: ALOJAMIENTO Y SERVICIOS DE COMIDA | H78: Natural | I78: MICRO | J78: 23084262 | P78: 0 | Q78: 5318 | R78: GUARNE | S78: 5 | T78: ANTIOQUIA | U78: 4620 | V78: COMERCIO AL POR MAYOR Y AL POR MENOR; REPARACIÓN DE VEHÍCULOS AUTOMOTORES Y MOTOCICLETAS | W78: Natural | X78: MICRO | Y78: 454262
B79: 54001 | C79: CÚCUTA | D79: 54 | E79: NORTE DE SANTANDER | F79: 4752 | G79: COMERCIO AL POR MAYOR Y AL POR MENOR; REPARACIÓN DE VEHÍCULOS AUTOMOTORES Y MOTOCICLETAS | H79: Natural | I79: MICRO | J79: 100000 | P79: 0 | Q79: 5001 | R79: MEDELLÍN | S79: 5 | T79: ANTIOQUIA | U79: 4774 | V79: COMERCIO AL POR MAYOR Y AL POR MENOR; REPARACIÓN DE VEHÍCULOS AUTOMOTORES Y MOTOCICLETAS | W79: Natural | X79: MICRO | Y79: 454262
B80: 68001 | C80: BUCARAMANGA | D80: 68 | E80: SANTANDER | F80: 1610 | G80: INDUSTRIAS MANUFACTURERAS | H80: Natural | I80: MICRO | J80: 250000 | P80: 0 | Q80: 5001 | R80: MEDELLÍN | S80: 5 | T80: ANTIOQUIA | U80: 1081 | V80: INDUSTRIAS MANUFACTURERAS | W80: Natural | X80: MICRO | Y80: 1800000
B81: 68001 | C81: BUCARAMANGA | D81: 68 | E81: SANTANDER | F81: 4774 | G81: COMERCIO AL POR MAYOR Y AL POR MENOR; REPARACIÓN DE VEHÍCULOS AUTOMOTORES Y MOTOCICLETAS | H81: Natural | I81: MICRO | J81: 6250000 | P81: 0 | Q81: 5045 | R81: APARTADÓ | S81: 5 | T81: ANTIOQUIA | U81: 1089 | V81: INDUSTRIAS MANUFACTURERAS | W81: Natural | X81: MICRO | Y81: 16812371
B82: 11001 | C82: BOGOTÁ, D.C. | D82: 11 | E82: BOGOTÁ, D.C. | F82: 4732 | G82: COMERCIO AL POR MAYOR Y AL POR MENOR; REPARACIÓN DE VEHÍCULOS AUTOMOTORES Y MOTOCICLETAS | H82: Natural | I82: MICRO | J82: 11866421 | P82: 0 | Q82: 5001 | R82: MEDELLÍN | S82: 5 | T82: ANTIOQUIA | U82: 1081 | V82: INDUSTRIAS MANUFACTURERAS | W82: Natural | X82: MICRO | Y82: 500000
B83: 54001 | C83: CÚCUTA | D83: 54 | E83: NORTE DE SANTANDER | F83: 1410 | G83: INDUSTRIAS MANUFACTURERAS | H83: Natural | I83: MICRO | J83: 1158524 | P83: 0 | Q83: 5001 | R83: MEDELLÍN | S83: 5 | T83: ANTIOQUIA | U83: 5611 | V83: ALOJAMIENTO Y SERVICIOS DE COMIDA | W83: Natural | X83: MICRO | Y83: 250000
B84: 68001 | C84: BUCARAMANGA | D84: 68 | E84: SANTANDER | F84: 7420 | G84: ACTIVIDADES PROFESIONALES, CIENTÍFICAS Y TÉCNICAS | H84: Natural | I84: MICRO | J84: 2870000 | P84: 0 | Q84: 5001 | R84: MEDELLÍN | S84: 5 | T84: ANTIOQUIA | U84: 1410 | V84: INDUSTRIAS MANUFACTURERAS | W84: Natural | X84: MICRO | Y84: 12083338
B85: 68679 | C85: SAN GIL | D85: 68 | E85: SANTANDER | F85: 4711 | G85: COMERCIO AL POR MAYOR Y AL POR MENOR; REPARACIÓN DE VEHÍCULOS AUTOMOTORES Y MOTOCICLETAS | H85: Natural | I85: MICRO | J85: 22200000 | P85: 0 | Q85: 5264 | R85: ENTRERRIOS | S85: 5 | T85: ANTIOQUIA | U85: 6920 | V85: ACTIVIDADES PROFESIONALES, CIENTÍFICAS Y TÉCNICAS | W85: Natural | X85: MICRO | Y85: 227131
B86: 68861 | C86: VÉLEZ | D86: 68 | E86: SANTANDER | F86: 1089 | G86: INDUSTRIAS MANUFACTURERAS | H86: Natural | I86: MICRO | J86: 954262 | P86: 0 | Q86: 5001 | R86: MEDELLÍN | S86: 5 | T86: ANTIOQUIA | U86: 5612 | V86: ALOJAMIENTO Y SERVICIOS DE COMIDA | W86: Natural | X86: MICRO | Y86: 4685965
B87: 68001 | C87: BUCARAMANGA | D87: 68 | E87: SANTANDER | F87: 4711 | G87: COMERCIO AL POR MAYOR Y AL POR MENOR; REPARACIÓN DE VEHÍCULOS AUTOMOTORES Y MOTOCICLETAS | H87: Natural | I87: MICRO | J87: 1000000 | P87: 0 | Q87: 5360 | R87: ITAGUI | S87: 5 | T87: ANTIOQUIA | U87: 8121 | V87: ACTIVIDADES DE SERVICIOS ADMINISTRATIVOS Y DE APOYO | W87: Natural | X87: MICRO | Y87: 1400000
B88: 11001 | C88: BOGOTÁ, D.C. | D88: 11 | E88: BOGOTÁ, D.C. | F88: 8121 | G88: ACTIVIDADES DE SERVICIOS ADMINISTRATIVOS Y DE APOYO | H88: Natural | I88: MICRO | J88: 400000 | P88: 0 | Q88: 5615 | R88: RIONEGRO | S88: 5 | T88: ANTIOQUIA | U88: 5511 | V88: ALOJAMIENTO Y SERVICIOS DE COMIDA | W88: Natural | X88: MICRO | Y88: 4550000
B89: 41001 | C89: NEIVA | D89: 41 | E89: HUILA | F89: 5511 | G89: ALOJAMIENTO Y SERVICIOS DE COMIDA | H89: Natural | I89: MICRO | J89: 750000 | P89: 0 | Q89: 5264 | R89: ENTRERRIOS | S89: 5 | T89: ANTIOQUIA | U89: 141 | V89: AGRICULTURA, GANADERÍA, CAZA, SILVICULTURA Y PESCA | W89: Natural | X89: MICRO | Y89: 2910000
B90: 73001 | C90: IBAGUÉ | D90: 73 | E90: TOLIMA | F90: 4773 | G90: COMERCIO AL POR MAYOR Y AL POR MENOR; REPARACIÓN DE VEHÍCULOS AUTOMOTORES Y MOTOCICLETAS | H90: Natural | I90: MICRO | J90: 550000 | P90: 0 | Q90: 5001 | R90: MEDELLÍN | S90: 5 | T90: ANTIOQUIA | U90: 4541 | V90: COMERCIO AL POR MAYOR Y AL POR MENOR; REPARACIÓN DE VEHÍCULOS AUTOMOTORES Y MOTOCICLETAS | W90: Natural | X90: MICRO | Y90: 2550000
B91: 76001 | C91: CALI | D91: 76 | E91: VALLE DEL CAUCA | F91: 1811 | G91: INDUSTRIAS MANUFACTURERAS | H91: Natural | I91: MICRO | J91: 750000 | P91: 0 | Q91: 5001 | R91: MEDELLÍN | S91: 5 | T91: ANTIOQUIA | U91: 4752 | V91: COMERCIO AL POR MAYOR Y AL POR MENOR; REPARACIÓN DE VEHÍCULOS AUTOMOTORES Y MOTOCICLETAS | W91: Natural | X91: MICRO | Y91: 200000
B92: 73001 | C92: IBAGUÉ | D92: 73 | E92: TOLIMA | F92: 4752 | G92: COMERCIO AL POR MAYOR Y AL POR MENOR; REPARACIÓN DE VEHÍCULOS AUTOMOTORES Y MOTOCICLETAS | H92: Natural | I92: MICRO | J92: 2408524 | P92: 0 | Q92: 5376 | R92: LA CEJA | S92: 5 | T92: ANTIOQUIA | U92: 5611 | V92: ALOJAMIENTO Y SERVICIOS DE COMIDA | W92: Natural | X92: MICRO | Y92: 817671
B93: 50001 | C93: VILLAVICENCIO | D93: 50 | E93: META | F93: 5511 | G93: ALOJAMIENTO Y SERVICIOS DE COMIDA | H93: Natural | I93: MICRO | J93: 4253949 | P93: 0 | Q93: 5656 | R93: SAN JERÓNIMO | S93: 5 | T93: ANTIOQUIA | U93: 4759 | V93: COMERCIO AL POR MAYOR Y AL POR MENOR; REPARACIÓN DE VEHÍCULOS AUTOMOTORES Y MOTOCICLETAS | W93: Natural | X93: MICRO | Y93: 5184000
B94: 76834 | C94: TULUÁ | D94: 76 | E94: VALLE DEL CAUCA | F94: 4751 | G94: COMERCIO AL POR MAYOR Y AL POR MENOR; REPARACIÓN DE VEHÍCULOS AUTOMOTORES Y MOTOCICLETAS | H94: Natural | I94: MICRO | J94: 5590000 | P94: 0 | Q94: 5628 | R94: SABANALARGA | S94: 5 | T94: ANTIOQUIA | U94: 4719 | V94: COMERCIO AL POR MAYOR Y AL POR MENOR; REPARACIÓN DE VEHÍCULOS AUTOMOTORES Y MOTOCICLETAS | W94: Natural | X94: MICRO | Y94: 5222243
B95: 76020 | C95: ALCALÁ | D95: 76 | E95: VALLE DEL CAUCA | F95: 4752 | G95: COMERCIO AL POR MAYOR Y AL POR MENOR; REPARACIÓN DE VEHÍCULOS AUTOMOTORES Y MOTOCICLETAS | H95: Natural | I95: MICRO | J95: 2000000 | P95: 0 | Q95: 5360 | R95: ITAGUI | S95: 5 | T95: ANTIOQUIA | U95: 4771 | V95: COMERCIO AL POR MAYOR Y AL POR MENOR; REPARACIÓN DE VEHÍCULOS AUTOMOTORES Y MOTOCICLETAS | W95: Natural | X95: MICRO | Y95: 2830000
B96: 76001 | C96: CALI | D96: 76 | E96: VALLE DEL CAUCA | F96: 5611 | G96: ALOJAMIENTO Y SERVICIOS DE COMIDA | H96: Natural | I96: MICRO | J96: 6370000 | P96: 0 | Q96: 5001 | R96: MEDELLÍN | S96: 5 | T96: ANTIOQUIA | U96: 4761 | V96: COMERCIO AL POR MAYOR Y AL POR MENOR; REPARACIÓN DE VEHÍCULOS AUTOMOTORES Y MOTOCICLETAS | W96: Natural | X96: MICRO | Y96: 5016000
B97: 76122 | C97: CAICEDONIA | D97: 76 | E97: VALLE DEL CAUCA | F97: 6920 | G97: ACTIVIDADES PROFESIONALES, CIENTÍFICAS Y TÉCNICAS | H97: Natural | I97: MICRO | J97: 250000 | P97: 0 | Q97: 5001 | R97: MEDELLÍN | S97: 5 | T97: ANTIOQUIA | U97: 5613 | V97: ALOJAMIENTO Y SERVICIOS DE COMIDA | W97: Natural | X97: MICRO | Y97: 1000000
B98: 76400 | C98: LA UNIÓN | D98: 76 | E98: VALLE DEL CAUCA | F98: 130 | G98: AGRICULTURA, GANADERÍA, CAZA, SILVICULTURA Y PESCA | H98: Natural | I98: MICRO | J98: 6198441 | P98: 0 | Q98: 5360 | R98: ITAGUI | S98: 5 | T98: ANTIOQUIA | U98: 8121 | V98: ACTIVIDADES DE SERVICIOS ADMINISTRATIVOS Y DE APOYO | W98: Natural | X98: MICRO | Y98: 14308521
B99: 76001 | C99: CALI | D99: 76 | E99: VALLE DEL CAUCA | F99: 4741 | G99: COMERCIO AL POR MAYOR Y AL POR MENOR; REPARACIÓN DE VEHÍCULOS AUTOMOTORES Y MOTOCICLETAS | H99: Natural | I99: MICRO | J99: 290852 | P99: 0 | Q99: 5360 | R99: ITAGUI | S99: 5 | T99: ANTIOQUIA | U99: 3240 | V99: INDUSTRIAS MANUFACTURERAS | W99: Natural | X99: MICRO | Y99: 2580000
B100: 76001 | C100: CALI | D100: 76 | E100: VALLE DEL CAUCA | F100: 1081 | G100: INDUSTRIAS MANUFACTURERAS | H100: Natural | I100: MICRO | J100: 500000 | P100: 0 | Q100: 5001 | R100: MEDELLÍN | S100: 5 | T100: ANTIOQUIA | U100: 4762 | V100: COMERCIO AL POR MAYOR Y AL POR MENOR; REPARACIÓN DE VEHÍCULOS AUTOMOTORES Y MOTOCICLETAS | W100: Natural | X100: MICRO | Y100: 1250000
B101: 76001 | C101: CALI | D101: 76 | E101: VALLE DEL CAUCA | F101: 1410 | G101: INDUSTRIAS MANUFACTURERAS | H101: Natural | I101: MICRO | J101: 227131 | P101: 0 | Q101: 5001 | R101: MEDELLÍN | S101: 5 | T101: ANTIOQUIA | U101: 8622 | V101: ACTIVIDADES DE ATENCIÓN DE LA SALUD HUMANA Y DE ASISTENCIA SOCIAL | W101: Natural | X101: MICRO | Y101: 727131
B102: 76834 | C102: TULUÁ | D102: 76 | E102: VALLE DEL CAUCA | F102: 4774 | G102: COMERCIO AL POR MAYOR Y AL POR MENOR; REPARACIÓN DE VEHÍCULOS AUTOMOTORES Y MOTOCICLETAS | H102: Natural | I102: MICRO | J102: 12524320 | P102: 0 | Q102: 5686 | R102: SANTA ROSA DE OSOS | S102: 5 | T102: ANTIOQUIA | U102: 4771 | V102: COMERCIO AL POR MAYOR Y AL POR MENOR; REPARACIÓN DE VEHÍCULOS AUTOMOTORES Y MOTOCICLETAS | W102: Natural | X102: MICRO | Y102: 2410000
B103: 76111 | C103: GUADALAJARA DE BUGA | D103: 76 | E103: VALLE DEL CAUCA | F103: 4923 | G103: TRANSPORTE Y ALMACENAMIENTO | H103: Natural | I103: MICRO | J103: 90852 | P103: 0 | Q103: 5088 | R103: BELLO | S103: 5 | T103: ANTIOQUIA | U103: 4759 | V103: COMERCIO AL POR MAYOR Y AL POR MENOR; REPARACIÓN DE VEHÍCULOS AUTOMOTORES Y MOTOCICLETAS | W103: Natural | X103: MICRO | Y103: 100000
B104: 5088 | C104: BELLO | D104: 5 | E104: ANTIOQUIA | F104: 4752 | G104: COMERCIO AL POR MAYOR Y AL POR MENOR; REPARACIÓN DE VEHÍCULOS AUTOMOTORES Y MOTOCICLETAS | H104: Natural | I104: MICRO | J104: 750000 | P104: 0 | Q104: 5001 | R104: MEDELLÍN | S104: 5 | T104: ANTIOQUIA | U104: 5613 | V104: ALOJAMIENTO Y SERVICIOS DE COMIDA | W104: Natural | X104: MICRO | Y104: 500000
B105: 41551 | C105: PITALITO | D105: 41 | E105: HUILA | F105: 4711 | G105: COMERCIO AL POR MAYOR Y AL POR MENOR; REPARACIÓN DE VEHÍCULOS AUTOMOTORES Y MOTOCICLETAS | H105: Natural | I105: MICRO | J105: 227131 | P105: 0 | Q105: 5001 | R105: MEDELLÍN | S105: 5 | T105: ANTIOQUIA | U105: 6920 | V105: ACTIVIDADES PROFESIONALES, CIENTÍFICAS Y TÉCNICAS | W105: Natural | X105: MICRO | Y105: 1589914
B106: 11001 | C106: BOGOTÁ, D.C. | D106: 11 | E106: BOGOTÁ, D.C. | F106: 8521 | G106: EDUCACIÓN | H106: Natural | I106: MICRO | J106: 454262 | P106: 0 | Q106: 5001 | R106: MEDELLÍN | S106: 5 | T106: ANTIOQUIA | U106: 4724 | V106: COMERCIO AL POR MAYOR Y AL POR MENOR; REPARACIÓN DE VEHÍCULOS AUTOMOTORES Y MOTOCICLETAS | W106: Natural | X106: MICRO | Y106: 150000
B107: 11001 | C107: BOGOTÁ, D.C. | D107: 11 | E107: BOGOTÁ, D.C. | F107: 5611 | G107: ALOJAMIENTO Y SERVICIOS DE COMIDA | H107: Natural | I107: MICRO | J107: 5704262 | P107: 0 | Q107: 5368 | R107: JERICÓ | S107: 5 | T107: ANTIOQUIA | U107: 5611 | V107: ALOJAMIENTO Y SERVICIOS DE COMIDA | W107: Natural | X107: MICRO | Y107: 7834000
B108: 11001 | C108: BOGOTÁ, D.C. | D108: 11 | E108: BOGOTÁ, D.C. | F108: 4210 | G108: CONSTRUCCIÓN | H108: Natural | I108: MICRO | J108: 10250000 | P108: 0 | Q108: 5001 | R108: MEDELLÍN | S108: 5 | T108: ANTIOQUIA | U108: 1051 | V108: INDUSTRIAS MANUFACTURERAS | W108: Natural | X108: MICRO | Y108: 2498441
B109: 5631 | C109: SABANETA | D109: 5 | E109: ANTIOQUIA | F109: 4771 | G109: COMERCIO AL POR MAYOR Y AL POR MENOR; REPARACIÓN DE VEHÍCULOS AUTOMOTORES Y MOTOCICLETAS | H109: Natural | I109: MICRO | J109: 3448524 | P109: 0 | Q109: 5665 | R109: SAN PEDRO DE URABA | S109: 5 | T109: ANTIOQUIA | U109: 4773 | V109: COMERCIO AL POR MAYOR Y AL POR MENOR; REPARACIÓN DE VEHÍCULOS AUTOMOTORES Y MOTOCICLETAS | W109: Natural | X109: MICRO | Y109: 4196000
B110: 18001 | C110: FLORENCIA | D110: 18 | E110: CAQUETÁ | F110: 4643 | G110: COMERCIO AL POR MAYOR Y AL POR MENOR; REPARACIÓN DE VEHÍCULOS AUTOMOTORES Y MOTOCICLETAS | H110: Natural | I110: MICRO | J110: 1953949 | P110: 0 | Q110: 5266 | R110: ENVIGADO | S110: 5 | T110: ANTIOQUIA | U110: 6820 | V110: ACTIVIDADES INMOBILIARIAS | W110: Natural | X110: MICRO | Y110: 250000
B111: 18001 | C111: FLORENCIA | D111: 18 | E111: CAQUETÁ | F111: 8020 | G111: ACTIVIDADES DE SERVICIOS ADMINISTRATIVOS Y DE APOYO | H111: Natural | I111: MICRO | J111: 227131 | P111: 0 | Q111: 5088 | R111: BELLO | S111: 5 | T111: ANTIOQUIA | U111: 5613 | V111: ALOJAMIENTO Y SERVICIOS DE COMIDA | W111: Natural | X111: MICRO | Y111: 11976000
B112: 18001 | C112: FLORENCIA | D112: 18 | E112: CAQUETÁ | F112: 4741 | G112: COMERCIO AL POR MAYOR Y AL POR MENOR; REPARACIÓN DE VEHÍCULOS AUTOMOTORES Y MOTOCICLETAS | H112: Natural | I112: MICRO | J112: 2750000 | P112: 0 | Q112: 5129 | R112: CALDAS | S112: 5 | T112: ANTIOQUIA | U112: 4752 | V112: COMERCIO AL POR MAYOR Y AL POR MENOR; REPARACIÓN DE VEHÍCULOS AUTOMOTORES Y MOTOCICLETAS | W112: Natural | X112: MICRO | Y112: 227131
B113: 70001 | C113: SINCELEJO | D113: 70 | E113: SUCRE | F113: 4530 | G113: COMERCIO AL POR MAYOR Y AL POR MENOR; REPARACIÓN DE VEHÍCULOS AUTOMOTORES Y MOTOCICLETAS | H113: Natural | I113: MICRO | J113: 250000 | P113: 0 | Q113: 5360 | R113: ITAGUI | S113: 5 | T113: ANTIOQUIA | U113: 4724 | V113: COMERCIO AL POR MAYOR Y AL POR MENOR; REPARACIÓN DE VEHÍCULOS AUTOMOTORES Y MOTOCICLETAS | W113: Natural | X113: MICRO | Y113: 750000
B114: 23001 | C114: MONTERÍA | D114: 23 | E114: CÓRDOBA | F114: 4541 | G114: COMERCIO AL POR MAYOR Y AL POR MENOR; REPARACIÓN DE VEHÍCULOS AUTOMOTORES Y MOTOCICLETAS | H114: Natural | I114: MICRO | J114: 5735655 | P114: 0 | Q114: 5001 | R114: MEDELLÍN | S114: 5 | T114: ANTIOQUIA | U114: 1410 | V114: INDUSTRIAS MANUFACTURERAS | W114: Natural | X114: MICRO | Y114: 272556
B115: 23001 | C115: MONTERÍA | D115: 23 | E115: CÓRDOBA | F115: 4752 | G115: COMERCIO AL POR MAYOR Y AL POR MENOR; REPARACIÓN DE VEHÍCULOS AUTOMOTORES Y MOTOCICLETAS | H115: Natural | I115: MICRO | J115: 3050000 | P115: 0 | Q115: 5001 | R115: MEDELLÍN | S115: 5 | T115: ANTIOQUIA | U115: 4773 | V115: COMERCIO AL POR MAYOR Y AL POR MENOR; REPARACIÓN DE VEHÍCULOS AUTOMOTORES Y MOTOCICLETAS | W115: Natural | X115: MICRO | Y115: 1250000
B116: 91001 | C116: LETICIA | D116: 91 | E116: AMAZONAS | F116: 5613 | G116: ALOJAMIENTO Y SERVICIOS DE COMIDA | H116: Natural | I116: MICRO | J116: 590540 | P116: 0 | Q116: 5266 | R116: ENVIGADO | S116: 5 | T116: ANTIOQUIA | U116: 7490 | V116: ACTIVIDADES PROFESIONALES, CIENTÍFICAS Y TÉCNICAS | W116: Natural | X116: MICRO | Y116: 2908524
